{"text_format":"1","workbook":"xlsx","n_sheets":8,"sheets":["PLAN DE ACCION CONSOLIDACION","INFO_ANÁLISIS DE CONTEXTO","INFO_ESTRATEGIAS","PLAN DE ACCION","GESTION","GESTION_SEG_1_TRIM","INVERSION","JURISDICCIONAL"],"not_rendered":{"charts":0,"images":5,"macros":1,"external_links":2,"defined_names":20,"comments":0,"pivot_tables":0},"unopened":[],"bounds":{"document_bytes":16777216,"sheet_cells":100000,"rows_first":2000,"rows_last":500,"rows_between":2000,"halvings":0,"cell_chars":16384,"cell_head_chars":4096},"cells_cut":0,"cells_raw":0,"read":"row_number_cap","date_system":"1900"}

{"sheet":"PLAN DE ACCION CONSOLIDACION","index":0,"n_rows":29,"n_cols":24,"rows_kept":29,"cut":false,"hidden":true,"merged":[[1,2,1,21],[2,0,3,0],[2,1,3,1],[2,2,3,2],[2,3,3,3],[2,4,3,4],[2,5,2,7],[2,8,2,10],[2,11,2,15],[2,16,2,18],[2,19,3,19],[2,20,2,21],[2,22,2,23],[4,0,8,0],[4,1,8,1],[4,3,8,3],[9,0,14,0],[9,1,14,1],[9,3,14,3],[27,0,28,0],[27,1,28,1],[27,3,28,3],[15,0,21,0],[15,1,21,1],[15,3,21,3],[22,0,26,0],[22,1,26,1],[22,3,26,3]]}
[]
[null,null,"CONSEJO SUPERIOR DE LA JUDICATURA \nUNIDADES MISIONALES DEL CONSEJO SUPERIOR DE LA JUDICATURA - \nDIRECCIÓN EJECUTIVA DE ADMINISTRACIÓN JUDICIAL -UNIDADES MISIONALES DE LA DEAJ\nDIRECCIONES SECCIONALES DE ADMINISTRACIÓN JUDICIAL "]
["No. ","OBJETIVOS ESTRATEGICOS PLAN SECTORIAL DE DESARROLLO 2023-2026","OBJETIVOS ESPECIFICOS PLAN SECTORIAL DE DESARROLLO 2023-2026","OBJETIVOS DEL SIGCMA","DESCRIPCIÓN DE LA ACTIVIDAD (INVERSIÓN O DE GESTIÓN) ","MAPA DE PROCESO DEL SIGCMA (RELACIONE  EL PROCESO ESTRATÉGICO, MISIONAL, APOYO y EVALUACIÓN - MEJORA)",null,null,"MEDICIÓN DE LA GESTIÓN ",null,null,"PROYECTOS DE INVERSIÓN DE ACUERDO CON LOS OBJETIVOS DEL PLAN SECTORIAL DE DESARROLLO",null,null,null,null,"MEDICIÓN (INVERSIÓN INDICADORES POAI- GESTIÓN INDICADORES",null,null,"RESPONSABLE POR PROYECTO O ACTIVIDAD","FECHA DEL PROYECTO/ACTIVIDAD",null,"ANÁLISIS DE RESULTADOS"]
[null,null,null,null,null,"NOMBRE DEL PROCESO","CENTRAL","SECCIONAL","ENTREGABLE","INDICADOR","DESCRIBIR EL INDICADOR","PROGRAMA DE INVERSIÓN","NOMBRE DEL PROYECTO DE INVERSIÓN ","CODIGO BPIN (PROYECTO)","CODIGO PRESUPUESTAL","ACTIVIDAD DE INVERSIÓN (POAI)","ENTREGABLE","INDICADOR","DESCRIBIR EL INDICADOR",null,"INICIO \nDÍA/MES/AÑO","FIN\nDÍA/MES/AÑO","CUMPLIMIENTO DEL OBJETIVO (ACUMULADO DE LOS 4 TRIMESTRES)"," ANÁLISIS RESULTADO\nFINAL - ACUMULADO"]
[1,"Acceso a Infraestructura Física"," 1. Ampliar el acceso a justicia para atender las necesidades jurídicas de los \nciudadanos con un enfoque diferencial, de una manera pronta, reduciendo las \ninequidades y las brechas territoriales de acceso.","\n2. Asegurar  el cumplimiento de los objetivos institucionales, la normatividad aplicable,  la mejora del SIGCMA y la satisfacción de los usuarios, revisando de  forma continua y sistemática la planificación de la gestión y fortaleciendo la administración de riesgos y sus controles. (1,2,3 y 5)\n\n4. Hacer un uso racional de los recursos naturales aplicando los principios y fases de la Economía Circular, para prevenir, mitigar y controlar los impactos ambientales. (4)\n\n"]
[null,null,"2. Mejorar los tiempos de respuesta de la Rama Judicial y reducir el inventario de \nprocesos, identificando los retos internos y promoviendo tanto acciones articuladas\nespecíficas para abordarlos como estrategias coordinadas para enfrentar las \nbarreras que dependen de otras entidades."]
[null,null,"3. Coadyuvar en la garantía de la idoneidad en el ejercicio de la profesión jurídica de acuerdo con lo establecido en la Ley 1905 de 2018"]
[null,null,"4. Avanzar en la disposición de una infraestructura óptima para el acceso a la justicia en la Rama Judicial de modo que se fortalezca la presencia territorial, teniendo en cuenta las posibilidades que ofrece la transformación digital y las necesidades que se derivan de ella, y considerando tanto las necesidades de los usuarios como las de los servidores judiciales."]
[null,null,"5. Impulsar el uso de mecanismos alternativos para la solución de conflictos y la \nampliación de la justicia restaurativa y terapéutica y el robustecimiento de las alternativas al encarcelamiento"]
[2,"Servicios digitales y de tecnología, innovación y análisis de la información","1. Ampliar el acceso a la justicia a través de la consolidación del uso de los servicios \ndigitales que conforman el sistema único integrado de gestión judicial en todos los \ndespachos judiciales y dependencias de apoyo y, específicamente, incluyendo el \ndespliegue e implementación del Expediente Judicial Electrónico en todas las \njurisdicciones y especialidades.","6. Proteger, preservar y administrar los activos de información  implementando acciones  para gestionar de forma adecuada los incidentes  , proteger los datos personales y adoptar mecanismos  de ciberseguridad y aseguramiento de la  continuidad del negocio (1, 2, 3, 4, 5 y 6)"]
[null,null,"2. Integrar y hacer compatibles todos los aplicativos de transición con SIUGJ, para que la migración de los expedientes judiciales a dicha plataforma sea real y no suponga afectaciones en la prestación del servicio de justicia."]
[null,null,"\n3. Fortalecer las capacidades institucionales, adecuar el modelo operativo y de \nservicio, bajo un enfoque de Arquitectura Empresarial y de fortalecimiento del \nacceso a la justicia."]
[null,null,"\n4.Consolidar la cultura y apropiación de la transformación digital en los servidores y \nusuarios de los servicios de la Rama Judicial y reducir brechas de acceso y conocimiento, incluyendo la oferta efectiva de información sobre el uso de las nuevas herramientas virtuales implementadas en las diferentes jurisdicciones, con especial énfasis en las zonas del país donde es evidente la brecha digital."]
[null,null,"\n5.Consolidar la infraestructura y los recursos necesarios para la implementación exitosa de la transformación digital, incluyendo la disposición de internet de calidad en el 100% de las sedes en la Rama Judicial y modernizar los servicios tecnológicos de soporte. "]
[null,null,"\n6.Integrar y optimizar los servicios administrativos de la Rama Judicial bajo un enfoque de transformación digital e innovación incluyendo los componentes financiero, administrativo, talento humano, entre otros"]
[3,"Confianza pública, transparencia y rendición de cuentas","1. Incrementar la cantidad, la calidad y pertinencia de los datos sobre el funcionamiento del servicio de justicia bajo un modelo de gobierno de datos y un liderazgo unificado. \n","1. Gestionar el desarrollo de las competencias, la toma de conciencia , la cultura  organizacional  y el compromiso de los  servidores judiciales, contratistas, practicantes y  judicantes de contribuir a generar valor público en la administración de justicia, en el marco de  cumplimiento de los requisitos  aplicables y el comportamiento ético. (3 y 7)\n\n3. Fomentar la transparencia y la participación generando lineamientos y promoviendo la rendición de cuentas ,la consulta, reporte y planteamiento de inquietudes en relación con las decisiones y aspectos del SIGCMA. (3, 4, 5 y 6)\n\n4. Hacer un uso racional de los recursos naturales aplicando los principios y fases de la Economía Circular, para prevenir, mitigar y controlar los impactos ambientales. (1 y 7)\n"]
[null,null,"2. Consolidar la administración de la información entendida como todas las acciones \norientadas a garantizar el acceso, consulta, uso y conservación de la información \nde justicia de manera ágil, flexible e inteligente, bajo un enfoque de innovación."]
[null,null,"3. Fortalecer el Sistema integrado de Gestión de la Rama, orientado a la implementación y certificación de las normas antisoborno."]
[null,null,"4. Aumentar la confianza, la cercanía y acceso a los servicios de la Rama Judicial a \ntravés, entre otros, de una comunicación clara y asertiva con la ciudadanía."]
[null,null,"5. Prevenir fenómenos asociados con actos de corrupción en la Rama Judicial y \nreducir las experiencias de corrupción de usuarios y servidores judiciales."]
[null,null,"6. Promover la rendición de cuentas y la colaboración real con la ciudadanía como \nfundamento para diseñar acciones de mejoramiento del acceso a la justicia."]
[null,null,"7. Continuar la consolidación del SIGCMA, a través de los procesos de formación en \nmodelos de gestión, logrando la implementación y ampliación de este en los esquemas certificados de manera gradual, teniendo en cuenta las capacidades de los diferentes despachos judiciales y dependencias de la Rama Judicial y articulando el enfoque de Arquitectura Empresarial para el desarrollo del PETD a través de la gestión del conocimiento para la gestión del cambio propendiendo por una cultura de la calidad, la transparencia, la rendición de cuentas, la anticorrupción y el antisoborno"]
[4,"Talento Humano","1. Ampliar la cobertura de la carrera judicial optimizando los procesos de los concursos de méritos y propender por mitigar su litigiosidad.","1. Gestionar el desarrollo de las competencias, la toma de conciencia , la cultura  organizacional  y el compromiso de los  servidores judiciales, contratistas, practicantes y  judicantes de contribuir a generar valor público en la administración de justicia, en el marco de  cumplimiento de los requisitos  aplicables y el comportamiento ético. (1, 2, 3 y 4)\n\n5. Generar espacios de trabajo seguros y saludables que contribuyan a minimizar los  incidentes, accidentes y enfermedades laborales derivados de las condiciones y actos  inseguros y fomentar  el autocuidado, los  estilos de vida y el trabajo saludable en los servidores judiciales, contratistas, judicantes y practicantes. (5)\n"]
[null,null,"2. Impactar la función y servicios que presta la Rama Judicial, a través de una\nformación integral desde una visión de gestión del conocimiento, relacionada con \nlos problemas de la justicia y los problemas de gestión de quienes administran los \nrecursos de la justicia, y potenciando el uso de medios virtuales."]
[null,null,"3. Promover la incorporación de la perspectiva de género y el enfoque diferencial en \nlos fallos judiciales y en la atención a los ciudadanos, la administración de la Rama \nJudicial, la administración de la carrera judicial y la elaboración de listas para altas \nCortes. "]
[null,null,"4. Desarrollar en los servidores judiciales y demás grupos de valor relevantes las \ncompetencias necesarias para la efectividad de la transformación digital de modo \nque puedan, entre otros, utilizar con solvencia las herramientas digitales dispuestas \npara sus respectivas funciones. Además, fortalecer y actualizar los conocimientos \ndel personal a cargo de la gestión de proyectos de tecnología."]
[null,null,"5. Promover el bienestar de todos los servidores judiciales a través de la implementación de un sistema que contemple los diferentes niveles de estrategias y acciones necesarios para mejorar el clima laboral, la salud física y mental y la calidad del tiempo de descanso."]
[5,"Gobernanza, planeación estratégica y capacidad de toma de decisiones","1. Implementar un nuevo modelo integrado para la planeación estratégica, el \nseguimiento y la medición del desempeño institucional.","\n2. Asegurar  el cumplimiento de los objetivos institucionales, la normatividad aplicable,  la mejora del SIGCMA y la satisfacción de los usuarios, revisando de  forma continua y sistemática la planificación de la gestión y fortaleciendo la administración de riesgos y sus controles. (1 y 2)"]
[null,null,"2. Definir e implementar el modelo optimizado de formulación, seguimiento y \nevaluación de la política pública judicial."]

{"sheet":"INFO_ANÁLISIS DE CONTEXTO","index":1,"n_rows":205,"n_cols":10,"rows_kept":205,"cut":false,"hidden":false,"merged":[[156,0,170,0],[192,0,196,0],[198,2,200,2],[198,3,200,3],[171,0,176,0],[177,0,180,0],[181,0,191,0],[140,0,155,0],[70,0,87,0],[88,0,98,0],[99,0,117,0],[52,0,59,0],[118,0,139,0],[0,1,0,3],[68,0,68,4],[1,1,1,2],[3,1,3,4],[5,0,6,0],[5,1,5,2],[5,3,5,4],[6,1,6,2],[6,3,6,4],[60,0,67,0],[8,0,8,4],[10,0,16,0],[25,0,39,0],[40,0,51,0],[17,0,24,0]]}
[null,"ANÁLISIS DE CONTEXTO"]
["CONSEJO SECCIONAL/DIRECCIÓN SECCIONAL DE ADMINISTRACIÓN JUDICIAL Y/O DISTRITO JUDICIAL SEGÚN SEA EL CASO","CONSEJO SECCIONAL DE LA JUDICATURA DE RISARALDA \nDIRECCIÓN SECCIONAL DE ADMINITRACIÓN JUDICIAL DE PEREIRA",null,"PROCESO ","TODOS LOS PROCESOS"]
[]
["DEPENDENCIA ADMINISTRATIVA O JUDICIAL CERTIFICADA ","CONSEJO SECCIONAL DE LA JUDICATURA DE RISARALDA \nDIRECCIÓN SECCIONAL DE ADMINITRACIÓN JUDICIAL DE PEREIRA"]
[]
["OBJETIVO DEL PROCESO","MAPA DE PROCESOS CONSEJO SUPERIOR DE LA JUDICATURA",null,"PROCESOS DEPENDENCIA JUDICIALES CERTIFICADAS"]
[null,"Definir y orientar la planeación estratégica de la organización, a partir de establecimiento de los principios corporativos (valores, normas, políticas y directrices) que soportan la misión y visión de la Entidad, mediante el diagnóstico e identificación de necesidades y la formulación, ejecución y seguimiento de los planes, programas, proyectos, objetivos y políticas institucionales, con el propósito de generar las condiciones adecuadas para la gestión de los recursos asignados al Sector Jurisdiccional de la Rama Judicial, dando cumplimiento en el marco de sistema de gestión de calidad, medio ambiente y salud y seguridad en el trabajo.\t",null,"N/A"]
[]
["CONTEXTO EXTERNO "]
["FACTORES TEMÁTICOS","No.","AMENAZAS (Factores específicos) ","No. ","OPORTUNIDADES (Factores específicos) "]
["Político (cambios de gobierno, legislación, políticas públicas, regulación)",1,"Cambios de gerentes públicos (cambio de gobierno)",1,"Ley 2213 de 2022, por medio de la cual se establece la vigencia permanente del Decreto Legislativo 806 de 2020 y se adoptan medidas para implementar las tecnologías de la información y las comunicaciones en las actuaciones judiciales, agilizar los procesos judiciales y flexibilizar la atención a los usuarios del servicio de justicia y se dictan otras disposiciones"]
[null,2,"Cambio de Normatividad y Regulaciones Expedidas por el Gobierno Nacional o el Congreso de la Republica que afecten la administración de Justicia y los requisitos de los sistemas de gestión.",2,"Normatividad que parte del gobierno y de las políticas internacionales para la preservación del medio Ambiente.",null,null,"SEGURIDAD Y SALUD EN EL TRABAJO"]
[null,3,"Cambios normativos de Regulaciones Salariales",3,"Expedición de la Ley del Plan Nacional de Desarrollo que contiene el Plan Sectorial de Desarrollo de la Rama Judicial.",null,null,"REORDENAMIENTO JUDICIAL"]
[null,null,null,4,"Fortalecimiento del SG-SST según lineamientos del gobierno nacional",null,null,"MEJORAMIENTO DE INFRAESTRUCTURA FÍSICA"]
[null,null,null,5,"Articulaciòn de las políticas públicas con la misionalidad de la Rama Judicial ",null,null,"ADMINISTRACIÓN DE CARRERA JUDICIAL "]
[null,null,null,6,"Regulacion de los pagos de las acreencias laborales en las demandas que actualmente cursan en contra de la rama judicial.",null,null,"GESTIÓN DE LA FORMACION JUDICIAL"]
[null,null,null,7,"Continuidad de Politica jurisprudencial en cuanto a la responsabilidad subjetiva en los procesos de reparacion directa",null,null,"MEJORAMIENTO SIGCMA"]
["Económicos y Financieros (disponibilidad de capital, liquidez, mercados financieros, desempleo, competencia)",4,"Presupuesto insuficiente asignado para  la vigencia 2023 de la Rama Judicial por parte del Ministerio de Hacienda ",8,"Incremento del PIB que potencialice el crecimiento económico del país y viabilice la asignación suficiente de recursos para la Rama Judicial ",null,null,"GESTIÓN DOCUMENTAL"]
[null,5,"No contar con el PAC oportunamente para la ejecución de proyectos de inversión",9,"Recursos de cooperación internacional",null,null,"GESTIÓN TECNOLÓGICA "]
[null,6,"Numero deficiente de proveedores inscritos en la plataforma de Colombia Compra Eficiente, para suplir las necesidades de adquisición de bienes y servicios ",10,"Politicas publicas orientadas a la administraión de justicia e requerimientos de altas cortes",null,null,"GESTIÓN DE LA INFORMACIÓN ESTADÍSTICA"]
[null,7,"Incremento del gasto público por eventos naturales o situaciones de emergencia sanitaria ",11,"Asignación anual de presupuestos de inversión y funcionamiento por parte del Gobierno Nacional.",null,null,"GESTIÓN FINANCIERA Y PRESUPUESTAL "]
[null,8,"Recortes presupuestales de partidas inicialmente apropiadas.",12,"Exenciones y beneficios normativos y fiscales por gobiernos nacionales e internacionales en la apropiación de las energias renovables ",null,null,"ASISTENCIA LEGAL "]
[null,9,"Número deficiente de proveedores inscritos en la plataforma de Colombia Compra Eficiente, para suplir las necesidades de adquisición de bienes y servicios con criterios ambientales",13,"Asignación anual de recursos propios y del crédito para la Transformación Tecnológica de la Rama Judicial",null,null,"GESTIÓN  DEL TALENTO HUMANO"]
[null,10,"Embargo a las cuentas bancarias de la seccional.",14,"Derecho de uso del aplicativo SIIF Nación",null,null,"COMPRAS PÚBLICAS"]
[null,11,"La expedición de nuevos decretos y directivas presidenciales y demas normatividad articulada a la austeridad del gasto público."]
["Sociales  y culturales (cultura, religión, demografía, responsabilidad social, orden público)",12,"Interrupción del servicio público de Administrar Justicia a causa del conflicto armado de la región.",15,"Incremento de la credibilidad y confianza en la administración de justicia al implementar y certificar sus Sistemas de Gestión."]
[null,13,"Interrupción del servicio público de Administrar Justicia a causa del pandemias y sus variantes.",16,"Visibilizacion de la Administración de Justicia  entre los actores no formales de la justicia (Grupos y minorías Indígenas, género)"]
[null,14,"Interrupción del servicio público de Administrar Justicia por razones de orden público",17,"La generación de conciencia ambiental y exigencia de cumplimiento de estos requisitos para todos los proveedores"]
[null,15,"Limitaciones en  la movilidad asociados a factores del orden público ",18,"Acceso a los medios de información para hacer parte de las convocatorias."]
[null,16,"Aumento de la demanda de Justicia a causa de la problemática social y/u otros factores",19,"La cultura de la calidad y de la gestión ambiental desarrollada en las diferentes entidades y que demanda la ciudadania "]
[null,17,"Amenazas a servidores judiciales en razón al ejercicio de sus funciones.",20,"Oferta de capacitaciones ambientales ofrecidos por diferentes entidades "]
[null,18,"Afectaciones a la infraestructura física de las sedes Judiciales y Administrativas ",21,"Disponibilidad de proveedores para la gestión de residuos sólidos (ordinarios, aprovechables, peligrosos y especiales)."]
[null,19,"Baja capacidad de respuesta y de la infraestructura local, respecto al incremento de la población migrante hacia la ciudad capital ",22,"La generación de conciencia ambiental y exigencia de cumplimiento de estos requisitos para todos los proveedores"]
[null,20,"falta de acceso al servicio de justicia en linea por parte del usuario que no tienen ni utlizan herramientas tecnológicas",23,"Alianzas estratégicas interinstitucionales \nDiversidad de actividades en la región, para fortalecer los programas de desarrollo de talento humano dentro de la institución"]
[null,21,"Dificultad en atención a usuario del servicio de justicia con limitación o condiciones especiales de comunicación",24,"Mayor acceso a la justica de la ciudadania, gracias a los medios virtuales"]
[null,null,null,25,"Disminucion en la demanda de justicia implica un replanteamiento de la oferta que permita redistribuir despachos y/o cargos."]
[null,null,null,26,"Acceso por parte de la ciudadanía a consulta de información institucional a través de los medios virtuales. (SIIF, Efinómina, pág Web)"]
[null,null,null,27,"Expedición de normatividad que promueva la pluralidad de oferente a traves de la inclusión de criterios diferenciales favoreciendo la participación en el sistema de compra publica"]
[]
[]
["Tecnológicos (desarrollo digital, avances en tecnología, acceso a sistemas de información externos, gobierno en línea)",22,"Perdida o hackeo de información derivada de ataques cibernéticos",28,"Marco regulatorio del  MINTICs, para la gobernanza, gobernabilidad y transformación digital"]
[null,23,"Indisponibilidad y/o colapso de la infraestructura tecnológica ",29,"Desarrollo de alianzas estratégicas para el fortalecimiento del servicio público de administración de justicia, a través de las TICs"]
[null,24,"Afectación de la prestación del servicio de conectividad ",30,"Generar espacios donde se realicen acuerdo interinstitucionales para poder consultar información que beneficie a la administración de justicia"]
[null,25,"Ausencia de portal único de información del Estado (Ramas del poder, órganos autónomos y demás entes especiales), que garantice la consulta de información en línea de toda la información oficial. Gobierno en Línea)",31,"Inversion del consejo superior de la judicatura para mejorar la Banda Ancha de la Rama Judicial."]
[null,26,"Alto costo del mercado y requisitos tecnicos para la implementación de Tecnologias alternativas sostenibles (Paneles solares, sistemas de recolección de aguas lluvias, etc.)",32,"Nuevas herramientas para trabajo colaborativo."]
[null,27,"Cortes de energía que limitan la prestación del servicio",33,"Avance y disponibilidad de alternativas tecnologicas ambientalmente apropiadas"]
[null,28,"Dificultades de algunos sectores de la comunidad para acceder a Internet",34,"Disponibilidad de herramientas tecnologicas para el manejo de la informacion como el SIERJU"]
[null,29,"Riesgos de la seguridad de la información (Integridad, Disponiblidad, Confidencialidad) por amenazas externas.",35,"Virtualidad  Ley 2213 de 2022 Tecnologías de la Información"]
[null,30,"Fallas en plataformas externas (SIIF), matenimientos programados de la plataforma, SECOP II, Virus, que afectan funcionamiento de equipos",36,"Información disponible en tiempo real sobre la dinámica de la compra pública en el país (oferta y demanda de bienes y servicios en el sector público)"]
[null,31,"Saturación y ralentización de la infraestructura tecnológica (no disponibilidad de los recursos tecnológicos)"]
[null,32,"Fallas técnicas en los portales de información oficial de la compra pública ( ANCP-CCE Datos Compra Pública, Ministerio de Tecnología de la Información y la Comunicación - Datos Abiertos)"]
[]
["Legales y reglamentarios (estándares nacionales, internacionales, regulación)",33,"Normas expedidas que afecten el desarrollo de las etapas propias de los procesos",37,"Actualización del marco normativo que afecte de manera directa o indirecta la función pública de administrar justicia."]
[null,34,"Cambios y nuevos requisitos legales ambientales que sea aplicable a la entidad",38,"Normatividad definida para la construccion y conservación de edificaciones (sismoresistencia-RETIE, ambiental, emergencias, etc) Referenciar Normograma para cada uno."]
[null,35,"Tardanza en la resolución de concursos de méritos.",39,"Fallo del Consejo de Estado por medio del cual no exije como requisito para traslado la calificación de servicios."]
[null,36,"Actualizaciones en la norma ISO y NTC que impliquen modificaciones al SIGCMA",40,"Las opciones de integración de los sistemas de gestion y los modelos administrativos de apoyo a la rama judicial"]
[null,37,"Cambios y nuevos requisitos legales ambientales que sea aplicable a la entidad",41,"Disponibilidad de proveedores que ofertan productos biodegradables y/o amigables con el medio ambiente (papel a partir de bagazo de caña, insumos para la limpieza y desinfección)."]
[null,38,"Cambio continuo en la normatividad relacionada con la seguridad y  salud en el trabajo ",42,"Reglamentación de la validez de los documentos y firmas electronicas, así como el uso de canales virtuales."]
[null,39,"Incumplimiento de las leyes de derecho de autor."]
[null,40,"Multiplicidad de normas (inseguridad jurídica)"]
["Ambientales (emisiones y residuos, energía, catástrofes naturales, desarrollo sostenible)",41,"Fenómenos naturales (Inundación, quema de bosques, sismo, vendavales, epidemias y plagas)",43,"Disponibilidad de Entidades encargadas de apoyar y asesorar en el manejo ambiental a las organizaciones"]
[null,42,"Aumento de los impactos ambientales negativos por pandemias",44,"Disponibilidad de nuevas alternativas para el control del discomfort térmico con bajos impactos ambientales"]
[null,43,"Inadecuada disposición de residuos e inservibles acordes con la legislación ambiental en la materia acorde con las políticas del Gobierno Nacional  y Local",45,"Disponibilidad de proveedores que ofertan productos biodegradables y/o amigables con el medio ambiente (papel a partir de bagazo de caña, insumos para la limpieza y desinfección)."]
[null,44,"Emergencias ambientales externas que impacten directamente las instalaciones de la entidad",46,"Servicio de agua potable, energía, aseo y alcantarillado disponible"]
[null,45,"Falta de estudios que determinen los impactos ambientales asociados a la implementación de energias renovables a nivel regional",47,"Normaitividad ambiental para el cuidado de los recursos"]
[null,46,"Altas temperaturas que pueden generar un aumento en el consumo de equipos de aires acondicionados",48,"Disponibilidad de proveedores que ofertan productos biodegradables y/o amigables con el medio ambiente (papel a partir de bagazo de caña, insumos para la limpieza y desinfección)."]
[null,47,"Lluvias que pueden afectar los bienes de la entidad y por ende requieran del aumento de mantenimientos, mejoras y compra de bienes",49,"Oferta de equipos informáticos que cumplen estandares ambientales"]
[null,48,"Limitada regulación en torno a la definición de criterios amigables y sostenibles con el medio ambiente dentro de los documentos asociados a todas las etapas del proceso de compra Pública."]
["CONTEXTO INTERNO "]
["FACTORES TEMÁTICOS","No.","DEBILIDADES  (Factores específicos)  ","No. ","FORTALEZAS(Factores específicos)"]
["Estratégicos (direccionamiento estratégico, planeación institucional, liderazgo, trabajo en equipo)",1,"No realización oportuna del plan de acción, matriz de riesgos y demás documentos del SIGCMA, con su seguimiento correspondiente en los periodos establecidos,  conforme a los lineamientos emitidos desde el despacho de la Magistrada Líder del SIGCMA y la Coordinación Nacional del SIGCMA",1,"Contar con el Plan Sectorial de Desarrollo de la Rama Judicial"]
[null,2,"Falta de socialización de estrategias con las dependencias para fomentar el trabajo colaborativo para la implementación del Plan Estratégico de Transformación Digital (PETD) de la Rama Judicial ",2,"Socialización de buenas prácticas de la gestión judicial en el contexto internacional a través de la CICAJ o eventos de Cumbre"]
[null,3,"Falta de planeacion institucional, de liderazgo y trabajo en equipo. ",3,"Mantenimiento y ampliación de SIGCMA en los esquemas que se encuentra certificados la Rama Judicial"]
[null,4,"No existe coherencia entre los procesos de Reordenamiento Judicial y de Planeación Estratégica. ",4,"Definición de roles y responsabilidades de los  líderes de proceso para el funcionamiento del SIGCMA"]
[null,5,"Demora en  el envio oportuno del plan de acción, matriz de riesgos, revisión por la dirección y los demás documentos del SIGCMA a la Coordinacion Nacional  para su actualización",5,"Contar con la Norma Técnica de Calidad Actualizada NTC 6256:2021 y GTC 286 2021"]
[null,6,"Debilidad en el  seguimiento y evaluación trimestral a los documentos de SIGCMA. ",6,"El compromiso de la Alta Dirección y de los líderes de proceso para ampliar, mantener y mejorar el SIGCMA"]
[null,7,"Debilidad en la comunicación de las mejoras realizadas en el SIGCMA desde el nivel central al nivel seccional",7,"Encuentro nacional e internacional del SIGCMA"]
[null,8,"Continuo ajuste y cambios en los instrumentos retrazando la planeación y ejecución de actividades a nivel seccional ",8,"Reglamentación definida a través de Acuerdos para la planeación y definición de proyectos de inversión."]
[null,9,"Distribución de cargas en la asignación de los roles y responsabilidades de los  líderes de proceso, requeridos para el correcto funcionamiento del SIGCMA.",9,"Integración entre los lideres de calidad y ambiental a nivel seccional para la planificacion del SIGCMA"]
[null,10,"Expedición de directrices dadas a conocer de manera tardia y sin capacitación previa.",10,"Adaptación de la institución a los cambios sociales en las políticas estratégicas."]
[null,11,"Demora en la aprobación de documentos del proceso de SG-SST por parte del SIGCMA",11,"Formacion idonea de los lideres y servidores judiciales ya que permiten un resultado optimo del proceso de gestion documental, capacitaciones a traves de la Escuela Judicial RodrigoLara Bonilla"]
[null,12,"Falta de integración de otros sistemas de Gestión al SIGCMA:\nSG-SST\nSistema de Gestión Informática \nSistema de Gestión Documentales (TRD)",12,"Certificación en la Norma NTC ISO 45001:2018 Sistema de Gestión de Seguridad y Salud en el Trabajo"]
[null,null,null,13,"Encuentro nacional COPASST, CCL y Brigada de Emergencias.\nCongreso internacional del SIGCMA"]
[null,null,null,14,"Se cuenta con un equipo de trabajo liderado por la Coordinación Nacional del SG-SST, apoyado por los Coordinadores de seguridad y salud en el trabajo del Nivel Central, Direcciones Seccionales y Coordinaciones Administrativas, así mismo, tiene el apoyo técnico y logístico de asesores del Corredor de Seguros AON y Administradora de Riesgos Laborales (ARL). "]
[null,null,null,15,"Reglamentación definida para aplicación de normas presupuestales y contables."]
[null,null,null,16,"Definicion de los procedimientos aplicables al proceso por medio del SIGCMA"]
[null,null,null,17,"Trabajo en equipo."]
[null,null,null,18,"Desarrollo de instrumentos de planeación y seguimiento asosiados a la definición de necesidades para ser incluidos en el Plan Anual de Adquisiciones."]
["Recursos financieros (presupuesto de funcionamiento, recursos de inversión",13,"Recursos insuficientes para atender el Plan de necesidades formulado",19,"Presupuesto asignado para el desarrollo de proyecto de inversión del SIGCMA"]
[null,14,"Los proyectos de reordanamiento judicial que propone el Consejo seccional no sean aprobados por el Consejo superior, a pesar de que sean urgentes, alegando no contar con recursos presupuestales.",20,"Conocimiento de la reglamentación que establece el procedimiento para el manejo de los recursos presupuestales, financieros y de contratación estatal"]
[null,15,"No se cuenta con un presupuesto asignado para la realización de proyectos ambientales",21,"Manual de contratación actualizado"]
[null,16,"No se cuenta con un presupuesto asignado para la creación de cargos para el apoyo a lagestión en el SIGCMA",22,"Asignación de recursos para actividades específicas para el proceso"]
[null,17,"Falta de identificación de necesidades en las seccionales respecto al SIGCMA para la asignación de recursos desde el nivel central en el plan de inversiones ",23,"Asignación presupuestal e incluisión en el PAC para la contratación de servicios que apoyan y Fortalecen el Sistema de Gestión Ambiental (Contrato de servicio de Recolección, transporte y disposición final de residuos peligrosos y especiales)"]
[null,18,"Dificultad de ejecución de recursos de inversión y funcionamiento en algunas Direcciones Seccionales",24,"Presupuesto asignado para el desarrollo de proyecto de inversión del Prorama de Bienestar Social"]
[null,19,"Los proyectos de reordanamiento judicial que propone el Consejo seccional no sean aprobados por el Consejo superior, a pesar de que sean urgentes, alegando no contar con recursos presupuestales.",25,"Asignación de recursos propios y del crédito para la Tranformación Digital de la Rama Judicial"]
[null,20,"Demora en la asignación del PAC por restricicones o iliquidez a nivel central,",26,"Disminución del flujo de efectivo en las cuentas bancarias de la seccional, a raiz de la implementación de pagos a beneficiario final."]
[null,21,"Incumplimiento del indicador INPANUT en la Seccional.",27,"Pago oportuno de las obligaciones laborales."]
[null,22,"Inequitativa distribución de los recursos desde nivel central para las seccionales (creación de cargos)"]
[null,23,"Directrices tardias desde el nivel central. "]
["Personal (competencia del personal, disponibilidad, suficiencia, seguridad y salud  en el trabajo)",24,"No contar con el recurso humano suficiente y necesario para responder a la demanda de Justicia",28,"Personal integrado por servidores judiciales de alto nivel profesional y capacitado para llevar a cabo las funciones asignadas"]
[null,25,"Servidores Judiciales con comorbilidades y/o enfermedades laborales",29,"Recursividad y fluidez para atender requerimientos con caracter urgente desde la seccional"]
[null,26,"Extensión en los horarios laborales de trabajo en casa y presencial, que afecta el bienestar físico, mental y emocional en los servidores judiciales y su entorno familiar",30,"Desarrollo y fortalecimiento de competencias de los servidores judiciales en modelos de gestión"]
[null,27,"Carencia  de manuales  de funciones y procedimientos  para los servidores Judiciales ",31,"Mejor prestación del servicio de administración de justicia debido a la implementación de buenas practicas en bioseguridad definidos por la Rama Judicial"]
[null,28,"Debilidad en los procesos de inducción y reinducción de los servidores judiciales",32,"Fortalecimiento de los concursos de méritos para ingreso de la Rama Judicial  (Incremento de los servidores Judiciales en carrera)"]
[null,29,"Debilidad para el fortalecimiento de competencias propias en el desarrollo de las actividades asignadas",33,"El desarrollo de competencia a través de procesos de sensibilización, capacitación y formación en modelo de gestión para el desarrollo de competencias de los servidores judiciales."]
[null,30,"Vencimiento del registro de elegibles.",34,"Ampliación de cobertura de la carrera judicial."]
[null,31,"No reporte de vacante por parte de los despachos judiciales.",35,"Circular reiterando el cumplimiento de darle prelación a los integrantes del registro de elegibles al momento de realizar nombramientos en provisionalidad."]
[null,32,"Carencia de recurso humano y necesario para responder a la demanda de Justicia",36,"Programación de actividades para el fortalecimiento de las competencias."]
[null,33,"No hay disponibilidad de personal para realizar las capacitaciones en la seccional",37,"Conciencia social-ambiental  por parte de la Administracion Judicial en los procesos de contratación, post contractual y precontractual (Supervision).   "]
[null,34,"No se dispone de profesional de calidad y ambiental contratado de manera directa para la seccional (Falta de creación del area Sistema de Gestión de Calidad y Medio Ambiente)",38,"Al momento de recibir las cajas, se les socializa al servidor judicial el proceso de manejo o politicas de Gestión Documental"]
[null,35,"Tiempo limitado para asistir a capacitaciones del SIGCMA",39,"Oferta de capacitación en utilización de herramientas informáticas por parte de la EJRLB"]
[null,36,"Limitación en la asignación de roles y responsabilidades del SIGCMA, frente a los cargos disponibles en la seccional",40,"Trabajo en equipo en el proceso de cadena presupuestal para la ejecución de los pagos, gestión interna en el proceso para resolución de problemas. "]
[null,37,"Desactualización y falta de capacitación del CENDOJ.",41,"Actualización de hojas de vida digital y fisico, de personal acctivo"]
[null,38,"Falencias en la participación de los Servidores judiciales en la conformación de la Brigada de Emergencias de la Rama Judicial Seccional Pereira"]
[null,39,"Se evidencia falta de hábitos saludables en los Setvidores Judiciales del Distrito "]
[null,40,"De acuerdo a los resultados arrojados por la Batería de Riesgo Psico social , se identifican altos niveles de estrés en los servidores Judiciales"]
[null,41,"No disponibilidad de personal para asignar el perfil (token) de los cargos del área financiera en ausencia del titular."]
[null,42,"Personal limitado asignado al proceso de asistencia legal, (Dificultades para atender el volumen de las actividades de defensa judicial, Cobro Coactivo y como apoyo al proceso de Adquisicion de Bienes y Servicios, y a los demás procesos de la seccional)"]
["Proceso (capacidad, diseño, ejecución, proveedores, entradas, salidas, gestión del conocimiento)",43,"Resistencia por parte de algunos servidores judiciales a implementar la gestión de conocimiento para la gestión del cambio en lo relativo al SIGCMA, a modelos de gestión, implementación de PETD, ambiental, seguridad y salud en el trabajo, seguridad de la información, normas antisoborno, normas de bioseguridad, entre otras.  ",42,"Actualización de la plataforma estratégica para responder a los cambios normativos y legales"]
[null,44,"Falta de tiempo para acceder a la formación de  interés, tales como: Sensibilizaciones, cursos, talleres,  capacitaciones, diplomados, entre otros",43,"Aplicabilidad de la Gestión del conocimiento generada por las experiencias de los servidores judiciales documentada en instructivos y guías"]
[null,45,"Debilidad en la retroalimentación de la evaluación  realizada a los proveedores y contratistas del producto o servicio entregado",44,"Fortalecimiento en los procesos de contratación por el uso adecuado del SECOP II"]
[null,46,"Falta de capacitaciones especificas en temas relacionados con el área.",45,"El proceso de Reordenamiento Judicial se desarrolla conforme a lo establecido en la Ley y reglamentos."]
[null,47,"Falta de capacitaciones- talleres en temas de nombramiento de personal.",46,"Se cuenta con documentación que favorece la transferencia del conocimiento en los despachos."]
[null,48,"Falta de continuar con el proceso de eliminacion y depuracion de expedientes que ya han cumplido su ciclo vital por parte de los juzgados segun las TRD",47,"El proceso se encuentra centralizado en su gran mayoria"]
[null,49,"No hay directrices por parte del CENDOJ para  la recepción de expedientes digitales terminados ",48,"Difusión oportuna de las circulares de las convocatorias académicas."]
[null,50,"Demora en proceso de contratación, que limita la ejecución de actividades del Sistema de Gestón de Seguridad y Salud y Salud en el Trabajo",49,"Convenios y alianzas estratégicas para con entidades prestadoras de servicios públicos e instituciones de educación superior para campañas de sensibilización y proyectos"]
[null,51,"Demora en los cierres de los planes de acción resultantes de hallazgos de las inspecciones  de seguridad y salud en el trabajo ",50,"Control de los recursos naturales utilizados y los residuos generados, en las actividades administrativas y judiciales de la entidad mediante su seguimiento y analisis"]
[null,52,"Desconocimiento de los Servidores Judiciales, del procesos SG-SST, y lineamientos normativos.",51,"La integración de los planes de emergencia y de los sistemas de gestión de la calidad, medio ambiente y seguridad y salud en el trabajo, evidenciado en la información documentada del sistema."]
[null,53,"Falta de personal de apoyo para la supervisión de contratos",52,"Herramienta en forms que facilita la identificación de la necesidades y expectativas de las partes interesadas."]
[null,54,"Procesos clave de Gestión Tecnológica se encuentran tercerizados",53,"La accesibilidad a la información documentada, la cual se encuentra en el one drive y en el micrositio del SIGCMA."]
[null,55,"Deficiencias en el reporte de la información estadistica por parte de los funcionarios judiciales.",54,"Inmediatez en la entrega de los expedientes solicitados por los despachos para desarchivo"]
[null,56,"Reporte de la estadística judicial por fuera del término establecido ",55,"Apoyo técnico y logístico de asesores del Corredor de Seguros y Administradora de Riesgos Laborales (ARL)"]
[null,57,"Falta del suministro de información de forma oportuna por parte del proceso de Talento Humano hacia el área financiera.",56,"Infografía disponible en la institución, para acceder al conocimiento específicos que se necesita.\nONEDRIVE como medio digital para administrar información de proceso, SIGOBIUS como medio para comunicación interna."]
[null,58,"Falta de inclusión de Cobro coactivo dentro de los indicadores, plan de acción y matriz de riesgos del proceso Asistencia Legal",57,"Apoyo por parte del proceso de Seguridad y Salud en el trabajo en la atención de requerimientos de los despachos (Elementos de trabajo, conectividad, mobiliario, equipos de emergencia, adecuaciones de espacios)"]
[null,null,null,58,"Oportuna respuesta a las peticiones o reclamaciones elevadas ante la Direccion Seccional de la  administración judicial"]
[null,null,null,59,"La caracterizacion del proceso define de manera detallada y precisa el ciclo PHVA, siendo un documento claro para el desarrollo del mismo. "]
[null,null,null,60,"Digitalización de hojas de vida de los servidores judiciales del Distrito."]
[null,null,null,61,"Alto nivel de compromiso por parte de los contratistas del Programa de Bienestar Social."]
[null,null,null,62,"Existencia de Alianzas estratégicas (Andina, UCP, UTP, Unilibre, Fundación Universitaria de las Américas, SENA)\nEPS\nCAJA DE COMPENSACIÓN"]
[null,null,null,63,"Fortalecimiento en los procesos de contratación por el uso adecuado de las plataformas definidas por Colombia Compra Eficiente para adelantar los procesos de contratación  (SECOP II, TVEC, Instrumentos de Agregación de Demanda)"]
["Tecnológicos ",59,"Debilidad de la plataforma tecnológica a nivel nacional de  software y hardware en las sedes administrativas y judiciales",64,"Accesibilidad a nuevas herramientas virtuales, que facilitan el acceso a la información, la optimización del tiempo y contribuyen a la disminución de los consumos de papel"]
[null,60,"Falta de apropiación y aplicación del conocimiento y de las buenas prácticas en los avances tecnológicos",65,"Capacitación para el uso de herramientas tecnológicas  "]
[null,61,"Limitación en formación en tecnologías de la información y la comunicación aplicadas al desarrollo de la gestión Judicial estableciendo las diferencias entre: Transformación digital, digitalización, expediente digital y estrategias para la digitalización",66,"Implementación de medios virtuales para el desarrollo de las funciones propias del proceso"]
[null,62,"Fallas de conectividad para la realización de las actividades propias del proceso.",68,"\"Se dispone con los recursos suficientes de equipos de computo, entre otros, "]
[null,63,"Falta de cobertura tecnológica en las sedes judiciales ",69,"Adquisición de equipos todo en uno con certificación Energy star que contribuyen al ahorro de energía"]
[null,64,"Falencias en la articulación con los modelos gobernanza de Tecnologías de la Información (TI) en la entidad",70,"Personal capacitado en herramientas tecnológicas que contribuyen al desarrollo de las funciones propias del proceso. "]
[null,65,"Carencia del software de gestión para el manejo integral de la información.",71,"Digitalizar y depurar documentos desde los despachos, con el fin de optimizar el espacio existente."]
[null,66,"Falta de  comunicación asertiva entre los diferentes actores para la articulación de proyectos tecnológicos",72,"Atención oportuna  a los requerimientos por parte de la Mesa de ayuda"]
[null,67,"Debilidad en la generación de estrategias articuladas para la digitalización entre los proveedores y las dependencias Judiciales y Administrativas",73,"Se tiene conectividad a la red WAN de la totalidad de las sedes judiciales del Distrito"]
[null,68,"Deficiencia en el  mantenimiento de la pagina web de la Rama Judicial",74,"Área de Seguridad de la información,  implementado por el Nivel Central."]
[null,69,"No contar con las herramientas de software para el desarrollo del proceso.",75,"Se ha venido implementando paulatinamente la  renovación de los equipos de computo, escaner y demás equipos informáticos "]
[null,70,"Falta de plataforma informatica y bodegas propias para el manejo y gestión del archivo.",76,"Implementación de medios virtuales para el desarrollo de las funciones propias del servicio de justicia"]
[null,71,"Equipos obsoletos para la gestion propia del proceso",77,"Atención al aumento de la demanda de recursos tecnologicos generada por los servidores judiciales."]
[null,72,"Riesgos de la seguridad de la información (Integridad, Disponibilidad, Confidencialidad) por factores internos."]
[null,73,"Cambio de software para el manejo de la nómina."]
[null,74,"Riesgo por pérdida de la información en el almacenamiento de los servidores "]
["Documentación (actualización, coherencia, aplicabilidad) ",75,"Los documentos actuales no están alineados al PETD 2021-2025",78,"La estandarización de la plataforma estratégica del SIGCMA y documentos impartidos  desde la Coordinación Nacional del SIGCMA para la mejor prestación del servicio"]
[null,76,"Falta de comunicación y socialización de tablas de retención documental",79,"Micrositio de fácil acceso a los documentos propios del Sistema Integrado de Gestión y Control de la Calidad y el Medio Ambiente."]
[null,77,"Debilidad en  la estandarización de tablas de retención documental",80,"Se cuenta con herramientas para correspondencia como SIGOBius y correos electrónicos institucionales."]
[null,78,"Imprecisión de la información SIERJU",81,"Existencia de formatos como herramientas de apoyo para la trazabilidad de las actividades del SGA"]
[null,79,"El Consejo Superior de la Judicatura emite Acuerdos de Reordenamiento Judicial sin contar con el concepto del Consejo Seccional.",82,"Se estan contruyendo los manuales de funciones de los cargos adscritos a la Oficina Judicial."]
[null,80,"Se requiere documentar el procedimiento para el escalafon.",83,"Documentos estandarizados para la implementación del SG-SST a nivel nacional como: Manuales, Programas, Procedimientos, Instructivos y formatos con la aprobación del SIGCMA"]
[null,81,"Debilidad en  la estandarización de tablas de retención documental para el SIGCMA",84,"Recomendaciones de mejora o mantenimiento, resultado de las visitas o inspecciones a las diferentes sedes por parte de la estrategia Higiente y Seguridad Industrial HSI (ARL)como apoyo al desarrollo de las actividades del proceso."]
[null,82,"Falta de  documentacion de procesos, procedimientos, competencias y funciones  de los servidores judiciales articulados, publicados y socializados desde el SIGCMA Nacional",85,"La implementación de la plataforma SIERJU, que facilita el acceso a la infrmación y diligenciamiento de los formatos."]
[null,83,"Falta de unificación de la documentación de calidad, ambiental y SST para los requisitos comunes de la estructura de alto nivel de las norma ISO",86,"Formatos estandarizados para la elaboración de estudios previos, análisis del sector y clausulados del Pliego Electrónico."]
[null,84,"Carencia de directrices que fomenten el uso de tecnologias de la información y disminuyan el uso de papel (Desactualización de las TRD)"]
[null,85,"Debilidad en  la divulgación y aplicación del protocolo para la digitalización de expedientes electrónicos."]
[null,86,"Imprecisión de la información SIERJU"]
[null,87,"El Consejo Superior de la Judicatura emite Acuerdos de Reordenamiento Judicial sin contar con el concepto del Consejo Seccional."]
[null,88,"Diligenciamiento inadecuado y tardío de los formatos de ingreso y de los reportes de novedades de nómina"]
[null,89,"Inoportunidad en la entrega de actos administrativos de nombramiento, de renuncia, posesión, cambio."]
["Infraestructura física (suficiencia, comodidad)",90,"Falta construir sedes propias en algunos municipios que lo requieren, para brindar  mejores condiciones locativas a los usuarios de la administracion de la justicia.",87,"Cumplimiento del plan de infraestructura de la Rama Judicial"]
[null,91,"Posible corte del suministro de agua y energia, por falta de fuente alternas (Complejo Judicial la 39)",88,"Los servidores judiciales del proceso cuentan con sede para realizar las actividades relacionadas con el proceso, con buena iluminación, buena ventilación, seguridad, etc."]
[null,92,"Espacio propio insuficiente, para el manejo del archivo físico de toda la seccional.",89,"Unidad Técnica de Almacenamiento con las herramientas y espacios adecuados para realizar la separación y almacenamiento temporal adecuado de los residuos sólidos "]
[null,93,"Infraestructura con filtración de agua, que dificulta el almacenamiento de los documentos.",90,"Información actualizada de los inmuebles de la Seccional ante la aseguradora"]
[null,94,"Limitación en la inversión y adecuación de infraestructura en arrendamiento, con lo cual se limita la adecuación de espacios de acuerdo a las necesidades de la entidad, del bienestar, seguridad y salud en el trabajo y la implementación del manual de espacios fisicos saludables",91,"Sede propia que permite adaptaciones que favorecen la Gestión Ambiental. (Palacio de justicia)"]
[null,95,"Dificultades de conectividad de red interna y de suministro eléctrico en sedes judiciales, por obsolescencia de las redes y el consiguiente incumcumplimiento de las normas tecnicas vigentes",92,"Recomendaciones de mejora o mantenimiento, resultado de las visitas o inspecciones a las diferentes sedes por parte de la estrategia Higiente y Seguridad Industrial HSI (ARL)como apoyo al desarrollo de las actividades del proceso."]
["Elementos de trabajo (papel, equipos, herramientas)",96,"Falta de modernización y mantenimiento del mobiliario con que cuenta la Rama Judicial",93,"Uso adecuado de los elementos de trabajo"]
[null,97,"Aumento de consumos por incremento de servidores en la sede en la vigencia pasada ",94,"Suministro de  elementos de trabajo necesarios para la realización de las actividades del proceso."]
[null,null,null,95,"Adquisición de papel producido con bagazo de caña, disminuyendo el impacto ambiental"]
[null,null,null,96,"Recomendaciones de mejora o mantenimiento, resultado de las visitas o inspecciones a las diferentes sedes por parte de la estrategia Desórdenes Musculoesqueléticos DME (ARL)como apoyo al desarrollo de las actividades del proceso."]
["Comunicación Interna (canales utilizados y su efectividad, flujo de la información necesaria para el desarrollo de las actividades)",98,"Uso deficiente de las herramientas de comunicación establecidas en el plan de comunicaciones",97,"Elaboración y seguimiento del Plan de Comunicaciones"]
[null,99,"Desaprovechamiento de canales de comunicaciones, para generar mayor información a las partes interesadas",98,"Implementación de estrategias y mecanismos para el fortalecimiento de la atención al usuario"]
[null,100,"Comunicación tardía por parte de la Escuela Judicial Rodrigo Lara Bonilla acerca de la oferta académica.",99,"Fortalecimiento de la pagina web institucional y mecanismos de comunicación"]
[null,101,"No acceso a listas de asistencia a las actividades academicas",100,"Uso adecuado del micrositio asignado al Consejo Seccional de la Judicatura"]
[null,102,"Falta de la estructuración, regulación y estandarización de los mecanismos para la recepción y seguimento de PQRS en un mismo medio para facilitar su respuesa",101,"Uso adecuado de los correos electrónicos"]
[null,103,"Falta de criterios en el diseño de piezas publicitarias de acuerdo a los colores e imagen corporativa a nivel seccional",102,"Uso adecuado del aplicativo SIGOBIUS"]
[null,104,"Multiplicidad de canales para atender QRS, falta centralización, se dificulta el siguimiento. Sumado a Falta de disponibilidad de herramientas para medir la satisfacción de usuarios",103,"Fortalecimiento para el tratamiento de PQRS"]
[null,105,"Deficiencia en la gestión de correo corporativo y Sigobius de los servidores judiciales ",104,"Uso adecuado de la imagen corporativa y los logos en los cuales se encuentra certificada la Rama Judicial"]
[null,106,"Lentitud y falta de optimización para las publicaciónes que se realizan los despachos judiciales en la página web",105,"La comunicación interna implementó los canales oficiales como el aplicativo SIGOBius, el correo electrónico institucional y herramientas tecnologícas a través del office 365 para gestión propia del proceso."]
[null,null,null,106,"Comunicación y difusión constante de prácticas ambientales que instruyen el ahorro y uso eficiente de los recursos naturales."]
[null,null,null,107,"Uso de redes sociales como medio de difusión de información"]
["Ambientales",107,"Desconocimiento del Plan de Gestión Ambiental que aplica para la Rama Judicial Acuerdo PSAA14-10160",108,"Disminución en el uso de papel, toners y demás elementos de oficina al implementar el uso de medios tecnológicos"]
[null,108,"Ausencia de indicadores ambientales establecidos en los programas de gestión del Acuerdo PSAA14-10160",109,"Participación virtual es los espacios  de sensibilización ambiental, como el Día SIGCMA"]
[null,109,"Baja implementación en sistemas ahorradores de agua  y energía en sedes judiciales y administrativas",110,"Mantener la certificación operaciones bioseguras: Sellos de bioseguridad huella de confianza"]
[null,110,"Falta en la separación adecuada de residuos en la fuente ",111,"Formación de Auditores en modelos de gestión en los esquemas en los que se encuentran certificada la Rama Judicial.",null,null,null,null," "]
[null,111,"Desconocimiento por parte de los brigadistas, servidores judiciales y contratistas de las acciones necesarias para actuar ante una emergencia ambiental",112,"Implementación de buenas practicas tendientes a la protección del medio ambiente"]
[null,112,"Carencia de kits antiderrames en algunos vehiculos institucionales y sedes para la atención de emergencias en todas las sedes",113,"Horiario laboral que permite el aprovechamiento de la luz natural y disminuir el consumo de la energía"]
[null,113,"Deficiencia en la información referente a las fuentes de generación de Co2 - Huella de carbono",114,"Implementación de proyectos en energías alternativas:"]
[null,null,null,null,"Vehiculo eléctrico"]
[null,null,null,null,"Paneles solares en la sede de Quinchia"]
[null,null,null,115,"Los puntos de oxigenación que se encuentran en las sedes auditadas, las cuales generan embellecimiento de las áreas, mejoran la calidad del aire, contribuyen a la disminución del estrés, entre otros beneficios. "]
[null,null,null,116,"Alianza con una asociacion de recicladores que permita la trazabilidad del material aprovechable generado y su correcto manejo."]
[null,null,null,117,"Contrato para la recolección, transporte y disposición de residuos peligrosos y especiales "]
[null,null,null,118,"Articulación de normativas ambientales y de SST, como el manejo de productos quimicos y la disposición de residuos. Lo cual facilita la implementación de las mismas"]

{"sheet":"INFO_ESTRATEGIAS","index":2,"n_rows":50,"n_cols":6,"rows_kept":50,"cut":false,"hidden":false,"merged":[[44,6,44,7],[45,6,45,7],[39,6,39,7],[40,6,40,7],[41,6,41,7],[42,6,42,7],[43,6,43,7],[34,6,34,7],[35,6,35,7],[36,6,36,7],[37,6,37,7],[38,6,38,7],[29,6,29,7],[30,6,30,7],[31,6,31,7],[32,6,32,7],[33,6,33,7],[24,6,24,7],[25,6,25,7],[26,6,26,7],[27,6,27,7],[28,6,28,7],[22,6,22,7],[23,6,23,7],[18,6,18,7],[19,6,19,7],[20,6,20,7],[21,6,21,7],[13,6,13,7],[14,6,14,7],[15,6,15,7],[16,6,16,7],[17,6,17,7],[10,6,10,7],[11,6,11,7],[12,6,12,7],[5,6,5,7],[6,6,6,7],[7,6,7,7],[8,6,8,7],[9,6,9,7],[1,0,1,5],[2,0,3,0],[2,1,2,4],[0,1,0,4],[4,6,4,7]]}
[null,"ESTRATEGIAS"]
["ESTRATEGIAS  DOFA"]
["ESTRATEGIA/ACCIÓN/ PROYECTO","GESTIONA ",null,null,null,"DOCUMENTADA EN "]
[null,"A","O","D","F"]
["Elaborar propuestas de reordenamiento judicial a nivel Seccional que permitan subsanar necesidades de los despachos en materia de personal y/o carga laboral  ","4,5,8",null,"13,14,19,24,26,32,34,41,42,78,79","6,28,32,43,45","Plan de acción E186"]
["Implementación de manuales de funciones para los servidores judiciales del Consejo Seccional.",33,37,"26,27,28,29","4,28,29,30,33,43","Plan de acción E216"]
["Aplicación de las Tablas de Retención Documental ",null,null,77,null,"Plan de acción E96"]
["Capacitar en temas relacionados con el área.",null,null,29.46,"28,30,33,36","Plan de acción E196"]
["Iniciar la segunda fase de la Sedes Judicial de Belén de Umbría",null,"3,38,44",90.94,87.88,"Plan de acción E36"]
["Realizar  visitas de inspección para verificar el estado de las Sedes Judiciales",null,null,92.93,"88,89,92","Plan de acción E37"]
["Realizar  Mantenimientos Preventivos a las Sedes Judiciales",null,null,92.93,"88,89,92","Plan de acción E37"]
["Realizar  Mantemientos correctivos a las Sedes Judiciales",null,null,92.93,"88,89,92","Plan de acción E37"]
["Mantener actualizada la información de las Edificaciones ante la empresa de seguros\nReclamar ante la empresa de Seguros los daños por siniestros.",null,null,92.93,90]
["Remitir listas de elegibles a los despachos judiciales correspondientes para que procedan a realizar el nombramiento al momento de la resolución del concurso de méritos.",35,null,"24,26,30,32,42","28,32,34","Plan de acción E188"]
["Envío de circular reiterando el cumplimiento de darle prelación a los integrantes del registro de elegibles al momento de realizar nombramientos en provisionalidad.","   ",null,24.26,null,"Plan de acción E187"]
["Recepción del comunicado realizado por parte de gestión humana y los despachos judiciales",null,null,31]
["Envio de circular solicitando a los superiores gerarquicos la calificacion del factor calidad",null,null,24,null,"Plan de acción E197"]
["Comunicar oportunamente la oferta de capacitaciones disponible para los Servidores Judiciales por la Escuela Judicial Rodrigo Lara Bonilla.",null,null,"32,33,35,44,47","28,30,33,36","Plan de acción E198"]
["Comunicar inmediatamente recibida la oferta de capacitaciones disponible para los Servidores Judiciales por la Escuela Judicial Rodrigo Lara Bonilla.",null,null,"44, 100","28,30,33,36","Plan de acción E198"]
["Solicitud a la Escuela Judicial Rodrigo Lara Bonilla del listado de asistencia de los Servidores Judiciales de la Seccional Risaralda.",null,null,101,null,"Plan de acción "]
["Asistir y participar activamente en los procesos de normalización y estandarización de procesos y procedimientos conforme a la programación definida por la Coordinación Nacional del SIGCMA ",null,null,"1,2,5,6","5,7,16,17","Matriz de Riesgos "]
["Falta de la estructuración, regulación y estandarización de los mecanismos para la recepción de PQRS en un mismo medio para facilitar su respuesa",33,15.16,"99,102,104",98.102999999999994,"Plan de accion H39"]
["Ampliar y mantener del SIGCMA Seccional","33,34,36,37",null,"75,82,83","78,79,83","Plan de accion E176"]
["Implementar estrategias para fortalecer las competencias frente al SIGCMA, de los servidores judiciales en las sedes de ampliación de alcance de Certificación.",null,null,"28,29,34","30,33,109,111","Plan de accion E177"]
["Medición de Huella de Carbono de las sedes Ceritficadas","2,33,36",2,113,50.81,"Plan de Acción E199"]
["Diseño de encuesta de satisfacción ",33,37,"99,102,104",98.102999999999994,"Plan de Acción  H-"]
["Siembratón con CARDER","41,44,46",19,"43,107,110,111",109.11199999999999,"Plan de Acción E178"]
["Señaletica de sensibilización Ambiental","34,37,43",47,"97,107,110,113","108,112,113","Plan de Acción E179"]
["Revisión y acompañamiento implementación Programa Gestión Documental y aplicación TRD.",null,null,"24,76,",11.38,"Plan de acción E106"]
["Mejoramiento de las competencias del personal del área a través de solicitud de capacitaciones en temas relacionados a la actividad en esta dependencia.",null,null,"24,29,37,46","11,28,30,33","Plan de acción E10"]
["Proyecto de contratación de empresa que administre el proceso de archivo y de la Gestión Documental de la Dirección Seccional ",null,null,"13,24,48,49,69,70,92,93","54,80,105,108,112","Plan de acción E76"]
["Fortalcer e integrar el proceso de Inducción y Reinducción a nivel Seccional","33,38,43","4,15,37,47","2,27,28,29,38,43,44,52","1,4,6,12,31,33,43,79,83,103","Plan de acción E200"]
["Fortalecimiento Brigada de emergencias ","38,41,44","4,37,47","38,43,44,52","12,13,14,31,33,57,92","Plan de acción E226"]
["Plan de prevención de la enfermedad mental ","7,16,17,24,41",43.11,"2,24,25,26,27,28,29,39,40,43,44,63,94,105","24,32,33,57,92","Plan de acción E227"]
["Talleres de vida saludable ",null,4.2300000000000004,"25,26,39,40,43,44","14,24,96","Plan de acción E228"]
["Implementación del Sistema Integrado Único de Gestión Judicial (SIUGJ)","22,23,29",null,65.72,"64,74,76,77","Plan de acción E66"]
["Digitalización de expedientes","12,13,14,15,16,18","1,13,16,28,42",65.75,"64,65,76,377108,112","Plan de acción E38"]
["Modernización del cableado de red de las sedes judiciales Palacio de Justicia de Pereira y Centro Administrativo Municipal Dosquebradas ",null,null,62,"73,76,77","Plan de acción E97"]
["Reporte oportuno y veráz de la informacion estadistica de la gestion de los despachos del distrito","22,23,24",15.34,"55,56,62","28,33,85","Plan de acción E116"]
["Consulta y aplicación de las directrices del Ministerio de Hacienda y nivel central a través de la página del SIIF y de la Rama Judicial","1,8,33",37,null,15,"Matriz de Riesgos "]
["Solicitar oportunamente los recursos presupuestales con las respectivas justificaciones  ",8,37,null,15,"Matriz de Riesgos "]
["Realizar seguimiento permanente al PAC para priorizacion de pagos y aplicación de las circulares DEAJC22-5 y DEAJC19-40 (Administración del PAC y guía para cálculo del PAC)",5,14,20.21,40,"Matriz de Riesgos "]
["Continuidad de pagos a beneficiario final, a empleados y proveedores.",null,null,73,26,"Matriz de Riesgos "]
["Solicitud de capacitaciones presenciales- talleres en temas jurídicos, herramientas tecnológicas, lenguaje de señas para el personal del proceso","2,21,33,40","15,16,37","42,44,46,60","6,28,65,66,80"]
["Reubicar el proceso al cual pertenece Cobro Coactivo en el SIGCMA ( plan de acción, indicadores, matriz de riesgos) del proceso Asistencia Legal",null,null,58,59]
["Solicitud de creacion de nuevos cargos, para el apoyo a la oficina de asistencia legal asi como la profesionalización de los cargos asistenciales.",null,15,"13,22,42,26,27","6,28,58","Plan de acción E98"]
["Actualización del archivo conforme a las TRD del proceso Talento Humano y todos sus procedimientos",null,1.28,"74,75,77","41, 60","Plan de acción E107"]
["Fortalecimiento de competencias de servidores judiciales de la Dirección ",null,null,"29,44,46,","28,30,33,","Plan de acción E201"]
["Programa de Bienestar social (Mejoramiento de la cobertura,reactivación de todas las disciplinas incluidas en el programa)",null,null,"25,26,","17,24,36,61,62","Plan de acción E229"]
["Realizar reuniones de planeación, seguimiento y evaluación de la gestión.","1,2,4,11,32,33,48","1,3,37",13.62,"18,4,20,21,28,33,63,86,112","Plan de acción E39"]

{"sheet":"PLAN DE ACCION","index":3,"n_rows":1047890,"n_cols":11,"rows_kept":4500,"cut":true,"hidden":false,"merged":[[2,1,3,1],[4,1,5,1],[2,0,3,0],[4,0,5,0],[2,2,3,2],[4,2,5,2]],"bounds":{"rows_first":2000,"rows_last":500,"rows_between":2000,"halvings":0},"read":"row_number_cap"}
[]
[]
[]
[]
[]
[]
[]
[]
[]
[]
[]
[]
[]
[]
[]
[]
[]
[]
[]
[]
[]
[]
[]
[]
[]
[]
[]
[]
[]
[]
[]
[]
[]
[]
[]
[]
[]
[]
[]
[]
[]
[]
[]
[]
[]
[]
[]
[]
[]
[]
[]
[]
[]
[]
[]
[]
[]
[]
[]
[]
[]
[]
[]
[]
[]
[]
[]
[]
[]
[]
[]
[]
[]
[]
[]
[]
[]
[]
[]
[]
[]
[]
[]
[]
[]
[]
[]
[]
[]
[]
[]
[]
[]
[]
[]
[]
[]
[]
[]
[]
[]
[]
[]
[]
[]
[]
[]
[]
[]
[]
[]
[]
[]
[]
[]
[]
[]
[]
[]
[]
[]
[]
[]
[]
[]
[]
[]
[]
[]
[]
[]
[]
[]
[]
[]
[]
[]
[]
[]
[]
[]
[]
[]
[]
[]
[]
[]
[]
[]
[]
[]
[]
[]
[]
[]
[]
[]
[]
[]
[]
[]
[]
[]
[]
[]
[]
[]
[]
[]
[]
[]
[]
[]
[]
[]
[]
[]
[]
[]
[]
[]
[]
[]
[]
[]
[]
[]
[]
[]
[]
[]
[]
[]
[]
[]
[]
[]
[]
[]
[]
[]
[]
[]
[]
[]
[]
[]
[]
[]
[]
[]
[]
[]
[]
[]
[]
[]
[]
[]
[]
[]
[]
[]
[]
[]
[]
[]
[]
[]
[]
[]
[]
[]
[]
[]
[]
[]
[]
[]
[]
[]
[]
[]
[]
[]
[]
[]
[]
[]
[]
[]
[]
[]
[]
[]
[]
[]
[]
[]
[]
[]
[]
[]
[]
[]
[]
[]
[]
[]
[]
[]
[]
[]
[]
[]
[]
[]
[]
[]
[]
[]
[]
[]
[]
[]
[]
[]
[]
[]
[]
[]
[]
[]
[]
[]
[]
[]
[]
[]
[]
[]
[]
[]
[]
[]
[]
[]
[]
[]
[]
[]
[]
[]
[]
[]
[]
[]
[]
[]
[]
[]
[]
[]
[]
[]
[]
[]
[]
[]
[]
[]
[]
[]
[]
[]
[]
[]
[]
[]
[]
[]
[]
[]
[]
[]
[]
[]
[]
[]
[]
[]
[]
[]
[]
[]
[]
[]
[]
[]
[]
[]
[]
[]
[]
[]
[]
[]
[]
[]
[]
[]
[]
[]
[]
[]
[]
[]
[]
[]
[]
[]
[]
[]
[]
[]
[]
[]
[]
[]
[]
[]
[]
[]
[]
[]
[]
[]
[]
[]
[]
[]
[]
[]
[]
[]
[]
[]
[]
[]
[]
[]
[]
[]
[]
[]
[]
[]
[]
[]
[]
[]
[]
[]
[]
[]
[]
[]
[]
[]
[]
[]
[]
[]
[]
[]
[]
[]
[]
[]
[]
[]
[]
[]
[]
[]
[]
[]
[]
[]
[]
[]
[]
[]
[]
[]
[]
[]
[]
[]
[]
[]
[]
[]
[]
[]
[]
[]
[]
[]
[]
[]
[]
[]
[]
[]
[]
[]
[]
[]
[]
[]
[]
[]
[]
[]
[]
[]
[]
[]
[]
[]
[]
[]
[]
[]
[]
[]
[]
[]
[]
[]
[]
[]
[]
[]
[]
[]
[]
[]
[]
[]
[]
[]
[]
[]
[]
[]
[]
[]
[]
[]
[]
[]
[]
[]
[]
[]
[]
[]
[]
[]
[]
[]
[]
[]
[]
[]
[]
[]
[]
[]
[]
[]
[]
[]
[]
[]
[]
[]
[]
[]
[]
[]
[]
[]
[]
[]
[]
[]
[]
[]
[]
[]
[]
[]
[]
[]
[]
[]
[]
[]
[]
[]
[]
[]
[]
[]
[]
[]
[]
[]
[]
[]
[]
[]
[]
[]
[]
[]
[]
[]
[]
[]
[]
[]
[]
[]
[]
[]
[]
[]
[]
[]
[]
[]
[]
[]
[]
[]
[]
[]
[]
[]
[]
[]
[]
[]
[]
[]
[]
[]
[]
[]
[]
[]
[]
[]
[]
[]
[]
[]
[]
[]
[]
[]
[]
[]
[]
[]
[]
[]
[]
[]
[]
[]
[]
[]
[]
[]
[]
[]
[]
[]
[]
[]
[]
[]
[]
[]
[]
[]
[]
[]
[]
[]
[]
[]
[]
[]
[]
[]
[]
[]
[]
[]
[]
[]
[]
[]
[]
[]
[]
[]
[]
[]
[]
[]
[]
[]
[]
[]
[]
[]
[]
[]
[]
[]
[]
[]
[]
[]
[]
[]
[]
[]
[]
[]
[]
[]
[]
[]
[]
[]
[]
[]
[]
[]
[]
[]
[]
[]
[]
[]
[]
[]
[]
[]
[]
[]
[]
[]
[]
[]
[]
[]
[]
[]
[]
[]
[]
[]
[]
[]
[]
[]
[]
[]
[]
[]
[]
[]
[]
[]
[]
[]
[]
[]
[]
[]
[]
[]
[]
[]
[]
[]
[]
[]
[]
[]
[]
[]
[]
[]
[]
[]
[]
[]
[]
[]
[]
[]
[]
[]
[]
[]
[]
[]
[]
[]
[]
[]
[]
[]
[]
[]
[]
[]
[]
[]
[]
[]
[]
[]
[]
[]
[]
[]
[]
[]
[]
[]
[]
[]
[]
[]
[]
[]
[]
[]
[]
[]
[]
[]
[]
[]
[]
[]
[]
[]
[]
[]
[]
[]
[]
[]
[]
[]
[]
[]
[]
[]
[]
[]
[]
[]
[]
[]
[]
[]
[]
[]
[]
[]
[]
[]
[]
[]
[]
[]
[]
[]
[]
[]
[]
[]
[]
[]
[]
[]
[]
[]
[]
[]
[]
[]
[]
[]
[]
[]
[]
[]
[]
[]
[]
[]
[]
[]
[]
[]
[]
[]
[]
[]
[]
[]
[]
[]
[]
[]
[]
[]
[]
[]
[]
[]
[]
[]
[]
[]
[]
[]
[]
[]
[]
[]
[]
[]
[]
[]
[]
[]
[]
[]
[]
[]
[]
[]
[]
[]
[]
[]
[]
[]
[]
[]
[]
[]
[]
[]
[]
[]
[]
[]
[]
[]
[]
[]
[]
[]
[]
[]
[]
[]
[]
[]
[]
[]
[]
[]
[]
[]
[]
[]
[]
[]
[]
[]
[]
[]
[]
[]
[]
[]
[]
[]
[]
[]
[]
[]
[]
[]
[]
[]
[]
[]
[]
[]
[]
[]
[]
[]
[]
[]
[]
[]
[]
[]
[]
[]
[]
[]
[]
[]
[]
[]
[]
[]
[]
[]
[]
[]
[]
[]
[]
[]
[]
[]
[]
[]
[]
[]
[]
[]
[]
[]
[]
[]
[]
[]
[]
[]
[]
[]
[]
[]
[]
[]
[]
[]
[]
[]
[]
[]
[]
[]
[]
[]
[]
[]
[]
[]
[]
[]
[]
[]
[]
[]
[]
[]
[]
[]
[]
[]
[]
[]
[]
[]
[]
[]
[]
[]
[]
[]
[]
[]
[]
[]
[]
[]
[]
[]
[]
[]
[]
[]
[]
[]
[]
[]
[]
[]
[]
[]
[]
[]
[]
[]
[]
[]
[]
[]
[]
[]
[]
[]
[]
[]
[]
[]
[]
[]
[]
[]
[]
[]
[]
[]
[]
[]
[]
[]
[]
[]
[]
[]
[]
[]
[]
[]
[]
[]
[]
[]
[]
[]
[]
[]
[]
[]
[]
[]
[]
[]
[]
[]
[]
[]
[]
[]
[]
[]
[]
[]
[]
[]
[]
[]
[]
[]
[]
[]
[]
[]
[]
[]
[]
[]
[]
[]
[]
[]
[]
[]
[]
[]
[]
[]
[]
[]
[]
[]
[]
[]
[]
[]
[]
[]
[]
[]
[]
[]
[]
[]
[]
[]
[]
[]
[]
[]
[]
[]
[]
[]
[]
[]
[]
[]
[]
[]
[]
[]
[]
[]
[]
[]
[]
[]
[]
[]
[]
[]
[]
[]
[]
[]
[]
[]
[]
[]
[]
[]
[]
[]
[]
[]
[]
[]
[]
[]
[]
[]
[]
[]
[]
[]
[]
[]
[]
[]
[]
[]
[]
[]
[]
[]
[]
[]
[]
[]
[]
[]
[]
[]
[]
[]
[]
[]
[]
[]
[]
[]
[]
[]
[]
[]
[]
[]
[]
[]
[]
[]
[]
[]
[]
[]
[]
[]
[]
[]
[]
[]
[]
[]
[]
[]
[]
[]
[]
[]
[]
[]
[]
[]
[]
[]
[]
[]
[]
[]
[]
[]
[]
[]
[]
[]
[]
[]
[]
[]
[]
[]
[]
[]
[]
[]
[]
[]
[]
[]
[]
[]
[]
[]
[]
[]
[]
[]
[]
[]
[]
[]
[]
[]
[]
[]
[]
[]
[]
[]
[]
[]
[]
[]
[]
[]
[]
[]
[]
[]
[]
[]
[]
[]
[]
[]
[]
[]
[]
[]
[]
[]
[]
[]
[]
[]
[]
[]
[]
[]
[]
[]
[]
[]
[]
[]
[]
[]
[]
[]
[]
[]
[]
[]
[]
[]
[]
[]
[]
[]
[]
[]
[]
[]
[]
[]
[]
[]
[]
[]
[]
[]
[]
[]
[]
[]
[]
[]
[]
[]
[]
[]
[]
[]
[]
[]
[]
[]
[]
[]
[]
[]
[]
[]
[]
[]
[]
[]
[]
[]
[]
[]
[]
[]
[]
[]
[]
[]
[]
[]
[]
[]
[]
[]
[]
[]
[]
[]
[]
[]
[]
[]
[]
[]
[]
[]
[]
[]
[]
[]
[]
[]
[]
[]
[]
[]
[]
[]
[]
[]
[]
[]
[]
[]
[]
[]
[]
[]
[]
[]
[]
[]
[]
[]
[]
[]
[]
[]
[]
[]
[]
[]
[]
[]
[]
[]
[]
[]
[]
[]
[]
[]
[]
[]
[]
[]
[]
[]
[]
[]
[]
[]
[]
[]
[]
[]
[]
[]
[]
[]
[]
[]
[]
[]
[]
[]
[]
[]
[]
[]
[]
[]
[]
[]
[]
[]
[]
[]
[]
[]
[]
[]
[]
[]
[]
[]
[]
[]
[]
[]
[]
[]
[]
[]
[]
[]
[]
[]
[]
[]
[]
[]
[]
[]
[]
[]
[]
[]
[]
[]
[]
[]
[]
[]
[]
[]
[]
[]
[]
[]
[]
[]
[]
[]
[]
[]
[]
[]
[]
[]
[]
[]
[]
[]
[]
[]
[]
[]
[]
[]
[]
[]
[]
[]
[]
[]
[]
[]
[]
[]
[]
[]
[]
[]
[]
[]
[]
[]
[]
[]
[]
[]
[]
[]
[]
[]
[]
[]
[]
[]
[]
[]
[]
[]
[]
[]
[]
[]
[]
[]
[]
[]
[]
[]
[]
[]
[]
[]
[]
[]
[]
[]
[]
[]
[]
[]
[]
[]
[]
[]
[]
[]
[]
[]
[]
[]
[]
[]
[]
[]
[]
[]
[]
[]
[]
[]
[]
[]
[]
[]
[]
[]
[]
[]
[]
[]
[]
[]
[]
[]
[]
[]
[]
[]
[]
[]
[]
[]
[]
[]
[]
[]
[]
[]
[]
[]
[]
[]
[]
[]
[]
[]
[]
[]
[]
[]
[]
[]
[]
[]
[]
[]
[]
[]
[]
[]
[]
[]
[]
[]
[]
[]
[]
[]
[]
[]
[]
[]
[]
[]
[]
[]
[]
[]
[]
[]
[]
[]
[]
[]
[]
[]
[]
[]
[]
[]
[]
[]
[]
[]
[]
[]
[]
[]
[]
[]
[]
[]
[]
[]
[]
[]
[]
[]
[]
[]
[]
[]
[]
[]
[]
[]
[]
[]
[]
[]
[]
[]
[]
[]
[]
[]
[]
[]
[]
[]
[]
[]
[]
[]
[]
[]
[]
[]
[]
[]
[]
[]
[]
[]
[]
[]
[]
[]
[]
[]
[]
[]
[]
[]
[]
[]
[]
[]
[]
[]
[]
[]
[]
[]
[]
[]
[]
[]
[]
[]
[]
[]
[]
[]
[]
[]
[]
[]
[]
[]
[]
[]
[]
[]
[]
[]
[]
[]
[]
[]
[]
[]
[]
[]
[]
[]
[]
[]
[]
[]
[]
[]
[]
[]
[]
[]
[]
[]
[]
[]
[]
[]
[]
[]
[]
[]
[]
[]
[]
[]
[]
[]
[]
[]
[]
[]
[]
[]
[]
[]
[]
[]
[]
[]
[]
[]
[]
[]
[]
[]
[]
[]
[]
[]
[]
[]
[]
[]
[]
[]
[]
[]
[]
[]
[]
[]
[]
[]
[]
[]
[]
[]
[]
[]
[]
[]
[]
[]
[]
[]
[]
[]
[]
[]
[]
[]
[]
[]
[]
[]
[]
[]
[]
[]
[]
[]
[]
[]
[]
[]
[]
[]
[]
[]
[]
[]
[]
[]
[]
[]
[]
[]
[]
[]
[]
[]
[]
[]
[]
[]
[]
[]
[]
[]
[]
[]
[]
[]
[]
[]
[]
[]
[]
[]
[]
[]
[]
[]
[]
[]
[]
[]
[]
[]
[]
[]
[]
[]
[]
[]
[]
[]
[]
[]
[]
[]
[]
[]
[]
[]
[]
[]
[]
[]
[]
[]
[]
[]
[]
[]
[]
[]
[]
[]
[]
[]
[]
[]
[]
[]
[]
[]
[]
[]
[]
[]
[]
[]
[]
[]
[]
[]
[]
[]
[]
[]
[]
[]
[]
[]
[]
[]
[]
[]
[]
[]
[]
[]
[]
[]
[]
[]
[]
[]
[]
[]
[]
[]
[]
[]
[]
[]
[]
[]
[]
[]
[]
[]
[]
[]
[]
[]
[]
[]
[]
[]
[]
[]
[]
[]
[]
[]
[]
[]
[]
[]
[]
[]
[]
[]
[]
[]
[]
[]
[]
[]
[]
[]
[]
[]
[]
[]
[]
[]
[]
[]
[]
[]
[]
[]
[]
[]
[]
[]
[]
[]
[]
[]
[]
[]
[]
[]
[]
[]
[]
[]
[]
[]
[]
[]
[]
[]
[]
[]
[]
[]
[]
[]
[]
[]
[]
[]
[]
[]
[]
[]
[]
[]
[]
[]
[]
[]
[]
[]
[]
[]
[]
[]
[]
[]
[]
[]
[]
[]
[]
[]
[]
[]
[]
[]
[]
[]
[]
[]
[]
[]
[]
[]
[]
[]
[]
[]
[]
[]
[]
[]
[]
[]
[]
[]
[]
[]
[]
[]
[]
[]
[]
[]
[]
[]
[]
[]
[]
[]
[]
[]
[]
[]
[]
[]
[]
[]
[]
[]
[]
[]
[]
[]
[]
[]
[]
[]
[]
[]
[]
[]
[]
[]
[]
[]
[]
[]
[]
[]
[]
[]
[]
[]
[]
[]
[]
[]
[]
[]
[]
[]
[]
[]
[]
[]
[]
[]
[]
[]
[]
[]
[]
[]
[]
[]
[]
[]
[]
[]
[]
[]
[]
[]
[]
[]
[]
[]
[]
[]
[]
[]
[]
[]
[]
[]
[]
[]
[]
[]
[]
[]
[]
[]
[]
[]
[]
[]
[]
[]
[]
[]
[]
[]
[]
[]
[]
[]
[]
[]
[]
[]
[]
[]
[]
[]
[]
[]
[]
[]
[]
[]
[]
[]
[]
[]
[]
[]
[]
[]
[]
[]
[]
[]
[]
[]
[]
[]
[]
[]
[]
[]
[]
[]
[]
[]
[]
[]
[]
[]
[]
[]
[]
[]
[]
[]
[]
[]
[]
[]
[]
[]
[]
[]
[]
[]
[]
[]
[]
[]
[]
[]
[]
[]
[]
[]
[]
[]
[]
[]
[]
[]
[]
[]
[]
[]
[]
[]
[]
[]
[]
[]
[]
[]
[]
[]
[]
[]
[]
[]
[]
[]
[]
[]
[]
[]
[]
[]
[]
[]
[]
[]
[]
[]
[]
[]
[]
[]
[]
[]
[]
[]
[]
[]
[]
[]
[]
[]
[]
[]
[]
[]
[]
[]
[]
[]
[]
[]
[]
[]
[]
[]
[]
[]
[]
[]
[]
[]
[]
[]
[]
[]
[]
[]
[]
[]
[]
[]
[]
[]
[]
[]
[]
[]
[]
[]
[]
[]
[]
[]
[]
[]
[]
[]
[]
[]
[]
[]
[]
[]
[]
[]
[]
[]
[]
[]
[]
[]
[]
[]
[]
[]
[]
[]
[]
[]
[]
[]
[]
[]
[]
[]
[]
[]
[]
[]
[]
[]
[]
[]
[]
[]
[]
[]
[]
[]
[]
[]
[]
[]
[]
[]
[]
[]
[]
[]
[]
[]
[]
[]
[]
[]
[]
[]
[]
[]
[]
[]
[]
[]
[]
[]
[]
[]
[]
[]
[]
[]
[]
[]
[]
[]
[]
[]
[]
[]
[]
[]
[]
[]
[]
[]
[]
[]
[]
[]
[]
[]
[]
[]
[]
[]
[]
[]
[]
[]
[]
[]
[]
[]
[]
[]
[]
[]
[]
[]
[]
[]
[]
[]
[]
[]
[]
[]
[]
[]
[]
[]
[]
[]
[]
[]
[]
[]
[]
[]
[]
[]
[]
[]
[]
[]
[]
[]
[]
[]
[]
[]
[]
[]
[]
[]
[]
[]
[]
[]
[]
[]
[]
[]
[]
[]
[]
[]
[]
[]
[]
[]
[]
[]
[]
[]
[]
[]
[]
[]
[]
[]
[]
[]
[]
[]
[]
[]
[]
[]
[]
[]
[]
[]
[]
[]
[]
[]
[]
[]
[]
[]
[]
[]
[]
[]
[]
[]
[]
[]
[]
[]
[]
[]
[]
[]
[]
[]
[]
[]
[]
[]
[]
[]
[]
[]
[]
[]
[]
[]
[]
[]
[]
[]
[]
[]
[]
[]
[]
[]
[]
[]
[]
[]
[]
[]
[]
[]
[]
[]
[]
[]
[]
[]
[]
[]
[]
[]
[]
[]
[]
[]
[]
[]
[]
[]
[]
[]
[]
[]
[]
[]
[]
[]
[]
[]
[]
[]
[]
[]
[]
[]
[]
[]
[]
[]
[]
[]
[]
[]
[]
[]
[]
[]
[]
[]
[]
[]
[]
[]
[]
[]
[]
[]
[]
[]
[]
[]
[]
[]
[]
[]
[]
[]
[]
[]
[]
[]
[]
[]
[]
[]
[]
[]
[]
[]
[]
[]
[]
[]
[]
[]
[]
[]
[]
[]
[]
[]
[]
[]
[]
[]
[]
[]
[]
[]
[]
[]
[]
[]
[]
[]
[]
[]
[]
[]
[]
[]
[]
[]
[]
[]
[]
[]
[]
[]
[]
[]
[]
[]
[]
[]
[]
[]
[]
[]
[]
[]
[]
[]
[]
[]
[]
[]
[]
[]
[]
[]
[]
[]
[]
[]
[]
[]
[]
[]
[]
[]
[]
[]
[]
[]
[]
[]
[]
[]
[]
[]
[]
[]
[]
[]
[]
[]
[]
[]
[]
[]
[]
[]
[]
[]
[]
[]
[]
[]
[]
[]
[]
[]
[]
[]
[]
[]
[]
[]
[]
[]
[]
[]
[]
[]
[]
[]
[]
[]
[]
[]
[]
[]
[]
[]
[]
[]
[]
[]
[]
[]
[]
[]
[]
[]
[]
[]
[]
[]
[]
[]
[]
[]
[]
[]
[]
[]
[]
[]
[]
[]
[]
[]
[]
[]
[]
[]
[]
[]
[]
[]
[]
[]
[]
[]
[]
[]
[]
[]
[]
[]
[]
[]
[]
[]
[]
[]
[]
[]
[]
[]
[]
[]
[]
[]
[]
[]
[]
[]
[]
[]
[]
[]
[]
[]
[]
[]
[]
[]
[]
[]
[]
[]
[]
[]
[]
[]
[]
[]
[]
[]
[]
[]
[]
[]
[]
[]
[]
[]
[]
[]
[]
[]
[]
[]
[]
[]
[]
[]
[]
[]
[]
[]
[]
[]
[]
[]
[]
[]
[]
[]
[]
[]
[]
[]
[]
[]
[]
[]
[]
[]
[]
[]
[]
[]
[]
[]
[]
[]
[]
[]
[]
[]
[]
[]
[]
[]
[]
[]
[]
[]
[]
[]
[]
[]
[]
[]
[]
[]
[]
[]
[]
[]
[]
[]
[]
[]
[]
[]
[]
[]
[]
[]
[]
[]
[]
[]
[]
[]
[]
[]
[]
[]
[]
[]
[]
[]
[]
[]
[]
[]
[]
[]
[]
[]
[]
[]
[]
[]
[]
[]
[]
[]
[]
[]
[]
[]
[]
[]
[]
[]
[]
[]
[]
[]
[]
[]
[]
[]
[]
[]
[]
[]
[]
[]
[]
[]
[]
[]
[]
[]
[]
[]
[]
[]
[]
[]
[]
[]
[]
[]
[]
[]
[]
[]
[]
[]
[]
[]
[]
[]
[]
[]
[]
[]
[]
[]
[]
[]
[]
[]
[]
[]
[]
[]
[]
[]
[]
[]
[]
[]
[]
[]
[]
[]
[]
[]
[]
[]
[]
[]
[]
[]
[]
[]
[]
[]
[]
[]
[]
[]
[]
[]
[]
[]
[]
[]
[]
[]
[]
[]
[]
[]
[]
[]
[]
[]
[]
[]
[]
[]
[]
[]
[]
[]
[]
[]
[]
[]
[]
[]
[]
[]
[]
[]
[]
[]
[]
[]
[]
[]
[]
[]
[]
[]
[]
[]
[]
[]
[]
[]
[]
[]
[]
[]
[]
[]
[]
[]
[]
[]
[]
[]
[]
[]
[]
[]
[]
[]
[]
[]
[]
[]
[]
[]
[]
[]
[]
[]
[]
[]
[]
[]
[]
[]
[]
[]
[]
[]
[]
[]
[]
[]
[]
[]
[]
[]
[]
[]
[]
[]
[]
[]
[]
[]
[]
[]
[]
[]
[]
[]
[]
[]
[]
[]
[]
[]
[]
[]
[]
[]
[]
[]
[]
[]
[]
[]
[]
[]
[]
[]
[]
[]
[]
[]
[]
[]
[]
[]
[]
[]
[]
[]
[]
[]
[]
[]
[]
[]
[]
[]
[]
[]
[]
[]
[]
[]
[]
[]
[]
[]
[]
[]
[]
[]
[]
[]
[]
[]
[]
[]
[]
[]
[]
[]
[]
[]
[]
[]
[]
[]
[]
[]
[]
[]
[]
[]
[]
[]
[]
[]
[]
[]
[]
[]
[]
[]
[]
[]
[]
[]
[]
[]
[]
[]
[]
[]
[]
[]
[]
[]
[]
[]
[]
[]
[]
[]
[]
[]
[]
[]
[]
[]
[]
[]
[]
[]
[]
[]
[]
[]
[]
[]
[]
[]
[]
[]
[]
[]
[]
[]
[]
[]
[]
[]
[]
[]
[]
[]
[]
[]
[]
[]
[]
[]
[]
[]
[]
[]
[]
[]
[]
[]
[]
[]
[]
[]
[]
[]
[]
[]
[]
[]
[]
[]
[]
[]
[]
[]
[]
[]
[]
[]
[]
[]
[]
[]
[]
[]
[]
[]
[]
[]
[]
[]
[]
[]
[]
[]
[]
[]
[]
[]
[]
[]
[]
[]
[]
[]
[]
[]
[]
[]
[]
[]
[]
[]
[]
[]
[]
[]
[]
[]
[]
[]
[]
[]
[]
[]
[]
[]
[]
[]
[]
[]
[]
[]
[]
[]
[]
[]
[]
[]
[]
[]
[]
[]
[]
[]
[]
[]
[]
[]
[]
[]
[]
[]
[]
[]
[]
[]
[]
[]
[]
[]
[]
[]
[]
[]
[]
[]
[]
[]
[]
[]
[]
[]
[]
[]
[]
[]
[]
[]
[]
[]
[]
[]
[]
[]
[]
[]
[]
[]
[]
[]
[]
[]
[]
[]
[]
[]
[]
[]
[]
[]
[]
[]
[]
[]
[]
[]
[]
[]
[]
[]
[]
[]
[]
[]
[]
[]
[]
[]
[]
[]
[]
[]
[]
[]
[]
[]
[]
[]
[]
[]
[]
[]
[]
[]
[]
[]
[]
[]
[]
[]
[]
[]
[]
[]
[]
[]
[]
[]
[]
[]
[]
[]
[]
[]
[]
[]
[]
[]
[]
[]
[]
[]
[]
[]
[]
[]
[]
[]
[]
[]
[]
[]
[]
[]
[]
[]
[]
[]
[]
[]
[]
[]
[]
[]
[]
[]
[]
[]
[]
[]
[]
[]
[]
[]
[]
[]
[]
[]
[]
[]
[]
[]
[]
[]
[]
[]
[]
[]
[]
[]
[]
[]
[]
[]
[]
[]
[]
[]
[]
[]
[]
[]
[]
[]
[]
[]
[]
[]
[]
[]
[]
[]
[]
[]
[]
[]
[]
[]
[]
[]
[]
[]
[]
[]
[]
[]
[]
[]
[]
[]
[]
[]
[]
[]
[]
[]
[]
[]
[]
[]
[]
[]
[]
[]
[]
[]
[]
[]
[]
[]
[]
[]
[]
[]
[]
[]
[]
[]
[]
[]
[]
[]
[]
[]
[]
[]
[]
[]
[]
[]
[]
[]
[]
[]
[]
[]
[]
[]
[]
[]
[]
[]
[]
[]
[]
[]
[]
[]
[]
[]
[]
[]
[]
[]
[]
[]
[]
[]
[]
[]
[]
[]
[]
[]
[]
[]
[]
[]
[]
[]
[]
[]
[]
[]
[]
[]
[]
[]
[]
[]
[]
[]
[]
[]
[]
[]
[]
[]
[]
[]
[]
[]
[]
[]
[]
[]
[]
[]
[]
[]
[]
[]
[]
[]
[]
[]
[]
[]
[]
[]
[]
[]
[]
[]
[]
[]
[]
[]
[]
[]
[]
[]
[]
[]
[]
[]
[]
[]
[]
[]
[]
[]
[]
[]
[]
[]
[]
[]
[]
[]
[]
[]
[]
[]
[]
[]
[]
[]
[]
[]
[]
[]
[]
[]
[]
[]
[]
[]
[]
[]
[]
[]
[]
[]
[]
[]
[]
[]
[]
[]
[]
[]
[]
[]
[]
[]
[]
[]
[]
[]
[]
[]
[]
[]
[]
[]
[]
[]
[]
[]
[]
[]
[]
[]
[]
[]
[]
[]
[]
[]
[]
[]
[]
[]
[]
[]
[]
[]
[]
[]
[]
[]
[]
[]
[]
[]
[]
[]
[]
[]
[]
[]
[]
[]
[]
[]
[]
[]
[]
[]
[]
[]
[]
[]
[]
[]
[]
[]
[]
[]
[]
[]
[]
[]
[]
[]
[]
[]
[]
[]
[]
[]
[]
[]
[]
[]
[]
[]
[]
[]
[]
[]
[]
[]
[]
[]
[]
[]
[]
[]
[]
[]
[]
[]
[]
[]
[]
[]
[]
[]
[]
[]
[]
[]
[]
[]
[]
[]
[]
[]
[]
[]
[]
[]
[]
[]
[]
[]
[]
[]
[]
[]
[]
[]
[]
[]
[]
[]
[]
[]
[]
[]
[]
[]
[]
[]
[]
[]
[]
[]
[]
[]
[]
[]
[]
[]
[]
[]
[]
[]
[]
[]
[]
[]
[]
[]
[]
[]
[]
[]
[]
[]
[]
[]
[]
[]
[]
[]
[]
[]
[]
[]
[]
[]
[]
[]
[]
[]
[]
[]
[]
[]
[]
[]
[]
[]
[]
[]
[]
[]
[]
[]
[]
[]
[]
[]
[]
[]
[]
[]
[]
[]
[]
[]
[]
[]
[]
[]
[]
[]
[]
[]
[]
[]
[]
[]
[]
[]
[]
[]
[]
[]
[]
[]
[]
[]
[]
[]
[]
[]
[]
[]
[]
[]
[]
[]
[]
[]
[]
[]
[]
[]
[]
[]
[]
[]
[]
[]
[]
[]
[]
[]
[]
[]
[]
[]
[]
[]
[]
[]
[]
[]
[]
[]
[]
[]
[]
[]
[]
[]
[]
[]
[]
[]
[]
[]
[]
[]
[]
[]
[]
[]
[]
[]
[]
[]
[]
[]
[]
[]
[]
[]
[]
[]
[]
[]
[]
[]
[]
[]
[]
[]
[]
[]
[]
[]
[]
[]
[]
[]
[]
[]
[]
[]
[]
[]
[]
[]
[]
[]
[]
[]
[]
[]
[]
[]
[]
[]
[]
[]
[]
[]
[]
[]
[]
[]
[]
[]
[]
[]
[]
[]
[]
[]
[]
[]
[]
[]
[]
[]
[]
[]
[]
[]
[]
[]
[]
[]
[]
[]
[]
[]
[]
[]
[]
[]
[]
[]
[]
[]
[]
[]
[]
[]
[]
[]
[]
[]
[]
[]
[]
[]
[]
[]
[]
[]
[]
[]
[]
[]
[]
[]
[]
[]
[]
[]
[]
[]
[]
[]
[]
[]
[]
[]
[]
[]
[]
[]
[]
[]
[]
[]
[]
[]
[]
[]
[]
[]
[]
[]
[]
[]
[]
[]
[]
[]
[]
[]
[]
[]
[]
[]
[]
[]
[]
[]
[]
[]
[]
[]
[]
[]
[]
[]
[]
[]
[]
[]
[]
[]
[]
[]
[]
[]
[]
[]
[]
[]
[]
[]
[]
[]
[]
[]
[]
[]
[]
[]
[]
[]
[]
[]
[]
[]
[]
[]
[]
[]
[]
[]
[]
[]
[]
[]
[]
[]
[]
[]
[]
[]
[]
[]
[]
[]
[]
[]
[]
[]
[]
[]
[]
[]
[]
["Admin - Planeación Estratégica","Estratégicos","Central","Gestión","ANÁLISIS RESULTADO\nTRIMESTRE",null,"Estratégicos","Misionales","Apoyo","Evaluación y Mejora","Transversal_todos_procesos"]
["Admin - Comunicación Institucional","Misionales","Seccional","Producto",null,"Entregable","Admin - Planeación Estratégica","Admin - Reordenamiento Judicial","Admin - Gestión Documental","Admin - Gestión de Control Interno y Auditoría","Transversal_todos_procesos"]
["Admin - Gestión para la Integración de Listas de Altas Cortes","Apoyo",null,null,null,"Meta cuantificable","Admin - Comunicación Institucional","Admin - Modernización de la Gestión Judicial","Admin - Gestión Tecnológica","Admin - Mejoramiento del Sistema Integrado de Gestión y Control de la Calidad y del Medio Ambiente"]
["Admin - Reordenamiento Judicial","Evaluación_y_Mejora",null,null,null,null,"Admin - Gestión para la Integración de Listas de Altas Cortes","Admin - Mejoramiento de la Infraestructura Física","Admin - Gestión de la Información Estadística","Juris - Gestión de Mejoramiento del SIGCMA"]
["Admin - Modernización de la Gestión Judicial","Transversal_todos_procesos",null,null,null,null,"Juris - Gestión de Planeación Estratégica","Admin - Administración de la Carrera Judicial","Admin - Gestión Humana"]
["Admin - Mejoramiento de la Infraestructura Física",null,null,null,null,null,"Juris - Gestión de Comunicación Institucional","Admin - Gestión de la Formación Judicial","Admin - Gestión de Seguridad y Salud en el Trabajo"]
["Admin - Administración de la Carrera Judicial",null,null,null,null,null,null,"Admin - Gestión de la Información Judicial","Admin - Asistencia Legal"]
["Admin - Gestión de la Formación Judicial",null,null,null,null,null,null,"Admin - Registro y Control de Abogados y Auxiliares de la Justicia","Admin - Administración de la Seguridad"]
["Admin - Gestión de la Información Judicial",null,null,null,null,null,null,"Juris - Gestión de Acciones Constitucionales","Admin - Gestión Administrativa"]
["Admin - Registro y Control de Abogados y Auxiliares de la Justicia",null,null,null,null,null,null,"Juris - Gestión Proceso Ordinario","Admin - Compras Públicas"]
["Admin - Gestión Documental",null,null,null,null,null,null,null,"Admin - Gestión Financiera y Presupuestal"]
["Admin - Gestión Tecnológica",null,null,null,null,null,null,null,"Juris - Atención al Usuario"]
["Admin - Gestión de la Información Estadística",null,null,null,null,null,null,null,"Juris - Gestión de Servicios Judiciales"]
["Admin - Gestión Humana",null,null,null,null,null,null,null,"Juris - Gestión de Servicios Administrativos"]
["Admin - Gestión de Seguridad y Salud en el Trabajo"]
["Admin - Asistencia Legal"]
["Admin - Administración de la Seguridad"]
["Admin - Gestión Administrativa"]
["Admin - Compras Públicas"]
["Admin - Gestión Financiera y Presupuestal"]
["Admin - Gestión de Control Interno y Auditoría"]
["Admin - Mejoramiento del Sistema Integrado de Gestión y Control de la Calidad y del Medio Ambiente"]
["Juris - Gestión de Planeación Estratégica"]
["Juris - Gestión de Comunicación Institucional"]
["Juris - Gestión de Acciones Constitucionales"]
["Juris - Gestión Proceso Ordinario"]
["Juris - Atención al Usuario"]
["Juris - Gestión de Servicios Judiciales"]
["Juris - Gestión de Servicios Administrativos"]
["Juris - Gestión de Mejoramiento del SIGCMA"]

{"sheet":"GESTION","index":4,"n_rows":255,"n_cols":20,"rows_kept":255,"cut":false,"hidden":false,"merged":[[245,2,254,2],[235,3,254,3],[235,1,254,1],[235,0,254,0],[185,3,224,3],[225,2,234,2],[225,3,234,3],[185,1,234,1],[235,2,244,2],[115,1,184,1],[115,0,184,0],[185,2,194,2],[195,2,204,2],[205,2,214,2],[185,0,234,0],[145,2,154,2],[155,2,164,2],[165,2,174,2],[215,2,224,2],[145,3,174,3],[175,2,184,2],[175,3,184,3],[115,2,124,2],[115,3,124,3],[125,2,134,2],[135,2,144,2],[135,3,144,3],[125,3,134,3],[95,2,104,2],[105,2,114,2],[55,3,114,3],[55,1,114,1],[55,0,114,0],[5,0,54,0],[55,2,64,2],[65,2,74,2],[75,2,84,2],[85,2,94,2],[35,2,44,2],[35,3,44,3],[45,2,54,2],[45,3,54,3],[5,1,54,1],[5,3,14,3],[15,2,24,2],[15,3,24,3],[25,2,34,2],[25,3,34,3],[5,2,14,2],[1,0,1,18],[1,19,1,28],[2,0,2,3],[3,0,4,1],[3,2,4,2],[3,3,4,3],[3,4,3,6],[3,7,3,17],[2,4,2,17],[2,18,4,18]]}
[]
["CONSEJO SUPERIOR DE LA JUDICATURA \nUNIDADES MISIONALES DEL CONSEJO SUPERIOR DE LA JUDICATURA - \nDIRECCIÓN EJECUTIVA DE ADMINISTRACIÓN JUDICIAL - UNIDADES MISIONALES DE LA DEAJ\nDIRECCIONES SECCIONALES DE ADMINISTRACIÓN JUDICIAL - DEPENDENCIAS JUDICIALES CERTIFICADAS",null,null,null,null,null,null,null,null,null,null,null,null,null,null,null,null,null,null,"GENERADOR DE SEGUIMIENTOS TRIMESTRALES"]
["PLAN SECTORIAL DE DESARROLLO 2023-2026 - OBJETIVOS SIGCMA",null,null,null,"PLAN DE ACCIÓN Y SEGUIMIENTO A LA GESTIÓN INSTITUCIONAL (DE ACUERDO CON LA FUNCIÓN MISIONAL ASIGNADA )",null,null,null,null,null,null,null,null,null,null,null,null,null," ANÁLISIS RESULTADO"]
["OBJETIVO ESTRATÉGICO",null,"OBJETIVO ESPECÍFICO PSD","OBJETIVO ESPECÍFICO SIGCMA","MAPA PROCESO SIGCMA",null,null,"MEDICIÓN DE LA GESTIÓN ANUAL"]
[null,null,null,null,"NOMBRE MACRO PROCESO SIGCMA","PROCESO SIGCMA","NIVEL ","ACTIVIDADES ","INDIQUE SI ES ENTREGABLE O META CUANTIFICABLE","META ANUAL","UNIDAD DE MEDIDA","RESPONSABLE DEL PROCESO ","MEDIO O MECANISMO A TRAVES DEL CUAL SE HACE EL SEGUIMIENTO\n(Producto y/o servicio principal)","INICIO \nDÍA/MES/AÑO","FIN\nDÍA/MES/AÑO","AVANCE DE LA META ","NIVEL CUMPLIMIENTO","DIFICULTADES PARA LOGRAR LA META PROPUESTA"]
["1. Acceso e Infraestructura Física","Acceso e Infraestructura Física: Ampliar, en todo el territorio nacional, el acceso a una justicia efectiva, pronta, equitativa e incluyente, reduciendo el atraso y la congestión, de acuerdo con las necesidades de la demanda de justicia por jurisdicción y especialidad, y mejorando la articulación con la justicia restaurativa y terapéutica, y otros mecanismos de solución de conflictos y consolidando una infraestructura física óptima para el acceso a la justicia.","1. Ampliar el acceso a justicia para atender las necesidades jurídicas de los ciudadanos con un enfoque diferencial, de una manera pronta, reduciendo las inequidades y las brechas territoriales de acceso.","2. Asegurar  el cumplimiento de los objetivos institucionales, la normatividad aplicable,  la mejora del SIGCMA y la satisfacción de los usuarios, revisando de  forma continua y sistemática la planificación de la gestión y fortaleciendo la administración de riesgos y sus controles",null,null,null,null,null,null,null,null,null,null,null,{"$f":"IFERROR(GESTION_SEG_1_TRIM!H6,\" \")","v":0},{"$f":"IFERROR(P6/J6,\"\")","v":""},{"$f":"_xlfn.CONCAT(\"Trimestre 1\",CHAR(10),IFERROR(GESTION_SEG_1_TRIM!J6,\" \"))","v":"Trimestre 1\n"},{"$f":"_xlfn.CONCAT(\"Trimestre 1\",CHAR(10),IFERROR(GESTION_SEG_1_TRIM!K6,\" \"))","v":"Trimestre 1\n"}]
[null,null,null,null,null,null,null,null,null,null,null,null,null,null,null,{"$f":"IFERROR(GESTION_SEG_1_TRIM!H7,\" \")","v":0},"",{"$f":"_xlfn.CONCAT(\"Trimestre 1\",CHAR(10),IFERROR(GESTION_SEG_1_TRIM!J7,\" \"))","v":"Trimestre 1\n"},{"$f":"_xlfn.CONCAT(\"Trimestre 1\",CHAR(10),IFERROR(GESTION_SEG_1_TRIM!K7,\" \"))","v":"Trimestre 1\n"}]
[null,null,null,null,null,null,null,null,null,null,null,null,null,null,null,{"$f":"IFERROR(GESTION_SEG_1_TRIM!H8,\" \")","v":0},null,{"$f":"_xlfn.CONCAT(\"Trimestre 1\",CHAR(10),IFERROR(GESTION_SEG_1_TRIM!J8,\" \"))","v":"Trimestre 1\n"},{"$f":"_xlfn.CONCAT(\"Trimestre 1\",CHAR(10),IFERROR(GESTION_SEG_1_TRIM!K8,\" \"))","v":"Trimestre 1\n"}]
[null,null,null,null,null,null,null,null,null,null,null,null,null,null,null,{"$f":"IFERROR(GESTION_SEG_1_TRIM!H9,\" \")","v":0},null,{"$f":"_xlfn.CONCAT(\"Trimestre 1\",CHAR(10),IFERROR(GESTION_SEG_1_TRIM!J9,\" \"))","v":"Trimestre 1\n"},{"$f":"_xlfn.CONCAT(\"Trimestre 1\",CHAR(10),IFERROR(GESTION_SEG_1_TRIM!K9,\" \"))","v":"Trimestre 1\n"}]
[null,null,null,null,null,null,null,null,null,null,null,null,null,null,null,{"$f":"IFERROR(GESTION_SEG_1_TRIM!H10,\" \")","v":0},null,{"$f":"_xlfn.CONCAT(\"Trimestre 1\",CHAR(10),IFERROR(GESTION_SEG_1_TRIM!J10,\" \"))","v":"Trimestre 1\n"},{"$f":"_xlfn.CONCAT(\"Trimestre 1\",CHAR(10),IFERROR(GESTION_SEG_1_TRIM!K10,\" \"))","v":"Trimestre 1\n"}]
[null,null,null,null,null,null,null,null,null,null,null,null,null,null,null,{"$f":"IFERROR(GESTION_SEG_1_TRIM!H11,\" \")","v":0},null,{"$f":"_xlfn.CONCAT(\"Trimestre 1\",CHAR(10),IFERROR(GESTION_SEG_1_TRIM!J11,\" \"))","v":"Trimestre 1\n"},{"$f":"_xlfn.CONCAT(\"Trimestre 1\",CHAR(10),IFERROR(GESTION_SEG_1_TRIM!K11,\" \"))","v":"Trimestre 1\n"}]
[null,null,null,null,null,null,null,null,null,null,null,null,null,null,null,{"$f":"IFERROR(GESTION_SEG_1_TRIM!H12,\" \")","v":0},null,{"$f":"_xlfn.CONCAT(\"Trimestre 1\",CHAR(10),IFERROR(GESTION_SEG_1_TRIM!J12,\" \"))","v":"Trimestre 1\n"},{"$f":"_xlfn.CONCAT(\"Trimestre 1\",CHAR(10),IFERROR(GESTION_SEG_1_TRIM!K12,\" \"))","v":"Trimestre 1\n"}]
[null,null,null,null,null,null,null,null,null,null,null,null,null,null,null,{"$f":"IFERROR(GESTION_SEG_1_TRIM!H13,\" \")","v":0},"",{"$f":"_xlfn.CONCAT(\"Trimestre 1\",CHAR(10),IFERROR(GESTION_SEG_1_TRIM!J13,\" \"))","v":"Trimestre 1\n"},{"$f":"_xlfn.CONCAT(\"Trimestre 1\",CHAR(10),IFERROR(GESTION_SEG_1_TRIM!K13,\" \"))","v":"Trimestre 1\n"}]
[null,null,null,null,null,null,null,null,null,null,null,null,null,null,null,{"$f":"IFERROR(GESTION_SEG_1_TRIM!H14,\" \")","v":0},"",{"$f":"_xlfn.CONCAT(\"Trimestre 1\",CHAR(10),IFERROR(GESTION_SEG_1_TRIM!J14,\" \"))","v":"Trimestre 1\n"},{"$f":"_xlfn.CONCAT(\"Trimestre 1\",CHAR(10),IFERROR(GESTION_SEG_1_TRIM!K14,\" \"))","v":"Trimestre 1\n"}]
[null,null,null,null,null,null,null,null,null,null,null,null,null,null,null,{"$f":"IFERROR(GESTION_SEG_1_TRIM!H15,\" \")","v":0},"",{"$f":"_xlfn.CONCAT(\"Trimestre 1\",CHAR(10),IFERROR(GESTION_SEG_1_TRIM!J15,\" \"))","v":"Trimestre 1\n"},{"$f":"_xlfn.CONCAT(\"Trimestre 1\",CHAR(10),IFERROR(GESTION_SEG_1_TRIM!K15,\" \"))","v":"Trimestre 1\n"}]
[null,null,"2. Mejorar los tiempos de respuesta de la Rama Judicial y reducir el inventario de procesos, identificando los retos internos y promoviendo tanto acciones articuladas específicas para abordarlos como estrategias coordinadas para enfrentar las barreras que dependen de otras entidades.","2. Asegurar  el cumplimiento de los objetivos institucionales, la normatividad aplicable,  la mejora del SIGCMA y la satisfacción de los usuarios, revisando de  forma continua y sistemática la planificación de la gestión y fortaleciendo la administración de riesgos y sus controles",null,null,null,null,null,null,null,null,null,null,null,{"$f":"IFERROR(GESTION_SEG_1_TRIM!H16,\" \")","v":0},"",{"$f":"_xlfn.CONCAT(\"Trimestre 1\",CHAR(10),IFERROR(GESTION_SEG_1_TRIM!J16,\" \"))","v":"Trimestre 1\n"},{"$f":"_xlfn.CONCAT(\"Trimestre 1\",CHAR(10),IFERROR(GESTION_SEG_1_TRIM!K16,\" \"))","v":"Trimestre 1\n"}]
[null,null,null,null,null,null,null,null,null,null,null,null,null,null,null,{"$f":"IFERROR(GESTION_SEG_1_TRIM!H17,\" \")","v":0},"",{"$f":"_xlfn.CONCAT(\"Trimestre 1\",CHAR(10),IFERROR(GESTION_SEG_1_TRIM!J17,\" \"))","v":"Trimestre 1\n"},{"$f":"_xlfn.CONCAT(\"Trimestre 1\",CHAR(10),IFERROR(GESTION_SEG_1_TRIM!K17,\" \"))","v":"Trimestre 1\n"}]
[null,null,null,null,null,null,null,null,null,null,null,null,null,null,null,{"$f":"IFERROR(GESTION_SEG_1_TRIM!H18,\" \")","v":0},null,{"$f":"_xlfn.CONCAT(\"Trimestre 1\",CHAR(10),IFERROR(GESTION_SEG_1_TRIM!J18,\" \"))","v":"Trimestre 1\n"},{"$f":"_xlfn.CONCAT(\"Trimestre 1\",CHAR(10),IFERROR(GESTION_SEG_1_TRIM!K18,\" \"))","v":"Trimestre 1\n"}]
[null,null,null,null,null,null,null,null,null,null,null,null,null,null,null,{"$f":"IFERROR(GESTION_SEG_1_TRIM!H19,\" \")","v":0},null,{"$f":"_xlfn.CONCAT(\"Trimestre 1\",CHAR(10),IFERROR(GESTION_SEG_1_TRIM!J19,\" \"))","v":"Trimestre 1\n"},{"$f":"_xlfn.CONCAT(\"Trimestre 1\",CHAR(10),IFERROR(GESTION_SEG_1_TRIM!K19,\" \"))","v":"Trimestre 1\n"}]
[null,null,null,null,null,null,null,null,null,null,null,null,null,null,null,{"$f":"IFERROR(GESTION_SEG_1_TRIM!H20,\" \")","v":0},null,{"$f":"_xlfn.CONCAT(\"Trimestre 1\",CHAR(10),IFERROR(GESTION_SEG_1_TRIM!J20,\" \"))","v":"Trimestre 1\n"},{"$f":"_xlfn.CONCAT(\"Trimestre 1\",CHAR(10),IFERROR(GESTION_SEG_1_TRIM!K20,\" \"))","v":"Trimestre 1\n"}]
[null,null,null,null,null,null,null,null,null,null,null,null,null,null,null,{"$f":"IFERROR(GESTION_SEG_1_TRIM!H21,\" \")","v":0},null,{"$f":"_xlfn.CONCAT(\"Trimestre 1\",CHAR(10),IFERROR(GESTION_SEG_1_TRIM!J21,\" \"))","v":"Trimestre 1\n"},{"$f":"_xlfn.CONCAT(\"Trimestre 1\",CHAR(10),IFERROR(GESTION_SEG_1_TRIM!K21,\" \"))","v":"Trimestre 1\n"}]
[null,null,null,null,null,null,null,null,null,null,null,null,null,null,null,{"$f":"IFERROR(GESTION_SEG_1_TRIM!H22,\" \")","v":0},null,{"$f":"_xlfn.CONCAT(\"Trimestre 1\",CHAR(10),IFERROR(GESTION_SEG_1_TRIM!J22,\" \"))","v":"Trimestre 1\n"},{"$f":"_xlfn.CONCAT(\"Trimestre 1\",CHAR(10),IFERROR(GESTION_SEG_1_TRIM!K22,\" \"))","v":"Trimestre 1\n"}]
[null,null,null,null,null,null,null,null,null,null,null,null,null,null,null,{"$f":"IFERROR(GESTION_SEG_1_TRIM!H23,\" \")","v":0},"",{"$f":"_xlfn.CONCAT(\"Trimestre 1\",CHAR(10),IFERROR(GESTION_SEG_1_TRIM!J23,\" \"))","v":"Trimestre 1\n"},{"$f":"_xlfn.CONCAT(\"Trimestre 1\",CHAR(10),IFERROR(GESTION_SEG_1_TRIM!K23,\" \"))","v":"Trimestre 1\n"}]
[null,null,null,null,null,null,null,null,null,null,null,null,null,null,null,{"$f":"IFERROR(GESTION_SEG_1_TRIM!H24,\" \")","v":0},"",{"$f":"_xlfn.CONCAT(\"Trimestre 1\",CHAR(10),IFERROR(GESTION_SEG_1_TRIM!J24,\" \"))","v":"Trimestre 1\n"},{"$f":"_xlfn.CONCAT(\"Trimestre 1\",CHAR(10),IFERROR(GESTION_SEG_1_TRIM!K24,\" \"))","v":"Trimestre 1\n"}]
[null,null,null,null,null,null,null,null,null,null,null,null,null,null,null,{"$f":"IFERROR(GESTION_SEG_1_TRIM!H25,\" \")","v":0},"",{"$f":"_xlfn.CONCAT(\"Trimestre 1\",CHAR(10),IFERROR(GESTION_SEG_1_TRIM!J25,\" \"))","v":"Trimestre 1\n"},{"$f":"_xlfn.CONCAT(\"Trimestre 1\",CHAR(10),IFERROR(GESTION_SEG_1_TRIM!K25,\" \"))","v":"Trimestre 1\n"}]
[null,null,"3. Coadyuvar en la garantía de la idoneidad en el ejercicio de la profesión jurídica de acuerdo con lo establecido en la Ley 1905 de 2018","2. Asegurar  el cumplimiento de los objetivos institucionales, la normatividad aplicable,  la mejora del SIGCMA y la satisfacción de los usuarios, revisando de  forma continua y sistemática la planificación de la gestión y fortaleciendo la administración de riesgos y sus controles",null,null,null,null,null,null,null,null,null,null,null,{"$f":"IFERROR(GESTION_SEG_1_TRIM!H26,\" \")","v":0},"",{"$f":"_xlfn.CONCAT(\"Trimestre 1\",CHAR(10),IFERROR(GESTION_SEG_1_TRIM!J26,\" \"))","v":"Trimestre 1\n"},{"$f":"_xlfn.CONCAT(\"Trimestre 1\",CHAR(10),IFERROR(GESTION_SEG_1_TRIM!K26,\" \"))","v":"Trimestre 1\n"}]
[null,null,null,null,null,null,null,null,null,null,null,null,null,null,null,{"$f":"IFERROR(GESTION_SEG_1_TRIM!H27,\" \")","v":0},"",{"$f":"_xlfn.CONCAT(\"Trimestre 1\",CHAR(10),IFERROR(GESTION_SEG_1_TRIM!J27,\" \"))","v":"Trimestre 1\n"},{"$f":"_xlfn.CONCAT(\"Trimestre 1\",CHAR(10),IFERROR(GESTION_SEG_1_TRIM!K27,\" \"))","v":"Trimestre 1\n"}]
[null,null,null,null,null,null,null,null,null,null,null,null,null,null,null,{"$f":"IFERROR(GESTION_SEG_1_TRIM!H28,\" \")","v":0},null,{"$f":"_xlfn.CONCAT(\"Trimestre 1\",CHAR(10),IFERROR(GESTION_SEG_1_TRIM!J28,\" \"))","v":"Trimestre 1\n"},{"$f":"_xlfn.CONCAT(\"Trimestre 1\",CHAR(10),IFERROR(GESTION_SEG_1_TRIM!K28,\" \"))","v":"Trimestre 1\n"}]
[null,null,null,null,null,null,null,null,null,null,null,null,null,null,null,{"$f":"IFERROR(GESTION_SEG_1_TRIM!H29,\" \")","v":0},null,{"$f":"_xlfn.CONCAT(\"Trimestre 1\",CHAR(10),IFERROR(GESTION_SEG_1_TRIM!J29,\" \"))","v":"Trimestre 1\n"},{"$f":"_xlfn.CONCAT(\"Trimestre 1\",CHAR(10),IFERROR(GESTION_SEG_1_TRIM!K29,\" \"))","v":"Trimestre 1\n"}]
[null,null,null,null,null,null,null,null,null,null,null,null,null,null,null,{"$f":"IFERROR(GESTION_SEG_1_TRIM!H30,\" \")","v":0},null,{"$f":"_xlfn.CONCAT(\"Trimestre 1\",CHAR(10),IFERROR(GESTION_SEG_1_TRIM!J30,\" \"))","v":"Trimestre 1\n"},{"$f":"_xlfn.CONCAT(\"Trimestre 1\",CHAR(10),IFERROR(GESTION_SEG_1_TRIM!K30,\" \"))","v":"Trimestre 1\n"}]
[null,null,null,null,null,null,null,null,null,null,null,null,null,null,null,{"$f":"IFERROR(GESTION_SEG_1_TRIM!H31,\" \")","v":0},null,{"$f":"_xlfn.CONCAT(\"Trimestre 1\",CHAR(10),IFERROR(GESTION_SEG_1_TRIM!J31,\" \"))","v":"Trimestre 1\n"},{"$f":"_xlfn.CONCAT(\"Trimestre 1\",CHAR(10),IFERROR(GESTION_SEG_1_TRIM!K31,\" \"))","v":"Trimestre 1\n"}]
[null,null,null,null,null,null,null,null,null,null,null,null,null,null,null,{"$f":"IFERROR(GESTION_SEG_1_TRIM!H32,\" \")","v":0},null,{"$f":"_xlfn.CONCAT(\"Trimestre 1\",CHAR(10),IFERROR(GESTION_SEG_1_TRIM!J32,\" \"))","v":"Trimestre 1\n"},{"$f":"_xlfn.CONCAT(\"Trimestre 1\",CHAR(10),IFERROR(GESTION_SEG_1_TRIM!K32,\" \"))","v":"Trimestre 1\n"}]
[null,null,null,null,null,null,null,null,null,null,null,null,null,null,null,{"$f":"IFERROR(GESTION_SEG_1_TRIM!H33,\" \")","v":0},"",{"$f":"_xlfn.CONCAT(\"Trimestre 1\",CHAR(10),IFERROR(GESTION_SEG_1_TRIM!J33,\" \"))","v":"Trimestre 1\n"},{"$f":"_xlfn.CONCAT(\"Trimestre 1\",CHAR(10),IFERROR(GESTION_SEG_1_TRIM!K33,\" \"))","v":"Trimestre 1\n"}]
[null,null,null,null,null,null,null,null,null,null,null,null,null,null,null,{"$f":"IFERROR(GESTION_SEG_1_TRIM!H34,\" \")","v":0},"",{"$f":"_xlfn.CONCAT(\"Trimestre 1\",CHAR(10),IFERROR(GESTION_SEG_1_TRIM!J34,\" \"))","v":"Trimestre 1\n"},{"$f":"_xlfn.CONCAT(\"Trimestre 1\",CHAR(10),IFERROR(GESTION_SEG_1_TRIM!K34,\" \"))","v":"Trimestre 1\n"}]
[null,null,null,null,null,null,null,null,null,null,null,null,null,null,null,{"$f":"IFERROR(GESTION_SEG_1_TRIM!H35,\" \")","v":0},"",{"$f":"_xlfn.CONCAT(\"Trimestre 1\",CHAR(10),IFERROR(GESTION_SEG_1_TRIM!J35,\" \"))","v":"Trimestre 1\n"},{"$f":"_xlfn.CONCAT(\"Trimestre 1\",CHAR(10),IFERROR(GESTION_SEG_1_TRIM!K35,\" \"))","v":"Trimestre 1\n"}]
[null,null,"4. Avanzar en la disposición de una infraestructura óptima para el acceso a la justicia en la Rama Judicial de modo que se fortalezca la presencia territorial, teniendo en cuenta las posibilidades que ofrece la transformación digital y las necesidades que se derivan de ella, y considerando tanto las necesidades de los usuarios como las de los servidores judiciales.","4. Hacer un uso racional de los recursos naturales aplicando los principios y fases de la Economía Circular, para prevenir, mitigar y controlar los impactos ambientales","Misionales","Admin - Mejoramiento de la Infraestructura Física","Seccional","Iniciar la segunda fase de la Sedes Judicial de Belén de Umbría","Entregable",null,null,"Iván Maturana Córdoba","Contrato adjudicado ","2023-01-01","2023-12-31",{"$f":"IFERROR(GESTION_SEG_1_TRIM!H36,\" \")","v":0},"",{"$f":"_xlfn.CONCAT(\"Trimestre 1\",CHAR(10),IFERROR(GESTION_SEG_1_TRIM!J36,\" \"))","v":"Trimestre 1\n"},{"$f":"_xlfn.CONCAT(\"Trimestre 1\",CHAR(10),IFERROR(GESTION_SEG_1_TRIM!K36,\" \"))","v":"Trimestre 1\nSe recibieron los recursos para la contratación de la segunda fase de construcción del Palacio de Belén de Umbría "}]
[null,null,null,null,"Misionales","Admin - Mejoramiento de la Infraestructura Física","Seccional","Realzar mantenientos preventivos y correctivos a las sedes judiciales de la Seccional","Entregable",null,null,"Iván Maturana Córdoba","Contrato adjudicado ","2023-01-01","2023-12-31",{"$f":"IFERROR(GESTION_SEG_1_TRIM!H37,\" \")","v":0},"",{"$f":"_xlfn.CONCAT(\"Trimestre 1\",CHAR(10),IFERROR(GESTION_SEG_1_TRIM!J37,\" \"))","v":"Trimestre 1\n"},{"$f":"_xlfn.CONCAT(\"Trimestre 1\",CHAR(10),IFERROR(GESTION_SEG_1_TRIM!K37,\" \"))","v":"Trimestre 1\nSe realizaron los mantenimientos programados para el primer cuatrimestre de la vigencia, según cronograma establecido "}]
[null,null,null,null,"Apoyo","Admin - Gestión Tecnológica","Seccional","Digitalización de expedientes","Entregable",50000,"Cantidad de expedientes digitalizados ","Carlos Andrés Chavarro ","Expedientes digitalizados ","2023-01-01","2023-12-31",{"$f":"IFERROR(GESTION_SEG_1_TRIM!H38,\" \")","v":0},0,{"$f":"_xlfn.CONCAT(\"Trimestre 1\",CHAR(10),IFERROR(GESTION_SEG_1_TRIM!J38,\" \"))","v":"Trimestre 1\n"},{"$f":"_xlfn.CONCAT(\"Trimestre 1\",CHAR(10),IFERROR(GESTION_SEG_1_TRIM!K38,\" \"))","v":"Trimestre 1\n"}]
[null,null,null,null,"Apoyo","Admin - Compras Públicas","Seccional","Realizar reuniones de planeación, seguimiento y evaluación de la gestión.","Entregable",4,"unidad","Iván Maturana Córdoba \nCoordinador Administrativo y Financiero","Actas de reuniones trimestrales ","2023-01-01","2023-12-31",{"$f":"IFERROR(GESTION_SEG_1_TRIM!H39,\" \")","v":0},null,{"$f":"_xlfn.CONCAT(\"Trimestre 1\",CHAR(10),IFERROR(GESTION_SEG_1_TRIM!J39,\" \"))","v":"Trimestre 1\n"},{"$f":"_xlfn.CONCAT(\"Trimestre 1\",CHAR(10),IFERROR(GESTION_SEG_1_TRIM!K38,\" \"))","v":"Trimestre 1\n"}]
[null,null,null,null,"Apoyo","Admin - Gestión Administrativa","Seccional","Realizar reuniones de planeación, seguimiento y evaluación de la gestión.","Entregable",4,"unidad","Iván Maturana Córdoba \nCoordinador Administrativo y Financiero","Actas de reuniones trimestrales ","2023-01-01","2023-12-31",{"$f":"IFERROR(GESTION_SEG_1_TRIM!H40,\" \")","v":0},null,{"$f":"_xlfn.CONCAT(\"Trimestre 1\",CHAR(10),IFERROR(GESTION_SEG_1_TRIM!J40,\" \"))","v":"Trimestre 1\n"},{"$f":"_xlfn.CONCAT(\"Trimestre 1\",CHAR(10),IFERROR(GESTION_SEG_1_TRIM!K40,\" \"))","v":"Trimestre 1\nEn el primer trimestre se realizaron 5 reuniones de Comité del Área Administrativa y Financiera, donde se tratan temas referentes al proceso Gestión Administrativa"}]
[null,null,null,null,null,null,null,null,null,null,null,null,null,null,null,{"$f":"IFERROR(GESTION_SEG_1_TRIM!H41,\" \")","v":0},null,{"$f":"_xlfn.CONCAT(\"Trimestre 1\",CHAR(10),IFERROR(GESTION_SEG_1_TRIM!J41,\" \"))","v":"Trimestre 1\n"},{"$f":"_xlfn.CONCAT(\"Trimestre 1\",CHAR(10),IFERROR(GESTION_SEG_1_TRIM!K41,\" \"))","v":"Trimestre 1\n"}]
[null,null,null,null,null,null,null,null,null,null,null,null,null,null,null,{"$f":"IFERROR(GESTION_SEG_1_TRIM!H42,\" \")","v":0},null,{"$f":"_xlfn.CONCAT(\"Trimestre 1\",CHAR(10),IFERROR(GESTION_SEG_1_TRIM!J42,\" \"))","v":"Trimestre 1\n"},{"$f":"_xlfn.CONCAT(\"Trimestre 1\",CHAR(10),IFERROR(GESTION_SEG_1_TRIM!K42,\" \"))","v":"Trimestre 1\n"}]
[null,null,null,null,null,null,null,null,null,null,null,null,null,null,null,{"$f":"IFERROR(GESTION_SEG_1_TRIM!H43,\" \")","v":0},null,{"$f":"_xlfn.CONCAT(\"Trimestre 1\",CHAR(10),IFERROR(GESTION_SEG_1_TRIM!J43,\" \"))","v":"Trimestre 1\n"},{"$f":"_xlfn.CONCAT(\"Trimestre 1\",CHAR(10),IFERROR(GESTION_SEG_1_TRIM!K43,\" \"))","v":"Trimestre 1\n"}]
[null,null,null,null,null,null,null,null,null,null,null,null,null,null,null,{"$f":"IFERROR(GESTION_SEG_1_TRIM!H44,\" \")","v":0},"",{"$f":"_xlfn.CONCAT(\"Trimestre 1\",CHAR(10),IFERROR(GESTION_SEG_1_TRIM!J44,\" \"))","v":"Trimestre 1\n"},{"$f":"_xlfn.CONCAT(\"Trimestre 1\",CHAR(10),IFERROR(GESTION_SEG_1_TRIM!K44,\" \"))","v":"Trimestre 1\n"}]
[null,null,null,null,null,null,null,null,null,null,null,null,null,null,null,{"$f":"IFERROR(GESTION_SEG_1_TRIM!H45,\" \")","v":0},"",{"$f":"_xlfn.CONCAT(\"Trimestre 1\",CHAR(10),IFERROR(GESTION_SEG_1_TRIM!J45,\" \"))","v":"Trimestre 1\n"},{"$f":"_xlfn.CONCAT(\"Trimestre 1\",CHAR(10),IFERROR(GESTION_SEG_1_TRIM!K45,\" \"))","v":"Trimestre 1\n"}]
[null,null,"5. Impulsar el uso de mecanismos alternativos para la solución de conflictos y la ampliación de la justicia restaurativa y terapéutica y el robustecimiento de las alternativas al encarcelamiento","2. Asegurar  el cumplimiento de los objetivos institucionales, la normatividad aplicable,  la mejora del SIGCMA y la satisfacción de los usuarios, revisando de  forma continua y sistemática la planificación de la gestión y fortaleciendo la administración de riesgos y sus controles",null,null,null,null,null,null,null,null,null,null,null,{"$f":"IFERROR(GESTION_SEG_1_TRIM!H46,\" \")","v":0},"",{"$f":"_xlfn.CONCAT(\"Trimestre 1\",CHAR(10),IFERROR(GESTION_SEG_1_TRIM!J46,\" \"))","v":"Trimestre 1\n"},{"$f":"_xlfn.CONCAT(\"Trimestre 1\",CHAR(10),IFERROR(GESTION_SEG_1_TRIM!K46,\" \"))","v":"Trimestre 1\n"}]
[null,null,null,null,null,null,null,null,null,null,null,null,null,null,null,{"$f":"IFERROR(GESTION_SEG_1_TRIM!H47,\" \")","v":0},"",{"$f":"_xlfn.CONCAT(\"Trimestre 1\",CHAR(10),IFERROR(GESTION_SEG_1_TRIM!J47,\" \"))","v":"Trimestre 1\n"},{"$f":"_xlfn.CONCAT(\"Trimestre 1\",CHAR(10),IFERROR(GESTION_SEG_1_TRIM!K47,\" \"))","v":"Trimestre 1\n"}]
[null,null,null,null,null,null,null,null,null,null,null,null,null,null,null,{"$f":"IFERROR(GESTION_SEG_1_TRIM!H48,\" \")","v":0},null,{"$f":"_xlfn.CONCAT(\"Trimestre 1\",CHAR(10),IFERROR(GESTION_SEG_1_TRIM!J48,\" \"))","v":"Trimestre 1\n"},{"$f":"_xlfn.CONCAT(\"Trimestre 1\",CHAR(10),IFERROR(GESTION_SEG_1_TRIM!K48,\" \"))","v":"Trimestre 1\n"}]
[null,null,null,null,null,null,null,null,null,null,null,null,null,null,null,{"$f":"IFERROR(GESTION_SEG_1_TRIM!H49,\" \")","v":0},null,{"$f":"_xlfn.CONCAT(\"Trimestre 1\",CHAR(10),IFERROR(GESTION_SEG_1_TRIM!J49,\" \"))","v":"Trimestre 1\n"},{"$f":"_xlfn.CONCAT(\"Trimestre 1\",CHAR(10),IFERROR(GESTION_SEG_1_TRIM!K49,\" \"))","v":"Trimestre 1\n"}]
[null,null,null,null,null,null,null,null,null,null,null,null,null,null,null,{"$f":"IFERROR(GESTION_SEG_1_TRIM!H50,\" \")","v":0},null,{"$f":"_xlfn.CONCAT(\"Trimestre 1\",CHAR(10),IFERROR(GESTION_SEG_1_TRIM!J50,\" \"))","v":"Trimestre 1\n"},{"$f":"_xlfn.CONCAT(\"Trimestre 1\",CHAR(10),IFERROR(GESTION_SEG_1_TRIM!K50,\" \"))","v":"Trimestre 1\n"}]
[null,null,null,null,null,null,null,null,null,null,null,null,null,null,null,{"$f":"IFERROR(GESTION_SEG_1_TRIM!H51,\" \")","v":0},null,{"$f":"_xlfn.CONCAT(\"Trimestre 1\",CHAR(10),IFERROR(GESTION_SEG_1_TRIM!J51,\" \"))","v":"Trimestre 1\n"},{"$f":"_xlfn.CONCAT(\"Trimestre 1\",CHAR(10),IFERROR(GESTION_SEG_1_TRIM!K51,\" \"))","v":"Trimestre 1\n"}]
[null,null,null,null,null,null,null,null,null,null,null,null,null,null,null,{"$f":"IFERROR(GESTION_SEG_1_TRIM!H52,\" \")","v":0},null,{"$f":"_xlfn.CONCAT(\"Trimestre 1\",CHAR(10),IFERROR(GESTION_SEG_1_TRIM!J52,\" \"))","v":"Trimestre 1\n"},{"$f":"_xlfn.CONCAT(\"Trimestre 1\",CHAR(10),IFERROR(GESTION_SEG_1_TRIM!K52,\" \"))","v":"Trimestre 1\n"}]
[null,null,null,null,null,null,null,null,null,null,null,null,null,null,null,{"$f":"IFERROR(GESTION_SEG_1_TRIM!H53,\" \")","v":0},"",{"$f":"_xlfn.CONCAT(\"Trimestre 1\",CHAR(10),IFERROR(GESTION_SEG_1_TRIM!J53,\" \"))","v":"Trimestre 1\n"},{"$f":"_xlfn.CONCAT(\"Trimestre 1\",CHAR(10),IFERROR(GESTION_SEG_1_TRIM!K53,\" \"))","v":"Trimestre 1\n"}]
[null,null,null,null,null,null,null,null,null,null,null,null,null,null,null,{"$f":"IFERROR(GESTION_SEG_1_TRIM!H54,\" \")","v":0},"",{"$f":"_xlfn.CONCAT(\"Trimestre 1\",CHAR(10),IFERROR(GESTION_SEG_1_TRIM!J54,\" \"))","v":"Trimestre 1\n"},{"$f":"_xlfn.CONCAT(\"Trimestre 1\",CHAR(10),IFERROR(GESTION_SEG_1_TRIM!K54,\" \"))","v":"Trimestre 1\n"}]
[null,null,null,null,null,null,null,null,null,null,null,null,null,null,null,{"$f":"IFERROR(GESTION_SEG_1_TRIM!H55,\" \")","v":0},"",{"$f":"_xlfn.CONCAT(\"Trimestre 1\",CHAR(10),IFERROR(GESTION_SEG_1_TRIM!J55,\" \"))","v":"Trimestre 1\n"},{"$f":"_xlfn.CONCAT(\"Trimestre 1\",CHAR(10),IFERROR(GESTION_SEG_1_TRIM!K55,\" \"))","v":"Trimestre 1\n"}]
["2. Servicios digitales y de tecnología, innovación y análisis de la información.","Servicios digitales y de tecnología, innovación y análisis de la información: Consolidar una justicia integrada y soportada en servicios digitales y de tecnología, innovación y análisis de la información, con una cultura digital apropiada, segura y sensible a las realidades del territorio nacional. ","1. Ampliar el acceso a la justicia a través de la consolidación del uso de los servicios digitales que conforman el sistema único integrado de gestión judicial en todos los despachos judiciales y dependencias de apoyo y, específicamente, incluyendo el despliegue e implementación del Expediente Judicial Electrónico en todas las jurisdicciones y especialidades.","6. Proteger, preservar y administrar los activos de información  implementando acciones  para gestionar de forma adecuada los incidentes, proteger los datos personales y adoptar mecanismos  de ciberseguridad y aseguramiento de la  continuidad del negocio.",null,null,null,null,null,null,null,null,null,null,null,{"$f":"IFERROR(GESTION_SEG_1_TRIM!H56,\" \")","v":0},"",{"$f":"_xlfn.CONCAT(\"Trimestre 1\",CHAR(10),IFERROR(GESTION_SEG_1_TRIM!J56,\" \"))","v":"Trimestre 1\n"},{"$f":"_xlfn.CONCAT(\"Trimestre 1\",CHAR(10),IFERROR(GESTION_SEG_1_TRIM!K56,\" \"))","v":"Trimestre 1\n"}]
[null,null,null,null,null,null,null,null,null,null,null,null,null,null,null,{"$f":"IFERROR(GESTION_SEG_1_TRIM!H57,\" \")","v":0},"",{"$f":"_xlfn.CONCAT(\"Trimestre 1\",CHAR(10),IFERROR(GESTION_SEG_1_TRIM!J57,\" \"))","v":"Trimestre 1\n"},{"$f":"_xlfn.CONCAT(\"Trimestre 1\",CHAR(10),IFERROR(GESTION_SEG_1_TRIM!K57,\" \"))","v":"Trimestre 1\n"}]
[null,null,null,null,null,null,null,null,null,null,null,null,null,null,null,{"$f":"IFERROR(GESTION_SEG_1_TRIM!H58,\" \")","v":0},"",{"$f":"_xlfn.CONCAT(\"Trimestre 1\",CHAR(10),IFERROR(GESTION_SEG_1_TRIM!J58,\" \"))","v":"Trimestre 1\n"},{"$f":"_xlfn.CONCAT(\"Trimestre 1\",CHAR(10),IFERROR(GESTION_SEG_1_TRIM!K58,\" \"))","v":"Trimestre 1\n"}]
[null,null,null,null,null,null,null,null,null,null,null,null,null,null,null,{"$f":"IFERROR(GESTION_SEG_1_TRIM!H59,\" \")","v":0},null,{"$f":"_xlfn.CONCAT(\"Trimestre 1\",CHAR(10),IFERROR(GESTION_SEG_1_TRIM!J59,\" \"))","v":"Trimestre 1\n"},{"$f":"_xlfn.CONCAT(\"Trimestre 1\",CHAR(10),IFERROR(GESTION_SEG_1_TRIM!K59,\" \"))","v":"Trimestre 1\n"}]
[null,null,null,null,null,null,null,null,null,null,null,null,null,null,null,{"$f":"IFERROR(GESTION_SEG_1_TRIM!H60,\" \")","v":0},null,{"$f":"_xlfn.CONCAT(\"Trimestre 1\",CHAR(10),IFERROR(GESTION_SEG_1_TRIM!J60,\" \"))","v":"Trimestre 1\n"},{"$f":"_xlfn.CONCAT(\"Trimestre 1\",CHAR(10),IFERROR(GESTION_SEG_1_TRIM!K60,\" \"))","v":"Trimestre 1\n"}]
[null,null,null,null,null,null,null,null,null,null,null,null,null,null,null,{"$f":"IFERROR(GESTION_SEG_1_TRIM!H61,\" \")","v":0},null,{"$f":"_xlfn.CONCAT(\"Trimestre 1\",CHAR(10),IFERROR(GESTION_SEG_1_TRIM!J61,\" \"))","v":"Trimestre 1\n"},{"$f":"_xlfn.CONCAT(\"Trimestre 1\",CHAR(10),IFERROR(GESTION_SEG_1_TRIM!K61,\" \"))","v":"Trimestre 1\n"}]
[null,null,null,null,null,null,null,null,null,null,null,null,null,null,null,{"$f":"IFERROR(GESTION_SEG_1_TRIM!H62,\" \")","v":0},null,{"$f":"_xlfn.CONCAT(\"Trimestre 1\",CHAR(10),IFERROR(GESTION_SEG_1_TRIM!J62,\" \"))","v":"Trimestre 1\n"},{"$f":"_xlfn.CONCAT(\"Trimestre 1\",CHAR(10),IFERROR(GESTION_SEG_1_TRIM!K62,\" \"))","v":"Trimestre 1\n"}]
[null,null,null,null,null,null,null,null,null,null,null,null,null,null,null,{"$f":"IFERROR(GESTION_SEG_1_TRIM!H63,\" \")","v":0},null,{"$f":"_xlfn.CONCAT(\"Trimestre 1\",CHAR(10),IFERROR(GESTION_SEG_1_TRIM!J63,\" \"))","v":"Trimestre 1\n"},{"$f":"_xlfn.CONCAT(\"Trimestre 1\",CHAR(10),IFERROR(GESTION_SEG_1_TRIM!K63,\" \"))","v":"Trimestre 1\n"}]
[null,null,null,null,null,null,null,null,null,null,null,null,null,null,null,{"$f":"IFERROR(GESTION_SEG_1_TRIM!H64,\" \")","v":0},"",{"$f":"_xlfn.CONCAT(\"Trimestre 1\",CHAR(10),IFERROR(GESTION_SEG_1_TRIM!J64,\" \"))","v":"Trimestre 1\n"},{"$f":"_xlfn.CONCAT(\"Trimestre 1\",CHAR(10),IFERROR(GESTION_SEG_1_TRIM!K64,\" \"))","v":"Trimestre 1\n"}]
[null,null,null,null,null,null,null,null,null,null,null,null,null,null,null,{"$f":"IFERROR(GESTION_SEG_1_TRIM!H65,\" \")","v":0},"",{"$f":"_xlfn.CONCAT(\"Trimestre 1\",CHAR(10),IFERROR(GESTION_SEG_1_TRIM!J65,\" \"))","v":"Trimestre 1\n"},{"$f":"_xlfn.CONCAT(\"Trimestre 1\",CHAR(10),IFERROR(GESTION_SEG_1_TRIM!K65,\" \"))","v":"Trimestre 1\n"}]
[null,null,"2. Integrar y hacer compatibles todos los aplicativos de transición con SIUGJ, para que la migración de los expedientes judiciales a dicha plataforma sea real y no suponga afectaciones en la prestación del servicio de justicia.",null,"Apoyo","Admin - Gestión Tecnológica","Seccional","Implementación del Sistema Integrado Único de Gestión Judicial (SIUGJ)","Entregable",12,"Cantidad despachos","Carlos Andrés Chavarro ","Reporte de procesos migrados ","2023-01-01","2023-12-31",{"$f":"IFERROR(GESTION_SEG_1_TRIM!H66,\" \")","v":0},0,{"$f":"_xlfn.CONCAT(\"Trimestre 1\",CHAR(10),IFERROR(GESTION_SEG_1_TRIM!J66,\" \"))","v":"Trimestre 1\n"},{"$f":"_xlfn.CONCAT(\"Trimestre 1\",CHAR(10),IFERROR(GESTION_SEG_1_TRIM!K66,\" \"))","v":"Trimestre 1\n"}]
[null,null,null,null,"Estratégicos","Admin - Comunicación Institucional","Seccional","Apoyo seccional a la realización de Audiencias Virtuales y utilización de Herramientas colaborativas","Entregable",null,null,"Enlace del proceso de Comunicación Institucional","Audiencias virtuales realizadas","2023-01-01","2023-12-31",{"$f":"IFERROR(GESTION_SEG_1_TRIM!H67,\" \")","v":0},"",{"$f":"_xlfn.CONCAT(\"Trimestre 1\",CHAR(10),IFERROR(GESTION_SEG_1_TRIM!J67,\" \"))","v":"Trimestre 1\n"},{"$f":"_xlfn.CONCAT(\"Trimestre 1\",CHAR(10),IFERROR(GESTION_SEG_1_TRIM!K67,\" \"))","v":"Trimestre 1\nDurante el primer trimestre se realizaron 5686 audiencias virtuales a través de la plataforma LifeSize"}]
[null,null,null,null,null,null,null,null,null,null,null,null,null,null,null,{"$f":"IFERROR(GESTION_SEG_1_TRIM!H68,\" \")","v":0},null,{"$f":"_xlfn.CONCAT(\"Trimestre 1\",CHAR(10),IFERROR(GESTION_SEG_1_TRIM!J68,\" \"))","v":"Trimestre 1\n"},{"$f":"_xlfn.CONCAT(\"Trimestre 1\",CHAR(10),IFERROR(GESTION_SEG_1_TRIM!K68,\" \"))","v":"Trimestre 1\n"}]
[null,null,null,null,null,null,null,null,null,null,null,null,null,null,null,{"$f":"IFERROR(GESTION_SEG_1_TRIM!H69,\" \")","v":0},null,{"$f":"_xlfn.CONCAT(\"Trimestre 1\",CHAR(10),IFERROR(GESTION_SEG_1_TRIM!J69,\" \"))","v":"Trimestre 1\n"},{"$f":"_xlfn.CONCAT(\"Trimestre 1\",CHAR(10),IFERROR(GESTION_SEG_1_TRIM!K69,\" \"))","v":"Trimestre 1\n"}]
[null,null,null,null,null,null,null,null,null,null,null,null,null,null,null,{"$f":"IFERROR(GESTION_SEG_1_TRIM!H70,\" \")","v":0},null,{"$f":"_xlfn.CONCAT(\"Trimestre 1\",CHAR(10),IFERROR(GESTION_SEG_1_TRIM!J70,\" \"))","v":"Trimestre 1\n"},{"$f":"_xlfn.CONCAT(\"Trimestre 1\",CHAR(10),IFERROR(GESTION_SEG_1_TRIM!K70,\" \"))","v":"Trimestre 1\n"}]
[null,null,null,null,null,null,null,null,null,null,null,null,null,null,null,{"$f":"IFERROR(GESTION_SEG_1_TRIM!H71,\" \")","v":0},null,{"$f":"_xlfn.CONCAT(\"Trimestre 1\",CHAR(10),IFERROR(GESTION_SEG_1_TRIM!J71,\" \"))","v":"Trimestre 1\n"},{"$f":"_xlfn.CONCAT(\"Trimestre 1\",CHAR(10),IFERROR(GESTION_SEG_1_TRIM!K71,\" \"))","v":"Trimestre 1\n"}]
[null,null,null,null,null,null,null,null,null,null,null,null,null,null,null,{"$f":"IFERROR(GESTION_SEG_1_TRIM!H72,\" \")","v":0},null,{"$f":"_xlfn.CONCAT(\"Trimestre 1\",CHAR(10),IFERROR(GESTION_SEG_1_TRIM!J72,\" \"))","v":"Trimestre 1\n"},{"$f":"_xlfn.CONCAT(\"Trimestre 1\",CHAR(10),IFERROR(GESTION_SEG_1_TRIM!K72,\" \"))","v":"Trimestre 1\n"}]
[null,null,null,null,null,null,null,null,null,null,null,null,null,null,null,{"$f":"IFERROR(GESTION_SEG_1_TRIM!H73,\" \")","v":0},{"$f":"IFERROR(P73/J73,\"\")","v":""},{"$f":"_xlfn.CONCAT(\"Trimestre 1\",CHAR(10),IFERROR(GESTION_SEG_1_TRIM!J73,\" \"))","v":"Trimestre 1\n"},{"$f":"_xlfn.CONCAT(\"Trimestre 1\",CHAR(10),IFERROR(GESTION_SEG_1_TRIM!K73,\" \"))","v":"Trimestre 1\n"}]
[null,null,null,null,null,null,null,null,null,null,null,null,null,null,null,{"$f":"IFERROR(GESTION_SEG_1_TRIM!H74,\" \")","v":0},"",{"$f":"_xlfn.CONCAT(\"Trimestre 1\",CHAR(10),IFERROR(GESTION_SEG_1_TRIM!J74,\" \"))","v":"Trimestre 1\n"},{"$f":"_xlfn.CONCAT(\"Trimestre 1\",CHAR(10),IFERROR(GESTION_SEG_1_TRIM!K74,\" \"))","v":"Trimestre 1\n"}]
[null,null,null,null,null,null,null,null,null,null,null,null,null,null,null,{"$f":"IFERROR(GESTION_SEG_1_TRIM!H75,\" \")","v":0},"",{"$f":"_xlfn.CONCAT(\"Trimestre 1\",CHAR(10),IFERROR(GESTION_SEG_1_TRIM!J75,\" \"))","v":"Trimestre 1\n"},{"$f":"_xlfn.CONCAT(\"Trimestre 1\",CHAR(10),IFERROR(GESTION_SEG_1_TRIM!K75,\" \"))","v":"Trimestre 1\n"}]
[null,null,"3. Fortalecer las capacidades institucionales, adecuar el modelo operativo y de servicio, bajo un enfoque de Arquitectura Empresarial y de fortalecimiento del acceso a la justicia.",null,"Apoyo","Admin - Gestión Documental","Seccional","Proyecto de contratación de empresa que administre el proceso de archivo y de la Gestión Documental de la Dirección Seccional ","Entregable",null,null,"Coordinador Oficina Judicial","Proyecto de contratación a empresa ","2023-01-04","2023-01-12",{"$f":"IFERROR(GESTION_SEG_1_TRIM!H76,\" \")","v":0},"",{"$f":"_xlfn.CONCAT(\"Trimestre 1\",CHAR(10),IFERROR(GESTION_SEG_1_TRIM!J76,\" \"))","v":"Trimestre 1\n"},{"$f":"_xlfn.CONCAT(\"Trimestre 1\",CHAR(10),IFERROR(GESTION_SEG_1_TRIM!K76,\" \"))","v":"Trimestre 1\nEn el primer trimestre se realizó montaje de proyecto y se presentó a la Dirección Seccional de Administración de Justicia, ya fue incluido dentro de los presupuestos solicitados por el área Financiera."}]
[null,null,null,null,null,null,null,null,null,null,null,null,null,null,null,{"$f":"IFERROR(GESTION_SEG_1_TRIM!H77,\" \")","v":0},"",{"$f":"_xlfn.CONCAT(\"Trimestre 1\",CHAR(10),IFERROR(GESTION_SEG_1_TRIM!J77,\" \"))","v":"Trimestre 1\n"},{"$f":"_xlfn.CONCAT(\"Trimestre 1\",CHAR(10),IFERROR(GESTION_SEG_1_TRIM!K77,\" \"))","v":"Trimestre 1\n"}]
[null,null,null,null,null,null,null,null,null,null,null,null,null,null,null,{"$f":"IFERROR(GESTION_SEG_1_TRIM!H78,\" \")","v":0},null,{"$f":"_xlfn.CONCAT(\"Trimestre 1\",CHAR(10),IFERROR(GESTION_SEG_1_TRIM!J78,\" \"))","v":"Trimestre 1\n"},{"$f":"_xlfn.CONCAT(\"Trimestre 1\",CHAR(10),IFERROR(GESTION_SEG_1_TRIM!K78,\" \"))","v":"Trimestre 1\n"}]
[null,null,null,null,null,null,null,null,null,null,null,null,null,null,null,{"$f":"IFERROR(GESTION_SEG_1_TRIM!H79,\" \")","v":0},null,{"$f":"_xlfn.CONCAT(\"Trimestre 1\",CHAR(10),IFERROR(GESTION_SEG_1_TRIM!J79,\" \"))","v":"Trimestre 1\n"},{"$f":"_xlfn.CONCAT(\"Trimestre 1\",CHAR(10),IFERROR(GESTION_SEG_1_TRIM!K79,\" \"))","v":"Trimestre 1\n"}]
[null,null,null,null,null,null,null,null,null,null,null,null,null,null,null,{"$f":"IFERROR(GESTION_SEG_1_TRIM!H80,\" \")","v":0},null,{"$f":"_xlfn.CONCAT(\"Trimestre 1\",CHAR(10),IFERROR(GESTION_SEG_1_TRIM!J80,\" \"))","v":"Trimestre 1\n"},{"$f":"_xlfn.CONCAT(\"Trimestre 1\",CHAR(10),IFERROR(GESTION_SEG_1_TRIM!K80,\" \"))","v":"Trimestre 1\n"}]
[null,null,null,null,null,null,null,null,null,null,null,null,null,null,null,{"$f":"IFERROR(GESTION_SEG_1_TRIM!H81,\" \")","v":0},null,{"$f":"_xlfn.CONCAT(\"Trimestre 1\",CHAR(10),IFERROR(GESTION_SEG_1_TRIM!J81,\" \"))","v":"Trimestre 1\n"},{"$f":"_xlfn.CONCAT(\"Trimestre 1\",CHAR(10),IFERROR(GESTION_SEG_1_TRIM!K81,\" \"))","v":"Trimestre 1\n"}]
[null,null,null,null,null,null,null,null,null,null,null,null,null,null,null,{"$f":"IFERROR(GESTION_SEG_1_TRIM!H82,\" \")","v":0},null,{"$f":"_xlfn.CONCAT(\"Trimestre 1\",CHAR(10),IFERROR(GESTION_SEG_1_TRIM!J82,\" \"))","v":"Trimestre 1\n"},{"$f":"_xlfn.CONCAT(\"Trimestre 1\",CHAR(10),IFERROR(GESTION_SEG_1_TRIM!K82,\" \"))","v":"Trimestre 1\n"}]
[null,null,null,null,null,null,null,null,null,null,null,null,null,null,null,{"$f":"IFERROR(GESTION_SEG_1_TRIM!H83,\" \")","v":0},"",{"$f":"_xlfn.CONCAT(\"Trimestre 1\",CHAR(10),IFERROR(GESTION_SEG_1_TRIM!J83,\" \"))","v":"Trimestre 1\n"},{"$f":"_xlfn.CONCAT(\"Trimestre 1\",CHAR(10),IFERROR(GESTION_SEG_1_TRIM!K83,\" \"))","v":"Trimestre 1\n"}]
[null,null,null,null,null,null,null,null,null,null,null,null,null,null,null,{"$f":"IFERROR(GESTION_SEG_1_TRIM!H84,\" \")","v":0},"",{"$f":"_xlfn.CONCAT(\"Trimestre 1\",CHAR(10),IFERROR(GESTION_SEG_1_TRIM!J84,\" \"))","v":"Trimestre 1\n"},{"$f":"_xlfn.CONCAT(\"Trimestre 1\",CHAR(10),IFERROR(GESTION_SEG_1_TRIM!K84,\" \"))","v":"Trimestre 1\n"}]
[null,null,null,null,null,null,null,null,null,null,null,null,null,null,null,{"$f":"IFERROR(GESTION_SEG_1_TRIM!H85,\" \")","v":0},"",{"$f":"_xlfn.CONCAT(\"Trimestre 1\",CHAR(10),IFERROR(GESTION_SEG_1_TRIM!J85,\" \"))","v":"Trimestre 1\n"},{"$f":"_xlfn.CONCAT(\"Trimestre 1\",CHAR(10),IFERROR(GESTION_SEG_1_TRIM!K85,\" \"))","v":"Trimestre 1\n"}]
[null,null,"4.Consolidar la cultura y apropiación de la transformación digital en los servidores y usuarios de los servicios de la Rama Judicial y reducir brechas de acceso y conocimiento, incluyendo la oferta efectiva de información sobre el uso de las nuevas herramientas virtuales implementadas en las diferentes jurisdicciones, con especial énfasis en las zonas del país donde es evidente la brecha digital.",null,null,null,null,null,null,null,null,null,null,null,null,{"$f":"IFERROR(GESTION_SEG_1_TRIM!H86,\" \")","v":0},"",{"$f":"_xlfn.CONCAT(\"Trimestre 1\",CHAR(10),IFERROR(GESTION_SEG_1_TRIM!J86,\" \"))","v":"Trimestre 1\n"},{"$f":"_xlfn.CONCAT(\"Trimestre 1\",CHAR(10),IFERROR(GESTION_SEG_1_TRIM!K86,\" \"))","v":"Trimestre 1\n"}]
[null,null,null,null,null,null,null,null,null,null,null,null,null,null,null,{"$f":"IFERROR(GESTION_SEG_1_TRIM!H87,\" \")","v":0},"",{"$f":"_xlfn.CONCAT(\"Trimestre 1\",CHAR(10),IFERROR(GESTION_SEG_1_TRIM!J87,\" \"))","v":"Trimestre 1\n"},{"$f":"_xlfn.CONCAT(\"Trimestre 1\",CHAR(10),IFERROR(GESTION_SEG_1_TRIM!K87,\" \"))","v":"Trimestre 1\n"}]
[null,null,null,null,null,null,null,null,null,null,null,null,null,null,null,{"$f":"IFERROR(GESTION_SEG_1_TRIM!H88,\" \")","v":0},null,{"$f":"_xlfn.CONCAT(\"Trimestre 1\",CHAR(10),IFERROR(GESTION_SEG_1_TRIM!J88,\" \"))","v":"Trimestre 1\n"},{"$f":"_xlfn.CONCAT(\"Trimestre 1\",CHAR(10),IFERROR(GESTION_SEG_1_TRIM!K88,\" \"))","v":"Trimestre 1\n"}]
[null,null,null,null,null,null,null,null,null,null,null,null,null,null,null,{"$f":"IFERROR(GESTION_SEG_1_TRIM!H89,\" \")","v":0},null,{"$f":"_xlfn.CONCAT(\"Trimestre 1\",CHAR(10),IFERROR(GESTION_SEG_1_TRIM!J89,\" \"))","v":"Trimestre 1\n"},{"$f":"_xlfn.CONCAT(\"Trimestre 1\",CHAR(10),IFERROR(GESTION_SEG_1_TRIM!K89,\" \"))","v":"Trimestre 1\n"}]
[null,null,null,null,null,null,null,null,null,null,null,null,null,null,null,{"$f":"IFERROR(GESTION_SEG_1_TRIM!H90,\" \")","v":0},null,{"$f":"_xlfn.CONCAT(\"Trimestre 1\",CHAR(10),IFERROR(GESTION_SEG_1_TRIM!J90,\" \"))","v":"Trimestre 1\n"},{"$f":"_xlfn.CONCAT(\"Trimestre 1\",CHAR(10),IFERROR(GESTION_SEG_1_TRIM!K90,\" \"))","v":"Trimestre 1\n"}]
[null,null,null,null,null,null,null,null,null,null,null,null,null,null,null,{"$f":"IFERROR(GESTION_SEG_1_TRIM!H91,\" \")","v":0},null,{"$f":"_xlfn.CONCAT(\"Trimestre 1\",CHAR(10),IFERROR(GESTION_SEG_1_TRIM!J91,\" \"))","v":"Trimestre 1\n"},{"$f":"_xlfn.CONCAT(\"Trimestre 1\",CHAR(10),IFERROR(GESTION_SEG_1_TRIM!K91,\" \"))","v":"Trimestre 1\n"}]
[null,null,null,null,null,null,null,null,null,null,null,null,null,null,null,{"$f":"IFERROR(GESTION_SEG_1_TRIM!H92,\" \")","v":0},null,{"$f":"_xlfn.CONCAT(\"Trimestre 1\",CHAR(10),IFERROR(GESTION_SEG_1_TRIM!J92,\" \"))","v":"Trimestre 1\n"},{"$f":"_xlfn.CONCAT(\"Trimestre 1\",CHAR(10),IFERROR(GESTION_SEG_1_TRIM!K92,\" \"))","v":"Trimestre 1\n"}]
[null,null,null,null,null,null,null,null,null,null,null,null,null,null,null,{"$f":"IFERROR(GESTION_SEG_1_TRIM!H93,\" \")","v":0},"",{"$f":"_xlfn.CONCAT(\"Trimestre 1\",CHAR(10),IFERROR(GESTION_SEG_1_TRIM!J93,\" \"))","v":"Trimestre 1\n"},{"$f":"_xlfn.CONCAT(\"Trimestre 1\",CHAR(10),IFERROR(GESTION_SEG_1_TRIM!K93,\" \"))","v":"Trimestre 1\n"}]
[null,null,null,null,null,null,null,null,null,null,null,null,null,null,null,{"$f":"IFERROR(GESTION_SEG_1_TRIM!H94,\" \")","v":0},"",{"$f":"_xlfn.CONCAT(\"Trimestre 1\",CHAR(10),IFERROR(GESTION_SEG_1_TRIM!J94,\" \"))","v":"Trimestre 1\n"},{"$f":"_xlfn.CONCAT(\"Trimestre 1\",CHAR(10),IFERROR(GESTION_SEG_1_TRIM!K94,\" \"))","v":"Trimestre 1\n"}]
[null,null,null,null,null,null,null,null,null,null,null,null,null,null,null,{"$f":"IFERROR(GESTION_SEG_1_TRIM!H95,\" \")","v":0},"",{"$f":"_xlfn.CONCAT(\"Trimestre 1\",CHAR(10),IFERROR(GESTION_SEG_1_TRIM!J95,\" \"))","v":"Trimestre 1\n"},{"$f":"_xlfn.CONCAT(\"Trimestre 1\",CHAR(10),IFERROR(GESTION_SEG_1_TRIM!K95,\" \"))","v":"Trimestre 1\n"}]
[null,null,"5.Consolidar la infraestructura y los recursos necesarios para la implementación exitosa de la transformación digital, incluyendo la disposición de internet de calidad en el 100% de las sedes en la Rama Judicial y modernizar los servicios tecnológicos de soporte. ",null,"Misionales","Admin - Reordenamiento Judicial","Seccional","Aplicación de las Tablas de Retención Documental ","Entregable",null,null,"Magistrada Beatriz Eugenia Ángel Vélez","Documentación archivado cumpliendo los lineamientos de las TRD","2023-01-01","2023-12-31",{"$f":"IFERROR(GESTION_SEG_1_TRIM!H96,\" \")","v":0},"",{"$f":"_xlfn.CONCAT(\"Trimestre 1\",CHAR(10),IFERROR(GESTION_SEG_1_TRIM!J96,\" \"))","v":"Trimestre 1\n"},{"$f":"_xlfn.CONCAT(\"Trimestre 1\",CHAR(10),IFERROR(GESTION_SEG_1_TRIM!K96,\" \"))","v":"Trimestre 1\n"}]
[null,null,null,null,"Apoyo","Admin - Gestión Tecnológica","Seccional","Modernización del cableado de red de las sedes judiciales Palacio de Justicia de Pereira y Centro Administrativo Municipal Dosquebradas ","Meta cuantificable",2,"Sedes judiciales con cableado nuevo","Carlos Andrés Chavarro ","Sedes Judiciales con cableado nuevo","2023-01-01","2023-12-31",{"$f":"IFERROR(GESTION_SEG_1_TRIM!H97,\" \")","v":0},0,{"$f":"_xlfn.CONCAT(\"Trimestre 1\",CHAR(10),IFERROR(GESTION_SEG_1_TRIM!J97,\" \"))","v":"Trimestre 1\n"},{"$f":"_xlfn.CONCAT(\"Trimestre 1\",CHAR(10),IFERROR(GESTION_SEG_1_TRIM!K97,\" \"))","v":"Trimestre 1\n"}]
[null,null,null,null,null,null,null,null,null,null,null,null,null,null,null,{"$f":"IFERROR(GESTION_SEG_1_TRIM!H98,\" \")","v":0},null,{"$f":"_xlfn.CONCAT(\"Trimestre 1\",CHAR(10),IFERROR(GESTION_SEG_1_TRIM!J98,\" \"))","v":"Trimestre 1\n"},{"$f":"_xlfn.CONCAT(\"Trimestre 1\",CHAR(10),IFERROR(GESTION_SEG_1_TRIM!K98,\" \"))","v":"Trimestre 1\n"}]
[null,null,null,null,null,null,null,null,null,null,null,null,null,null,null,{"$f":"IFERROR(GESTION_SEG_1_TRIM!H99,\" \")","v":0},null,{"$f":"_xlfn.CONCAT(\"Trimestre 1\",CHAR(10),IFERROR(GESTION_SEG_1_TRIM!J99,\" \"))","v":"Trimestre 1\n"},{"$f":"_xlfn.CONCAT(\"Trimestre 1\",CHAR(10),IFERROR(GESTION_SEG_1_TRIM!K99,\" \"))","v":"Trimestre 1\n"}]
[null,null,null,null,null,null,null,null,null,null,null,null,null,null,null,{"$f":"IFERROR(GESTION_SEG_1_TRIM!H100,\" \")","v":0},null,{"$f":"_xlfn.CONCAT(\"Trimestre 1\",CHAR(10),IFERROR(GESTION_SEG_1_TRIM!J100,\" \"))","v":"Trimestre 1\n"},{"$f":"_xlfn.CONCAT(\"Trimestre 1\",CHAR(10),IFERROR(GESTION_SEG_1_TRIM!K100,\" \"))","v":"Trimestre 1\n"}]
[null,null,null,null,"Estratégicos","Admin - Comunicación Institucional","Seccional","Invitación a los servidores judiciales a vincularse a las capacitaciones orientadas por la Escuela Judicial Rodrigo Lara Bonilla","Entregable",null,null,"Enlace del proceso de Comunicación Institucional","Correos electrónicos enviados\n\nCarpeta de comunicaciones enviadas ","2023-01-01","2023-12-31",{"$f":"IFERROR(GESTION_SEG_1_TRIM!H101,\" \")","v":0},null,{"$f":"_xlfn.CONCAT(\"Trimestre 1\",CHAR(10),IFERROR(GESTION_SEG_1_TRIM!J101,\" \"))","v":"Trimestre 1\n"},{"$f":"_xlfn.CONCAT(\"Trimestre 1\",CHAR(10),IFERROR(GESTION_SEG_1_TRIM!K101,\" \"))","v":"Trimestre 1\n"}]
[null,null,null,null,null,null,null,null,null,null,null,null,null,null,null,{"$f":"IFERROR(GESTION_SEG_1_TRIM!H102,\" \")","v":0},null,{"$f":"_xlfn.CONCAT(\"Trimestre 1\",CHAR(10),IFERROR(GESTION_SEG_1_TRIM!J102,\" \"))","v":"Trimestre 1\n"},{"$f":"_xlfn.CONCAT(\"Trimestre 1\",CHAR(10),IFERROR(GESTION_SEG_1_TRIM!K102,\" \"))","v":"Trimestre 1\n"}]
[null,null,null,null,null,null,null,null,null,null,null,null,null,null,null,{"$f":"IFERROR(GESTION_SEG_1_TRIM!H103,\" \")","v":0},"",{"$f":"_xlfn.CONCAT(\"Trimestre 1\",CHAR(10),IFERROR(GESTION_SEG_1_TRIM!J103,\" \"))","v":"Trimestre 1\n"},{"$f":"_xlfn.CONCAT(\"Trimestre 1\",CHAR(10),IFERROR(GESTION_SEG_1_TRIM!K103,\" \"))","v":"Trimestre 1\n"}]
[null,null,null,null,null,null,null,null,null,null,null,null,null,null,null,{"$f":"IFERROR(GESTION_SEG_1_TRIM!H104,\" \")","v":0},"",{"$f":"_xlfn.CONCAT(\"Trimestre 1\",CHAR(10),IFERROR(GESTION_SEG_1_TRIM!J104,\" \"))","v":"Trimestre 1\n"},{"$f":"_xlfn.CONCAT(\"Trimestre 1\",CHAR(10),IFERROR(GESTION_SEG_1_TRIM!K104,\" \"))","v":"Trimestre 1\n"}]
[null,null,null,null,null,null,null,null,null,null,null,null,null,null,null,{"$f":"IFERROR(GESTION_SEG_1_TRIM!H105,\" \")","v":0},"",{"$f":"_xlfn.CONCAT(\"Trimestre 1\",CHAR(10),IFERROR(GESTION_SEG_1_TRIM!J105,\" \"))","v":"Trimestre 1\n"},{"$f":"_xlfn.CONCAT(\"Trimestre 1\",CHAR(10),IFERROR(GESTION_SEG_1_TRIM!K105,\" \"))","v":"Trimestre 1\n"}]
[null,null,"6.Integrar y optimizar los servicios administrativos de la Rama Judicial bajo un enfoque de transformación digital e innovación incluyendo los componentes financiero, administrativo, talento humano, entre otros",null,"Apoyo","Admin - Gestión Documental","Seccional","Revisión y acompañamiento implementación Programa Gestión Documental y aplicación TRD.","Entregable",null,null,"Coordinador Oficina Judicial"," - Informe de revisión de las TRD al recepcionar cajas de expedientes y documentos de ingreso al Archivo Central\n - FUID diligenciado de los documentos recibidos\n - Base de datos de los expedientes recibidos.\n - Envío copia al despacho productor.","2023-01-01","2023-01-12",{"$f":"IFERROR(GESTION_SEG_1_TRIM!H106,\" \")","v":0},"",{"$f":"_xlfn.CONCAT(\"Trimestre 1\",CHAR(10),IFERROR(GESTION_SEG_1_TRIM!J106,\" \"))","v":"Trimestre 1\n"},{"$f":"_xlfn.CONCAT(\"Trimestre 1\",CHAR(10),IFERROR(GESTION_SEG_1_TRIM!K106,\" \"))","v":"Trimestre 1\nEn el primer trimestre se recibieron 2465 procesos (Actas de transferencia) "}]
[null,null,null,null,"Apoyo","Admin - Gestión Humana","Seccional","E1\nActualización del archivo conforme a las TRD del proceso Talento Humano y todos sus procedimientos","Entregable",null,null,"Mario Vanegas","Reporte de hojas de vida archivadas","2023-01-01","2023-12-31",{"$f":"IFERROR(GESTION_SEG_1_TRIM!H107,\" \")","v":0},null,{"$f":"_xlfn.CONCAT(\"Trimestre 1\",CHAR(10),IFERROR(GESTION_SEG_1_TRIM!J107,\" \"))","v":"Trimestre 1\n"},{"$f":"_xlfn.CONCAT(\"Trimestre 1\",CHAR(10),IFERROR(GESTION_SEG_1_TRIM!K107,\" \"))","v":"Trimestre 1\nEn el primer trimestre se actualizaron 300 hojas de vida de los Servidores Judiciales activos, conforme a las TRD vigentes"}]
[null,null,null,null,"Apoyo","Admin - Gestión Humana","Seccional","E3\nDigitalización de hojas de vida de personal inactivo","Entregable",null,null,"Mario Vanegas","Reporte de hijas de vida de personal inactivo digitalizadas","2023-01-01","2023-12-31",{"$f":"IFERROR(GESTION_SEG_1_TRIM!H108,\" \")","v":0},null,{"$f":"_xlfn.CONCAT(\"Trimestre 1\",CHAR(10),IFERROR(GESTION_SEG_1_TRIM!J108,\" \"))","v":"Trimestre 1\n"},{"$f":"_xlfn.CONCAT(\"Trimestre 1\",CHAR(10),IFERROR(GESTION_SEG_1_TRIM!K108,\" \"))","v":"Trimestre 1\n"}]
[null,null,null,null,null,null,null,null,null,null,null,null,null,null,null,{"$f":"IFERROR(GESTION_SEG_1_TRIM!H109,\" \")","v":0},null,{"$f":"_xlfn.CONCAT(\"Trimestre 1\",CHAR(10),IFERROR(GESTION_SEG_1_TRIM!J109,\" \"))","v":"Trimestre 1\n"},{"$f":"_xlfn.CONCAT(\"Trimestre 1\",CHAR(10),IFERROR(GESTION_SEG_1_TRIM!K109,\" \"))","v":"Trimestre 1\n"}]
[null,null,null,null,null,null,null,null,null,null,null,null,null,null,null,{"$f":"IFERROR(GESTION_SEG_1_TRIM!H110,\" \")","v":0},null,{"$f":"_xlfn.CONCAT(\"Trimestre 1\",CHAR(10),IFERROR(GESTION_SEG_1_TRIM!J110,\" \"))","v":"Trimestre 1\n"},{"$f":"_xlfn.CONCAT(\"Trimestre 1\",CHAR(10),IFERROR(GESTION_SEG_1_TRIM!K110,\" \"))","v":"Trimestre 1\n"}]
[null,null,null,null,null,null,null,null,null,null,null,null,null,null,null,{"$f":"IFERROR(GESTION_SEG_1_TRIM!H111,\" \")","v":0},null,{"$f":"_xlfn.CONCAT(\"Trimestre 1\",CHAR(10),IFERROR(GESTION_SEG_1_TRIM!J111,\" \"))","v":"Trimestre 1\n"},{"$f":"_xlfn.CONCAT(\"Trimestre 1\",CHAR(10),IFERROR(GESTION_SEG_1_TRIM!K111,\" \"))","v":"Trimestre 1\n"}]
[null,null,null,null,null,null,null,null,null,null,null,null,null,null,null,{"$f":"IFERROR(GESTION_SEG_1_TRIM!H112,\" \")","v":0},"",{"$f":"_xlfn.CONCAT(\"Trimestre 1\",CHAR(10),IFERROR(GESTION_SEG_1_TRIM!J112,\" \"))","v":"Trimestre 1\n"},{"$f":"_xlfn.CONCAT(\"Trimestre 1\",CHAR(10),IFERROR(GESTION_SEG_1_TRIM!K112,\" \"))","v":"Trimestre 1\n"}]
[null,null,null,null,null,null,null,null,null,null,null,null,null,null,null,{"$f":"IFERROR(GESTION_SEG_1_TRIM!H113,\" \")","v":0},"",{"$f":"_xlfn.CONCAT(\"Trimestre 1\",CHAR(10),IFERROR(GESTION_SEG_1_TRIM!J113,\" \"))","v":"Trimestre 1\n"},{"$f":"_xlfn.CONCAT(\"Trimestre 1\",CHAR(10),IFERROR(GESTION_SEG_1_TRIM!K113,\" \"))","v":"Trimestre 1\n"}]
[null,null,null,null,null,null,null,null,null,null,null,null,null,null,null,{"$f":"IFERROR(GESTION_SEG_1_TRIM!H114,\" \")","v":0},"",{"$f":"_xlfn.CONCAT(\"Trimestre 1\",CHAR(10),IFERROR(GESTION_SEG_1_TRIM!J114,\" \"))","v":"Trimestre 1\n"},{"$f":"_xlfn.CONCAT(\"Trimestre 1\",CHAR(10),IFERROR(GESTION_SEG_1_TRIM!K114,\" \"))","v":"Trimestre 1\n"}]
[null,null,null,null,null,null,null,null,null,null,null,null,null,null,null,{"$f":"IFERROR(GESTION_SEG_1_TRIM!H115,\" \")","v":0},"",{"$f":"_xlfn.CONCAT(\"Trimestre 1\",CHAR(10),IFERROR(GESTION_SEG_1_TRIM!J115,\" \"))","v":"Trimestre 1\n"},{"$f":"_xlfn.CONCAT(\"Trimestre 1\",CHAR(10),IFERROR(GESTION_SEG_1_TRIM!K115,\" \"))","v":"Trimestre 1\n"}]
["3. Confianza pública, transparencia y rendición de cuentas","Confianza pública, transparencia y rendición de cuentas: Aumentar la confianza pública en la justicia a través de la transparencia, la rendición de cuentas y la participación, incluyendo la información de justicia y la producción, gestión y acceso a las fuentes de derecho, el fortalecimiento del sistema de gestión de calidad y medio ambiente (SIGCMA) y el mejoramiento de la calidad y publicidad de la información. ","1. Incrementar la cantidad, la calidad y pertinencia de los datos sobre el funcionamiento del servicio de justicia bajo un modelo de gobierno de datos y un liderazgo unificado. ","4. Hacer un uso racional de los recursos naturales aplicando los principios y fases de la Economía Circular, para prevenir, mitigar y controlar los impactos ambientales.","Apoyo","Admin - Gestión de la Información Estadística","Seccional","Reporte oportuno y veráz de la informacion estadistica de la gestion de los despachos del distrito","Meta cuantificable",456,"Cantidad de reportes por despacho ( 114 despachoos* 4 reportes anuales = 456)","Beatriz Eugenia Ángel Vélez","Reportes Estadísticos","2023-01-01","2023-12-31",{"$f":"IFERROR(GESTION_SEG_1_TRIM!H116,\" \")","v":0},0,{"$f":"_xlfn.CONCAT(\"Trimestre 1\",CHAR(10),IFERROR(GESTION_SEG_1_TRIM!J116,\" \"))","v":"Trimestre 1\n"},{"$f":"_xlfn.CONCAT(\"Trimestre 1\",CHAR(10),IFERROR(GESTION_SEG_1_TRIM!K116,\" \"))","v":"Trimestre 1\nEn el primer trimestre los 114 despchos presentan el reportede la estadística de gestión."}]
[null,null,null,null,null,null,null,null,null,null,null,null,null,null,null,{"$f":"IFERROR(GESTION_SEG_1_TRIM!H117,\" \")","v":0},"",{"$f":"_xlfn.CONCAT(\"Trimestre 1\",CHAR(10),IFERROR(GESTION_SEG_1_TRIM!J117,\" \"))","v":"Trimestre 1\n"},{"$f":"_xlfn.CONCAT(\"Trimestre 1\",CHAR(10),IFERROR(GESTION_SEG_1_TRIM!K117,\" \"))","v":"Trimestre 1\n"}]
[null,null,null,null,null,null,null,null,null,null,null,null,null,null,null,{"$f":"IFERROR(GESTION_SEG_1_TRIM!H118,\" \")","v":0},null,{"$f":"_xlfn.CONCAT(\"Trimestre 1\",CHAR(10),IFERROR(GESTION_SEG_1_TRIM!J118,\" \"))","v":"Trimestre 1\n"},{"$f":"_xlfn.CONCAT(\"Trimestre 1\",CHAR(10),IFERROR(GESTION_SEG_1_TRIM!K118,\" \"))","v":"Trimestre 1\n"}]
[null,null,null,null,null,null,null,null,null,null,null,null,null,null,null,{"$f":"IFERROR(GESTION_SEG_1_TRIM!H119,\" \")","v":0},null,{"$f":"_xlfn.CONCAT(\"Trimestre 1\",CHAR(10),IFERROR(GESTION_SEG_1_TRIM!J119,\" \"))","v":"Trimestre 1\n"},{"$f":"_xlfn.CONCAT(\"Trimestre 1\",CHAR(10),IFERROR(GESTION_SEG_1_TRIM!K119,\" \"))","v":"Trimestre 1\n"}]
[null,null,null,null,null,null,null,null,null,null,null,null,null,null,null,{"$f":"IFERROR(GESTION_SEG_1_TRIM!H120,\" \")","v":0},null,{"$f":"_xlfn.CONCAT(\"Trimestre 1\",CHAR(10),IFERROR(GESTION_SEG_1_TRIM!J120,\" \"))","v":"Trimestre 1\n"},{"$f":"_xlfn.CONCAT(\"Trimestre 1\",CHAR(10),IFERROR(GESTION_SEG_1_TRIM!K120,\" \"))","v":"Trimestre 1\n"}]
[null,null,null,null,null,null,null,null,null,null,null,null,null,null,null,{"$f":"IFERROR(GESTION_SEG_1_TRIM!H121,\" \")","v":0},null,{"$f":"_xlfn.CONCAT(\"Trimestre 1\",CHAR(10),IFERROR(GESTION_SEG_1_TRIM!J121,\" \"))","v":"Trimestre 1\n"},{"$f":"_xlfn.CONCAT(\"Trimestre 1\",CHAR(10),IFERROR(GESTION_SEG_1_TRIM!K121,\" \"))","v":"Trimestre 1\n"}]
[null,null,null,null,null,null,null,null,null,null,null,null,null,null,null,{"$f":"IFERROR(GESTION_SEG_1_TRIM!H122,\" \")","v":0},null,{"$f":"_xlfn.CONCAT(\"Trimestre 1\",CHAR(10),IFERROR(GESTION_SEG_1_TRIM!J122,\" \"))","v":"Trimestre 1\n"},{"$f":"_xlfn.CONCAT(\"Trimestre 1\",CHAR(10),IFERROR(GESTION_SEG_1_TRIM!K122,\" \"))","v":"Trimestre 1\n"}]
[null,null,null,null,null,null,null,null,null,null,null,null,null,null,null,{"$f":"IFERROR(GESTION_SEG_1_TRIM!H123,\" \")","v":0},"",{"$f":"_xlfn.CONCAT(\"Trimestre 1\",CHAR(10),IFERROR(GESTION_SEG_1_TRIM!J123,\" \"))","v":"Trimestre 1\n"},{"$f":"_xlfn.CONCAT(\"Trimestre 1\",CHAR(10),IFERROR(GESTION_SEG_1_TRIM!K123,\" \"))","v":"Trimestre 1\n"}]
[null,null,null,null,null,null,null,null,null,null,null,null,null,null,null,{"$f":"IFERROR(GESTION_SEG_1_TRIM!H124,\" \")","v":0},"",{"$f":"_xlfn.CONCAT(\"Trimestre 1\",CHAR(10),IFERROR(GESTION_SEG_1_TRIM!J124,\" \"))","v":"Trimestre 1\n"},{"$f":"_xlfn.CONCAT(\"Trimestre 1\",CHAR(10),IFERROR(GESTION_SEG_1_TRIM!K124,\" \"))","v":"Trimestre 1\n"}]
[null,null,null,null,null,null,null,null,null,null,null,null,null,null,null,{"$f":"IFERROR(GESTION_SEG_1_TRIM!H125,\" \")","v":0},"",{"$f":"_xlfn.CONCAT(\"Trimestre 1\",CHAR(10),IFERROR(GESTION_SEG_1_TRIM!J125,\" \"))","v":"Trimestre 1\n"},{"$f":"_xlfn.CONCAT(\"Trimestre 1\",CHAR(10),IFERROR(GESTION_SEG_1_TRIM!K125,\" \"))","v":"Trimestre 1\n"}]
[null,null,"2. Consolidar la administración de la información entendida como todas las acciones rientadas a garantizar el acceso, consulta, uso y conservación de la información de justicia de manera ágil, flexible e inteligente, bajo un enfoque de innovación.",null,null,null,null,null,null,null,null,null,null,null,null,{"$f":"IFERROR(GESTION_SEG_1_TRIM!H126,\" \")","v":0},"",{"$f":"_xlfn.CONCAT(\"Trimestre 1\",CHAR(10),IFERROR(GESTION_SEG_1_TRIM!J126,\" \"))","v":"Trimestre 1\n"},{"$f":"_xlfn.CONCAT(\"Trimestre 1\",CHAR(10),IFERROR(GESTION_SEG_1_TRIM!K126,\" \"))","v":"Trimestre 1\n"}]
[null,null,null,null,null,null,null,null,null,null,null,null,null,null,null,{"$f":"IFERROR(GESTION_SEG_1_TRIM!H127,\" \")","v":0},"",{"$f":"_xlfn.CONCAT(\"Trimestre 1\",CHAR(10),IFERROR(GESTION_SEG_1_TRIM!J127,\" \"))","v":"Trimestre 1\n"},{"$f":"_xlfn.CONCAT(\"Trimestre 1\",CHAR(10),IFERROR(GESTION_SEG_1_TRIM!K127,\" \"))","v":"Trimestre 1\n"}]
[null,null,null,null,null,null,null,null,null,null,null,null,null,null,null,{"$f":"IFERROR(GESTION_SEG_1_TRIM!H128,\" \")","v":0},null,{"$f":"_xlfn.CONCAT(\"Trimestre 1\",CHAR(10),IFERROR(GESTION_SEG_1_TRIM!J128,\" \"))","v":"Trimestre 1\n"},{"$f":"_xlfn.CONCAT(\"Trimestre 1\",CHAR(10),IFERROR(GESTION_SEG_1_TRIM!K128,\" \"))","v":"Trimestre 1\n"}]
[null,null,null,null,null,null,null,null,null,null,null,null,null,null,null,{"$f":"IFERROR(GESTION_SEG_1_TRIM!H129,\" \")","v":0},null,{"$f":"_xlfn.CONCAT(\"Trimestre 1\",CHAR(10),IFERROR(GESTION_SEG_1_TRIM!J129,\" \"))","v":"Trimestre 1\n"},{"$f":"_xlfn.CONCAT(\"Trimestre 1\",CHAR(10),IFERROR(GESTION_SEG_1_TRIM!K129,\" \"))","v":"Trimestre 1\n"}]
[null,null,null,null,null,null,null,null,null,null,null,null,null,null,null,{"$f":"IFERROR(GESTION_SEG_1_TRIM!H130,\" \")","v":0},null,{"$f":"_xlfn.CONCAT(\"Trimestre 1\",CHAR(10),IFERROR(GESTION_SEG_1_TRIM!J130,\" \"))","v":"Trimestre 1\n"},{"$f":"_xlfn.CONCAT(\"Trimestre 1\",CHAR(10),IFERROR(GESTION_SEG_1_TRIM!K130,\" \"))","v":"Trimestre 1\n"}]
[null,null,null,null,null,null,null,null,null,null,null,null,null,null,null,{"$f":"IFERROR(GESTION_SEG_1_TRIM!H131,\" \")","v":0},null,{"$f":"_xlfn.CONCAT(\"Trimestre 1\",CHAR(10),IFERROR(GESTION_SEG_1_TRIM!J131,\" \"))","v":"Trimestre 1\n"},{"$f":"_xlfn.CONCAT(\"Trimestre 1\",CHAR(10),IFERROR(GESTION_SEG_1_TRIM!K131,\" \"))","v":"Trimestre 1\n"}]
[null,null,null,null,null,null,null,null,null,null,null,null,null,null,null,{"$f":"IFERROR(GESTION_SEG_1_TRIM!H132,\" \")","v":0},null,{"$f":"_xlfn.CONCAT(\"Trimestre 1\",CHAR(10),IFERROR(GESTION_SEG_1_TRIM!J132,\" \"))","v":"Trimestre 1\n"},{"$f":"_xlfn.CONCAT(\"Trimestre 1\",CHAR(10),IFERROR(GESTION_SEG_1_TRIM!K132,\" \"))","v":"Trimestre 1\n"}]
[null,null,null,null,null,null,null,null,null,null,null,null,null,null,null,{"$f":"IFERROR(GESTION_SEG_1_TRIM!H133,\" \")","v":0},"",{"$f":"_xlfn.CONCAT(\"Trimestre 1\",CHAR(10),IFERROR(GESTION_SEG_1_TRIM!J133,\" \"))","v":"Trimestre 1\n"},{"$f":"_xlfn.CONCAT(\"Trimestre 1\",CHAR(10),IFERROR(GESTION_SEG_1_TRIM!K133,\" \"))","v":"Trimestre 1\n"}]
[null,null,null,null,null,null,null,null,null,null,null,null,null,null,null,{"$f":"IFERROR(GESTION_SEG_1_TRIM!H134,\" \")","v":0},"",{"$f":"_xlfn.CONCAT(\"Trimestre 1\",CHAR(10),IFERROR(GESTION_SEG_1_TRIM!J134,\" \"))","v":"Trimestre 1\n"},{"$f":"_xlfn.CONCAT(\"Trimestre 1\",CHAR(10),IFERROR(GESTION_SEG_1_TRIM!K134,\" \"))","v":"Trimestre 1\n"}]
[null,null,null,null,null,null,null,null,null,null,null,null,null,null,null,{"$f":"IFERROR(GESTION_SEG_1_TRIM!H135,\" \")","v":0},{"$f":"IFERROR(P135/J135,\"\")","v":""},{"$f":"_xlfn.CONCAT(\"Trimestre 1\",CHAR(10),IFERROR(GESTION_SEG_1_TRIM!J135,\" \"))","v":"Trimestre 1\n"},{"$f":"_xlfn.CONCAT(\"Trimestre 1\",CHAR(10),IFERROR(GESTION_SEG_1_TRIM!K135,\" \"))","v":"Trimestre 1\n"}]
[null,null,"3. Fortalecer el Sistema integrado de Gestión de la Rama, orientado a la implementación y certificación de las normas antisoborno.","1. Gestionar el desarrollo de las competencias, la toma de conciencia , la cultura  organizacional  y el compromiso de los  servidores judiciales, contratistas, practicantes y  judicantes de contribuir a generar valor público en la administración de justicia, en el marco de  cumplimiento de los requisitos  aplicables y el comportamiento ético.\n3. Fomentar la transparencia y la participación generando lineamientos y promoviendo la rendición de cuentas ,la consulta, reporte y planteamiento de inquietudes en relación con las decisiones y aspectos del SIGCMA.",null,null,null,null,null,null,null,null,null,null,null,{"$f":"IFERROR(GESTION_SEG_1_TRIM!H136,\" \")","v":0},"",{"$f":"_xlfn.CONCAT(\"Trimestre 1\",CHAR(10),IFERROR(GESTION_SEG_1_TRIM!J136,\" \"))","v":"Trimestre 1\n"},{"$f":"_xlfn.CONCAT(\"Trimestre 1\",CHAR(10),IFERROR(GESTION_SEG_1_TRIM!K136,\" \"))","v":"Trimestre 1\n"}]
[null,null,null,null,null,null,null,null,null,null,null,null,null,null,null,{"$f":"IFERROR(GESTION_SEG_1_TRIM!H137,\" \")","v":0},"",{"$f":"_xlfn.CONCAT(\"Trimestre 1\",CHAR(10),IFERROR(GESTION_SEG_1_TRIM!J137,\" \"))","v":"Trimestre 1\n"},{"$f":"_xlfn.CONCAT(\"Trimestre 1\",CHAR(10),IFERROR(GESTION_SEG_1_TRIM!K137,\" \"))","v":"Trimestre 1\n"}]
[null,null,null,null,null,null,null,null,null,null,null,null,null,null,null,{"$f":"IFERROR(GESTION_SEG_1_TRIM!H138,\" \")","v":0},null,{"$f":"_xlfn.CONCAT(\"Trimestre 1\",CHAR(10),IFERROR(GESTION_SEG_1_TRIM!J138,\" \"))","v":"Trimestre 1\n"},{"$f":"_xlfn.CONCAT(\"Trimestre 1\",CHAR(10),IFERROR(GESTION_SEG_1_TRIM!K138,\" \"))","v":"Trimestre 1\n"}]
[null,null,null,null,null,null,null,null,null,null,null,null,null,null,null,{"$f":"IFERROR(GESTION_SEG_1_TRIM!H139,\" \")","v":0},null,{"$f":"_xlfn.CONCAT(\"Trimestre 1\",CHAR(10),IFERROR(GESTION_SEG_1_TRIM!J139,\" \"))","v":"Trimestre 1\n"},{"$f":"_xlfn.CONCAT(\"Trimestre 1\",CHAR(10),IFERROR(GESTION_SEG_1_TRIM!K139,\" \"))","v":"Trimestre 1\n"}]
[null,null,null,null,null,null,null,null,null,null,null,null,null,null,null,{"$f":"IFERROR(GESTION_SEG_1_TRIM!H140,\" \")","v":0},null,{"$f":"_xlfn.CONCAT(\"Trimestre 1\",CHAR(10),IFERROR(GESTION_SEG_1_TRIM!J140,\" \"))","v":"Trimestre 1\n"},{"$f":"_xlfn.CONCAT(\"Trimestre 1\",CHAR(10),IFERROR(GESTION_SEG_1_TRIM!K140,\" \"))","v":"Trimestre 1\n"}]
[null,null,null,null,null,null,null,null,null,null,null,null,null,null,null,{"$f":"IFERROR(GESTION_SEG_1_TRIM!H141,\" \")","v":0},null,{"$f":"_xlfn.CONCAT(\"Trimestre 1\",CHAR(10),IFERROR(GESTION_SEG_1_TRIM!J141,\" \"))","v":"Trimestre 1\n"},{"$f":"_xlfn.CONCAT(\"Trimestre 1\",CHAR(10),IFERROR(GESTION_SEG_1_TRIM!K141,\" \"))","v":"Trimestre 1\n"}]
[null,null,null,null,null,null,null,null,null,null,null,null,null,null,null,{"$f":"IFERROR(GESTION_SEG_1_TRIM!H142,\" \")","v":0},null,{"$f":"_xlfn.CONCAT(\"Trimestre 1\",CHAR(10),IFERROR(GESTION_SEG_1_TRIM!J142,\" \"))","v":"Trimestre 1\n"},{"$f":"_xlfn.CONCAT(\"Trimestre 1\",CHAR(10),IFERROR(GESTION_SEG_1_TRIM!K142,\" \"))","v":"Trimestre 1\n"}]
[null,null,null,null,null,null,null,null,null,null,null,null,null,null,null,{"$f":"IFERROR(GESTION_SEG_1_TRIM!H143,\" \")","v":0},"",{"$f":"_xlfn.CONCAT(\"Trimestre 1\",CHAR(10),IFERROR(GESTION_SEG_1_TRIM!J143,\" \"))","v":"Trimestre 1\n"},{"$f":"_xlfn.CONCAT(\"Trimestre 1\",CHAR(10),IFERROR(GESTION_SEG_1_TRIM!K143,\" \"))","v":"Trimestre 1\n"}]
[null,null,null,null,null,null,null,null,null,null,null,null,null,null,null,{"$f":"IFERROR(GESTION_SEG_1_TRIM!H144,\" \")","v":0},"",{"$f":"_xlfn.CONCAT(\"Trimestre 1\",CHAR(10),IFERROR(GESTION_SEG_1_TRIM!J144,\" \"))","v":"Trimestre 1\n"},{"$f":"_xlfn.CONCAT(\"Trimestre 1\",CHAR(10),IFERROR(GESTION_SEG_1_TRIM!K144,\" \"))","v":"Trimestre 1\n"}]
[null,null,null,null,null,null,null,null,null,null,null,null,null,null,null,{"$f":"IFERROR(GESTION_SEG_1_TRIM!H145,\" \")","v":0},"",{"$f":"_xlfn.CONCAT(\"Trimestre 1\",CHAR(10),IFERROR(GESTION_SEG_1_TRIM!J145,\" \"))","v":"Trimestre 1\n"},{"$f":"_xlfn.CONCAT(\"Trimestre 1\",CHAR(10),IFERROR(GESTION_SEG_1_TRIM!K145,\" \"))","v":"Trimestre 1\n"}]
[null,null,"4. Aumentar la confianza, la cercanía y acceso a los servicios de la Rama Judicial a través, entre otros, de una comunicación clara y asertiva con la ciudadanía.","3. Fomentar la transparencia y la participación generando lineamientos y promoviendo la rendición de cuentas ,la consulta, reporte y planteamiento de inquietudes en relación con las decisiones y aspectos del SIGCMA.",null,null,null,null,null,null,null,null,null,null,null,{"$f":"IFERROR(GESTION_SEG_1_TRIM!H146,\" \")","v":0},"",{"$f":"_xlfn.CONCAT(\"Trimestre 1\",CHAR(10),IFERROR(GESTION_SEG_1_TRIM!J146,\" \"))","v":"Trimestre 1\n"},{"$f":"_xlfn.CONCAT(\"Trimestre 1\",CHAR(10),IFERROR(GESTION_SEG_1_TRIM!K146,\" \"))","v":"Trimestre 1\n"}]
[null,null,null,null,null,null,null,null,null,null,null,null,null,null,null,{"$f":"IFERROR(GESTION_SEG_1_TRIM!H147,\" \")","v":0},"",{"$f":"_xlfn.CONCAT(\"Trimestre 1\",CHAR(10),IFERROR(GESTION_SEG_1_TRIM!J147,\" \"))","v":"Trimestre 1\n"},{"$f":"_xlfn.CONCAT(\"Trimestre 1\",CHAR(10),IFERROR(GESTION_SEG_1_TRIM!K147,\" \"))","v":"Trimestre 1\n"}]
[null,null,null,null,null,null,null,null,null,null,null,null,null,null,null,{"$f":"IFERROR(GESTION_SEG_1_TRIM!H148,\" \")","v":0},null,{"$f":"_xlfn.CONCAT(\"Trimestre 1\",CHAR(10),IFERROR(GESTION_SEG_1_TRIM!J148,\" \"))","v":"Trimestre 1\n"},{"$f":"_xlfn.CONCAT(\"Trimestre 1\",CHAR(10),IFERROR(GESTION_SEG_1_TRIM!K148,\" \"))","v":"Trimestre 1\n"}]
[null,null,null,null,null,null,null,null,null,null,null,null,null,null,null,{"$f":"IFERROR(GESTION_SEG_1_TRIM!H149,\" \")","v":0},null,{"$f":"_xlfn.CONCAT(\"Trimestre 1\",CHAR(10),IFERROR(GESTION_SEG_1_TRIM!J149,\" \"))","v":"Trimestre 1\n"},{"$f":"_xlfn.CONCAT(\"Trimestre 1\",CHAR(10),IFERROR(GESTION_SEG_1_TRIM!K149,\" \"))","v":"Trimestre 1\n"}]
[null,null,null,null,null,null,null,null,null,null,null,null,null,null,null,{"$f":"IFERROR(GESTION_SEG_1_TRIM!H150,\" \")","v":0},null,{"$f":"_xlfn.CONCAT(\"Trimestre 1\",CHAR(10),IFERROR(GESTION_SEG_1_TRIM!J150,\" \"))","v":"Trimestre 1\n"},{"$f":"_xlfn.CONCAT(\"Trimestre 1\",CHAR(10),IFERROR(GESTION_SEG_1_TRIM!K150,\" \"))","v":"Trimestre 1\n"}]
[null,null,null,null,null,null,null,null,null,null,null,null,null,null,null,{"$f":"IFERROR(GESTION_SEG_1_TRIM!H151,\" \")","v":0},null,{"$f":"_xlfn.CONCAT(\"Trimestre 1\",CHAR(10),IFERROR(GESTION_SEG_1_TRIM!J151,\" \"))","v":"Trimestre 1\n"},{"$f":"_xlfn.CONCAT(\"Trimestre 1\",CHAR(10),IFERROR(GESTION_SEG_1_TRIM!K151,\" \"))","v":"Trimestre 1\n"}]
[null,null,null,null,null,null,null,null,null,null,null,null,null,null,null,{"$f":"IFERROR(GESTION_SEG_1_TRIM!H152,\" \")","v":0},null,{"$f":"_xlfn.CONCAT(\"Trimestre 1\",CHAR(10),IFERROR(GESTION_SEG_1_TRIM!J152,\" \"))","v":"Trimestre 1\n"},{"$f":"_xlfn.CONCAT(\"Trimestre 1\",CHAR(10),IFERROR(GESTION_SEG_1_TRIM!K152,\" \"))","v":"Trimestre 1\n"}]
[null,null,null,null,null,null,null,null,null,null,null,null,null,null,null,{"$f":"IFERROR(GESTION_SEG_1_TRIM!H153,\" \")","v":0},"",{"$f":"_xlfn.CONCAT(\"Trimestre 1\",CHAR(10),IFERROR(GESTION_SEG_1_TRIM!J153,\" \"))","v":"Trimestre 1\n"},{"$f":"_xlfn.CONCAT(\"Trimestre 1\",CHAR(10),IFERROR(GESTION_SEG_1_TRIM!K153,\" \"))","v":"Trimestre 1\n"}]
[null,null,null,null,null,null,null,null,null,null,null,null,null,null,null,{"$f":"IFERROR(GESTION_SEG_1_TRIM!H154,\" \")","v":0},"",{"$f":"_xlfn.CONCAT(\"Trimestre 1\",CHAR(10),IFERROR(GESTION_SEG_1_TRIM!J154,\" \"))","v":"Trimestre 1\n"},{"$f":"_xlfn.CONCAT(\"Trimestre 1\",CHAR(10),IFERROR(GESTION_SEG_1_TRIM!K154,\" \"))","v":"Trimestre 1\n"}]
[null,null,null,null,null,null,null,null,null,null,null,null,null,null,null,{"$f":"IFERROR(GESTION_SEG_1_TRIM!H155,\" \")","v":0},"",{"$f":"_xlfn.CONCAT(\"Trimestre 1\",CHAR(10),IFERROR(GESTION_SEG_1_TRIM!J155,\" \"))","v":"Trimestre 1\n"},{"$f":"_xlfn.CONCAT(\"Trimestre 1\",CHAR(10),IFERROR(GESTION_SEG_1_TRIM!K155,\" \"))","v":"Trimestre 1\n"}]
[null,null,"5. Prevenir fenómenos asociados con actos de corrupción en la Rama Judicial y reducir las experiencias de corrupción de usuarios y servidores judiciales.",null,null,null,null,null,null,null,null,null,null,null,null,{"$f":"IFERROR(GESTION_SEG_1_TRIM!H156,\" \")","v":0},"",{"$f":"_xlfn.CONCAT(\"Trimestre 1\",CHAR(10),IFERROR(GESTION_SEG_1_TRIM!J156,\" \"))","v":"Trimestre 1\n"},{"$f":"_xlfn.CONCAT(\"Trimestre 1\",CHAR(10),IFERROR(GESTION_SEG_1_TRIM!K156,\" \"))","v":"Trimestre 1\n"}]
[null,null,null,null,null,null,null,null,null,null,null,null,null,null,null,{"$f":"IFERROR(GESTION_SEG_1_TRIM!H157,\" \")","v":0},"",{"$f":"_xlfn.CONCAT(\"Trimestre 1\",CHAR(10),IFERROR(GESTION_SEG_1_TRIM!J157,\" \"))","v":"Trimestre 1\n"},{"$f":"_xlfn.CONCAT(\"Trimestre 1\",CHAR(10),IFERROR(GESTION_SEG_1_TRIM!K157,\" \"))","v":"Trimestre 1\n"}]
[null,null,null,null,null,null,null,null,null,null,null,null,null,null,null,{"$f":"IFERROR(GESTION_SEG_1_TRIM!H158,\" \")","v":0},null,{"$f":"_xlfn.CONCAT(\"Trimestre 1\",CHAR(10),IFERROR(GESTION_SEG_1_TRIM!J158,\" \"))","v":"Trimestre 1\n"},{"$f":"_xlfn.CONCAT(\"Trimestre 1\",CHAR(10),IFERROR(GESTION_SEG_1_TRIM!K158,\" \"))","v":"Trimestre 1\n"}]
[null,null,null,null,null,null,null,null,null,null,null,null,null,null,null,{"$f":"IFERROR(GESTION_SEG_1_TRIM!H159,\" \")","v":0},null,{"$f":"_xlfn.CONCAT(\"Trimestre 1\",CHAR(10),IFERROR(GESTION_SEG_1_TRIM!J159,\" \"))","v":"Trimestre 1\n"},{"$f":"_xlfn.CONCAT(\"Trimestre 1\",CHAR(10),IFERROR(GESTION_SEG_1_TRIM!K159,\" \"))","v":"Trimestre 1\n"}]
[null,null,null,null,null,null,null,null,null,null,null,null,null,null,null,{"$f":"IFERROR(GESTION_SEG_1_TRIM!H160,\" \")","v":0},null,{"$f":"_xlfn.CONCAT(\"Trimestre 1\",CHAR(10),IFERROR(GESTION_SEG_1_TRIM!J160,\" \"))","v":"Trimestre 1\n"},{"$f":"_xlfn.CONCAT(\"Trimestre 1\",CHAR(10),IFERROR(GESTION_SEG_1_TRIM!K160,\" \"))","v":"Trimestre 1\n"}]
[null,null,null,null,null,null,null,null,null,null,null,null,null,null,null,{"$f":"IFERROR(GESTION_SEG_1_TRIM!H161,\" \")","v":0},null,{"$f":"_xlfn.CONCAT(\"Trimestre 1\",CHAR(10),IFERROR(GESTION_SEG_1_TRIM!J161,\" \"))","v":"Trimestre 1\n"},{"$f":"_xlfn.CONCAT(\"Trimestre 1\",CHAR(10),IFERROR(GESTION_SEG_1_TRIM!K161,\" \"))","v":"Trimestre 1\n"}]
[null,null,null,null,null,null,null,null,null,null,null,null,null,null,null,{"$f":"IFERROR(GESTION_SEG_1_TRIM!H162,\" \")","v":0},null,{"$f":"_xlfn.CONCAT(\"Trimestre 1\",CHAR(10),IFERROR(GESTION_SEG_1_TRIM!J162,\" \"))","v":"Trimestre 1\n"},{"$f":"_xlfn.CONCAT(\"Trimestre 1\",CHAR(10),IFERROR(GESTION_SEG_1_TRIM!K162,\" \"))","v":"Trimestre 1\n"}]
[null,null,null,null,null,null,null,null,null,null,null,null,null,null,null,{"$f":"IFERROR(GESTION_SEG_1_TRIM!H163,\" \")","v":0},"",{"$f":"_xlfn.CONCAT(\"Trimestre 1\",CHAR(10),IFERROR(GESTION_SEG_1_TRIM!J163,\" \"))","v":"Trimestre 1\n"},{"$f":"_xlfn.CONCAT(\"Trimestre 1\",CHAR(10),IFERROR(GESTION_SEG_1_TRIM!K163,\" \"))","v":"Trimestre 1\n"}]
[null,null,null,null,null,null,null,null,null,null,null,null,null,null,null,{"$f":"IFERROR(GESTION_SEG_1_TRIM!H164,\" \")","v":0},"",{"$f":"_xlfn.CONCAT(\"Trimestre 1\",CHAR(10),IFERROR(GESTION_SEG_1_TRIM!J164,\" \"))","v":"Trimestre 1\n"},{"$f":"_xlfn.CONCAT(\"Trimestre 1\",CHAR(10),IFERROR(GESTION_SEG_1_TRIM!K164,\" \"))","v":"Trimestre 1\n"}]
[null,null,null,null,null,null,null,null,null,null,null,null,null,null,null,{"$f":"IFERROR(GESTION_SEG_1_TRIM!H165,\" \")","v":0},"",{"$f":"_xlfn.CONCAT(\"Trimestre 1\",CHAR(10),IFERROR(GESTION_SEG_1_TRIM!J165,\" \"))","v":"Trimestre 1\n"},{"$f":"_xlfn.CONCAT(\"Trimestre 1\",CHAR(10),IFERROR(GESTION_SEG_1_TRIM!K165,\" \"))","v":"Trimestre 1\n"}]
[null,null,"6. Promover la rendición de cuentas y la colaboración real con la ciudadanía como fundamento para diseñar acciones de mejoramiento del acceso a la justicia.",null,null,null,null,null,null,null,null,null,null,null,null,{"$f":"IFERROR(GESTION_SEG_1_TRIM!H166,\" \")","v":0},"",{"$f":"_xlfn.CONCAT(\"Trimestre 1\",CHAR(10),IFERROR(GESTION_SEG_1_TRIM!J166,\" \"))","v":"Trimestre 1\n"},{"$f":"_xlfn.CONCAT(\"Trimestre 1\",CHAR(10),IFERROR(GESTION_SEG_1_TRIM!K166,\" \"))","v":"Trimestre 1\n"}]
[null,null,null,null,null,null,null,null,null,null,null,null,null,null,null,{"$f":"IFERROR(GESTION_SEG_1_TRIM!H167,\" \")","v":0},"",{"$f":"_xlfn.CONCAT(\"Trimestre 1\",CHAR(10),IFERROR(GESTION_SEG_1_TRIM!J167,\" \"))","v":"Trimestre 1\n"},{"$f":"_xlfn.CONCAT(\"Trimestre 1\",CHAR(10),IFERROR(GESTION_SEG_1_TRIM!K167,\" \"))","v":"Trimestre 1\n"}]
[null,null,null,null,null,null,null,null,null,null,null,null,null,null,null,{"$f":"IFERROR(GESTION_SEG_1_TRIM!H168,\" \")","v":0},null,{"$f":"_xlfn.CONCAT(\"Trimestre 1\",CHAR(10),IFERROR(GESTION_SEG_1_TRIM!J168,\" \"))","v":"Trimestre 1\n"},{"$f":"_xlfn.CONCAT(\"Trimestre 1\",CHAR(10),IFERROR(GESTION_SEG_1_TRIM!K168,\" \"))","v":"Trimestre 1\n"}]
[null,null,null,null,null,null,null,null,null,null,null,null,null,null,null,{"$f":"IFERROR(GESTION_SEG_1_TRIM!H169,\" \")","v":0},null,{"$f":"_xlfn.CONCAT(\"Trimestre 1\",CHAR(10),IFERROR(GESTION_SEG_1_TRIM!J169,\" \"))","v":"Trimestre 1\n"},{"$f":"_xlfn.CONCAT(\"Trimestre 1\",CHAR(10),IFERROR(GESTION_SEG_1_TRIM!K169,\" \"))","v":"Trimestre 1\n"}]
[null,null,null,null,null,null,null,null,null,null,null,null,null,null,null,{"$f":"IFERROR(GESTION_SEG_1_TRIM!H170,\" \")","v":0},null,{"$f":"_xlfn.CONCAT(\"Trimestre 1\",CHAR(10),IFERROR(GESTION_SEG_1_TRIM!J170,\" \"))","v":"Trimestre 1\n"},{"$f":"_xlfn.CONCAT(\"Trimestre 1\",CHAR(10),IFERROR(GESTION_SEG_1_TRIM!K170,\" \"))","v":"Trimestre 1\n"}]
[null,null,null,null,null,null,null,null,null,null,null,null,null,null,null,{"$f":"IFERROR(GESTION_SEG_1_TRIM!H171,\" \")","v":0},null,{"$f":"_xlfn.CONCAT(\"Trimestre 1\",CHAR(10),IFERROR(GESTION_SEG_1_TRIM!J171,\" \"))","v":"Trimestre 1\n"},{"$f":"_xlfn.CONCAT(\"Trimestre 1\",CHAR(10),IFERROR(GESTION_SEG_1_TRIM!K171,\" \"))","v":"Trimestre 1\n"}]
[null,null,null,null,null,null,null,null,null,null,null,null,null,null,null,{"$f":"IFERROR(GESTION_SEG_1_TRIM!H172,\" \")","v":0},null,{"$f":"_xlfn.CONCAT(\"Trimestre 1\",CHAR(10),IFERROR(GESTION_SEG_1_TRIM!J172,\" \"))","v":"Trimestre 1\n"},{"$f":"_xlfn.CONCAT(\"Trimestre 1\",CHAR(10),IFERROR(GESTION_SEG_1_TRIM!K172,\" \"))","v":"Trimestre 1\n"}]
[null,null,null,null,null,null,null,null,null,null,null,null,null,null,null,{"$f":"IFERROR(GESTION_SEG_1_TRIM!H173,\" \")","v":0},"",{"$f":"_xlfn.CONCAT(\"Trimestre 1\",CHAR(10),IFERROR(GESTION_SEG_1_TRIM!J173,\" \"))","v":"Trimestre 1\n"},{"$f":"_xlfn.CONCAT(\"Trimestre 1\",CHAR(10),IFERROR(GESTION_SEG_1_TRIM!K173,\" \"))","v":"Trimestre 1\n"}]
[null,null,null,null,null,null,null,null,null,null,null,null,null,null,null,{"$f":"IFERROR(GESTION_SEG_1_TRIM!H174,\" \")","v":0},"",{"$f":"_xlfn.CONCAT(\"Trimestre 1\",CHAR(10),IFERROR(GESTION_SEG_1_TRIM!J174,\" \"))","v":"Trimestre 1\n"},{"$f":"_xlfn.CONCAT(\"Trimestre 1\",CHAR(10),IFERROR(GESTION_SEG_1_TRIM!K174,\" \"))","v":"Trimestre 1\n"}]
[null,null,null,null,null,null,null,null,null,null,null,null,null,null,null,{"$f":"IFERROR(GESTION_SEG_1_TRIM!H175,\" \")","v":0},"",{"$f":"_xlfn.CONCAT(\"Trimestre 1\",CHAR(10),IFERROR(GESTION_SEG_1_TRIM!J175,\" \"))","v":"Trimestre 1\n"},{"$f":"_xlfn.CONCAT(\"Trimestre 1\",CHAR(10),IFERROR(GESTION_SEG_1_TRIM!K175,\" \"))","v":"Trimestre 1\n"}]
[null,null,"7. Continuar la consolidación del SIGCMA, a través de los procesos de formación en modelos de gestión, logrando la implementación y ampliación de este en los esquemas certificados de manera gradual, teniendo en cuenta las capacidades de los diferentes despachos judiciales y dependencias de la Rama Judicial y articulando el enfoque de Arquitectura Empresarial para el desarrollo del PETD a través de la gestión del conocimiento para la gestión del cambio propendiendo por una cultura de la calidad, la transparencia, la rendición de cuentas, la anticorrupción y el antisoborno","1. Gestionar el desarrollo de las competencias, la toma de conciencia , la cultura  organizacional  y el compromiso de los  servidores judiciales, contratistas, practicantes y  judicantes de contribuir a generar valor público en la administración de justicia, en el marco de  cumplimiento de los requisitos  aplicables y el comportamiento ético.\n4. Hacer un uso racional de los recursos naturales aplicando los principios y fases de la Economía Circular, para prevenir, mitigar y controlar los impactos ambientales.","Evaluación_y_Mejora","Admin - Mejoramiento del Sistema Integrado de Gestión y Control de la Calidad y del Medio Ambiente","Seccional","Ampliación alcance SIGCMA\nInclusión de dependencias (SGC) o despachos judiciales / Sedes (SGA)","Entregable",null,null,"Coordinadora Seccional SIGCMA - Natalia Rave","Informe de Auditoría Externa ","2023-01-15","2023-12-15",{"$f":"IFERROR(GESTION_SEG_1_TRIM!H176,\" \")","v":0},"",{"$f":"_xlfn.CONCAT(\"Trimestre 1\",CHAR(10),IFERROR(GESTION_SEG_1_TRIM!J176,\" \"))","v":"Trimestre 1\n"},{"$f":"_xlfn.CONCAT(\"Trimestre 1\",CHAR(10),IFERROR(GESTION_SEG_1_TRIM!K176,\" \"))","v":"Trimestre 1\nSe avanza con la documentación y actividades para la certificación, pero no se han realizado las Auditorias ya que estan programadas para Septiembre"}]
[null,null,null,null,"Evaluación_y_Mejora","Admin - Mejoramiento del Sistema Integrado de Gestión y Control de la Calidad y del Medio Ambiente","Seccional","Capacitaciones\nSIGCMA","Entregable",4,"Capacitacion realizada","Coordinadora Seccional SIGCMA - Natalia Rave\n\nCoordinador Seccional Ambiental - Julián Zuleta","Listas de asistencia","2023-01-15","2023-12-15",{"$f":"IFERROR(GESTION_SEG_1_TRIM!H177,\" \")","v":0},null,{"$f":"_xlfn.CONCAT(\"Trimestre 1\",CHAR(10),IFERROR(GESTION_SEG_1_TRIM!J177,\" \"))","v":"Trimestre 1\n"},{"$f":"_xlfn.CONCAT(\"Trimestre 1\",CHAR(10),IFERROR(GESTION_SEG_1_TRIM!K177,\" \"))","v":"Trimestre 1\nSe realizan 4 capacitaciones a la sede de Quinchía donde se tocaron los siguientes temas: a los servidores judiciales se hace la Inducción al SGA y la Capacitación en buenas practicas ambientales. Al personal de servicios generales de la sede en el manejo de sustancias quimicas y manejo de residuos "}]
[null,null,null,null,"Evaluación_y_Mejora","Admin - Mejoramiento del Sistema Integrado de Gestión y Control de la Calidad y del Medio Ambiente","Seccional","SIEMBRATON CON CARDER","Entregable",1,"Siembraton realizada","Coordinadora Seccional SIGCMA - Natalia Rave\n\nCoordinador Seccional Ambiental - Julián Zuleta","Evidencia fotografica","2023-01-15","2023-12-15",{"$f":"IFERROR(GESTION_SEG_1_TRIM!H178,\" \")","v":0},null,{"$f":"_xlfn.CONCAT(\"Trimestre 1\",CHAR(10),IFERROR(GESTION_SEG_1_TRIM!J178,\" \"))","v":"Trimestre 1\nSe han presentado inconvenientes en la selección de predio para la actividad"},{"$f":"_xlfn.CONCAT(\"Trimestre 1\",CHAR(10),IFERROR(GESTION_SEG_1_TRIM!K178,\" \"))","v":"Trimestre 1\nSe tiene programada la actividad para el mes de junio"}]
[null,null,null,null,"Evaluación_y_Mejora","Admin - Mejoramiento del Sistema Integrado de Gestión y Control de la Calidad y del Medio Ambiente","Seccional","Señalética de sensibilización Ambiental para las sedes certificadas del Distrito","Entregable",1,"Sede con senaletica","Coordinadora Seccional SIGCMA - Natalia Rave\n\nCoordinador Seccional Ambiental - Julián Zuleta","senaletica instalada","2023-01-15","2023-12-15",{"$f":"IFERROR(GESTION_SEG_1_TRIM!H179,\" \")","v":0},null,{"$f":"_xlfn.CONCAT(\"Trimestre 1\",CHAR(10),IFERROR(GESTION_SEG_1_TRIM!J179,\" \"))","v":"Trimestre 1\n"},{"$f":"_xlfn.CONCAT(\"Trimestre 1\",CHAR(10),IFERROR(GESTION_SEG_1_TRIM!K179,\" \"))","v":"Trimestre 1\nSe instala la señaletica ambiental en la sede de Quinchía, donde se se tiene sensibiliza sobre apagado de luces, ahorro de agua y papel."}]
[null,null,null,null,"Evaluación_y_Mejora","Admin - Mejoramiento del Sistema Integrado de Gestión y Control de la Calidad y del Medio Ambiente","Seccional","Celebración Semana SIGCMA","Entregable",350,"asistentes al evento","Coordinadora Seccional SIGCMA - Natalia Rave\n\nCoordinador Seccional Ambiental - Julián Zuleta","Listas de asistencias","2023-01-15","2023-12-15",{"$f":"IFERROR(GESTION_SEG_1_TRIM!H180,\" \")","v":0},null,{"$f":"_xlfn.CONCAT(\"Trimestre 1\",CHAR(10),IFERROR(GESTION_SEG_1_TRIM!J180,\" \"))","v":"Trimestre 1\n"},{"$f":"_xlfn.CONCAT(\"Trimestre 1\",CHAR(10),IFERROR(GESTION_SEG_1_TRIM!K180,\" \"))","v":"Trimestre 1\nLa actividad esta proyectada para el mes de septiembre"}]
[null,null,null,null,null,null,null,null,null,null,null,null,null,null,null,{"$f":"IFERROR(GESTION_SEG_1_TRIM!H181,\" \")","v":0},null,{"$f":"_xlfn.CONCAT(\"Trimestre 1\",CHAR(10),IFERROR(GESTION_SEG_1_TRIM!J181,\" \"))","v":"Trimestre 1\n"},{"$f":"_xlfn.CONCAT(\"Trimestre 1\",CHAR(10),IFERROR(GESTION_SEG_1_TRIM!K181,\" \"))","v":"Trimestre 1\n"}]
[null,null,null,null,null,null,null,null,null,null,null,null,null,null,null,{"$f":"IFERROR(GESTION_SEG_1_TRIM!H182,\" \")","v":0},{"$f":"IFERROR(P182/J178,\"\")","v":0},{"$f":"_xlfn.CONCAT(\"Trimestre 1\",CHAR(10),IFERROR(GESTION_SEG_1_TRIM!J182,\" \"))","v":"Trimestre 1\n"},{"$f":"_xlfn.CONCAT(\"Trimestre 1\",CHAR(10),IFERROR(GESTION_SEG_1_TRIM!K182,\" \"))","v":"Trimestre 1\n"}]
[null,null,null,null,null,null,null,null,null,null,null,null,null,null,null,{"$f":"IFERROR(GESTION_SEG_1_TRIM!H183,\" \")","v":0},"",{"$f":"_xlfn.CONCAT(\"Trimestre 1\",CHAR(10),IFERROR(GESTION_SEG_1_TRIM!J183,\" \"))","v":"Trimestre 1\n"},{"$f":"_xlfn.CONCAT(\"Trimestre 1\",CHAR(10),IFERROR(GESTION_SEG_1_TRIM!K183,\" \"))","v":"Trimestre 1\n"}]
[null,null,null,null,null,null,null,null,null,null,null,null,null,null,null,{"$f":"IFERROR(GESTION_SEG_1_TRIM!H184,\" \")","v":0},"",{"$f":"_xlfn.CONCAT(\"Trimestre 1\",CHAR(10),IFERROR(GESTION_SEG_1_TRIM!J184,\" \"))","v":"Trimestre 1\n"},{"$f":"_xlfn.CONCAT(\"Trimestre 1\",CHAR(10),IFERROR(GESTION_SEG_1_TRIM!K184,\" \"))","v":"Trimestre 1\n"}]
[null,null,null,null,null,null,null,null,null,null,null,null,null,null,null,{"$f":"IFERROR(GESTION_SEG_1_TRIM!H185,\" \")","v":0},{"$f":"IFERROR(P185/J179,\"\")","v":0},{"$f":"_xlfn.CONCAT(\"Trimestre 1\",CHAR(10),IFERROR(GESTION_SEG_1_TRIM!J185,\" \"))","v":"Trimestre 1\n"},{"$f":"_xlfn.CONCAT(\"Trimestre 1\",CHAR(10),IFERROR(GESTION_SEG_1_TRIM!K185,\" \"))","v":"Trimestre 1\n"}]
["4. Talento Humano","Talento Humano: Fortalecer el talento humano en la Rama Judicial para que sea eficiente, capacitado y realice su labor en ambientes saludables y seguros. Ampliar la cobertura de la carrera judicial y mejorar la oferta de formación, que esté disponible para todos los servidores judiciales e impacte positivamente el servicio de justicia y responda a las necesidades reales del ejercicio de la función judicial.","1. Ampliar la cobertura de la carrera judicial optimizando los procesos de los concursos de méritos y propender por mitigar su litigiosidad.","1. Gestionar el desarrollo de las competencias, la toma de conciencia , la cultura  organizacional  y el compromiso de los  servidores judiciales, contratistas, practicantes y  judicantes de contribuir a generar valor público en la administración de justicia, en el marco de  cumplimiento de los requisitos  aplicables y el comportamiento ético.","Misionales","Admin - Reordenamiento Judicial","Seccional","Elaborar propuestas de reordenamiento judicial a nivel Seccional que permitan subsanar necesidades de los despachos en materia de personal y/o carga laboral  ","Meta cuantificable",36,"Cantidad de propuestas elaboradas ","Magistrada Beatriz Eugenia Ángel Vélez","Acuerdos de reordenamiento","2023-01-01","2023-12-31",{"$f":"IFERROR(GESTION_SEG_1_TRIM!H186,\" \")","v":0},0,{"$f":"_xlfn.CONCAT(\"Trimestre 1\",CHAR(10),IFERROR(GESTION_SEG_1_TRIM!J186,\" \"))","v":"Trimestre 1\n"},{"$f":"_xlfn.CONCAT(\"Trimestre 1\",CHAR(10),IFERROR(GESTION_SEG_1_TRIM!K186,\" \"))","v":"Trimestre 1\nEn el primer trimestre se presentaron 10 propuestas de reordenamiento,correspondientes a las elaboradas en la Seccional y 2 propuestas que  se presentaron al orden nacional."}]
[null,null,null,null,"Misionales","Admin - Administración de la Carrera Judicial","Seccional","Incremento de Servidores Judiciales en Carrera","Entregable",null,null,"Jaime Robledo Toro","Vacantes publicadas","2023-01-01","2023-12-31",{"$f":"IFERROR(GESTION_SEG_1_TRIM!H187,\" \")","v":0},"",{"$f":"_xlfn.CONCAT(\"Trimestre 1\",CHAR(10),IFERROR(GESTION_SEG_1_TRIM!J187,\" \"))","v":"Trimestre 1\n"},{"$f":"_xlfn.CONCAT(\"Trimestre 1\",CHAR(10),IFERROR(GESTION_SEG_1_TRIM!K187,\" \"))","v":"Trimestre 1\nVacantes publicadas durante el primer trimestre del año 2023\nVacantes de empleados 31\nVacantes de jueces 20"}]
[null,null,null,null,"Misionales","Admin - Administración de la Carrera Judicial","Seccional","Remitir las listas de elegibles conformadas por el registro de eligebles de la convocatoria 26 y 27, hoy en curso","Entregable",null,null,"Jaime Robledo Toro","Listas de elegibles ","2023-01-01","2023-12-31",{"$f":"IFERROR(GESTION_SEG_1_TRIM!H188,\" \")","v":0},null,{"$f":"_xlfn.CONCAT(\"Trimestre 1\",CHAR(10),IFERROR(GESTION_SEG_1_TRIM!J188,\" \"))","v":"Trimestre 1\n"},{"$f":"_xlfn.CONCAT(\"Trimestre 1\",CHAR(10),IFERROR(GESTION_SEG_1_TRIM!K188,\" \"))","v":"Trimestre 1\nDurante el primer trimestre del año 2023, se remitieron 5 listas de elegibles a los despachos judiciales."}]
[null,null,null,null,"Apoyo","Admin - Asistencia Legal","Seccional","Solicitud de creacion de nuevos cargos, para el apoyo a la oficina de asistencia legal asi como la profesionalización de los cargos asistenciales.","Entregable",null,null,"Alejandra Giraldo Osorio\nLider del proceso ","Solicitud de creación de nuevos cargos ","2023-01-01","2023-12-31",{"$f":"IFERROR(GESTION_SEG_1_TRIM!H189,\" \")","v":0},null,{"$f":"_xlfn.CONCAT(\"Trimestre 1\",CHAR(10),IFERROR(GESTION_SEG_1_TRIM!J189,\" \"))","v":"Trimestre 1\n"},{"$f":"_xlfn.CONCAT(\"Trimestre 1\",CHAR(10),IFERROR(GESTION_SEG_1_TRIM!K189,\" \"))","v":"Trimestre 1\nEn el primer trimestre no se han ejecutado las actividades, se proyecta que para el seguindo trimestre se realice la solicitud."}]
[null,null,null,null,null,null,null,null,null,null,null,null,null,null,null,{"$f":"IFERROR(GESTION_SEG_1_TRIM!H190,\" \")","v":0},null,{"$f":"_xlfn.CONCAT(\"Trimestre 1\",CHAR(10),IFERROR(GESTION_SEG_1_TRIM!J190,\" \"))","v":"Trimestre 1\n"},{"$f":"_xlfn.CONCAT(\"Trimestre 1\",CHAR(10),IFERROR(GESTION_SEG_1_TRIM!K190,\" \"))","v":"Trimestre 1\n"}]
[null,null,null,null,null,null,null,null,null,null,null,null,null,null,null,{"$f":"IFERROR(GESTION_SEG_1_TRIM!H191,\" \")","v":0},null,{"$f":"_xlfn.CONCAT(\"Trimestre 1\",CHAR(10),IFERROR(GESTION_SEG_1_TRIM!J191,\" \"))","v":"Trimestre 1\n"},{"$f":"_xlfn.CONCAT(\"Trimestre 1\",CHAR(10),IFERROR(GESTION_SEG_1_TRIM!K191,\" \"))","v":"Trimestre 1\n"}]
[null,null,null,null,null,null,null,null,null,null,null,null,null,null,null,{"$f":"IFERROR(GESTION_SEG_1_TRIM!H192,\" \")","v":0},null,{"$f":"_xlfn.CONCAT(\"Trimestre 1\",CHAR(10),IFERROR(GESTION_SEG_1_TRIM!J192,\" \"))","v":"Trimestre 1\n"},{"$f":"_xlfn.CONCAT(\"Trimestre 1\",CHAR(10),IFERROR(GESTION_SEG_1_TRIM!K192,\" \"))","v":"Trimestre 1\n"}]
[null,null,null,null,null,null,null,null,null,null,null,null,null,null,null,{"$f":"IFERROR(GESTION_SEG_1_TRIM!H193,\" \")","v":0},"",{"$f":"_xlfn.CONCAT(\"Trimestre 1\",CHAR(10),IFERROR(GESTION_SEG_1_TRIM!J193,\" \"))","v":"Trimestre 1\n"},{"$f":"_xlfn.CONCAT(\"Trimestre 1\",CHAR(10),IFERROR(GESTION_SEG_1_TRIM!K193,\" \"))","v":"Trimestre 1\n"}]
[null,null,null,null,null,null,null,null,null,null,null,null,null,null,null,{"$f":"IFERROR(GESTION_SEG_1_TRIM!H194,\" \")","v":0},"",{"$f":"_xlfn.CONCAT(\"Trimestre 1\",CHAR(10),IFERROR(GESTION_SEG_1_TRIM!J194,\" \"))","v":"Trimestre 1\n"},{"$f":"_xlfn.CONCAT(\"Trimestre 1\",CHAR(10),IFERROR(GESTION_SEG_1_TRIM!K194,\" \"))","v":"Trimestre 1\n"}]
[null,null,null,null,null,null,null,null,null,null,null,null,null,null,null,{"$f":"IFERROR(GESTION_SEG_1_TRIM!H195,\" \")","v":0},"",{"$f":"_xlfn.CONCAT(\"Trimestre 1\",CHAR(10),IFERROR(GESTION_SEG_1_TRIM!J195,\" \"))","v":"Trimestre 1\n"},{"$f":"_xlfn.CONCAT(\"Trimestre 1\",CHAR(10),IFERROR(GESTION_SEG_1_TRIM!K195,\" \"))","v":"Trimestre 1\n"}]
[null,null,"2. Impactar la función y servicios que presta la Rama Judicial, a través de una formación integral desde una visión de gestión del conocimiento, relacionada con los problemas de la justicia y los problemas de gestión de quienes administran los recursos de la justicia, y potenciando el uso de medios virtuales.",null,"Misionales","Admin - Mejoramiento de la Infraestructura Física","Seccional","Capacitar en temas relacionados con el área.","Entregable",null,null,"Iván Maturana Córdoba","Solicitud de capacitación ","2023-03-01","2023-12-31",{"$f":"IFERROR(GESTION_SEG_1_TRIM!H196,\" \")","v":0},"",{"$f":"_xlfn.CONCAT(\"Trimestre 1\",CHAR(10),IFERROR(GESTION_SEG_1_TRIM!J196,\" \"))","v":"Trimestre 1\n"},{"$f":"_xlfn.CONCAT(\"Trimestre 1\",CHAR(10),IFERROR(GESTION_SEG_1_TRIM!K196,\" \"))","v":"Trimestre 1\nLa solicitud se realizará en el segundo trimestre."}]
[null,null,null,null,"Misionales","Admin - Administración de la Carrera Judicial","Seccional","Calificación integral de servicios de los jueces","Entregable",74,"Cantidad de jueces calificados ","Jaime Robledo Toro","Jueces calificados","2023-01-01","2023-12-31",{"$f":"IFERROR(GESTION_SEG_1_TRIM!H197,\" \")","v":0},{"$f":"IFERROR(P197/J197,\"\")","v":0},{"$f":"_xlfn.CONCAT(\"Trimestre 1\",CHAR(10),IFERROR(GESTION_SEG_1_TRIM!J197,\" \"))","v":"Trimestre 1\n"},{"$f":"_xlfn.CONCAT(\"Trimestre 1\",CHAR(10),IFERROR(GESTION_SEG_1_TRIM!K197,\" \"))","v":"Trimestre 1\nNo se ha realizado la calificación integral, el Acuerdo PSAA16-10618 del 07/12/2016, se realiza el ultimo día habil del mes de agosto"}]
[null,null,null,null,"Misionales","Admin - Gestión de la Formación Judicial","Seccional","Difusión de la oferta académica y convocatorias de la EJRLB","Entregable",null,null,"Jaime Robledo Toro","Circulares","2023-01-01","2023-12-31",{"$f":"IFERROR(GESTION_SEG_1_TRIM!H198,\" \")","v":0},null,{"$f":"_xlfn.CONCAT(\"Trimestre 1\",CHAR(10),IFERROR(GESTION_SEG_1_TRIM!J198,\" \"))","v":"Trimestre 1\n"},{"$f":"_xlfn.CONCAT(\"Trimestre 1\",CHAR(10),IFERROR(GESTION_SEG_1_TRIM!K198,\" \"))","v":"Trimestre 1\nAl primer trimestre se proyectaron difundir 5 ofertas y se difundieron 0 actividades academicas"}]
[null,null,null,null,"Evaluación_y_Mejora","Admin - Mejoramiento del Sistema Integrado de Gestión y Control de la Calidad y del Medio Ambiente","Seccional","Medición de Huella de Carbono","Entregable",null,null,"Coordinadora Seccional SIGCMA - Natalia Rave\n\nCoordinador Seccional Ambiental - Julián Zuleta","Cuantificacion de la encuesta","2023-01-15","2023-12-15",{"$f":"IFERROR(GESTION_SEG_1_TRIM!H199,\" \")","v":0},null,{"$f":"_xlfn.CONCAT(\"Trimestre 1\",CHAR(10),IFERROR(GESTION_SEG_1_TRIM!J199,\" \"))","v":"Trimestre 1\n"},{"$f":"_xlfn.CONCAT(\"Trimestre 1\",CHAR(10),IFERROR(GESTION_SEG_1_TRIM!K199,\" \"))","v":"Trimestre 1\nSe proyecta la circular para la recopiación de la información de huella de carbono, la cual se enviará para recopilar la información en abril"}]
[null,null,null,null,"Apoyo","Admin - Gestión de Seguridad y Salud en el Trabajo","Seccional","Fortalcer e integrar el proceso de Inducción y Reinducción a nivel Seccional","Entregable",null,null,"Coordinadora SST","Reporte de inducción o reinducción a los servidores nuevos o reingresos.","2023-01-01","2023-12-31",{"$f":"IFERROR(GESTION_SEG_1_TRIM!H200,\" \")","v":0},null,{"$f":"_xlfn.CONCAT(\"Trimestre 1\",CHAR(10),IFERROR(GESTION_SEG_1_TRIM!J200,\" \"))","v":"Trimestre 1\n"},{"$f":"_xlfn.CONCAT(\"Trimestre 1\",CHAR(10),IFERROR(GESTION_SEG_1_TRIM!K200,\" \"))","v":"Trimestre 1\nEn el primer trimestre, se realiza Comité seccional SIGCMA, donde se aprueba la estrategia para fortlecer los procesos de inducción y reinducción.\n\nAvance en la elaboración de videos con los coordinadores de cada área."}]
[null,null,null,null,"Apoyo","Admin - Gestión Humana","Seccional","E2\nFortalecimiento de competencias de servidores judiciales de la Dirección","Entregable",null,null,"Mario Vanegas","Plan de formación y capacitación de acuerdo a la identificación de necesidades ","2023-01-01","2023-12-31",{"$f":"IFERROR(GESTION_SEG_1_TRIM!H201,\" \")","v":0},null,{"$f":"_xlfn.CONCAT(\"Trimestre 1\",CHAR(10),IFERROR(GESTION_SEG_1_TRIM!J201,\" \"))","v":"Trimestre 1\n"},{"$f":"_xlfn.CONCAT(\"Trimestre 1\",CHAR(10),IFERROR(GESTION_SEG_1_TRIM!K201,\" \"))","v":"Trimestre 1\nEn el primer trimestre se realiza encuesta de identificación de necesidades de formación y capacitación para los Servidores Judiciales de la DSAJ, en reunión del Comité Operativo SIGCMA No.2, cada Coordinador de Área socializa las necesidades de su equipo de trabajo mediante la encuesta anteriormente mencionada"}]
[null,null,null,null,"Apoyo","Admin - Gestión Humana","Seccional","E5\nActualización de manual de funciones de todos los cargos de la Dirección ","Entregable",37,"Cantidad de manuales actualizados","Mario Vanegas","Manuales de funciones actualizados  ","2023-01-01","2023-12-31",{"$f":"IFERROR(GESTION_SEG_1_TRIM!H202,\" \")","v":0},null,{"$f":"_xlfn.CONCAT(\"Trimestre 1\",CHAR(10),IFERROR(GESTION_SEG_1_TRIM!J202,\" \"))","v":"Trimestre 1\n"},{"$f":"_xlfn.CONCAT(\"Trimestre 1\",CHAR(10),IFERROR(GESTION_SEG_1_TRIM!K202,\" \"))","v":"Trimestre 1\nCada Área de la DSAJ se encuentra adelantando la revisión de las funciones correspondientes a cada cargo de su Área, para realizar la actualización de los manuales de funciones"}]
[null,null,null,null,null,null,null,null,null,null,null,null,null,null,null,{"$f":"IFERROR(GESTION_SEG_1_TRIM!H203,\" \")","v":0},"",{"$f":"_xlfn.CONCAT(\"Trimestre 1\",CHAR(10),IFERROR(GESTION_SEG_1_TRIM!J203,\" \"))","v":"Trimestre 1\n"},{"$f":"_xlfn.CONCAT(\"Trimestre 1\",CHAR(10),IFERROR(GESTION_SEG_1_TRIM!K203,\" \"))","v":"Trimestre 1\n"}]
[null,null,null,null,null,null,null,null,null,null,null,null,null,null,null,{"$f":"IFERROR(GESTION_SEG_1_TRIM!H204,\" \")","v":0},"",{"$f":"_xlfn.CONCAT(\"Trimestre 1\",CHAR(10),IFERROR(GESTION_SEG_1_TRIM!J204,\" \"))","v":"Trimestre 1\n"},{"$f":"_xlfn.CONCAT(\"Trimestre 1\",CHAR(10),IFERROR(GESTION_SEG_1_TRIM!K204,\" \"))","v":"Trimestre 1\n"}]
[null,null,null,null,null,null,null,null,null,null,null,null,null,null,null,{"$f":"IFERROR(GESTION_SEG_1_TRIM!H205,\" \")","v":0},"",{"$f":"_xlfn.CONCAT(\"Trimestre 1\",CHAR(10),IFERROR(GESTION_SEG_1_TRIM!J205,\" \"))","v":"Trimestre 1\n"},{"$f":"_xlfn.CONCAT(\"Trimestre 1\",CHAR(10),IFERROR(GESTION_SEG_1_TRIM!K205,\" \"))","v":"Trimestre 1\n"}]
[null,null,"3. Promover la incorporación de la perspectiva de género y el enfoque diferencial en los fallos judiciales y en la atención a los ciudadanos, la administración de la Rama Judicial, la administración de la carrera judicial y la elaboración de listas para altas Cortes. ",null,null,null,null,null,null,null,null,null,null,null,null,{"$f":"IFERROR(GESTION_SEG_1_TRIM!H206,\" \")","v":0},"",{"$f":"_xlfn.CONCAT(\"Trimestre 1\",CHAR(10),IFERROR(GESTION_SEG_1_TRIM!J206,\" \"))","v":"Trimestre 1\n"},{"$f":"_xlfn.CONCAT(\"Trimestre 1\",CHAR(10),IFERROR(GESTION_SEG_1_TRIM!K206,\" \"))","v":"Trimestre 1\n"}]
[null,null,null,null,null,null,null,null,null,null,null,null,null,null,null,{"$f":"IFERROR(GESTION_SEG_1_TRIM!H207,\" \")","v":0},"",{"$f":"_xlfn.CONCAT(\"Trimestre 1\",CHAR(10),IFERROR(GESTION_SEG_1_TRIM!J207,\" \"))","v":"Trimestre 1\n"},{"$f":"_xlfn.CONCAT(\"Trimestre 1\",CHAR(10),IFERROR(GESTION_SEG_1_TRIM!K207,\" \"))","v":"Trimestre 1\n"}]
[null,null,null,null,null,null,null,null,null,null,null,null,null,null,null,{"$f":"IFERROR(GESTION_SEG_1_TRIM!H208,\" \")","v":0},null,{"$f":"_xlfn.CONCAT(\"Trimestre 1\",CHAR(10),IFERROR(GESTION_SEG_1_TRIM!J208,\" \"))","v":"Trimestre 1\n"},{"$f":"_xlfn.CONCAT(\"Trimestre 1\",CHAR(10),IFERROR(GESTION_SEG_1_TRIM!K208,\" \"))","v":"Trimestre 1\n"}]
[null,null,null,null,null,null,null,null,null,null,null,null,null,null,null,{"$f":"IFERROR(GESTION_SEG_1_TRIM!H209,\" \")","v":0},null,{"$f":"_xlfn.CONCAT(\"Trimestre 1\",CHAR(10),IFERROR(GESTION_SEG_1_TRIM!J209,\" \"))","v":"Trimestre 1\n"},{"$f":"_xlfn.CONCAT(\"Trimestre 1\",CHAR(10),IFERROR(GESTION_SEG_1_TRIM!K209,\" \"))","v":"Trimestre 1\n"}]
[null,null,null,null,null,null,null,null,null,null,null,null,null,null,null,{"$f":"IFERROR(GESTION_SEG_1_TRIM!H210,\" \")","v":0},null,{"$f":"_xlfn.CONCAT(\"Trimestre 1\",CHAR(10),IFERROR(GESTION_SEG_1_TRIM!J210,\" \"))","v":"Trimestre 1\n"},{"$f":"_xlfn.CONCAT(\"Trimestre 1\",CHAR(10),IFERROR(GESTION_SEG_1_TRIM!K210,\" \"))","v":"Trimestre 1\n"}]
[null,null,null,null,null,null,null,null,null,null,null,null,null,null,null,{"$f":"IFERROR(GESTION_SEG_1_TRIM!H211,\" \")","v":0},null,{"$f":"_xlfn.CONCAT(\"Trimestre 1\",CHAR(10),IFERROR(GESTION_SEG_1_TRIM!J211,\" \"))","v":"Trimestre 1\n"},{"$f":"_xlfn.CONCAT(\"Trimestre 1\",CHAR(10),IFERROR(GESTION_SEG_1_TRIM!K211,\" \"))","v":"Trimestre 1\n"}]
[null,null,null,null,null,null,null,null,null,null,null,null,null,null,null,{"$f":"IFERROR(GESTION_SEG_1_TRIM!H212,\" \")","v":0},null,{"$f":"_xlfn.CONCAT(\"Trimestre 1\",CHAR(10),IFERROR(GESTION_SEG_1_TRIM!J212,\" \"))","v":"Trimestre 1\n"},{"$f":"_xlfn.CONCAT(\"Trimestre 1\",CHAR(10),IFERROR(GESTION_SEG_1_TRIM!K212,\" \"))","v":"Trimestre 1\n"}]
[null,null,null,null,null,null,null,null,null,null,null,null,null,null,null,{"$f":"IFERROR(GESTION_SEG_1_TRIM!H213,\" \")","v":0},"",{"$f":"_xlfn.CONCAT(\"Trimestre 1\",CHAR(10),IFERROR(GESTION_SEG_1_TRIM!J213,\" \"))","v":"Trimestre 1\n"},{"$f":"_xlfn.CONCAT(\"Trimestre 1\",CHAR(10),IFERROR(GESTION_SEG_1_TRIM!K213,\" \"))","v":"Trimestre 1\n"}]
[null,null,null,null,null,null,null,null,null,null,null,null,null,null,null,{"$f":"IFERROR(GESTION_SEG_1_TRIM!H214,\" \")","v":0},"",{"$f":"_xlfn.CONCAT(\"Trimestre 1\",CHAR(10),IFERROR(GESTION_SEG_1_TRIM!J214,\" \"))","v":"Trimestre 1\n"},{"$f":"_xlfn.CONCAT(\"Trimestre 1\",CHAR(10),IFERROR(GESTION_SEG_1_TRIM!K214,\" \"))","v":"Trimestre 1\n"}]
[null,null,null,null,null,null,null,null,null,null,null,null,null,null,null,{"$f":"IFERROR(GESTION_SEG_1_TRIM!H215,\" \")","v":0},"",{"$f":"_xlfn.CONCAT(\"Trimestre 1\",CHAR(10),IFERROR(GESTION_SEG_1_TRIM!J215,\" \"))","v":"Trimestre 1\n"},{"$f":"_xlfn.CONCAT(\"Trimestre 1\",CHAR(10),IFERROR(GESTION_SEG_1_TRIM!K215,\" \"))","v":"Trimestre 1\n"}]
[null,null,"4. Desarrollar en los servidores judiciales y demás grupos de valor relevantes las competencias necesarias para la efectividad de la transformación digital de modo que puedan, entre otros, utilizar con solvencia las herramientas digitales dispuestas para sus respectivas funciones. Además, fortalecer y actualizar los conocimientos del personal a cargo de la gestión de proyectos de tecnología.",null,"Misionales","Admin - Reordenamiento Judicial","Seccional","Implementación de manuales de funciones para los servidores judiciales del Consejo Seccional\n6 Manuales (2 auxiliares, 2 profesionales grado 11, 1 escribiente, un conductor)","Meta cuantificable",6,"Cantidad de manuales estructurados","Magistrada Beatriz Eugenia Ángel Vélez","Manuales de funciones actualizado","2023-01-01","2023-12-31",{"$f":"IFERROR(GESTION_SEG_1_TRIM!H216,\" \")","v":0},0,{"$f":"_xlfn.CONCAT(\"Trimestre 1\",CHAR(10),IFERROR(GESTION_SEG_1_TRIM!J216,\" \"))","v":"Trimestre 1\n"},{"$f":"_xlfn.CONCAT(\"Trimestre 1\",CHAR(10),IFERROR(GESTION_SEG_1_TRIM!K216,\" \"))","v":"Trimestre 1\nEn el primer trimestre se solicitó a cada uno de los empleados que realizaran una relación de las funcones que ejecutan en cada cargo, la información se encuentra en revisión para empezar a implementar los manuales de funciones."}]
[null,null,null,null,null,null,null,null,null,null,null,null,null,null,null,{"$f":"IFERROR(GESTION_SEG_1_TRIM!H217,\" \")","v":0},"",{"$f":"_xlfn.CONCAT(\"Trimestre 1\",CHAR(10),IFERROR(GESTION_SEG_1_TRIM!J217,\" \"))","v":"Trimestre 1\n"},{"$f":"_xlfn.CONCAT(\"Trimestre 1\",CHAR(10),IFERROR(GESTION_SEG_1_TRIM!K217,\" \"))","v":"Trimestre 1\n"}]
[null,null,null,null,null,null,null,null,null,null,null,null,null,null,null,{"$f":"IFERROR(GESTION_SEG_1_TRIM!H218,\" \")","v":0},null,{"$f":"_xlfn.CONCAT(\"Trimestre 1\",CHAR(10),IFERROR(GESTION_SEG_1_TRIM!J218,\" \"))","v":"Trimestre 1\n"},{"$f":"_xlfn.CONCAT(\"Trimestre 1\",CHAR(10),IFERROR(GESTION_SEG_1_TRIM!K218,\" \"))","v":"Trimestre 1\n"}]
[null,null,null,null,null,null,null,null,null,null,null,null,null,null,null,{"$f":"IFERROR(GESTION_SEG_1_TRIM!H219,\" \")","v":0},null,{"$f":"_xlfn.CONCAT(\"Trimestre 1\",CHAR(10),IFERROR(GESTION_SEG_1_TRIM!J219,\" \"))","v":"Trimestre 1\n"},{"$f":"_xlfn.CONCAT(\"Trimestre 1\",CHAR(10),IFERROR(GESTION_SEG_1_TRIM!K219,\" \"))","v":"Trimestre 1\n"}]
[null,null,null,null,null,null,null,null,null,null,null,null,null,null,null,{"$f":"IFERROR(GESTION_SEG_1_TRIM!H220,\" \")","v":0},null,{"$f":"_xlfn.CONCAT(\"Trimestre 1\",CHAR(10),IFERROR(GESTION_SEG_1_TRIM!J220,\" \"))","v":"Trimestre 1\n"},{"$f":"_xlfn.CONCAT(\"Trimestre 1\",CHAR(10),IFERROR(GESTION_SEG_1_TRIM!K220,\" \"))","v":"Trimestre 1\n"}]
[null,null,null,null,null,null,null,null,null,null,null,null,null,null,null,{"$f":"IFERROR(GESTION_SEG_1_TRIM!H221,\" \")","v":0},null,{"$f":"_xlfn.CONCAT(\"Trimestre 1\",CHAR(10),IFERROR(GESTION_SEG_1_TRIM!J221,\" \"))","v":"Trimestre 1\n"},{"$f":"_xlfn.CONCAT(\"Trimestre 1\",CHAR(10),IFERROR(GESTION_SEG_1_TRIM!K221,\" \"))","v":"Trimestre 1\n"}]
[null,null,null,null,null,null,null,null,null,null,null,null,null,null,null,{"$f":"IFERROR(GESTION_SEG_1_TRIM!H222,\" \")","v":0},null,{"$f":"_xlfn.CONCAT(\"Trimestre 1\",CHAR(10),IFERROR(GESTION_SEG_1_TRIM!J222,\" \"))","v":"Trimestre 1\n"},{"$f":"_xlfn.CONCAT(\"Trimestre 1\",CHAR(10),IFERROR(GESTION_SEG_1_TRIM!K222,\" \"))","v":"Trimestre 1\n"}]
[null,null,null,null,null,null,null,null,null,null,null,null,null,null,null,{"$f":"IFERROR(GESTION_SEG_1_TRIM!H223,\" \")","v":0},"",{"$f":"_xlfn.CONCAT(\"Trimestre 1\",CHAR(10),IFERROR(GESTION_SEG_1_TRIM!J223,\" \"))","v":"Trimestre 1\n"},{"$f":"_xlfn.CONCAT(\"Trimestre 1\",CHAR(10),IFERROR(GESTION_SEG_1_TRIM!K223,\" \"))","v":"Trimestre 1\n"}]
[null,null,null,null,null,null,null,null,null,null,null,null,null,null,null,{"$f":"IFERROR(GESTION_SEG_1_TRIM!H224,\" \")","v":0},"",{"$f":"_xlfn.CONCAT(\"Trimestre 1\",CHAR(10),IFERROR(GESTION_SEG_1_TRIM!J224,\" \"))","v":"Trimestre 1\n"},{"$f":"_xlfn.CONCAT(\"Trimestre 1\",CHAR(10),IFERROR(GESTION_SEG_1_TRIM!K224,\" \"))","v":"Trimestre 1\n"}]
[null,null,null,null,null,null,null,null,null,null,null,null,null,null,null,{"$f":"IFERROR(GESTION_SEG_1_TRIM!H225,\" \")","v":0},"",{"$f":"_xlfn.CONCAT(\"Trimestre 1\",CHAR(10),IFERROR(GESTION_SEG_1_TRIM!J225,\" \"))","v":"Trimestre 1\n"},{"$f":"_xlfn.CONCAT(\"Trimestre 1\",CHAR(10),IFERROR(GESTION_SEG_1_TRIM!K225,\" \"))","v":"Trimestre 1\n"}]
[null,null,"5. Promover el bienestar de todos los servidores judiciales a través de la implementación de un sistema que contemple los diferentes niveles de estrategias y acciones necesarios para mejorar el clima laboral, la salud física y mental y la calidad del tiempo de descanso.","5. Generar espacios de trabajo seguros y saludables que contribuyan a minimizar los  incidentes, accidentes y enfermedades laborales derivados de las condiciones y actos  inseguros y fomentar  el autocuidado, los  estilos de vida y el trabajo saludable en los servidores judiciales, contratistas, judicantes y practicantes","Apoyo","Admin - Gestión de Seguridad y Salud en el Trabajo","Seccional","Fortalecimiento Brigada de emergencias ","Entregable",null,null,"Coordinadora SST","Participación de brigadistas en las actividades ","2023-01-01","2023-12-31",{"$f":"IFERROR(GESTION_SEG_1_TRIM!H226,\" \")","v":0},"",{"$f":"_xlfn.CONCAT(\"Trimestre 1\",CHAR(10),IFERROR(GESTION_SEG_1_TRIM!J226,\" \"))","v":"Trimestre 1\nRetraso en la programación de activides, dadas las demoras en la publicación del plan de trabajo anual, el cual llega oficialmente hasta marzo"},{"$f":"_xlfn.CONCAT(\"Trimestre 1\",CHAR(10),IFERROR(GESTION_SEG_1_TRIM!K226,\" \"))","v":"Trimestre 1\nSe realizó capacitación con enfoque en RCP y primeros auxilios, direccionada a brigadistas de las sedes con DEA. (Soportes: listados de asistencia, presentación y registro fotográfico)\n\nAsisten 11 integrantes de la brigada de emergencias"}]
[null,null,null,null,"Apoyo","Admin - Gestión de Seguridad y Salud en el Trabajo","Seccional","Plan de prevención de la enfermedad mental ","Entregable",null,null,"Coordinadora SST","Reporte de servidores judiciales que se vinculan al plan","2023-01-01","2023-12-31",{"$f":"IFERROR(GESTION_SEG_1_TRIM!H227,\" \")","v":0},"",{"$f":"_xlfn.CONCAT(\"Trimestre 1\",CHAR(10),IFERROR(GESTION_SEG_1_TRIM!J227,\" \"))","v":"Trimestre 1\nRetraso en la programación de activides, dadas las demoras en la publicación del plan de trabajo anual, el cual llega oficialmente hasta marzo"},{"$f":"_xlfn.CONCAT(\"Trimestre 1\",CHAR(10),IFERROR(GESTION_SEG_1_TRIM!K227,\" \"))","v":"Trimestre 1\nEn el primer trimestre en atención individual, consultaron 30 personsa \n\nEn atención colectiva participaron  45 personas"}]
[null,null,null,null,"Apoyo","Admin - Gestión de Seguridad y Salud en el Trabajo","Seccional","Talleres de vida saludable ","Entregable",null,null,"Coordinadora SST","Material, videos, infografía enviados","2023-01-01","2023-12-31",{"$f":"IFERROR(GESTION_SEG_1_TRIM!H228,\" \")","v":0},null,{"$f":"_xlfn.CONCAT(\"Trimestre 1\",CHAR(10),IFERROR(GESTION_SEG_1_TRIM!J228,\" \"))","v":"Trimestre 1\n"},{"$f":"_xlfn.CONCAT(\"Trimestre 1\",CHAR(10),IFERROR(GESTION_SEG_1_TRIM!K228,\" \"))","v":"Trimestre 1\nEn el primer trimestre se desarrollaron 4 actividdes del programa,"}]
[null,null,null,null,"Apoyo","Admin - Gestión Humana","Seccional","E4\nPrograma de Bienestar social (Mejoramiento de la cobertura,reactivación de todas las disciplinas incluidas en el programa)","Entregable",678,"Cantidad de servidores judiciales que participan ","\nCoordinadora programa de Bienestar \nLaura Victoria Marín","Cobertura de servidores judiciales que participan de las actividades del programa de Bienestar ","2023-01-01","2023-12-31",{"$f":"IFERROR(GESTION_SEG_1_TRIM!H229,\" \")","v":0},null,{"$f":"_xlfn.CONCAT(\"Trimestre 1\",CHAR(10),IFERROR(GESTION_SEG_1_TRIM!J229,\" \"))","v":"Trimestre 1\n"},{"$f":"_xlfn.CONCAT(\"Trimestre 1\",CHAR(10),IFERROR(GESTION_SEG_1_TRIM!K229,\" \"))","v":"Trimestre 1\nEn el primer trimestre se adelantó el proceso de contratación de todas las disciplinas adscrritas al programa de bienestar "}]
[null,null,null,null,null,null,null,null,null,null,null,null,null,null,null,{"$f":"IFERROR(GESTION_SEG_1_TRIM!H230,\" \")","v":0},null,{"$f":"_xlfn.CONCAT(\"Trimestre 1\",CHAR(10),IFERROR(GESTION_SEG_1_TRIM!J230,\" \"))","v":"Trimestre 1\n"},{"$f":"_xlfn.CONCAT(\"Trimestre 1\",CHAR(10),IFERROR(GESTION_SEG_1_TRIM!K230,\" \"))","v":"Trimestre 1\n"}]
[null,null,null,null,null,null,null,null,null,null,null,null,null,null,null,{"$f":"IFERROR(GESTION_SEG_1_TRIM!H231,\" \")","v":0},null,{"$f":"_xlfn.CONCAT(\"Trimestre 1\",CHAR(10),IFERROR(GESTION_SEG_1_TRIM!J231,\" \"))","v":"Trimestre 1\n"},{"$f":"_xlfn.CONCAT(\"Trimestre 1\",CHAR(10),IFERROR(GESTION_SEG_1_TRIM!K231,\" \"))","v":"Trimestre 1\n"}]
[null,null,null,null,null,null,null,null,null,null,null,null,null,null,null,{"$f":"IFERROR(GESTION_SEG_1_TRIM!H232,\" \")","v":0},null,{"$f":"_xlfn.CONCAT(\"Trimestre 1\",CHAR(10),IFERROR(GESTION_SEG_1_TRIM!J232,\" \"))","v":"Trimestre 1\n"},{"$f":"_xlfn.CONCAT(\"Trimestre 1\",CHAR(10),IFERROR(GESTION_SEG_1_TRIM!K232,\" \"))","v":"Trimestre 1\n"}]
[null,null,null,null,null,null,null,null,null,null,null,null,null,null,null,{"$f":"IFERROR(GESTION_SEG_1_TRIM!H233,\" \")","v":0},"",{"$f":"_xlfn.CONCAT(\"Trimestre 1\",CHAR(10),IFERROR(GESTION_SEG_1_TRIM!J233,\" \"))","v":"Trimestre 1\n"},{"$f":"_xlfn.CONCAT(\"Trimestre 1\",CHAR(10),IFERROR(GESTION_SEG_1_TRIM!K233,\" \"))","v":"Trimestre 1\n"}]
[null,null,null,null,null,null,null,null,null,null,null,null,null,null,null,{"$f":"IFERROR(GESTION_SEG_1_TRIM!H234,\" \")","v":0},"",{"$f":"_xlfn.CONCAT(\"Trimestre 1\",CHAR(10),IFERROR(GESTION_SEG_1_TRIM!J234,\" \"))","v":"Trimestre 1\n"},{"$f":"_xlfn.CONCAT(\"Trimestre 1\",CHAR(10),IFERROR(GESTION_SEG_1_TRIM!K234,\" \"))","v":"Trimestre 1\n"}]
[null,null,null,null,null,null,null,null,null,null,null,null,null,null,null,{"$f":"IFERROR(GESTION_SEG_1_TRIM!H235,\" \")","v":0},"",{"$f":"_xlfn.CONCAT(\"Trimestre 1\",CHAR(10),IFERROR(GESTION_SEG_1_TRIM!J235,\" \"))","v":"Trimestre 1\n"},{"$f":"_xlfn.CONCAT(\"Trimestre 1\",CHAR(10),IFERROR(GESTION_SEG_1_TRIM!K235,\" \"))","v":"Trimestre 1\n"}]
["5. Gobernanza, planeación estratégica y capacidad de toma de decisiones","Gobernanza, planeación estratégica y capacidad de toma de decisiones: Fortalecer la gobernanza, la planeación estratégica y la capacidad de toma de decisiones de la Rama Judicial con base en la evidencia empírica y la articulación efectiva con las demás entidades, para que la perspectiva de género y el enfoque diferencial sean transversales en el presente plan. ","1. Implementar un nuevo modelo integrado para la planeación estratégica, el seguimiento y la medición del desempeño institucional.","2. Asegurar  el cumplimiento de los objetivos institucionales, la normatividad aplicable,  la mejora del SIGCMA y la satisfacción de los usuarios, revisando de  forma continua y sistemática la planificación de la gestión y fortaleciendo la administración de riesgos y sus controles.",null,null,null,null,null,null,null,null,null,null,null,{"$f":"IFERROR(GESTION_SEG_1_TRIM!H236,\" \")","v":0},"",{"$f":"_xlfn.CONCAT(\"Trimestre 1\",CHAR(10),IFERROR(GESTION_SEG_1_TRIM!J236,\" \"))","v":"Trimestre 1\n"},{"$f":"_xlfn.CONCAT(\"Trimestre 1\",CHAR(10),IFERROR(GESTION_SEG_1_TRIM!K236,\" \"))","v":"Trimestre 1\n"}]
[null,null,null,null,null,null,null,null,null,null,null,null,null,null,null,{"$f":"IFERROR(GESTION_SEG_1_TRIM!H237,\" \")","v":0},null,{"$f":"_xlfn.CONCAT(\"Trimestre 1\",CHAR(10),IFERROR(GESTION_SEG_1_TRIM!J237,\" \"))","v":"Trimestre 1\n"},{"$f":"_xlfn.CONCAT(\"Trimestre 1\",CHAR(10),IFERROR(GESTION_SEG_1_TRIM!K237,\" \"))","v":"Trimestre 1\n"}]
[null,null,null,null,null,null,null,null,null,null,null,null,null,null,null,{"$f":"IFERROR(GESTION_SEG_1_TRIM!H238,\" \")","v":0},null,{"$f":"_xlfn.CONCAT(\"Trimestre 1\",CHAR(10),IFERROR(GESTION_SEG_1_TRIM!J238,\" \"))","v":"Trimestre 1\n"},{"$f":"_xlfn.CONCAT(\"Trimestre 1\",CHAR(10),IFERROR(GESTION_SEG_1_TRIM!K238,\" \"))","v":"Trimestre 1\n"}]
[null,null,null,null,null,null,null,null,null,null,null,null,null,null,null,{"$f":"IFERROR(GESTION_SEG_1_TRIM!H239,\" \")","v":0},null,{"$f":"_xlfn.CONCAT(\"Trimestre 1\",CHAR(10),IFERROR(GESTION_SEG_1_TRIM!J239,\" \"))","v":"Trimestre 1\n"},{"$f":"_xlfn.CONCAT(\"Trimestre 1\",CHAR(10),IFERROR(GESTION_SEG_1_TRIM!K239,\" \"))","v":"Trimestre 1\n"}]
[null,null,null,null,null,null,null,null,null,null,null,null,null,null,null,{"$f":"IFERROR(GESTION_SEG_1_TRIM!H240,\" \")","v":0},null,{"$f":"_xlfn.CONCAT(\"Trimestre 1\",CHAR(10),IFERROR(GESTION_SEG_1_TRIM!J240,\" \"))","v":"Trimestre 1\n"},{"$f":"_xlfn.CONCAT(\"Trimestre 1\",CHAR(10),IFERROR(GESTION_SEG_1_TRIM!K240,\" \"))","v":"Trimestre 1\n"}]
[null,null,null,null,null,null,null,null,null,null,null,null,null,null,null,{"$f":"IFERROR(GESTION_SEG_1_TRIM!H241,\" \")","v":0},null,{"$f":"_xlfn.CONCAT(\"Trimestre 1\",CHAR(10),IFERROR(GESTION_SEG_1_TRIM!J241,\" \"))","v":"Trimestre 1\n"},{"$f":"_xlfn.CONCAT(\"Trimestre 1\",CHAR(10),IFERROR(GESTION_SEG_1_TRIM!K241,\" \"))","v":"Trimestre 1\n"}]
[null,null,null,null,null,null,null,null,null,null,null,null,null,null,null,{"$f":"IFERROR(GESTION_SEG_1_TRIM!H242,\" \")","v":0},"",{"$f":"_xlfn.CONCAT(\"Trimestre 1\",CHAR(10),IFERROR(GESTION_SEG_1_TRIM!J242,\" \"))","v":"Trimestre 1\n"},{"$f":"_xlfn.CONCAT(\"Trimestre 1\",CHAR(10),IFERROR(GESTION_SEG_1_TRIM!K242,\" \"))","v":"Trimestre 1\n"}]
[null,null,null,null,null,null,null,null,null,null,null,null,null,null,null,{"$f":"IFERROR(GESTION_SEG_1_TRIM!H243,\" \")","v":0},"",{"$f":"_xlfn.CONCAT(\"Trimestre 1\",CHAR(10),IFERROR(GESTION_SEG_1_TRIM!J243,\" \"))","v":"Trimestre 1\n"},{"$f":"_xlfn.CONCAT(\"Trimestre 1\",CHAR(10),IFERROR(GESTION_SEG_1_TRIM!K243,\" \"))","v":"Trimestre 1\n"}]
[null,null,null,null,null,null,null,null,null,null,null,null,null,null,null,{"$f":"IFERROR(GESTION_SEG_1_TRIM!H244,\" \")","v":0},"",{"$f":"_xlfn.CONCAT(\"Trimestre 1\",CHAR(10),IFERROR(GESTION_SEG_1_TRIM!J244,\" \"))","v":"Trimestre 1\n"},{"$f":"_xlfn.CONCAT(\"Trimestre 1\",CHAR(10),IFERROR(GESTION_SEG_1_TRIM!K244,\" \"))","v":"Trimestre 1\n"}]
[null,null,null,null,null,null,null,null,null,null,null,null,null,null,null,{"$f":"IFERROR(GESTION_SEG_1_TRIM!H245,\" \")","v":0},"",{"$f":"_xlfn.CONCAT(\"Trimestre 1\",CHAR(10),IFERROR(GESTION_SEG_1_TRIM!J245,\" \"))","v":"Trimestre 1\n"},{"$f":"_xlfn.CONCAT(\"Trimestre 1\",CHAR(10),IFERROR(GESTION_SEG_1_TRIM!K245,\" \"))","v":"Trimestre 1\n"}]
[null,null,"2. Definir e implementar el modelo optimizado de formulación, seguimiento y evaluación de la política pública judicial.",null,null,null,null,null,null,null,null,null,null,null,null,{"$f":"IFERROR(GESTION_SEG_1_TRIM!H246,\" \")","v":0},"",{"$f":"_xlfn.CONCAT(\"Trimestre 1\",CHAR(10),IFERROR(GESTION_SEG_1_TRIM!J246,\" \"))","v":"Trimestre 1\n"},{"$f":"_xlfn.CONCAT(\"Trimestre 1\",CHAR(10),IFERROR(GESTION_SEG_1_TRIM!K246,\" \"))","v":"Trimestre 1\n"}]
[null,null,null,null,null,null,null,null,null,null,null,null,null,null,null,{"$f":"IFERROR(GESTION_SEG_1_TRIM!H247,\" \")","v":0},"",{"$f":"_xlfn.CONCAT(\"Trimestre 1\",CHAR(10),IFERROR(GESTION_SEG_1_TRIM!J247,\" \"))","v":"Trimestre 1\n"},{"$f":"_xlfn.CONCAT(\"Trimestre 1\",CHAR(10),IFERROR(GESTION_SEG_1_TRIM!K247,\" \"))","v":"Trimestre 1\n"}]
[null,null,null,null,null,null,null,null,null,null,null,null,null,null,null,{"$f":"IFERROR(GESTION_SEG_1_TRIM!H248,\" \")","v":0},null,{"$f":"_xlfn.CONCAT(\"Trimestre 1\",CHAR(10),IFERROR(GESTION_SEG_1_TRIM!J248,\" \"))","v":"Trimestre 1\n"},{"$f":"_xlfn.CONCAT(\"Trimestre 1\",CHAR(10),IFERROR(GESTION_SEG_1_TRIM!K248,\" \"))","v":"Trimestre 1\n"}]
[null,null,null,null,null,null,null,null,null,null,null,null,null,null,null,{"$f":"IFERROR(GESTION_SEG_1_TRIM!H249,\" \")","v":0},null,{"$f":"_xlfn.CONCAT(\"Trimestre 1\",CHAR(10),IFERROR(GESTION_SEG_1_TRIM!J249,\" \"))","v":"Trimestre 1\n"},{"$f":"_xlfn.CONCAT(\"Trimestre 1\",CHAR(10),IFERROR(GESTION_SEG_1_TRIM!K249,\" \"))","v":"Trimestre 1\n"}]
[null,null,null,null,null,null,null,null,null,null,null,null,null,null,null,{"$f":"IFERROR(GESTION_SEG_1_TRIM!H250,\" \")","v":0},null,{"$f":"_xlfn.CONCAT(\"Trimestre 1\",CHAR(10),IFERROR(GESTION_SEG_1_TRIM!J250,\" \"))","v":"Trimestre 1\n"},{"$f":"_xlfn.CONCAT(\"Trimestre 1\",CHAR(10),IFERROR(GESTION_SEG_1_TRIM!K250,\" \"))","v":"Trimestre 1\n"}]
[null,null,null,null,null,null,null,null,null,null,null,null,null,null,null,{"$f":"IFERROR(GESTION_SEG_1_TRIM!H251,\" \")","v":0},null,{"$f":"_xlfn.CONCAT(\"Trimestre 1\",CHAR(10),IFERROR(GESTION_SEG_1_TRIM!J251,\" \"))","v":"Trimestre 1\n"},{"$f":"_xlfn.CONCAT(\"Trimestre 1\",CHAR(10),IFERROR(GESTION_SEG_1_TRIM!K251,\" \"))","v":"Trimestre 1\n"}]
[null,null,null,null,null,null,null,null,null,null,null,null,null,null,null,{"$f":"IFERROR(GESTION_SEG_1_TRIM!H252,\" \")","v":0},null,{"$f":"_xlfn.CONCAT(\"Trimestre 1\",CHAR(10),IFERROR(GESTION_SEG_1_TRIM!J252,\" \"))","v":"Trimestre 1\n"},{"$f":"_xlfn.CONCAT(\"Trimestre 1\",CHAR(10),IFERROR(GESTION_SEG_1_TRIM!K252,\" \"))","v":"Trimestre 1\n"}]
[null,null,null,null,null,null,null,null,null,null,null,null,null,null,null,{"$f":"IFERROR(GESTION_SEG_1_TRIM!H253,\" \")","v":0},"",{"$f":"_xlfn.CONCAT(\"Trimestre 1\",CHAR(10),IFERROR(GESTION_SEG_1_TRIM!J253,\" \"))","v":"Trimestre 1\n"},{"$f":"_xlfn.CONCAT(\"Trimestre 1\",CHAR(10),IFERROR(GESTION_SEG_1_TRIM!K253,\" \"))","v":"Trimestre 1\n"}]
[null,null,null,null,null,null,null,null,null,null,null,null,null,null,null,{"$f":"IFERROR(GESTION_SEG_1_TRIM!H254,\" \")","v":0},"",{"$f":"_xlfn.CONCAT(\"Trimestre 1\",CHAR(10),IFERROR(GESTION_SEG_1_TRIM!J254,\" \"))","v":"Trimestre 1\n"},{"$f":"_xlfn.CONCAT(\"Trimestre 1\",CHAR(10),IFERROR(GESTION_SEG_1_TRIM!K254,\" \"))","v":"Trimestre 1\n"}]
[null,null,null,null,null,null,null,null,null,null,null,null,null,null,null,{"$f":"IFERROR(GESTION_SEG_1_TRIM!H255,\" \")","v":0},"",{"$f":"_xlfn.CONCAT(\"Trimestre 1\",CHAR(10),IFERROR(GESTION_SEG_1_TRIM!J255,\" \"))","v":"Trimestre 1\n"},{"$f":"_xlfn.CONCAT(\"Trimestre 1\",CHAR(10),IFERROR(GESTION_SEG_1_TRIM!K255,\" \"))","v":"Trimestre 1\n"}]

{"sheet":"GESTION_SEG_1_TRIM","index":5,"n_rows":255,"n_cols":11,"rows_kept":255,"cut":false,"hidden":false,"merged":[[25,2,34,2],[25,3,34,3],[35,2,44,2],[35,3,44,3],[1,0,1,10],[2,0,2,3],[2,4,2,9],[2,10,4,10],[3,0,4,1],[3,2,4,2],[3,3,4,3],[3,4,3,9],[45,2,54,2],[45,3,54,3],[55,0,114,0],[55,1,114,1],[55,2,64,2],[55,3,114,3],[65,2,74,2],[75,2,84,2],[85,2,94,2],[95,2,104,2],[5,0,54,0],[5,1,54,1],[5,2,14,2],[5,3,14,3],[15,2,24,2],[15,3,24,3],[105,2,114,2],[115,0,184,0],[115,1,184,1],[115,2,124,2],[115,3,124,3],[125,2,134,2],[125,3,134,3],[135,2,144,2],[135,3,144,3],[145,2,154,2],[145,3,174,3],[155,2,164,2],[165,2,174,2],[175,2,184,2],[175,3,184,3],[205,2,214,2],[215,2,224,2],[225,2,234,2],[225,3,234,3],[235,0,254,0],[235,1,254,1],[235,2,244,2],[235,3,254,3],[245,2,254,2],[185,0,234,0],[185,1,234,1],[185,2,194,2],[185,3,224,3],[195,2,204,2]]}
[]
["CONSEJO SUPERIOR DE LA JUDICATURA \nUNIDADES MISIONALES DEL CONSEJO SUPERIOR DE LA JUDICATURA - \nDIRECCIÓN EJECUTIVA DE ADMINISTRACIÓN JUDICIAL - UNIDADES MISIONALES DE LA DEAJ\nDIRECCIONES SECCIONALES DE ADMINISTRACIÓN JUDICIAL - DEPENDENCIAS JUDICIALES CERTIFICADAS"]
["PLAN SECTORIAL DE DESARROLLO 2023-2026 - OBJETIVOS SIGCMA",null,null,null,null,null,null,null,null,null," ANÁLISIS RESULTADO"]
["OBJETIVO ESTRATÉGICO",null,"OBJETIVO ESPECÍFICO PSD","OBJETIVO ESPECÍFICO SIGCMA","MEDICIÓN DE LA GESTIÓN ANUAL"]
[null,null,null,null,"ACTIVIDADES ","INDIQUE SI ES ENTREGABLE O META CUANTIFICABLE","META ANUAL","AVANCE DE LA META ","NIVEL CUMPLIMIENTO","DIFICULTADES PARA LOGRAR LA META PROPUESTA"]
["1. Acceso e Infraestructura Física","Acceso e Infraestructura Física: Ampliar, en todo el territorio nacional, el acceso a una justicia efectiva, pronta, equitativa e incluyente, reduciendo el atraso y la congestión, de acuerdo con las necesidades de la demanda de justicia por jurisdicción y especialidad, y mejorando la articulación con la justicia restaurativa y terapéutica, y otros mecanismos de solución de conflictos y consolidando una infraestructura física óptima para el acceso a la justicia.","1. Ampliar el acceso a justicia para atender las necesidades jurídicas de los ciudadanos con un enfoque diferencial, de una manera pronta, reduciendo las inequidades y las brechas territoriales de acceso.","2. Asegurar  el cumplimiento de los objetivos institucionales, la normatividad aplicable,  la mejora del SIGCMA y la satisfacción de los usuarios, revisando de  forma continua y sistemática la planificación de la gestión y fortaleciendo la administración de riesgos y sus controles",{"$f":"IFERROR(GESTION!H6,\" \")","v":0},{"$f":"IFERROR(GESTION!I6,\" \")","v":0},{"$f":"IFERROR(GESTION!J6,\" \")","v":0},null,{"$f":"IFERROR(H6/G6,\"\")","v":""}]
[null,null,null,null,{"$f":"IFERROR(GESTION!H7,\" \")","v":0},{"$f":"IFERROR(GESTION!I7,\" \")","v":0},{"$f":"IFERROR(GESTION!J7,\" \")","v":0},null,""]
[null,null,null,null,{"$f":"IFERROR(GESTION!H8,\" \")","v":0},{"$f":"IFERROR(GESTION!I8,\" \")","v":0},{"$f":"IFERROR(GESTION!J8,\" \")","v":0},null,""]
[null,null,null,null,{"$f":"IFERROR(GESTION!H9,\" \")","v":0},{"$f":"IFERROR(GESTION!I9,\" \")","v":0},{"$f":"IFERROR(GESTION!J9,\" \")","v":0},null,""]
[null,null,null,null,{"$f":"IFERROR(GESTION!H10,\" \")","v":0},{"$f":"IFERROR(GESTION!I10,\" \")","v":0},{"$f":"IFERROR(GESTION!J10,\" \")","v":0},null,""]
[null,null,null,null,{"$f":"IFERROR(GESTION!H11,\" \")","v":0},{"$f":"IFERROR(GESTION!I11,\" \")","v":0},{"$f":"IFERROR(GESTION!J11,\" \")","v":0},null,""]
[null,null,null,null,{"$f":"IFERROR(GESTION!H12,\" \")","v":0},{"$f":"IFERROR(GESTION!I12,\" \")","v":0},{"$f":"IFERROR(GESTION!J12,\" \")","v":0},null,""]
[null,null,null,null,{"$f":"IFERROR(GESTION!H13,\" \")","v":0},{"$f":"IFERROR(GESTION!I13,\" \")","v":0},{"$f":"IFERROR(GESTION!J13,\" \")","v":0},null,""]
[null,null,null,null,{"$f":"IFERROR(GESTION!H14,\" \")","v":0},{"$f":"IFERROR(GESTION!I14,\" \")","v":0},{"$f":"IFERROR(GESTION!J14,\" \")","v":0},null,""]
[null,null,null,null,{"$f":"IFERROR(GESTION!H15,\" \")","v":0},{"$f":"IFERROR(GESTION!I15,\" \")","v":0},{"$f":"IFERROR(GESTION!J15,\" \")","v":0},null,""]
[null,null,"2. Mejorar los tiempos de respuesta de la Rama Judicial y reducir el inventario de procesos, identificando los retos internos y promoviendo tanto acciones articuladas específicas para abordarlos como estrategias coordinadas para enfrentar las barreras que dependen de otras entidades.","2. Asegurar  el cumplimiento de los objetivos institucionales, la normatividad aplicable,  la mejora del SIGCMA y la satisfacción de los usuarios, revisando de  forma continua y sistemática la planificación de la gestión y fortaleciendo la administración de riesgos y sus controles",{"$f":"IFERROR(GESTION!H16,\" \")","v":0},{"$f":"IFERROR(GESTION!I16,\" \")","v":0},{"$f":"IFERROR(GESTION!J16,\" \")","v":0},null,""]
[null,null,null,null,{"$f":"IFERROR(GESTION!H17,\" \")","v":0},{"$f":"IFERROR(GESTION!I17,\" \")","v":0},{"$f":"IFERROR(GESTION!J17,\" \")","v":0},null,""]
[null,null,null,null,{"$f":"IFERROR(GESTION!H18,\" \")","v":0},{"$f":"IFERROR(GESTION!I18,\" \")","v":0},{"$f":"IFERROR(GESTION!J18,\" \")","v":0},null,""]
[null,null,null,null,{"$f":"IFERROR(GESTION!H19,\" \")","v":0},{"$f":"IFERROR(GESTION!I19,\" \")","v":0},{"$f":"IFERROR(GESTION!J19,\" \")","v":0},null,""]
[null,null,null,null,{"$f":"IFERROR(GESTION!H20,\" \")","v":0},{"$f":"IFERROR(GESTION!I20,\" \")","v":0},{"$f":"IFERROR(GESTION!J20,\" \")","v":0},null,""]
[null,null,null,null,{"$f":"IFERROR(GESTION!H21,\" \")","v":0},{"$f":"IFERROR(GESTION!I21,\" \")","v":0},{"$f":"IFERROR(GESTION!J21,\" \")","v":0},null,""]
[null,null,null,null,{"$f":"IFERROR(GESTION!H22,\" \")","v":0},{"$f":"IFERROR(GESTION!I22,\" \")","v":0},{"$f":"IFERROR(GESTION!J22,\" \")","v":0},null,""]
[null,null,null,null,{"$f":"IFERROR(GESTION!H23,\" \")","v":0},{"$f":"IFERROR(GESTION!I23,\" \")","v":0},{"$f":"IFERROR(GESTION!J23,\" \")","v":0},null,""]
[null,null,null,null,{"$f":"IFERROR(GESTION!H24,\" \")","v":0},{"$f":"IFERROR(GESTION!I24,\" \")","v":0},{"$f":"IFERROR(GESTION!J24,\" \")","v":0},null,""]
[null,null,null,null,{"$f":"IFERROR(GESTION!H25,\" \")","v":0},{"$f":"IFERROR(GESTION!I25,\" \")","v":0},{"$f":"IFERROR(GESTION!J25,\" \")","v":0},null,""]
[null,null,"3. Coadyuvar en la garantía de la idoneidad en el ejercicio de la profesión jurídica de acuerdo con lo establecido en la Ley 1905 de 2018","2. Asegurar  el cumplimiento de los objetivos institucionales, la normatividad aplicable,  la mejora del SIGCMA y la satisfacción de los usuarios, revisando de  forma continua y sistemática la planificación de la gestión y fortaleciendo la administración de riesgos y sus controles",{"$f":"IFERROR(GESTION!H26,\" \")","v":0},{"$f":"IFERROR(GESTION!I26,\" \")","v":0},{"$f":"IFERROR(GESTION!J26,\" \")","v":0},null,""]
[null,null,null,null,{"$f":"IFERROR(GESTION!H27,\" \")","v":0},{"$f":"IFERROR(GESTION!I27,\" \")","v":0},{"$f":"IFERROR(GESTION!J27,\" \")","v":0},null,""]
[null,null,null,null,{"$f":"IFERROR(GESTION!H28,\" \")","v":0},{"$f":"IFERROR(GESTION!I28,\" \")","v":0},{"$f":"IFERROR(GESTION!J28,\" \")","v":0},null,""]
[null,null,null,null,{"$f":"IFERROR(GESTION!H29,\" \")","v":0},{"$f":"IFERROR(GESTION!I29,\" \")","v":0},{"$f":"IFERROR(GESTION!J29,\" \")","v":0},null,""]
[null,null,null,null,{"$f":"IFERROR(GESTION!H30,\" \")","v":0},{"$f":"IFERROR(GESTION!I30,\" \")","v":0},{"$f":"IFERROR(GESTION!J30,\" \")","v":0},null,""]
[null,null,null,null,{"$f":"IFERROR(GESTION!H31,\" \")","v":0},{"$f":"IFERROR(GESTION!I31,\" \")","v":0},{"$f":"IFERROR(GESTION!J31,\" \")","v":0},null,""]
[null,null,null,null,{"$f":"IFERROR(GESTION!H32,\" \")","v":0},{"$f":"IFERROR(GESTION!I32,\" \")","v":0},{"$f":"IFERROR(GESTION!J32,\" \")","v":0},null,""]
[null,null,null,null,{"$f":"IFERROR(GESTION!H33,\" \")","v":0},{"$f":"IFERROR(GESTION!I33,\" \")","v":0},{"$f":"IFERROR(GESTION!J33,\" \")","v":0},null,""]
[null,null,null,null,{"$f":"IFERROR(GESTION!H34,\" \")","v":0},{"$f":"IFERROR(GESTION!I34,\" \")","v":0},{"$f":"IFERROR(GESTION!J34,\" \")","v":0},null,""]
[null,null,null,null,{"$f":"IFERROR(GESTION!H35,\" \")","v":0},{"$f":"IFERROR(GESTION!I35,\" \")","v":0},{"$f":"IFERROR(GESTION!J35,\" \")","v":0},null,""]
[null,null,"4. Avanzar en la disposición de una infraestructura óptima para el acceso a la justicia en la Rama Judicial de modo que se fortalezca la presencia territorial, teniendo en cuenta las posibilidades que ofrece la transformación digital y las necesidades que se derivan de ella, y considerando tanto las necesidades de los usuarios como las de los servidores judiciales.","4. Hacer un uso racional de los recursos naturales aplicando los principios y fases de la Economía Circular, para prevenir, mitigar y controlar los impactos ambientales",{"$f":"IFERROR(GESTION!H36,\" \")","v":"Iniciar la segunda fase de la Sedes Judicial de Belén de Umbría"},{"$f":"IFERROR(GESTION!I36,\" \")","v":"Entregable"},{"$f":"IFERROR(GESTION!J36,\" \")","v":0},null,"",null,"Se recibieron los recursos para la contratación de la segunda fase de construcción del Palacio de Belén de Umbría "]
[null,null,null,null,{"$f":"IFERROR(GESTION!H37,\" \")","v":"Realzar mantenientos preventivos y correctivos a las sedes judiciales de la Seccional"},{"$f":"IFERROR(GESTION!I37,\" \")","v":"Entregable"},{"$f":"IFERROR(GESTION!J37,\" \")","v":0},null,"",null,"Se realizaron los mantenimientos programados para el primer cuatrimestre de la vigencia, según cronograma establecido "]
[null,null,null,null,{"$f":"IFERROR(GESTION!H38,\" \")","v":"Digitalización de expedientes"},{"$f":"IFERROR(GESTION!I38,\" \")","v":"Entregable"},{"$f":"IFERROR(GESTION!J38,\" \")","v":50000},null,0]
[null,null,null,null,{"$f":"IFERROR(GESTION!H39,\" \")","v":"Realizar reuniones de planeación, seguimiento y evaluación de la gestión."},{"$f":"IFERROR(GESTION!I39,\" \")","v":"Entregable"},{"$f":"IFERROR(GESTION!J39,\" \")","v":4},null,0,null,"En el primer trimestre se realizaron 5 reuniones de Comité del Área Administrativa y Financiera, donde se tratan temas referentes al proceso Gestión Administrativa"]
[null,null,null,null,{"$f":"IFERROR(GESTION!H40,\" \")","v":"Realizar reuniones de planeación, seguimiento y evaluación de la gestión."},{"$f":"IFERROR(GESTION!I40,\" \")","v":"Entregable"},{"$f":"IFERROR(GESTION!J40,\" \")","v":4},null,0,null,"En el primer trimestre se realizaron 5 reuniones de Comité del Área Administrativa y Financiera, donde se tratan temas referentes al proceso Gestión Administrativa"]
[null,null,null,null,{"$f":"IFERROR(GESTION!H41,\" \")","v":0},{"$f":"IFERROR(GESTION!I41,\" \")","v":0},{"$f":"IFERROR(GESTION!J41,\" \")","v":0},null,""]
[null,null,null,null,{"$f":"IFERROR(GESTION!H42,\" \")","v":0},{"$f":"IFERROR(GESTION!I42,\" \")","v":0},{"$f":"IFERROR(GESTION!J42,\" \")","v":0},null,""]
[null,null,null,null,{"$f":"IFERROR(GESTION!H43,\" \")","v":0},{"$f":"IFERROR(GESTION!I43,\" \")","v":0},{"$f":"IFERROR(GESTION!J43,\" \")","v":0},null,""]
[null,null,null,null,{"$f":"IFERROR(GESTION!H44,\" \")","v":0},{"$f":"IFERROR(GESTION!I44,\" \")","v":0},{"$f":"IFERROR(GESTION!J44,\" \")","v":0},null,""]
[null,null,null,null,{"$f":"IFERROR(GESTION!H45,\" \")","v":0},{"$f":"IFERROR(GESTION!I45,\" \")","v":0},{"$f":"IFERROR(GESTION!J45,\" \")","v":0},null,""]
[null,null,"5. Impulsar el uso de mecanismos alternativos para la solución de conflictos y la ampliación de la justicia restaurativa y terapéutica y el robustecimiento de las alternativas al encarcelamiento","2. Asegurar  el cumplimiento de los objetivos institucionales, la normatividad aplicable,  la mejora del SIGCMA y la satisfacción de los usuarios, revisando de  forma continua y sistemática la planificación de la gestión y fortaleciendo la administración de riesgos y sus controles",{"$f":"IFERROR(GESTION!H46,\" \")","v":0},{"$f":"IFERROR(GESTION!I46,\" \")","v":0},{"$f":"IFERROR(GESTION!J46,\" \")","v":0},null,""]
[null,null,null,null,{"$f":"IFERROR(GESTION!H47,\" \")","v":0},{"$f":"IFERROR(GESTION!I47,\" \")","v":0},{"$f":"IFERROR(GESTION!J47,\" \")","v":0},null,""]
[null,null,null,null,{"$f":"IFERROR(GESTION!H48,\" \")","v":0},{"$f":"IFERROR(GESTION!I48,\" \")","v":0},{"$f":"IFERROR(GESTION!J48,\" \")","v":0},null,""]
[null,null,null,null,{"$f":"IFERROR(GESTION!H49,\" \")","v":0},{"$f":"IFERROR(GESTION!I49,\" \")","v":0},{"$f":"IFERROR(GESTION!J49,\" \")","v":0},null,""]
[null,null,null,null,{"$f":"IFERROR(GESTION!H50,\" \")","v":0},{"$f":"IFERROR(GESTION!I50,\" \")","v":0},{"$f":"IFERROR(GESTION!J50,\" \")","v":0},null,""]
[null,null,null,null,{"$f":"IFERROR(GESTION!H51,\" \")","v":0},{"$f":"IFERROR(GESTION!I51,\" \")","v":0},{"$f":"IFERROR(GESTION!J51,\" \")","v":0},null,""]
[null,null,null,null,{"$f":"IFERROR(GESTION!H52,\" \")","v":0},{"$f":"IFERROR(GESTION!I52,\" \")","v":0},{"$f":"IFERROR(GESTION!J52,\" \")","v":0},null,""]
[null,null,null,null,{"$f":"IFERROR(GESTION!H53,\" \")","v":0},{"$f":"IFERROR(GESTION!I53,\" \")","v":0},{"$f":"IFERROR(GESTION!J53,\" \")","v":0},null,""]
[null,null,null,null,{"$f":"IFERROR(GESTION!H54,\" \")","v":0},{"$f":"IFERROR(GESTION!I54,\" \")","v":0},{"$f":"IFERROR(GESTION!J54,\" \")","v":0},null,""]
[null,null,null,null,{"$f":"IFERROR(GESTION!H55,\" \")","v":0},{"$f":"IFERROR(GESTION!I55,\" \")","v":0},{"$f":"IFERROR(GESTION!J55,\" \")","v":0},null,""]
["2. Servicios digitales y de tecnología, innovación y análisis de la información.","Servicios digitales y de tecnología, innovación y análisis de la información: Consolidar una justicia integrada y soportada en servicios digitales y de tecnología, innovación y análisis de la información, con una cultura digital apropiada, segura y sensible a las realidades del territorio nacional. ","1. Ampliar el acceso a la justicia a través de la consolidación del uso de los servicios digitales que conforman el sistema único integrado de gestión judicial en todos los despachos judiciales y dependencias de apoyo y, específicamente, incluyendo el despliegue e implementación del Expediente Judicial Electrónico en todas las jurisdicciones y especialidades.","6. Proteger, preservar y administrar los activos de información  implementando acciones  para gestionar de forma adecuada los incidentes, proteger los datos personales y adoptar mecanismos  de ciberseguridad y aseguramiento de la  continuidad del negocio.",{"$f":"IFERROR(GESTION!H56,\" \")","v":0},{"$f":"IFERROR(GESTION!I56,\" \")","v":0},{"$f":"IFERROR(GESTION!J56,\" \")","v":0},null,""]
[null,null,null,null,{"$f":"IFERROR(GESTION!H57,\" \")","v":0},{"$f":"IFERROR(GESTION!I57,\" \")","v":0},{"$f":"IFERROR(GESTION!J57,\" \")","v":0},null,""]
[null,null,null,null,{"$f":"IFERROR(GESTION!H58,\" \")","v":0},{"$f":"IFERROR(GESTION!I58,\" \")","v":0},{"$f":"IFERROR(GESTION!J58,\" \")","v":0},null,""]
[null,null,null,null,{"$f":"IFERROR(GESTION!H59,\" \")","v":0},{"$f":"IFERROR(GESTION!I59,\" \")","v":0},{"$f":"IFERROR(GESTION!J59,\" \")","v":0},null,""]
[null,null,null,null,{"$f":"IFERROR(GESTION!H60,\" \")","v":0},{"$f":"IFERROR(GESTION!I60,\" \")","v":0},{"$f":"IFERROR(GESTION!J60,\" \")","v":0},null,""]
[null,null,null,null,{"$f":"IFERROR(GESTION!H61,\" \")","v":0},{"$f":"IFERROR(GESTION!I61,\" \")","v":0},{"$f":"IFERROR(GESTION!J61,\" \")","v":0},null,""]
[null,null,null,null,{"$f":"IFERROR(GESTION!H62,\" \")","v":0},{"$f":"IFERROR(GESTION!I62,\" \")","v":0},{"$f":"IFERROR(GESTION!J62,\" \")","v":0},null,""]
[null,null,null,null,{"$f":"IFERROR(GESTION!H63,\" \")","v":0},{"$f":"IFERROR(GESTION!I63,\" \")","v":0},{"$f":"IFERROR(GESTION!J63,\" \")","v":0},null,""]
[null,null,null,null,{"$f":"IFERROR(GESTION!H64,\" \")","v":0},{"$f":"IFERROR(GESTION!I64,\" \")","v":0},{"$f":"IFERROR(GESTION!J64,\" \")","v":0},null,""]
[null,null,null,null,{"$f":"IFERROR(GESTION!H65,\" \")","v":0},{"$f":"IFERROR(GESTION!I65,\" \")","v":0},{"$f":"IFERROR(GESTION!J65,\" \")","v":0},null,""]
[null,null,"2. Integrar y hacer compatibles todos los aplicativos de transición con SIUGJ, para que la migración de los expedientes judiciales a dicha plataforma sea real y no suponga afectaciones en la prestación del servicio de justicia.",null,{"$f":"IFERROR(GESTION!H66,\" \")","v":"Implementación del Sistema Integrado Único de Gestión Judicial (SIUGJ)"},{"$f":"IFERROR(GESTION!I66,\" \")","v":"Entregable"},{"$f":"IFERROR(GESTION!J66,\" \")","v":12},null,0]
[null,null,null,null,{"$f":"IFERROR(GESTION!H67,\" \")","v":"Apoyo seccional a la realización de Audiencias Virtuales y utilización de Herramientas colaborativas"},{"$f":"IFERROR(GESTION!I67,\" \")","v":"Entregable"},{"$f":"IFERROR(GESTION!J67,\" \")","v":0},null,"",null,"Durante el primer trimestre se realizaron 5686 audiencias virtuales a través de la plataforma LifeSize"]
[null,null,null,null,{"$f":"IFERROR(GESTION!H68,\" \")","v":0},{"$f":"IFERROR(GESTION!I68,\" \")","v":0},{"$f":"IFERROR(GESTION!J68,\" \")","v":0},null,""]
[null,null,null,null,{"$f":"IFERROR(GESTION!H69,\" \")","v":0},{"$f":"IFERROR(GESTION!I69,\" \")","v":0},{"$f":"IFERROR(GESTION!J69,\" \")","v":0},null,""]
[null,null,null,null,{"$f":"IFERROR(GESTION!H70,\" \")","v":0},{"$f":"IFERROR(GESTION!I70,\" \")","v":0},{"$f":"IFERROR(GESTION!J70,\" \")","v":0},null,{"$f":"IFERROR(H70/G70,\"\")","v":""}]
[null,null,null,null,{"$f":"IFERROR(GESTION!H71,\" \")","v":0},{"$f":"IFERROR(GESTION!I71,\" \")","v":0},{"$f":"IFERROR(GESTION!J71,\" \")","v":0},null,""]
[null,null,null,null,{"$f":"IFERROR(GESTION!H72,\" \")","v":0},{"$f":"IFERROR(GESTION!I72,\" \")","v":0},{"$f":"IFERROR(GESTION!J72,\" \")","v":0},null,""]
[null,null,null,null,{"$f":"IFERROR(GESTION!H73,\" \")","v":0},{"$f":"IFERROR(GESTION!I73,\" \")","v":0},{"$f":"IFERROR(GESTION!J73,\" \")","v":0},null,""]
[null,null,null,null,{"$f":"IFERROR(GESTION!H74,\" \")","v":0},{"$f":"IFERROR(GESTION!I74,\" \")","v":0},{"$f":"IFERROR(GESTION!J74,\" \")","v":0},null,""]
[null,null,null,null,{"$f":"IFERROR(GESTION!H75,\" \")","v":0},{"$f":"IFERROR(GESTION!I75,\" \")","v":0},{"$f":"IFERROR(GESTION!J75,\" \")","v":0},null,""]
[null,null,"3. Fortalecer las capacidades institucionales, adecuar el modelo operativo y de servicio, bajo un enfoque de Arquitectura Empresarial y de fortalecimiento del acceso a la justicia.",null,{"$f":"IFERROR(GESTION!H76,\" \")","v":"Proyecto de contratación de empresa que administre el proceso de archivo y de la Gestión Documental de la Dirección Seccional "},{"$f":"IFERROR(GESTION!I76,\" \")","v":"Entregable"},{"$f":"IFERROR(GESTION!J76,\" \")","v":0},null,"",null,"En el primer trimestre se realizó montaje de proyecto y se presentó a la Dirección Seccional de Administración de Justicia, ya fue incluido dentro de los presupuestos solicitados por el área Financiera."]
[null,null,null,null,{"$f":"IFERROR(GESTION!H77,\" \")","v":0},{"$f":"IFERROR(GESTION!I77,\" \")","v":0},{"$f":"IFERROR(GESTION!J77,\" \")","v":0},null,""]
[null,null,null,null,{"$f":"IFERROR(GESTION!H78,\" \")","v":0},{"$f":"IFERROR(GESTION!I78,\" \")","v":0},{"$f":"IFERROR(GESTION!J78,\" \")","v":0},null,""]
[null,null,null,null,{"$f":"IFERROR(GESTION!H79,\" \")","v":0},{"$f":"IFERROR(GESTION!I79,\" \")","v":0},{"$f":"IFERROR(GESTION!J79,\" \")","v":0},null,""]
[null,null,null,null,{"$f":"IFERROR(GESTION!H80,\" \")","v":0},{"$f":"IFERROR(GESTION!I80,\" \")","v":0},{"$f":"IFERROR(GESTION!J80,\" \")","v":0},null,""]
[null,null,null,null,{"$f":"IFERROR(GESTION!H81,\" \")","v":0},{"$f":"IFERROR(GESTION!I81,\" \")","v":0},{"$f":"IFERROR(GESTION!J81,\" \")","v":0},null,""]
[null,null,null,null,{"$f":"IFERROR(GESTION!H82,\" \")","v":0},{"$f":"IFERROR(GESTION!I82,\" \")","v":0},{"$f":"IFERROR(GESTION!J82,\" \")","v":0},null,""]
[null,null,null,null,{"$f":"IFERROR(GESTION!H83,\" \")","v":0},{"$f":"IFERROR(GESTION!I83,\" \")","v":0},{"$f":"IFERROR(GESTION!J83,\" \")","v":0},null,""]
[null,null,null,null,{"$f":"IFERROR(GESTION!H84,\" \")","v":0},{"$f":"IFERROR(GESTION!I84,\" \")","v":0},{"$f":"IFERROR(GESTION!J84,\" \")","v":0},null,""]
[null,null,null,null,{"$f":"IFERROR(GESTION!H85,\" \")","v":0},{"$f":"IFERROR(GESTION!I85,\" \")","v":0},{"$f":"IFERROR(GESTION!J85,\" \")","v":0},null,""]
[null,null,"4.Consolidar la cultura y apropiación de la transformación digital en los servidores y usuarios de los servicios de la Rama Judicial y reducir brechas de acceso y conocimiento, incluyendo la oferta efectiva de información sobre el uso de las nuevas herramientas virtuales implementadas en las diferentes jurisdicciones, con especial énfasis en las zonas del país donde es evidente la brecha digital.",null,{"$f":"IFERROR(GESTION!H86,\" \")","v":0},{"$f":"IFERROR(GESTION!I86,\" \")","v":0},{"$f":"IFERROR(GESTION!J86,\" \")","v":0},null,""]
[null,null,null,null,{"$f":"IFERROR(GESTION!H87,\" \")","v":0},{"$f":"IFERROR(GESTION!I87,\" \")","v":0},{"$f":"IFERROR(GESTION!J87,\" \")","v":0},null,""]
[null,null,null,null,{"$f":"IFERROR(GESTION!H88,\" \")","v":0},{"$f":"IFERROR(GESTION!I88,\" \")","v":0},{"$f":"IFERROR(GESTION!J88,\" \")","v":0},null,""]
[null,null,null,null,{"$f":"IFERROR(GESTION!H89,\" \")","v":0},{"$f":"IFERROR(GESTION!I89,\" \")","v":0},{"$f":"IFERROR(GESTION!J89,\" \")","v":0},null,""]
[null,null,null,null,{"$f":"IFERROR(GESTION!H90,\" \")","v":0},{"$f":"IFERROR(GESTION!I90,\" \")","v":0},{"$f":"IFERROR(GESTION!J90,\" \")","v":0},null,""]
[null,null,null,null,{"$f":"IFERROR(GESTION!H91,\" \")","v":0},{"$f":"IFERROR(GESTION!I91,\" \")","v":0},{"$f":"IFERROR(GESTION!J91,\" \")","v":0},null,""]
[null,null,null,null,{"$f":"IFERROR(GESTION!H92,\" \")","v":0},{"$f":"IFERROR(GESTION!I92,\" \")","v":0},{"$f":"IFERROR(GESTION!J92,\" \")","v":0},null,""]
[null,null,null,null,{"$f":"IFERROR(GESTION!H93,\" \")","v":0},{"$f":"IFERROR(GESTION!I93,\" \")","v":0},{"$f":"IFERROR(GESTION!J93,\" \")","v":0},null,""]
[null,null,null,null,{"$f":"IFERROR(GESTION!H94,\" \")","v":0},{"$f":"IFERROR(GESTION!I94,\" \")","v":0},{"$f":"IFERROR(GESTION!J94,\" \")","v":0},null,""]
[null,null,null,null,{"$f":"IFERROR(GESTION!H95,\" \")","v":0},{"$f":"IFERROR(GESTION!I95,\" \")","v":0},{"$f":"IFERROR(GESTION!J95,\" \")","v":0},null,""]
[null,null,"5.Consolidar la infraestructura y los recursos necesarios para la implementación exitosa de la transformación digital, incluyendo la disposición de internet de calidad en el 100% de las sedes en la Rama Judicial y modernizar los servicios tecnológicos de soporte. ",null,{"$f":"IFERROR(GESTION!H96,\" \")","v":"Aplicación de las Tablas de Retención Documental "},{"$f":"IFERROR(GESTION!I96,\" \")","v":"Entregable"},{"$f":"IFERROR(GESTION!J96,\" \")","v":0},null,""]
[null,null,null,null,{"$f":"IFERROR(GESTION!H97,\" \")","v":"Modernización del cableado de red de las sedes judiciales Palacio de Justicia de Pereira y Centro Administrativo Municipal Dosquebradas "},{"$f":"IFERROR(GESTION!I97,\" \")","v":"Meta cuantificable"},{"$f":"IFERROR(GESTION!J97,\" \")","v":2},null,0]
[null,null,null,null,{"$f":"IFERROR(GESTION!H98,\" \")","v":0},{"$f":"IFERROR(GESTION!I98,\" \")","v":0},{"$f":"IFERROR(GESTION!J98,\" \")","v":0},null,""]
[null,null,null,null,{"$f":"IFERROR(GESTION!H99,\" \")","v":0},{"$f":"IFERROR(GESTION!I99,\" \")","v":0},{"$f":"IFERROR(GESTION!J99,\" \")","v":0},null,""]
[null,null,null,null,{"$f":"IFERROR(GESTION!H100,\" \")","v":0},{"$f":"IFERROR(GESTION!I100,\" \")","v":0},{"$f":"IFERROR(GESTION!J100,\" \")","v":0},null,""]
[null,null,null,null,{"$f":"IFERROR(GESTION!H101,\" \")","v":"Invitación a los servidores judiciales a vincularse a las capacitaciones orientadas por la Escuela Judicial Rodrigo Lara Bonilla"},{"$f":"IFERROR(GESTION!I101,\" \")","v":"Entregable"},{"$f":"IFERROR(GESTION!J101,\" \")","v":0},null,""]
[null,null,null,null,{"$f":"IFERROR(GESTION!H102,\" \")","v":0},{"$f":"IFERROR(GESTION!I102,\" \")","v":0},{"$f":"IFERROR(GESTION!J102,\" \")","v":0},null,""]
[null,null,null,null,{"$f":"IFERROR(GESTION!H103,\" \")","v":0},{"$f":"IFERROR(GESTION!I103,\" \")","v":0},{"$f":"IFERROR(GESTION!J103,\" \")","v":0},null,""]
[null,null,null,null,{"$f":"IFERROR(GESTION!H104,\" \")","v":0},{"$f":"IFERROR(GESTION!I104,\" \")","v":0},{"$f":"IFERROR(GESTION!J104,\" \")","v":0},null,""]
[null,null,null,null,{"$f":"IFERROR(GESTION!H105,\" \")","v":0},{"$f":"IFERROR(GESTION!I105,\" \")","v":0},{"$f":"IFERROR(GESTION!J105,\" \")","v":0},null,""]
[null,null,"6.Integrar y optimizar los servicios administrativos de la Rama Judicial bajo un enfoque de transformación digital e innovación incluyendo los componentes financiero, administrativo, talento humano, entre otros",null,{"$f":"IFERROR(GESTION!H106,\" \")","v":"Revisión y acompañamiento implementación Programa Gestión Documental y aplicación TRD."},{"$f":"IFERROR(GESTION!I106,\" \")","v":"Entregable"},{"$f":"IFERROR(GESTION!J106,\" \")","v":0},null,"",null,"En el primer trimestre se recibieron 2465 procesos (Actas de transferencia) "]
[null,null,null,null,{"$f":"IFERROR(GESTION!H107,\" \")","v":"E1\nActualización del archivo conforme a las TRD del proceso Talento Humano y todos sus procedimientos"},{"$f":"IFERROR(GESTION!I107,\" \")","v":"Entregable"},{"$f":"IFERROR(GESTION!J107,\" \")","v":0},null,"",null,"En el primer trimestre se actualizaron 300 hojas de vida de los Servidores Judiciales activos, conforme a las TRD vigentes"]
[null,null,null,null,{"$f":"IFERROR(GESTION!H108,\" \")","v":"E3\nDigitalización de hojas de vida de personal inactivo"},{"$f":"IFERROR(GESTION!I108,\" \")","v":"Entregable"},{"$f":"IFERROR(GESTION!J108,\" \")","v":0},null,""]
[null,null,null,null,{"$f":"IFERROR(GESTION!H109,\" \")","v":0},{"$f":"IFERROR(GESTION!I109,\" \")","v":0},{"$f":"IFERROR(GESTION!J109,\" \")","v":0},null,""]
[null,null,null,null,{"$f":"IFERROR(GESTION!H110,\" \")","v":0},{"$f":"IFERROR(GESTION!I110,\" \")","v":0},{"$f":"IFERROR(GESTION!J110,\" \")","v":0},null,""]
[null,null,null,null,{"$f":"IFERROR(GESTION!H111,\" \")","v":0},{"$f":"IFERROR(GESTION!I111,\" \")","v":0},{"$f":"IFERROR(GESTION!J111,\" \")","v":0},null,""]
[null,null,null,null,{"$f":"IFERROR(GESTION!H112,\" \")","v":0},{"$f":"IFERROR(GESTION!I112,\" \")","v":0},{"$f":"IFERROR(GESTION!J112,\" \")","v":0},null,""]
[null,null,null,null,{"$f":"IFERROR(GESTION!H113,\" \")","v":0},{"$f":"IFERROR(GESTION!I113,\" \")","v":0},{"$f":"IFERROR(GESTION!J113,\" \")","v":0},null,""]
[null,null,null,null,{"$f":"IFERROR(GESTION!H114,\" \")","v":0},{"$f":"IFERROR(GESTION!I114,\" \")","v":0},{"$f":"IFERROR(GESTION!J114,\" \")","v":0},null,""]
[null,null,null,null,{"$f":"IFERROR(GESTION!H115,\" \")","v":0},{"$f":"IFERROR(GESTION!I115,\" \")","v":0},{"$f":"IFERROR(GESTION!J115,\" \")","v":0},null,""]
["3. Confianza pública, transparencia y rendición de cuentas","Confianza pública, transparencia y rendición de cuentas: Aumentar la confianza pública en la justicia a través de la transparencia, la rendición de cuentas y la participación, incluyendo la información de justicia y la producción, gestión y acceso a las fuentes de derecho, el fortalecimiento del sistema de gestión de calidad y medio ambiente (SIGCMA) y el mejoramiento de la calidad y publicidad de la información. ","1. Incrementar la cantidad, la calidad y pertinencia de los datos sobre el funcionamiento del servicio de justicia bajo un modelo de gobierno de datos y un liderazgo unificado. ","4. Hacer un uso racional de los recursos naturales aplicando los principios y fases de la Economía Circular, para prevenir, mitigar y controlar los impactos ambientales.",{"$f":"IFERROR(GESTION!H116,\" \")","v":"Reporte oportuno y veráz de la informacion estadistica de la gestion de los despachos del distrito"},{"$f":"IFERROR(GESTION!I116,\" \")","v":"Meta cuantificable"},{"$f":"IFERROR(GESTION!J116,\" \")","v":456},null,0,null,"En el primer trimestre los 114 despchos presentan el reportede la estadística de gestión."]
[null,null,null,null,{"$f":"IFERROR(GESTION!H117,\" \")","v":0},{"$f":"IFERROR(GESTION!I117,\" \")","v":0},{"$f":"IFERROR(GESTION!J117,\" \")","v":0},null,""]
[null,null,null,null,{"$f":"IFERROR(GESTION!H118,\" \")","v":0},{"$f":"IFERROR(GESTION!I118,\" \")","v":0},{"$f":"IFERROR(GESTION!J118,\" \")","v":0},null,""]
[null,null,null,null,{"$f":"IFERROR(GESTION!H119,\" \")","v":0},{"$f":"IFERROR(GESTION!I119,\" \")","v":0},{"$f":"IFERROR(GESTION!J119,\" \")","v":0},null,""]
[null,null,null,null,{"$f":"IFERROR(GESTION!H120,\" \")","v":0},{"$f":"IFERROR(GESTION!I120,\" \")","v":0},{"$f":"IFERROR(GESTION!J120,\" \")","v":0},null,""]
[null,null,null,null,{"$f":"IFERROR(GESTION!H121,\" \")","v":0},{"$f":"IFERROR(GESTION!I121,\" \")","v":0},{"$f":"IFERROR(GESTION!J121,\" \")","v":0},null,""]
[null,null,null,null,{"$f":"IFERROR(GESTION!H122,\" \")","v":0},{"$f":"IFERROR(GESTION!I122,\" \")","v":0},{"$f":"IFERROR(GESTION!J122,\" \")","v":0},null,""]
[null,null,null,null,{"$f":"IFERROR(GESTION!H123,\" \")","v":0},{"$f":"IFERROR(GESTION!I123,\" \")","v":0},{"$f":"IFERROR(GESTION!J123,\" \")","v":0},null,""]
[null,null,null,null,{"$f":"IFERROR(GESTION!H124,\" \")","v":0},{"$f":"IFERROR(GESTION!I124,\" \")","v":0},{"$f":"IFERROR(GESTION!J124,\" \")","v":0},null,""]
[null,null,null,null,{"$f":"IFERROR(GESTION!H125,\" \")","v":0},{"$f":"IFERROR(GESTION!I125,\" \")","v":0},{"$f":"IFERROR(GESTION!J125,\" \")","v":0},null,""]
[null,null,"2. Consolidar la administración de la información entendida como todas las acciones rientadas a garantizar el acceso, consulta, uso y conservación de la información de justicia de manera ágil, flexible e inteligente, bajo un enfoque de innovación.",null,{"$f":"IFERROR(GESTION!H126,\" \")","v":0},{"$f":"IFERROR(GESTION!I126,\" \")","v":0},{"$f":"IFERROR(GESTION!J126,\" \")","v":0},null,""]
[null,null,null,null,{"$f":"IFERROR(GESTION!H127,\" \")","v":0},{"$f":"IFERROR(GESTION!I127,\" \")","v":0},{"$f":"IFERROR(GESTION!J127,\" \")","v":0},null,""]
[null,null,null,null,{"$f":"IFERROR(GESTION!H128,\" \")","v":0},{"$f":"IFERROR(GESTION!I128,\" \")","v":0},{"$f":"IFERROR(GESTION!J128,\" \")","v":0},null,""]
[null,null,null,null,{"$f":"IFERROR(GESTION!H129,\" \")","v":0},{"$f":"IFERROR(GESTION!I129,\" \")","v":0},{"$f":"IFERROR(GESTION!J129,\" \")","v":0},null,""]
[null,null,null,null,{"$f":"IFERROR(GESTION!H130,\" \")","v":0},{"$f":"IFERROR(GESTION!I130,\" \")","v":0},{"$f":"IFERROR(GESTION!J130,\" \")","v":0},null,""]
[null,null,null,null,{"$f":"IFERROR(GESTION!H131,\" \")","v":0},{"$f":"IFERROR(GESTION!I131,\" \")","v":0},{"$f":"IFERROR(GESTION!J131,\" \")","v":0},null,""]
[null,null,null,null,{"$f":"IFERROR(GESTION!H132,\" \")","v":0},{"$f":"IFERROR(GESTION!I132,\" \")","v":0},{"$f":"IFERROR(GESTION!J132,\" \")","v":0},null,""]
[null,null,null,null,{"$f":"IFERROR(GESTION!H133,\" \")","v":0},{"$f":"IFERROR(GESTION!I133,\" \")","v":0},{"$f":"IFERROR(GESTION!J133,\" \")","v":0},null,""]
[null,null,null,null,{"$f":"IFERROR(GESTION!H134,\" \")","v":0},{"$f":"IFERROR(GESTION!I134,\" \")","v":0},{"$f":"IFERROR(GESTION!J134,\" \")","v":0},null,{"$f":"IFERROR(H134/G134,\"\")","v":""}]
[null,null,null,null,{"$f":"IFERROR(GESTION!H135,\" \")","v":0},{"$f":"IFERROR(GESTION!I135,\" \")","v":0},{"$f":"IFERROR(GESTION!J135,\" \")","v":0},null,""]
[null,null,"3. Fortalecer el Sistema integrado de Gestión de la Rama, orientado a la implementación y certificación de las normas antisoborno.","1. Gestionar el desarrollo de las competencias, la toma de conciencia , la cultura  organizacional  y el compromiso de los  servidores judiciales, contratistas, practicantes y  judicantes de contribuir a generar valor público en la administración de justicia, en el marco de  cumplimiento de los requisitos  aplicables y el comportamiento ético.\n3. Fomentar la transparencia y la participación generando lineamientos y promoviendo la rendición de cuentas ,la consulta, reporte y planteamiento de inquietudes en relación con las decisiones y aspectos del SIGCMA.",{"$f":"IFERROR(GESTION!H136,\" \")","v":0},{"$f":"IFERROR(GESTION!I136,\" \")","v":0},{"$f":"IFERROR(GESTION!J136,\" \")","v":0},null,""]
[null,null,null,null,{"$f":"IFERROR(GESTION!H137,\" \")","v":0},{"$f":"IFERROR(GESTION!I137,\" \")","v":0},{"$f":"IFERROR(GESTION!J137,\" \")","v":0},null,""]
[null,null,null,null,{"$f":"IFERROR(GESTION!H138,\" \")","v":0},{"$f":"IFERROR(GESTION!I138,\" \")","v":0},{"$f":"IFERROR(GESTION!J138,\" \")","v":0},null,""]
[null,null,null,null,{"$f":"IFERROR(GESTION!H139,\" \")","v":0},{"$f":"IFERROR(GESTION!I139,\" \")","v":0},{"$f":"IFERROR(GESTION!J139,\" \")","v":0},null,""]
[null,null,null,null,{"$f":"IFERROR(GESTION!H140,\" \")","v":0},{"$f":"IFERROR(GESTION!I140,\" \")","v":0},{"$f":"IFERROR(GESTION!J140,\" \")","v":0},null,""]
[null,null,null,null,{"$f":"IFERROR(GESTION!H141,\" \")","v":0},{"$f":"IFERROR(GESTION!I141,\" \")","v":0},{"$f":"IFERROR(GESTION!J141,\" \")","v":0},null,""]
[null,null,null,null,{"$f":"IFERROR(GESTION!H142,\" \")","v":0},{"$f":"IFERROR(GESTION!I142,\" \")","v":0},{"$f":"IFERROR(GESTION!J142,\" \")","v":0},null,""]
[null,null,null,null,{"$f":"IFERROR(GESTION!H143,\" \")","v":0},{"$f":"IFERROR(GESTION!I143,\" \")","v":0},{"$f":"IFERROR(GESTION!J143,\" \")","v":0},null,""]
[null,null,null,null,{"$f":"IFERROR(GESTION!H144,\" \")","v":0},{"$f":"IFERROR(GESTION!I144,\" \")","v":0},{"$f":"IFERROR(GESTION!J144,\" \")","v":0},null,""]
[null,null,null,null,{"$f":"IFERROR(GESTION!H145,\" \")","v":0},{"$f":"IFERROR(GESTION!I145,\" \")","v":0},{"$f":"IFERROR(GESTION!J145,\" \")","v":0},null,""]
[null,null,"4. Aumentar la confianza, la cercanía y acceso a los servicios de la Rama Judicial a través, entre otros, de una comunicación clara y asertiva con la ciudadanía.","3. Fomentar la transparencia y la participación generando lineamientos y promoviendo la rendición de cuentas ,la consulta, reporte y planteamiento de inquietudes en relación con las decisiones y aspectos del SIGCMA.",{"$f":"IFERROR(GESTION!H146,\" \")","v":0},{"$f":"IFERROR(GESTION!I146,\" \")","v":0},{"$f":"IFERROR(GESTION!J146,\" \")","v":0},null,""]
[null,null,null,null,{"$f":"IFERROR(GESTION!H147,\" \")","v":0},{"$f":"IFERROR(GESTION!I147,\" \")","v":0},{"$f":"IFERROR(GESTION!J147,\" \")","v":0},null,""]
[null,null,null,null,{"$f":"IFERROR(GESTION!H148,\" \")","v":0},{"$f":"IFERROR(GESTION!I148,\" \")","v":0},{"$f":"IFERROR(GESTION!J148,\" \")","v":0},null,""]
[null,null,null,null,{"$f":"IFERROR(GESTION!H149,\" \")","v":0},{"$f":"IFERROR(GESTION!I149,\" \")","v":0},{"$f":"IFERROR(GESTION!J149,\" \")","v":0},null,""]
[null,null,null,null,{"$f":"IFERROR(GESTION!H150,\" \")","v":0},{"$f":"IFERROR(GESTION!I150,\" \")","v":0},{"$f":"IFERROR(GESTION!J150,\" \")","v":0},null,""]
[null,null,null,null,{"$f":"IFERROR(GESTION!H151,\" \")","v":0},{"$f":"IFERROR(GESTION!I151,\" \")","v":0},{"$f":"IFERROR(GESTION!J151,\" \")","v":0},null,""]
[null,null,null,null,{"$f":"IFERROR(GESTION!H152,\" \")","v":0},{"$f":"IFERROR(GESTION!I152,\" \")","v":0},{"$f":"IFERROR(GESTION!J152,\" \")","v":0},null,""]
[null,null,null,null,{"$f":"IFERROR(GESTION!H153,\" \")","v":0},{"$f":"IFERROR(GESTION!I153,\" \")","v":0},{"$f":"IFERROR(GESTION!J153,\" \")","v":0},null,""]
[null,null,null,null,{"$f":"IFERROR(GESTION!H154,\" \")","v":0},{"$f":"IFERROR(GESTION!I154,\" \")","v":0},{"$f":"IFERROR(GESTION!J154,\" \")","v":0},null,""]
[null,null,null,null,{"$f":"IFERROR(GESTION!H155,\" \")","v":0},{"$f":"IFERROR(GESTION!I155,\" \")","v":0},{"$f":"IFERROR(GESTION!J155,\" \")","v":0},null,""]
[null,null,"5. Prevenir fenómenos asociados con actos de corrupción en la Rama Judicial y reducir las experiencias de corrupción de usuarios y servidores judiciales.",null,{"$f":"IFERROR(GESTION!H156,\" \")","v":0},{"$f":"IFERROR(GESTION!I156,\" \")","v":0},{"$f":"IFERROR(GESTION!J156,\" \")","v":0},null,""]
[null,null,null,null,{"$f":"IFERROR(GESTION!H157,\" \")","v":0},{"$f":"IFERROR(GESTION!I157,\" \")","v":0},{"$f":"IFERROR(GESTION!J157,\" \")","v":0},null,""]
[null,null,null,null,{"$f":"IFERROR(GESTION!H158,\" \")","v":0},{"$f":"IFERROR(GESTION!I158,\" \")","v":0},{"$f":"IFERROR(GESTION!J158,\" \")","v":0},null,""]
[null,null,null,null,{"$f":"IFERROR(GESTION!H159,\" \")","v":0},{"$f":"IFERROR(GESTION!I159,\" \")","v":0},{"$f":"IFERROR(GESTION!J159,\" \")","v":0},null,""]
[null,null,null,null,{"$f":"IFERROR(GESTION!H160,\" \")","v":0},{"$f":"IFERROR(GESTION!I160,\" \")","v":0},{"$f":"IFERROR(GESTION!J160,\" \")","v":0},null,""]
[null,null,null,null,{"$f":"IFERROR(GESTION!H161,\" \")","v":0},{"$f":"IFERROR(GESTION!I161,\" \")","v":0},{"$f":"IFERROR(GESTION!J161,\" \")","v":0},null,""]
[null,null,null,null,{"$f":"IFERROR(GESTION!H162,\" \")","v":0},{"$f":"IFERROR(GESTION!I162,\" \")","v":0},{"$f":"IFERROR(GESTION!J162,\" \")","v":0},null,""]
[null,null,null,null,{"$f":"IFERROR(GESTION!H163,\" \")","v":0},{"$f":"IFERROR(GESTION!I163,\" \")","v":0},{"$f":"IFERROR(GESTION!J163,\" \")","v":0},null,""]
[null,null,null,null,{"$f":"IFERROR(GESTION!H164,\" \")","v":0},{"$f":"IFERROR(GESTION!I164,\" \")","v":0},{"$f":"IFERROR(GESTION!J164,\" \")","v":0},null,""]
[null,null,null,null,{"$f":"IFERROR(GESTION!H165,\" \")","v":0},{"$f":"IFERROR(GESTION!I165,\" \")","v":0},{"$f":"IFERROR(GESTION!J165,\" \")","v":0},null,""]
[null,null,"6. Promover la rendición de cuentas y la colaboración real con la ciudadanía como fundamento para diseñar acciones de mejoramiento del acceso a la justicia.",null,{"$f":"IFERROR(GESTION!H166,\" \")","v":0},{"$f":"IFERROR(GESTION!I166,\" \")","v":0},{"$f":"IFERROR(GESTION!J166,\" \")","v":0},null,""]
[null,null,null,null,{"$f":"IFERROR(GESTION!H167,\" \")","v":0},{"$f":"IFERROR(GESTION!I167,\" \")","v":0},{"$f":"IFERROR(GESTION!J167,\" \")","v":0},null,""]
[null,null,null,null,{"$f":"IFERROR(GESTION!H168,\" \")","v":0},{"$f":"IFERROR(GESTION!I168,\" \")","v":0},{"$f":"IFERROR(GESTION!J168,\" \")","v":0},null,""]
[null,null,null,null,{"$f":"IFERROR(GESTION!H169,\" \")","v":0},{"$f":"IFERROR(GESTION!I169,\" \")","v":0},{"$f":"IFERROR(GESTION!J169,\" \")","v":0},null,""]
[null,null,null,null,{"$f":"IFERROR(GESTION!H170,\" \")","v":0},{"$f":"IFERROR(GESTION!I170,\" \")","v":0},{"$f":"IFERROR(GESTION!J170,\" \")","v":0},null,""]
[null,null,null,null,{"$f":"IFERROR(GESTION!H171,\" \")","v":0},{"$f":"IFERROR(GESTION!I171,\" \")","v":0},{"$f":"IFERROR(GESTION!J171,\" \")","v":0},null,""]
[null,null,null,null,{"$f":"IFERROR(GESTION!H172,\" \")","v":0},{"$f":"IFERROR(GESTION!I172,\" \")","v":0},{"$f":"IFERROR(GESTION!J172,\" \")","v":0},null,""]
[null,null,null,null,{"$f":"IFERROR(GESTION!H173,\" \")","v":0},{"$f":"IFERROR(GESTION!I173,\" \")","v":0},{"$f":"IFERROR(GESTION!J173,\" \")","v":0},null,""]
[null,null,null,null,{"$f":"IFERROR(GESTION!H174,\" \")","v":0},{"$f":"IFERROR(GESTION!I174,\" \")","v":0},{"$f":"IFERROR(GESTION!J174,\" \")","v":0},null,""]
[null,null,null,null,{"$f":"IFERROR(GESTION!H175,\" \")","v":0},{"$f":"IFERROR(GESTION!I175,\" \")","v":0},{"$f":"IFERROR(GESTION!J175,\" \")","v":0},null,""]
[null,null,"7. Continuar la consolidación del SIGCMA, a través de los procesos de formación en modelos de gestión, logrando la implementación y ampliación de este en los esquemas certificados de manera gradual, teniendo en cuenta las capacidades de los diferentes despachos judiciales y dependencias de la Rama Judicial y articulando el enfoque de Arquitectura Empresarial para el desarrollo del PETD a través de la gestión del conocimiento para la gestión del cambio propendiendo por una cultura de la calidad, la transparencia, la rendición de cuentas, la anticorrupción y el antisoborno","1. Gestionar el desarrollo de las competencias, la toma de conciencia , la cultura  organizacional  y el compromiso de los  servidores judiciales, contratistas, practicantes y  judicantes de contribuir a generar valor público en la administración de justicia, en el marco de  cumplimiento de los requisitos  aplicables y el comportamiento ético.\n4. Hacer un uso racional de los recursos naturales aplicando los principios y fases de la Economía Circular, para prevenir, mitigar y controlar los impactos ambientales.",{"$f":"IFERROR(GESTION!H176,\" \")","v":"Ampliación alcance SIGCMA\nInclusión de dependencias (SGC) o despachos judiciales / Sedes (SGA)"},{"$f":"IFERROR(GESTION!I176,\" \")","v":"Entregable"},{"$f":"IFERROR(GESTION!J176,\" \")","v":0},null,"",null,"Se avanza con la documentación y actividades para la certificación, pero no se han realizado las Auditorias ya que estan programadas para Septiembre"]
[null,null,null,null,{"$f":"IFERROR(GESTION!H177,\" \")","v":"Capacitaciones\nSIGCMA"},{"$f":"IFERROR(GESTION!I177,\" \")","v":"Entregable"},{"$f":"IFERROR(GESTION!J177,\" \")","v":4},null,0,null,"Se realizan 4 capacitaciones a la sede de Quinchía donde se tocaron los siguientes temas: a los servidores judiciales se hace la Inducción al SGA y la Capacitación en buenas practicas ambientales. Al personal de servicios generales de la sede en el manejo de sustancias quimicas y manejo de residuos "]
[null,null,null,null,{"$f":"IFERROR(GESTION!H178,\" \")","v":"SIEMBRATON CON CARDER"},{"$f":"IFERROR(GESTION!I178,\" \")","v":"Entregable"},{"$f":"IFERROR(GESTION!J178,\" \")","v":1},null,0,"Se han presentado inconvenientes en la selección de predio para la actividad","Se tiene programada la actividad para el mes de junio"]
[null,null,null,null,{"$f":"IFERROR(GESTION!H179,\" \")","v":"Señalética de sensibilización Ambiental para las sedes certificadas del Distrito"},{"$f":"IFERROR(GESTION!I179,\" \")","v":"Entregable"},{"$f":"IFERROR(GESTION!J179,\" \")","v":1},null,0,null,"Se instala la señaletica ambiental en la sede de Quinchía, donde se se tiene sensibiliza sobre apagado de luces, ahorro de agua y papel."]
[null,null,null,null,{"$f":"IFERROR(GESTION!H180,\" \")","v":"Celebración Semana SIGCMA"},{"$f":"IFERROR(GESTION!I180,\" \")","v":"Entregable"},{"$f":"IFERROR(GESTION!J180,\" \")","v":350},null,0,null,"La actividad esta proyectada para el mes de septiembre"]
[null,null,null,null,{"$f":"IFERROR(GESTION!H181,\" \")","v":0},{"$f":"IFERROR(GESTION!I181,\" \")","v":0},{"$f":"IFERROR(GESTION!J181,\" \")","v":0},null,""]
[null,null,null,null,{"$f":"IFERROR(GESTION!H182,\" \")","v":0},{"$f":"IFERROR(GESTION!I182,\" \")","v":0},{"$f":"IFERROR(GESTION!J182,\" \")","v":0},null,""]
[null,null,null,null,{"$f":"IFERROR(GESTION!H183,\" \")","v":0},{"$f":"IFERROR(GESTION!I183,\" \")","v":0},{"$f":"IFERROR(GESTION!J183,\" \")","v":0},null,""]
[null,null,null,null,{"$f":"IFERROR(GESTION!H184,\" \")","v":0},{"$f":"IFERROR(GESTION!I184,\" \")","v":0},{"$f":"IFERROR(GESTION!J184,\" \")","v":0},null,""]
[null,null,null,null,{"$f":"IFERROR(GESTION!H185,\" \")","v":0},{"$f":"IFERROR(GESTION!I185,\" \")","v":0},{"$f":"IFERROR(GESTION!J185,\" \")","v":0},null,""]
["4. Talento Humano","Talento Humano: Fortalecer el talento humano en la Rama Judicial para que sea eficiente, capacitado y realice su labor en ambientes saludables y seguros. Ampliar la cobertura de la carrera judicial y mejorar la oferta de formación, que esté disponible para todos los servidores judiciales e impacte positivamente el servicio de justicia y responda a las necesidades reales del ejercicio de la función judicial.","1. Ampliar la cobertura de la carrera judicial optimizando los procesos de los concursos de méritos y propender por mitigar su litigiosidad.","1. Gestionar el desarrollo de las competencias, la toma de conciencia , la cultura  organizacional  y el compromiso de los  servidores judiciales, contratistas, practicantes y  judicantes de contribuir a generar valor público en la administración de justicia, en el marco de  cumplimiento de los requisitos  aplicables y el comportamiento ético.",{"$f":"IFERROR(GESTION!H186,\" \")","v":"Elaborar propuestas de reordenamiento judicial a nivel Seccional que permitan subsanar necesidades de los despachos en materia de personal y/o carga laboral  "},{"$f":"IFERROR(GESTION!I186,\" \")","v":"Meta cuantificable"},{"$f":"IFERROR(GESTION!J186,\" \")","v":36},null,0,null,"En el primer trimestre se presentaron 10 propuestas de reordenamiento,correspondientes a las elaboradas en la Seccional y 2 propuestas que  se presentaron al orden nacional."]
[null,null,null,null,{"$f":"IFERROR(GESTION!H187,\" \")","v":"Incremento de Servidores Judiciales en Carrera"},{"$f":"IFERROR(GESTION!I187,\" \")","v":"Entregable"},{"$f":"IFERROR(GESTION!J187,\" \")","v":0},null,"",null,"Vacantes publicadas durante el primer trimestre del año 2023\nVacantes de empleados 31\nVacantes de jueces 20"]
[null,null,null,null,{"$f":"IFERROR(GESTION!H188,\" \")","v":"Remitir las listas de elegibles conformadas por el registro de eligebles de la convocatoria 26 y 27, hoy en curso"},{"$f":"IFERROR(GESTION!I188,\" \")","v":"Entregable"},{"$f":"IFERROR(GESTION!J188,\" \")","v":0},null,"",null,"Durante el primer trimestre del año 2023, se remitieron 5 listas de elegibles a los despachos judiciales."]
[null,null,null,null,{"$f":"IFERROR(GESTION!H189,\" \")","v":"Solicitud de creacion de nuevos cargos, para el apoyo a la oficina de asistencia legal asi como la profesionalización de los cargos asistenciales."},{"$f":"IFERROR(GESTION!I189,\" \")","v":"Entregable"},{"$f":"IFERROR(GESTION!J189,\" \")","v":0},null,"",null,"En el primer trimestre no se han ejecutado las actividades, se proyecta que para el seguindo trimestre se realice la solicitud."]
[null,null,null,null,{"$f":"IFERROR(GESTION!H190,\" \")","v":0},{"$f":"IFERROR(GESTION!I190,\" \")","v":0},{"$f":"IFERROR(GESTION!J190,\" \")","v":0},null,""]
[null,null,null,null,{"$f":"IFERROR(GESTION!H191,\" \")","v":0},{"$f":"IFERROR(GESTION!I191,\" \")","v":0},{"$f":"IFERROR(GESTION!J191,\" \")","v":0},null,""]
[null,null,null,null,{"$f":"IFERROR(GESTION!H192,\" \")","v":0},{"$f":"IFERROR(GESTION!I192,\" \")","v":0},{"$f":"IFERROR(GESTION!J192,\" \")","v":0},null,""]
[null,null,null,null,{"$f":"IFERROR(GESTION!H193,\" \")","v":0},{"$f":"IFERROR(GESTION!I193,\" \")","v":0},{"$f":"IFERROR(GESTION!J193,\" \")","v":0},null,""]
[null,null,null,null,{"$f":"IFERROR(GESTION!H194,\" \")","v":0},{"$f":"IFERROR(GESTION!I194,\" \")","v":0},{"$f":"IFERROR(GESTION!J194,\" \")","v":0},null,""]
[null,null,null,null,{"$f":"IFERROR(GESTION!H195,\" \")","v":0},{"$f":"IFERROR(GESTION!I195,\" \")","v":0},{"$f":"IFERROR(GESTION!J195,\" \")","v":0},null,""]
[null,null,"2. Impactar la función y servicios que presta la Rama Judicial, a través de una formación integral desde una visión de gestión del conocimiento, relacionada con los problemas de la justicia y los problemas de gestión de quienes administran los recursos de la justicia, y potenciando el uso de medios virtuales.",null,{"$f":"IFERROR(GESTION!H196,\" \")","v":"Capacitar en temas relacionados con el área."},{"$f":"IFERROR(GESTION!I196,\" \")","v":"Entregable"},{"$f":"IFERROR(GESTION!J196,\" \")","v":0},null,"",null,"La solicitud se realizará en el segundo trimestre."]
[null,null,null,null,{"$f":"IFERROR(GESTION!H197,\" \")","v":"Calificación integral de servicios de los jueces"},{"$f":"IFERROR(GESTION!I197,\" \")","v":"Entregable"},{"$f":"IFERROR(GESTION!J197,\" \")","v":74},null,0,null,"No se ha realizado la calificación integral, el Acuerdo PSAA16-10618 del 07/12/2016, se realiza el ultimo día habil del mes de agosto"]
[null,null,null,null,{"$f":"IFERROR(GESTION!H198,\" \")","v":"Difusión de la oferta académica y convocatorias de la EJRLB"},{"$f":"IFERROR(GESTION!I198,\" \")","v":"Entregable"},{"$f":"IFERROR(GESTION!J198,\" \")","v":0},null,{"$f":"IFERROR(H198/G198,\"\")","v":""},null,"Al primer trimestre se proyectaron difundir 5 ofertas y se difundieron 0 actividades academicas"]
[null,null,null,null,{"$f":"IFERROR(GESTION!H199,\" \")","v":"Medición de Huella de Carbono"},{"$f":"IFERROR(GESTION!I199,\" \")","v":"Entregable"},{"$f":"IFERROR(GESTION!J199,\" \")","v":0},null,"",null,"Se proyecta la circular para la recopiación de la información de huella de carbono, la cual se enviará para recopilar la información en abril"]
[null,null,null,null,{"$f":"IFERROR(GESTION!H200,\" \")","v":"Fortalcer e integrar el proceso de Inducción y Reinducción a nivel Seccional"},{"$f":"IFERROR(GESTION!I200,\" \")","v":"Entregable"},{"$f":"IFERROR(GESTION!J200,\" \")","v":0},null,"",null,"En el primer trimestre, se realiza Comité seccional SIGCMA, donde se aprueba la estrategia para fortlecer los procesos de inducción y reinducción.\n\nAvance en la elaboración de videos con los coordinadores de cada área."]
[null,null,null,null,{"$f":"IFERROR(GESTION!H201,\" \")","v":"E2\nFortalecimiento de competencias de servidores judiciales de la Dirección"},{"$f":"IFERROR(GESTION!I201,\" \")","v":"Entregable"},{"$f":"IFERROR(GESTION!J201,\" \")","v":0},null,"",null,"En el primer trimestre se realiza encuesta de identificación de necesidades de formación y capacitación para los Servidores Judiciales de la DSAJ, en reunión del Comité Operativo SIGCMA No.2, cada Coordinador de Área socializa las necesidades de su equipo de trabajo mediante la encuesta anteriormente mencionada"]
[null,null,null,null,{"$f":"IFERROR(GESTION!H202,\" \")","v":"E5\nActualización de manual de funciones de todos los cargos de la Dirección "},{"$f":"IFERROR(GESTION!I202,\" \")","v":"Entregable"},{"$f":"IFERROR(GESTION!J202,\" \")","v":37},null,0,null,"Cada Área de la DSAJ se encuentra adelantando la revisión de las funciones correspondientes a cada cargo de su Área, para realizar la actualización de los manuales de funciones"]
[null,null,null,null,{"$f":"IFERROR(GESTION!H203,\" \")","v":0},{"$f":"IFERROR(GESTION!I203,\" \")","v":0},{"$f":"IFERROR(GESTION!J203,\" \")","v":0},null,""]
[null,null,null,null,{"$f":"IFERROR(GESTION!H204,\" \")","v":0},{"$f":"IFERROR(GESTION!I204,\" \")","v":0},{"$f":"IFERROR(GESTION!J204,\" \")","v":0},null,""]
[null,null,null,null,{"$f":"IFERROR(GESTION!H205,\" \")","v":0},{"$f":"IFERROR(GESTION!I205,\" \")","v":0},{"$f":"IFERROR(GESTION!J205,\" \")","v":0},null,""]
[null,null,"3. Promover la incorporación de la perspectiva de género y el enfoque diferencial en los fallos judiciales y en la atención a los ciudadanos, la administración de la Rama Judicial, la administración de la carrera judicial y la elaboración de listas para altas Cortes. ",null,{"$f":"IFERROR(GESTION!H206,\" \")","v":0},{"$f":"IFERROR(GESTION!I206,\" \")","v":0},{"$f":"IFERROR(GESTION!J206,\" \")","v":0},null,""]
[null,null,null,null,{"$f":"IFERROR(GESTION!H207,\" \")","v":0},{"$f":"IFERROR(GESTION!I207,\" \")","v":0},{"$f":"IFERROR(GESTION!J207,\" \")","v":0},null,""]
[null,null,null,null,{"$f":"IFERROR(GESTION!H208,\" \")","v":0},{"$f":"IFERROR(GESTION!I208,\" \")","v":0},{"$f":"IFERROR(GESTION!J208,\" \")","v":0},null,""]
[null,null,null,null,{"$f":"IFERROR(GESTION!H209,\" \")","v":0},{"$f":"IFERROR(GESTION!I209,\" \")","v":0},{"$f":"IFERROR(GESTION!J209,\" \")","v":0},null,""]
[null,null,null,null,{"$f":"IFERROR(GESTION!H210,\" \")","v":0},{"$f":"IFERROR(GESTION!I210,\" \")","v":0},{"$f":"IFERROR(GESTION!J210,\" \")","v":0},null,""]
[null,null,null,null,{"$f":"IFERROR(GESTION!H211,\" \")","v":0},{"$f":"IFERROR(GESTION!I211,\" \")","v":0},{"$f":"IFERROR(GESTION!J211,\" \")","v":0},null,""]
[null,null,null,null,{"$f":"IFERROR(GESTION!H212,\" \")","v":0},{"$f":"IFERROR(GESTION!I212,\" \")","v":0},{"$f":"IFERROR(GESTION!J212,\" \")","v":0},null,""]
[null,null,null,null,{"$f":"IFERROR(GESTION!H213,\" \")","v":0},{"$f":"IFERROR(GESTION!I213,\" \")","v":0},{"$f":"IFERROR(GESTION!J213,\" \")","v":0},null,""]
[null,null,null,null,{"$f":"IFERROR(GESTION!H214,\" \")","v":0},{"$f":"IFERROR(GESTION!I214,\" \")","v":0},{"$f":"IFERROR(GESTION!J214,\" \")","v":0},null,""]
[null,null,null,null,{"$f":"IFERROR(GESTION!H215,\" \")","v":0},{"$f":"IFERROR(GESTION!I215,\" \")","v":0},{"$f":"IFERROR(GESTION!J215,\" \")","v":0},null,""]
[null,null,"4. Desarrollar en los servidores judiciales y demás grupos de valor relevantes las competencias necesarias para la efectividad de la transformación digital de modo que puedan, entre otros, utilizar con solvencia las herramientas digitales dispuestas para sus respectivas funciones. Además, fortalecer y actualizar los conocimientos del personal a cargo de la gestión de proyectos de tecnología.",null,{"$f":"IFERROR(GESTION!H216,\" \")","v":"Implementación de manuales de funciones para los servidores judiciales del Consejo Seccional\n6 Manuales (2 auxiliares, 2 profesionales grado 11, 1 escribiente, un conductor)"},{"$f":"IFERROR(GESTION!I216,\" \")","v":"Meta cuantificable"},{"$f":"IFERROR(GESTION!J216,\" \")","v":6},null,0,null,"En el primer trimestre se solicitó a cada uno de los empleados que realizaran una relación de las funcones que ejecutan en cada cargo, la información se encuentra en revisión para empezar a implementar los manuales de funciones."]
[null,null,null,null,{"$f":"IFERROR(GESTION!H217,\" \")","v":0},{"$f":"IFERROR(GESTION!I217,\" \")","v":0},{"$f":"IFERROR(GESTION!J217,\" \")","v":0},null,""]
[null,null,null,null,{"$f":"IFERROR(GESTION!H218,\" \")","v":0},{"$f":"IFERROR(GESTION!I218,\" \")","v":0},{"$f":"IFERROR(GESTION!J218,\" \")","v":0},null,""]
[null,null,null,null,{"$f":"IFERROR(GESTION!H219,\" \")","v":0},{"$f":"IFERROR(GESTION!I219,\" \")","v":0},{"$f":"IFERROR(GESTION!J219,\" \")","v":0},null,""]
[null,null,null,null,{"$f":"IFERROR(GESTION!H220,\" \")","v":0},{"$f":"IFERROR(GESTION!I220,\" \")","v":0},{"$f":"IFERROR(GESTION!J220,\" \")","v":0},null,""]
[null,null,null,null,{"$f":"IFERROR(GESTION!H221,\" \")","v":0},{"$f":"IFERROR(GESTION!I221,\" \")","v":0},{"$f":"IFERROR(GESTION!J221,\" \")","v":0},null,""]
[null,null,null,null,{"$f":"IFERROR(GESTION!H222,\" \")","v":0},{"$f":"IFERROR(GESTION!I222,\" \")","v":0},{"$f":"IFERROR(GESTION!J222,\" \")","v":0},null,""]
[null,null,null,null,{"$f":"IFERROR(GESTION!H223,\" \")","v":0},{"$f":"IFERROR(GESTION!I223,\" \")","v":0},{"$f":"IFERROR(GESTION!J223,\" \")","v":0},null,""]
[null,null,null,null,{"$f":"IFERROR(GESTION!H224,\" \")","v":0},{"$f":"IFERROR(GESTION!I224,\" \")","v":0},{"$f":"IFERROR(GESTION!J224,\" \")","v":0},null,""]
[null,null,null,null,{"$f":"IFERROR(GESTION!H225,\" \")","v":0},{"$f":"IFERROR(GESTION!I225,\" \")","v":0},{"$f":"IFERROR(GESTION!J225,\" \")","v":0},null,""]
[null,null,"5. Promover el bienestar de todos los servidores judiciales a través de la implementación de un sistema que contemple los diferentes niveles de estrategias y acciones necesarios para mejorar el clima laboral, la salud física y mental y la calidad del tiempo de descanso.","5. Generar espacios de trabajo seguros y saludables que contribuyan a minimizar los  incidentes, accidentes y enfermedades laborales derivados de las condiciones y actos  inseguros y fomentar  el autocuidado, los  estilos de vida y el trabajo saludable en los servidores judiciales, contratistas, judicantes y practicantes",{"$f":"IFERROR(GESTION!H226,\" \")","v":"Fortalecimiento Brigada de emergencias "},{"$f":"IFERROR(GESTION!I226,\" \")","v":"Entregable"},{"$f":"IFERROR(GESTION!J226,\" \")","v":0},null,"","Retraso en la programación de activides, dadas las demoras en la publicación del plan de trabajo anual, el cual llega oficialmente hasta marzo","Se realizó capacitación con enfoque en RCP y primeros auxilios, direccionada a brigadistas de las sedes con DEA. (Soportes: listados de asistencia, presentación y registro fotográfico)\n\nAsisten 11 integrantes de la brigada de emergencias"]
[null,null,null,null,{"$f":"IFERROR(GESTION!H227,\" \")","v":"Plan de prevención de la enfermedad mental "},{"$f":"IFERROR(GESTION!I227,\" \")","v":"Entregable"},{"$f":"IFERROR(GESTION!J227,\" \")","v":0},null,"","Retraso en la programación de activides, dadas las demoras en la publicación del plan de trabajo anual, el cual llega oficialmente hasta marzo","En el primer trimestre en atención individual, consultaron 30 personsa \n\nEn atención colectiva participaron  45 personas"]
[null,null,null,null,{"$f":"IFERROR(GESTION!H228,\" \")","v":"Talleres de vida saludable "},{"$f":"IFERROR(GESTION!I228,\" \")","v":"Entregable"},{"$f":"IFERROR(GESTION!J228,\" \")","v":0},null,"",null,"En el primer trimestre se desarrollaron 4 actividdes del programa,"]
[null,null,null,null,{"$f":"IFERROR(GESTION!H229,\" \")","v":"E4\nPrograma de Bienestar social (Mejoramiento de la cobertura,reactivación de todas las disciplinas incluidas en el programa)"},{"$f":"IFERROR(GESTION!I229,\" \")","v":"Entregable"},{"$f":"IFERROR(GESTION!J229,\" \")","v":678},null,0,null,"En el primer trimestre se adelantó el proceso de contratación de todas las disciplinas adscrritas al programa de bienestar "]
[null,null,null,null,{"$f":"IFERROR(GESTION!H230,\" \")","v":0},{"$f":"IFERROR(GESTION!I230,\" \")","v":0},{"$f":"IFERROR(GESTION!J230,\" \")","v":0},null,""]
[null,null,null,null,{"$f":"IFERROR(GESTION!H231,\" \")","v":0},{"$f":"IFERROR(GESTION!I231,\" \")","v":0},{"$f":"IFERROR(GESTION!J231,\" \")","v":0},null,""]
[null,null,null,null,{"$f":"IFERROR(GESTION!H232,\" \")","v":0},{"$f":"IFERROR(GESTION!I232,\" \")","v":0},{"$f":"IFERROR(GESTION!J232,\" \")","v":0},null,""]
[null,null,null,null,{"$f":"IFERROR(GESTION!H233,\" \")","v":0},{"$f":"IFERROR(GESTION!I233,\" \")","v":0},{"$f":"IFERROR(GESTION!J233,\" \")","v":0},null,""]
[null,null,null,null,{"$f":"IFERROR(GESTION!H234,\" \")","v":0},{"$f":"IFERROR(GESTION!I234,\" \")","v":0},{"$f":"IFERROR(GESTION!J234,\" \")","v":0},null,""]
[null,null,null,null,{"$f":"IFERROR(GESTION!H235,\" \")","v":0},{"$f":"IFERROR(GESTION!I235,\" \")","v":0},{"$f":"IFERROR(GESTION!J235,\" \")","v":0},null,""]
["5. Gobernanza, planeación estratégica y capacidad de toma de decisiones","Gobernanza, planeación estratégica y capacidad de toma de decisiones: Fortalecer la gobernanza, la planeación estratégica y la capacidad de toma de decisiones de la Rama Judicial con base en la evidencia empírica y la articulación efectiva con las demás entidades, para que la perspectiva de género y el enfoque diferencial sean transversales en el presente plan. ","1. Implementar un nuevo modelo integrado para la planeación estratégica, el seguimiento y la medición del desempeño institucional.","2. Asegurar  el cumplimiento de los objetivos institucionales, la normatividad aplicable,  la mejora del SIGCMA y la satisfacción de los usuarios, revisando de  forma continua y sistemática la planificación de la gestión y fortaleciendo la administración de riesgos y sus controles.",{"$f":"IFERROR(GESTION!H236,\" \")","v":0},{"$f":"IFERROR(GESTION!I236,\" \")","v":0},{"$f":"IFERROR(GESTION!J236,\" \")","v":0},null,""]
[null,null,null,null,{"$f":"IFERROR(GESTION!H237,\" \")","v":0},{"$f":"IFERROR(GESTION!I237,\" \")","v":0},{"$f":"IFERROR(GESTION!J237,\" \")","v":0},null,""]
[null,null,null,null,{"$f":"IFERROR(GESTION!H238,\" \")","v":0},{"$f":"IFERROR(GESTION!I238,\" \")","v":0},{"$f":"IFERROR(GESTION!J238,\" \")","v":0},null,""]
[null,null,null,null,{"$f":"IFERROR(GESTION!H239,\" \")","v":0},{"$f":"IFERROR(GESTION!I239,\" \")","v":0},{"$f":"IFERROR(GESTION!J239,\" \")","v":0},null,""]
[null,null,null,null,{"$f":"IFERROR(GESTION!H240,\" \")","v":0},{"$f":"IFERROR(GESTION!I240,\" \")","v":0},{"$f":"IFERROR(GESTION!J240,\" \")","v":0},null,""]
[null,null,null,null,{"$f":"IFERROR(GESTION!H241,\" \")","v":0},{"$f":"IFERROR(GESTION!I241,\" \")","v":0},{"$f":"IFERROR(GESTION!J241,\" \")","v":0},null,""]
[null,null,null,null,{"$f":"IFERROR(GESTION!H242,\" \")","v":0},{"$f":"IFERROR(GESTION!I242,\" \")","v":0},{"$f":"IFERROR(GESTION!J242,\" \")","v":0},null,""]
[null,null,null,null,{"$f":"IFERROR(GESTION!H243,\" \")","v":0},{"$f":"IFERROR(GESTION!I243,\" \")","v":0},{"$f":"IFERROR(GESTION!J243,\" \")","v":0},null,""]
[null,null,null,null,{"$f":"IFERROR(GESTION!H244,\" \")","v":0},{"$f":"IFERROR(GESTION!I244,\" \")","v":0},{"$f":"IFERROR(GESTION!J244,\" \")","v":0},null,""]
[null,null,null,null,{"$f":"IFERROR(GESTION!H245,\" \")","v":0},{"$f":"IFERROR(GESTION!I245,\" \")","v":0},{"$f":"IFERROR(GESTION!J245,\" \")","v":0},null,""]
[null,null,"2. Definir e implementar el modelo optimizado de formulación, seguimiento y evaluación de la política pública judicial.",null,{"$f":"IFERROR(GESTION!H246,\" \")","v":0},{"$f":"IFERROR(GESTION!I246,\" \")","v":0},{"$f":"IFERROR(GESTION!J246,\" \")","v":0},null,""]
[null,null,null,null,{"$f":"IFERROR(GESTION!H247,\" \")","v":0},{"$f":"IFERROR(GESTION!I247,\" \")","v":0},{"$f":"IFERROR(GESTION!J247,\" \")","v":0},null,""]
[null,null,null,null,{"$f":"IFERROR(GESTION!H248,\" \")","v":0},{"$f":"IFERROR(GESTION!I248,\" \")","v":0},{"$f":"IFERROR(GESTION!J248,\" \")","v":0},null,""]
[null,null,null,null,{"$f":"IFERROR(GESTION!H249,\" \")","v":0},{"$f":"IFERROR(GESTION!I249,\" \")","v":0},{"$f":"IFERROR(GESTION!J249,\" \")","v":0},null,""]
[null,null,null,null,{"$f":"IFERROR(GESTION!H250,\" \")","v":0},{"$f":"IFERROR(GESTION!I250,\" \")","v":0},{"$f":"IFERROR(GESTION!J250,\" \")","v":0},null,""]
[null,null,null,null,{"$f":"IFERROR(GESTION!H251,\" \")","v":0},{"$f":"IFERROR(GESTION!I251,\" \")","v":0},{"$f":"IFERROR(GESTION!J251,\" \")","v":0},null,""]
[null,null,null,null,{"$f":"IFERROR(GESTION!H252,\" \")","v":0},{"$f":"IFERROR(GESTION!I252,\" \")","v":0},{"$f":"IFERROR(GESTION!J252,\" \")","v":0},null,""]
[null,null,null,null,{"$f":"IFERROR(GESTION!H253,\" \")","v":0},{"$f":"IFERROR(GESTION!I253,\" \")","v":0},{"$f":"IFERROR(GESTION!J253,\" \")","v":0},null,""]
[null,null,null,null,{"$f":"IFERROR(GESTION!H254,\" \")","v":0},{"$f":"IFERROR(GESTION!I254,\" \")","v":0},{"$f":"IFERROR(GESTION!J254,\" \")","v":0},null,""]
[null,null,null,null,{"$f":"IFERROR(GESTION!H255,\" \")","v":0},{"$f":"IFERROR(GESTION!I255,\" \")","v":0},{"$f":"IFERROR(GESTION!J255,\" \")","v":0},null,""]

{"sheet":"INVERSION","index":6,"n_rows":255,"n_cols":40,"rows_kept":255,"cut":false,"hidden":false,"merged":[[1,39,1,48],[1,0,1,17],[1,18,1,38],[2,25,2,37],[2,38,4,38],[3,0,4,1],[3,2,4,2],[3,5,4,5],[3,6,3,11],[3,12,3,22],[3,23,3,24],[2,0,2,5],[2,6,2,24],[3,32,3,37],[3,25,3,31],[3,3,4,3],[45,2,54,2],[45,3,54,3],[45,4,54,4],[75,3,84,3],[75,4,84,4],[85,2,94,2],[85,3,94,3],[85,4,94,4],[95,2,104,2],[95,3,104,3],[95,4,104,4],[15,4,24,4],[15,5,24,5],[3,4,4,4],[5,2,14,2],[5,3,14,3],[5,4,14,4],[25,2,34,2],[25,3,34,3],[25,4,34,4],[55,0,114,0],[55,1,114,1],[45,5,54,5],[5,0,54,0],[5,1,54,1],[105,2,114,2],[105,3,114,3],[105,4,114,4],[55,5,114,5],[55,2,64,2],[55,3,64,3],[55,4,64,4],[65,2,74,2],[65,3,74,3],[65,4,74,4],[75,2,84,2],[25,5,34,5],[35,2,44,2],[35,3,44,3],[35,4,44,4],[35,5,44,5],[5,5,14,5],[15,2,24,2],[15,3,24,3],[135,5,144,5],[115,1,184,1],[145,5,174,5],[125,2,134,2],[125,3,134,3],[125,4,134,4],[125,5,134,5],[115,2,124,2],[115,3,124,3],[115,4,124,4],[115,5,124,5],[155,2,164,2],[155,3,164,3],[155,4,164,4],[145,2,154,2],[145,3,154,3],[145,4,154,4],[175,2,184,2],[175,3,184,3],[175,4,184,4],[175,5,184,5],[165,4,174,4],[165,2,174,2],[165,3,174,3],[115,0,184,0],[185,2,194,2],[185,3,194,3],[185,4,194,4],[195,2,204,2],[195,3,204,3],[195,4,204,4],[135,2,144,2],[135,3,144,3],[135,4,144,4],[185,5,224,5],[225,5,234,5],[185,1,234,1],[185,0,234,0],[235,5,254,5],[245,2,254,2],[245,3,254,3],[245,4,254,4],[235,1,254,1],[235,0,254,0],[225,2,234,2],[225,3,234,3],[225,4,234,4],[235,2,244,2],[235,3,244,3],[235,4,244,4],[215,2,224,2],[215,3,224,3],[215,4,224,4],[205,2,214,2],[205,3,214,3],[205,4,214,4]]}
[]
["CONSEJO SUPERIOR DE LA JUDICATURA \nUNIDADES MISIONALES DEL CONSEJO SUPERIOR DE LA JUDICATURA \nDIRECCIÓN EJECUTIVA DE ADMINISTRACIÓN JUDICIAL (DEAJ) - UNIDADES MISIONALES DE LA DEAJ\nDIRECCIONES SECCIONALES DE ADMINISTRACIÓN JUDICIAL ",null,null,null,null,null,null,null,null,null,null,null,null,null,null,null,null,null,null,null,null,null,null,null,null,null,null,null,null,null,null,null,null,null,null,null,null,null,null,"GENERADOR DE SEGUIMIENTOS TRIMESTALES"]
["PLAN SECTORIAL DE DESARROLLO 2023-2026 - OBJETIVOS SIGCMA",null,null,null,null,null,"PLAN DE ACCIÓN Y SEGUIMIENTO A LA INVERSIÓN INSTITUCIONAL ",null,null,null,null,null,null,null,null,null,null,null,null,null,null,null,null,null,null,"AVANCE PLAN DE ACCIÓN ANUAL",null,null,null,null,null,null,null,null,null,null,null,null," ANÁLISIS RESULTADO\nFINAL - ACUMULADO"]
["OBJETIVO ESTRATÉGICO",null,"OBJETIVO ESPECÍFICO PSD","NOMBRE DEL INDICADOR PSD","DEFINICIÓN DEL INDICADOR","OBJETIVO ESPECÍFICO SIGCMA","IDENTIFICACIÓN PROYECTO DE INVERSIÓN",null,null,null,null,null,"PARÁMETROS DE MEDICIÓN ",null,null,null,null,null,null,null,null,null,null,"INFORMACIÓN FINANCIERA",null,"SEGUIMIENTO - CUMPLIMIENTO ANUAL ",null,null,null,null,null,null,"INFORMACIÓN COMPLEMENTARIA FINAL"]
[null,null,null,null,null,null,"PROGRAMA DE INVERSIÓN","SUBPROGRAMA DE INVERSIÓN","RUBRO PRESUPUESTAL","CÓDIGO BPIN","NOMBRE DE PROYECTO","OBJETIVO ESPECÍFICO FORMULADO DEL PROYECTO BPIN","NOMBRE ACTIVIDAD DE INVERSIÓN (POAI)","JUSTIFICACIÓN DE LA ACTIVIDAD","DESCRIBA EL ENTREGABLE \n(Producto y/o servicio principal)","META ANUALIDAD","UNIDAD DE MEDIDA","TIPO DE INDICADOR (GESTIÓN O PRODUCTO)","FECHA DE INICIO DE LA ACTIVIDAD\nDÍA/MES/AÑO","FECHA TERMINACIÓN ACTIVIDAD\nDÍA/MES/AÑO \n(Sí supera anualidad, favor dejar 31/12/20xx)","NÚMERO DE BENEFICIARIOS INTERNOS (Servidores Judiciales)","NÚMERO DE BENEFICIARIOS EXTERNOS (Usuarios)"," DEPENDENCIA RESPONSABLE ","ACTO ADMINISTRATIVO (INDICAR EL ACUERDO INICIAL Y MODIFICACIONES)","RECURSOS ASIGNADOS ($)","DETALLE DE LAS ACTIVIDADES REALIZADAS PARA EL LOGRO DE LA INVERSIÓN (Periodo de reporte acumulado) ","COMPROMISO PRESUPUESTAL (VALOR DEL CONTRATO)","AVANCE DE LA META","% AVANCE ANUAL DE LA ACTIVIDAD"," % AVANCE PRESUPUESTAL ANUAL","AVANCE  DE LA ACTIVIDAD - % EN TIEMPO ANUAL","REZAGO","NÚMERO DE BENEFICIADOS INTERNOS","NÚMERO DE BENEFICIADOS EXTERNOS","DIFICULTADES PARA LOGRAR LA META PROPUESTA","EL PRODUCTO FINAL OBTENIDO ¿CÓMO IMPACTÓ SOBRE EL OBJETIVO ESTRATÉGICO?","RECOMENDACIONES PARA LOGRAR LA META","OBSERVACIONES"]
["1. Acceso e Infraestructura Física","Acceso e Infraestructura Física: Ampliar, en todo el territorio nacional, el acceso a una justicia efectiva, pronta, equitativa e incluyente, reduciendo el atraso y la congestión, de acuerdo con las necesidades de la demanda de justicia por jurisdicción y especialidad, y mejorando la articulación con la justicia restaurativa y terapéutica, y otros mecanismos de solución de conflictos y consolidando una infraestructura física óptima para el acceso a la justicia.","1. Ampliar el acceso a justicia para atender las necesidades jurídicas de los ciudadanos con un enfoque diferencial, de una manera pronta, reduciendo las inequidades y las brechas territoriales de acceso.","Estrategias implementadas por la Rama Judicial para ampliar el acceso a la justicia considerando el enfoque diferencial y territorial\n\nÍndice de dispersión en la calificación del factor calidad","# de estrategias establecida s en la meta implementa das durante la vigencia del plan\n\nDispersión en la calificación del factor de calidad por jurisdicción y nivel de competencia.","2. Asegurar  el cumplimiento de los objetivos institucionales, la normatividad aplicable,  la mejora del SIGCMA y la satisfacción de los usuarios, revisando de  forma continua y sistemática la planificación de la gestión y fortaleciendo la administración de riesgos y sus controles",null,null,null,null,null,null,null,null,null,null,null,null,null,null,null,null,null,null,null,{"$f":"IFERROR(#REF!,\" \")","v":" "},{"$f":"IFERROR(#REF!,\"\")","v":""},{"$f":"IFERROR(#REF!,\"\")","v":""},{"$f":"IFERROR(AB6/P6,\"\")","v":""},{"$f":"IFERROR(AA6/Y6,\"\")","v":""},{"$f":"IFERROR(#REF!,\"\")","v":""},{"$f":"IFERROR(P6-AB6,\"\")","v":""},{"$f":"IFERROR(#REF!,\"\")","v":""},{"$f":"IFERROR(#REF!,\"\")","v":""},{"$f":"_xlfn.CONCAT(\"Trimestre 1\",CHAR(10),IFERROR(#REF!,\"\"))","v":"Trimestre 1\n"},{"$f":"_xlfn.CONCAT(\"Trimestre 1\",CHAR(10),IFERROR(#REF!,\"\"))","v":"Trimestre 1\n"},{"$f":"_xlfn.CONCAT(\"Trimestre 1\",CHAR(10),IFERROR(#REF!,\"\"))","v":"Trimestre 1\n"},{"$f":"_xlfn.CONCAT(\"Trimestre 1\",CHAR(10),IFERROR(#REF!,\"\"))","v":"Trimestre 1\n"},{"$f":"_xlfn.CONCAT(\"Trimestre 1\",CHAR(10),IFERROR(#REF!,\"\"))","v":"Trimestre 1\n"}]
[null,null,null,null,null,null,null,null,null,null,null,null,null,null,null,null,null,null,null,null,null,null,null,null,null,{"$f":"IFERROR(#REF!,\" \")","v":" "},{"$f":"IFERROR(#REF!,\"\")","v":""},{"$f":"IFERROR(#REF!,\"\")","v":""},{"$f":"IFERROR(AB7/P7,\"\")","v":""},{"$f":"IFERROR(AA7/Y7,\"\")","v":""},{"$f":"IFERROR(#REF!,\"\")","v":""},{"$f":"IFERROR(P7-AB7,\"\")","v":""},{"$f":"IFERROR(#REF!,\"\")","v":""},{"$f":"IFERROR(#REF!,\"\")","v":""},{"$f":"_xlfn.CONCAT(\"Trimestre 1\",CHAR(10),IFERROR(#REF!,\"\"))","v":"Trimestre 1\n"},{"$f":"_xlfn.CONCAT(\"Trimestre 1\",CHAR(10),IFERROR(#REF!,\"\"))","v":"Trimestre 1\n"},{"$f":"_xlfn.CONCAT(\"Trimestre 1\",CHAR(10),IFERROR(#REF!,\"\"))","v":"Trimestre 1\n"},{"$f":"_xlfn.CONCAT(\"Trimestre 1\",CHAR(10),IFERROR(#REF!,\"\"))","v":"Trimestre 1\n"},{"$f":"_xlfn.CONCAT(\"Trimestre 1\",CHAR(10),IFERROR(#REF!,\"\"))","v":"Trimestre 1\n"}]
[]
[]
[]
[]
[]
[null,null,null,null,null,null,null,null,null,null,null,null,null,null,null,null,null,null,null,null,null,null,null,null,null,{"$f":"IFERROR(#REF!,\" \")","v":" "},{"$f":"IFERROR(#REF!,\"\")","v":""},{"$f":"IFERROR(#REF!,\"\")","v":""},{"$f":"IFERROR(AB13/P13,\"\")","v":""},{"$f":"IFERROR(AA13/Y13,\"\")","v":""},{"$f":"IFERROR(#REF!,\"\")","v":""},"",{"$f":"IFERROR(#REF!,\"\")","v":""},{"$f":"IFERROR(#REF!,\"\")","v":""},{"$f":"_xlfn.CONCAT(\"Trimestre 1\",CHAR(10),IFERROR(#REF!,\"\"))","v":"Trimestre 1\n"},{"$f":"_xlfn.CONCAT(\"Trimestre 1\",CHAR(10),IFERROR(#REF!,\"\"))","v":"Trimestre 1\n"},{"$f":"_xlfn.CONCAT(\"Trimestre 1\",CHAR(10),IFERROR(#REF!,\"\"))","v":"Trimestre 1\n"},{"$f":"_xlfn.CONCAT(\"Trimestre 1\",CHAR(10),IFERROR(#REF!,\"\"))","v":"Trimestre 1\n"},{"$f":"_xlfn.CONCAT(\"Trimestre 1\",CHAR(10),IFERROR(#REF!,\"\"))","v":"Trimestre 1\n"}]
[null,null,null,null,null,null,null,null,null,null,null,null,null,null,null,null,null,null,null,null,null,null,null,null,null,{"$f":"IFERROR(#REF!,\" \")","v":" "},{"$f":"IFERROR(#REF!,\"\")","v":""},{"$f":"IFERROR(#REF!,\"\")","v":""},"","",{"$f":"IFERROR(#REF!,\"\")","v":""},"",{"$f":"IFERROR(#REF!,\"\")","v":""},{"$f":"IFERROR(#REF!,\"\")","v":""},{"$f":"_xlfn.CONCAT(\"Trimestre 1\",CHAR(10),IFERROR(#REF!,\"\"))","v":"Trimestre 1\n"},{"$f":"_xlfn.CONCAT(\"Trimestre 1\",CHAR(10),IFERROR(#REF!,\"\"))","v":"Trimestre 1\n"},{"$f":"_xlfn.CONCAT(\"Trimestre 1\",CHAR(10),IFERROR(#REF!,\"\"))","v":"Trimestre 1\n"},{"$f":"_xlfn.CONCAT(\"Trimestre 1\",CHAR(10),IFERROR(#REF!,\"\"))","v":"Trimestre 1\n"},{"$f":"_xlfn.CONCAT(\"Trimestre 1\",CHAR(10),IFERROR(#REF!,\"\"))","v":"Trimestre 1\n"}]
[null,null,null,null,null,null,null,null,null,null,null,null,null,null,null,null,null,null,null,null,null,null,null,null,null,{"$f":"IFERROR(#REF!,\" \")","v":" "},{"$f":"IFERROR(#REF!,\"\")","v":""},{"$f":"IFERROR(#REF!,\"\")","v":""},"","",{"$f":"IFERROR(#REF!,\"\")","v":""},"",{"$f":"IFERROR(#REF!,\"\")","v":""},{"$f":"IFERROR(#REF!,\"\")","v":""},{"$f":"_xlfn.CONCAT(\"Trimestre 1\",CHAR(10),IFERROR(#REF!,\"\"))","v":"Trimestre 1\n"},{"$f":"_xlfn.CONCAT(\"Trimestre 1\",CHAR(10),IFERROR(#REF!,\"\"))","v":"Trimestre 1\n"},{"$f":"_xlfn.CONCAT(\"Trimestre 1\",CHAR(10),IFERROR(#REF!,\"\"))","v":"Trimestre 1\n"},{"$f":"_xlfn.CONCAT(\"Trimestre 1\",CHAR(10),IFERROR(#REF!,\"\"))","v":"Trimestre 1\n"},{"$f":"_xlfn.CONCAT(\"Trimestre 1\",CHAR(10),IFERROR(#REF!,\"\"))","v":"Trimestre 1\n"}]
[null,null,"2. Mejorar los tiempos de respuesta de la Rama Judicial y reducir el inventario de procesos, identificando los retos internos y promoviendo tanto acciones articuladas específicas para abordarlos como estrategias coordinadas para enfrentar las barreras que dependen de otras entidades.","Reducción de tiempos de respuesta en los despachos en los que se implemente el sistema de gestión judicial","% Reducción del promedio de días de duración de los procesos judiciales en los despachos en los que se implemente el sistema de gestión judicial","2. Asegurar  el cumplimiento de los objetivos institucionales, la normatividad aplicable,  la mejora del SIGCMA y la satisfacción de los usuarios, revisando de  forma continua y sistemática la planificación de la gestión y fortaleciendo la administración de riesgos y sus controles",null,null,null,null,null,null,null,null,null,null,null,null,null,null,null,null,null,null,null,{"$f":"IFERROR(#REF!,\" \")","v":" "},{"$f":"IFERROR(#REF!,\"\")","v":""},{"$f":"IFERROR(#REF!,\"\")","v":""},"","",{"$f":"IFERROR(#REF!,\"\")","v":""},"",{"$f":"IFERROR(#REF!,\"\")","v":""},{"$f":"IFERROR(#REF!,\"\")","v":""},{"$f":"_xlfn.CONCAT(\"Trimestre 1\",CHAR(10),IFERROR(#REF!,\"\"))","v":"Trimestre 1\n"},{"$f":"_xlfn.CONCAT(\"Trimestre 1\",CHAR(10),IFERROR(#REF!,\"\"))","v":"Trimestre 1\n"},{"$f":"_xlfn.CONCAT(\"Trimestre 1\",CHAR(10),IFERROR(#REF!,\"\"))","v":"Trimestre 1\n"},{"$f":"_xlfn.CONCAT(\"Trimestre 1\",CHAR(10),IFERROR(#REF!,\"\"))","v":"Trimestre 1\n"},{"$f":"_xlfn.CONCAT(\"Trimestre 1\",CHAR(10),IFERROR(#REF!,\"\"))","v":"Trimestre 1\n"}]
[null,null,null,null,null,null,null,null,null,null,null,null,null,null,null,null,null,null,null,null,null,null,null,null,null,{"$f":"IFERROR(#REF!,\" \")","v":" "},{"$f":"IFERROR(#REF!,\"\")","v":""},{"$f":"IFERROR(#REF!,\"\")","v":""},"","",{"$f":"IFERROR(#REF!,\"\")","v":""},"",{"$f":"IFERROR(#REF!,\"\")","v":""},{"$f":"IFERROR(#REF!,\"\")","v":""},{"$f":"_xlfn.CONCAT(\"Trimestre 1\",CHAR(10),IFERROR(#REF!,\"\"))","v":"Trimestre 1\n"},{"$f":"_xlfn.CONCAT(\"Trimestre 1\",CHAR(10),IFERROR(#REF!,\"\"))","v":"Trimestre 1\n"},{"$f":"_xlfn.CONCAT(\"Trimestre 1\",CHAR(10),IFERROR(#REF!,\"\"))","v":"Trimestre 1\n"},{"$f":"_xlfn.CONCAT(\"Trimestre 1\",CHAR(10),IFERROR(#REF!,\"\"))","v":"Trimestre 1\n"},{"$f":"_xlfn.CONCAT(\"Trimestre 1\",CHAR(10),IFERROR(#REF!,\"\"))","v":"Trimestre 1\n"}]
[]
[]
[]
[]
[]
[null,null,null,null,null,null,null,null,null,null,null,null,null,null,null,null,null,null,null,null,null,null,null,null,null,{"$f":"IFERROR(#REF!,\" \")","v":" "},{"$f":"IFERROR(#REF!,\"\")","v":""},{"$f":"IFERROR(#REF!,\"\")","v":""},"","",{"$f":"IFERROR(#REF!,\"\")","v":""},"",{"$f":"IFERROR(#REF!,\"\")","v":""},{"$f":"IFERROR(#REF!,\"\")","v":""},{"$f":"_xlfn.CONCAT(\"Trimestre 1\",CHAR(10),IFERROR(#REF!,\"\"))","v":"Trimestre 1\n"},{"$f":"_xlfn.CONCAT(\"Trimestre 1\",CHAR(10),IFERROR(#REF!,\"\"))","v":"Trimestre 1\n"},{"$f":"_xlfn.CONCAT(\"Trimestre 1\",CHAR(10),IFERROR(#REF!,\"\"))","v":"Trimestre 1\n"},{"$f":"_xlfn.CONCAT(\"Trimestre 1\",CHAR(10),IFERROR(#REF!,\"\"))","v":"Trimestre 1\n"},{"$f":"_xlfn.CONCAT(\"Trimestre 1\",CHAR(10),IFERROR(#REF!,\"\"))","v":"Trimestre 1\n"}]
[null,null,null,null,null,null,null,null,null,null,null,null,null,null,null,null,null,null,null,null,null,null,null,null,null,{"$f":"IFERROR(#REF!,\" \")","v":" "},{"$f":"IFERROR(#REF!,\"\")","v":""},{"$f":"IFERROR(#REF!,\"\")","v":""},"","",{"$f":"IFERROR(#REF!,\"\")","v":""},"",{"$f":"IFERROR(#REF!,\"\")","v":""},{"$f":"IFERROR(#REF!,\"\")","v":""},{"$f":"_xlfn.CONCAT(\"Trimestre 1\",CHAR(10),IFERROR(#REF!,\"\"))","v":"Trimestre 1\n"},{"$f":"_xlfn.CONCAT(\"Trimestre 1\",CHAR(10),IFERROR(#REF!,\"\"))","v":"Trimestre 1\n"},{"$f":"_xlfn.CONCAT(\"Trimestre 1\",CHAR(10),IFERROR(#REF!,\"\"))","v":"Trimestre 1\n"},{"$f":"_xlfn.CONCAT(\"Trimestre 1\",CHAR(10),IFERROR(#REF!,\"\"))","v":"Trimestre 1\n"},{"$f":"_xlfn.CONCAT(\"Trimestre 1\",CHAR(10),IFERROR(#REF!,\"\"))","v":"Trimestre 1\n"}]
[null,null,null,null,null,null,null,null,null,null,null,null,null,null,null,null,null,null,null,null,null,null,null,null,null,{"$f":"IFERROR(#REF!,\" \")","v":" "},{"$f":"IFERROR(#REF!,\"\")","v":""},{"$f":"IFERROR(#REF!,\"\")","v":""},"","",{"$f":"IFERROR(#REF!,\"\")","v":""},"",{"$f":"IFERROR(#REF!,\"\")","v":""},{"$f":"IFERROR(#REF!,\"\")","v":""},{"$f":"_xlfn.CONCAT(\"Trimestre 1\",CHAR(10),IFERROR(#REF!,\"\"))","v":"Trimestre 1\n"},{"$f":"_xlfn.CONCAT(\"Trimestre 1\",CHAR(10),IFERROR(#REF!,\"\"))","v":"Trimestre 1\n"},{"$f":"_xlfn.CONCAT(\"Trimestre 1\",CHAR(10),IFERROR(#REF!,\"\"))","v":"Trimestre 1\n"},{"$f":"_xlfn.CONCAT(\"Trimestre 1\",CHAR(10),IFERROR(#REF!,\"\"))","v":"Trimestre 1\n"},{"$f":"_xlfn.CONCAT(\"Trimestre 1\",CHAR(10),IFERROR(#REF!,\"\"))","v":"Trimestre 1\n"}]
[null,null,"3. Coadyuvar en la garantía de la idoneidad en el ejercicio de la profesión jurídica de acuerdo con lo establecido en la Ley 1905 de 2018.",null,null,"2. Asegurar  el cumplimiento de los objetivos institucionales, la normatividad aplicable,  la mejora del SIGCMA y la satisfacción de los usuarios, revisando de  forma continua y sistemática la planificación de la gestión y fortaleciendo la administración de riesgos y sus controles",null,null,null,null,null,null,null,null,null,null,null,null,null,null,null,null,null,null,null,{"$f":"IFERROR(#REF!,\" \")","v":" "},{"$f":"IFERROR(#REF!,\"\")","v":""},{"$f":"IFERROR(#REF!,\"\")","v":""},"","",{"$f":"IFERROR(#REF!,\"\")","v":""},"",{"$f":"IFERROR(#REF!,\"\")","v":""},{"$f":"IFERROR(#REF!,\"\")","v":""},{"$f":"_xlfn.CONCAT(\"Trimestre 1\",CHAR(10),IFERROR(#REF!,\"\"))","v":"Trimestre 1\n"},{"$f":"_xlfn.CONCAT(\"Trimestre 1\",CHAR(10),IFERROR(#REF!,\"\"))","v":"Trimestre 1\n"},{"$f":"_xlfn.CONCAT(\"Trimestre 1\",CHAR(10),IFERROR(#REF!,\"\"))","v":"Trimestre 1\n"},{"$f":"_xlfn.CONCAT(\"Trimestre 1\",CHAR(10),IFERROR(#REF!,\"\"))","v":"Trimestre 1\n"},{"$f":"_xlfn.CONCAT(\"Trimestre 1\",CHAR(10),IFERROR(#REF!,\"\"))","v":"Trimestre 1\n"}]
[null,null,null,null,null,null,null,null,null,null,null,null,null,null,null,null,null,null,null,null,null,null,null,null,null,{"$f":"IFERROR(#REF!,\" \")","v":" "},{"$f":"IFERROR(#REF!,\"\")","v":""},{"$f":"IFERROR(#REF!,\"\")","v":""},"","",{"$f":"IFERROR(#REF!,\"\")","v":""},"",{"$f":"IFERROR(#REF!,\"\")","v":""},{"$f":"IFERROR(#REF!,\"\")","v":""},{"$f":"_xlfn.CONCAT(\"Trimestre 1\",CHAR(10),IFERROR(#REF!,\"\"))","v":"Trimestre 1\n"},{"$f":"_xlfn.CONCAT(\"Trimestre 1\",CHAR(10),IFERROR(#REF!,\"\"))","v":"Trimestre 1\n"},{"$f":"_xlfn.CONCAT(\"Trimestre 1\",CHAR(10),IFERROR(#REF!,\"\"))","v":"Trimestre 1\n"},{"$f":"_xlfn.CONCAT(\"Trimestre 1\",CHAR(10),IFERROR(#REF!,\"\"))","v":"Trimestre 1\n"},{"$f":"_xlfn.CONCAT(\"Trimestre 1\",CHAR(10),IFERROR(#REF!,\"\"))","v":"Trimestre 1\n"}]
[]
[]
[]
[]
[]
[null,null,null,null,null,null,null,null,null,null,null,null,null,null,null,null,null,null,null,null,null,null,null,null,null,{"$f":"IFERROR(#REF!,\" \")","v":" "},{"$f":"IFERROR(#REF!,\"\")","v":""},{"$f":"IFERROR(#REF!,\"\")","v":""},"","",{"$f":"IFERROR(#REF!,\"\")","v":""},"",{"$f":"IFERROR(#REF!,\"\")","v":""},{"$f":"IFERROR(#REF!,\"\")","v":""},{"$f":"_xlfn.CONCAT(\"Trimestre 1\",CHAR(10),IFERROR(#REF!,\"\"))","v":"Trimestre 1\n"},{"$f":"_xlfn.CONCAT(\"Trimestre 1\",CHAR(10),IFERROR(#REF!,\"\"))","v":"Trimestre 1\n"},{"$f":"_xlfn.CONCAT(\"Trimestre 1\",CHAR(10),IFERROR(#REF!,\"\"))","v":"Trimestre 1\n"},{"$f":"_xlfn.CONCAT(\"Trimestre 1\",CHAR(10),IFERROR(#REF!,\"\"))","v":"Trimestre 1\n"},{"$f":"_xlfn.CONCAT(\"Trimestre 1\",CHAR(10),IFERROR(#REF!,\"\"))","v":"Trimestre 1\n"}]
[null,null,null,null,null,null,null,null,null,null,null,null,null,null,null,null,null,null,null,null,null,null,null,null,null,{"$f":"IFERROR(#REF!,\" \")","v":" "},{"$f":"IFERROR(#REF!,\"\")","v":""},{"$f":"IFERROR(#REF!,\"\")","v":""},"","",{"$f":"IFERROR(#REF!,\"\")","v":""},"",{"$f":"IFERROR(#REF!,\"\")","v":""},{"$f":"IFERROR(#REF!,\"\")","v":""},{"$f":"_xlfn.CONCAT(\"Trimestre 1\",CHAR(10),IFERROR(#REF!,\"\"))","v":"Trimestre 1\n"},{"$f":"_xlfn.CONCAT(\"Trimestre 1\",CHAR(10),IFERROR(#REF!,\"\"))","v":"Trimestre 1\n"},{"$f":"_xlfn.CONCAT(\"Trimestre 1\",CHAR(10),IFERROR(#REF!,\"\"))","v":"Trimestre 1\n"},{"$f":"_xlfn.CONCAT(\"Trimestre 1\",CHAR(10),IFERROR(#REF!,\"\"))","v":"Trimestre 1\n"},{"$f":"_xlfn.CONCAT(\"Trimestre 1\",CHAR(10),IFERROR(#REF!,\"\"))","v":"Trimestre 1\n"}]
[null,null,null,null,null,null,null,null,null,null,null,null,null,null,null,null,null,null,null,null,null,null,null,null,null,{"$f":"IFERROR(#REF!,\" \")","v":" "},{"$f":"IFERROR(#REF!,\"\")","v":""},{"$f":"IFERROR(#REF!,\"\")","v":""},"","",{"$f":"IFERROR(#REF!,\"\")","v":""},"",{"$f":"IFERROR(#REF!,\"\")","v":""},{"$f":"IFERROR(#REF!,\"\")","v":""},{"$f":"_xlfn.CONCAT(\"Trimestre 1\",CHAR(10),IFERROR(#REF!,\"\"))","v":"Trimestre 1\n"},{"$f":"_xlfn.CONCAT(\"Trimestre 1\",CHAR(10),IFERROR(#REF!,\"\"))","v":"Trimestre 1\n"},{"$f":"_xlfn.CONCAT(\"Trimestre 1\",CHAR(10),IFERROR(#REF!,\"\"))","v":"Trimestre 1\n"},{"$f":"_xlfn.CONCAT(\"Trimestre 1\",CHAR(10),IFERROR(#REF!,\"\"))","v":"Trimestre 1\n"},{"$f":"_xlfn.CONCAT(\"Trimestre 1\",CHAR(10),IFERROR(#REF!,\"\"))","v":"Trimestre 1\n"}]
[null,null,"4. Avanzar en la disposición de una infraestructura óptima para el acceso a la justicia en la Rama Judicial de modo que se fortalezca la presencia territorial, teniendo en cuenta las posibilidades que ofrece la transformación digital y las necesidades que se derivan de ella, y considerando tanto las necesidades de los usuarios como las de los servidores judiciales.","Diseños para la construcción de despachos judiciales","# de sedes proyectada s para construir o intervenir en el cuatrienio / # sedes efectivamen te construidas o intervenidas\n\nTotal de\ndiseños aprobados","4. Hacer un uso racional de los recursos naturales aplicando los principios y fases de la Economía Circular, para prevenir, mitigar y controlar los impactos ambientales",null,null,null,null,null,null,null,null,null,null,null,null,null,null,null,null,null,null,null,{"$f":"IFERROR(#REF!,\" \")","v":" "},{"$f":"IFERROR(#REF!,\"\")","v":""},{"$f":"IFERROR(#REF!,\"\")","v":""},"","",{"$f":"IFERROR(#REF!,\"\")","v":""},"",{"$f":"IFERROR(#REF!,\"\")","v":""},{"$f":"IFERROR(#REF!,\"\")","v":""},{"$f":"_xlfn.CONCAT(\"Trimestre 1\",CHAR(10),IFERROR(#REF!,\"\"))","v":"Trimestre 1\n"},{"$f":"_xlfn.CONCAT(\"Trimestre 1\",CHAR(10),IFERROR(#REF!,\"\"))","v":"Trimestre 1\n"},{"$f":"_xlfn.CONCAT(\"Trimestre 1\",CHAR(10),IFERROR(#REF!,\"\"))","v":"Trimestre 1\n"},{"$f":"_xlfn.CONCAT(\"Trimestre 1\",CHAR(10),IFERROR(#REF!,\"\"))","v":"Trimestre 1\n"},{"$f":"_xlfn.CONCAT(\"Trimestre 1\",CHAR(10),IFERROR(#REF!,\"\"))","v":"Trimestre 1\n"}]
[null,null,null,null,null,null,null,null,null,null,null,null,null,null,null,null,null,null,null,null,null,null,null,null,null,{"$f":"IFERROR(#REF!,\" \")","v":" "},{"$f":"IFERROR(#REF!,\"\")","v":""},{"$f":"IFERROR(#REF!,\"\")","v":""},"","",{"$f":"IFERROR(#REF!,\"\")","v":""},"",{"$f":"IFERROR(#REF!,\"\")","v":""},{"$f":"IFERROR(#REF!,\"\")","v":""},{"$f":"_xlfn.CONCAT(\"Trimestre 1\",CHAR(10),IFERROR(#REF!,\"\"))","v":"Trimestre 1\n"},{"$f":"_xlfn.CONCAT(\"Trimestre 1\",CHAR(10),IFERROR(#REF!,\"\"))","v":"Trimestre 1\n"},{"$f":"_xlfn.CONCAT(\"Trimestre 1\",CHAR(10),IFERROR(#REF!,\"\"))","v":"Trimestre 1\n"},{"$f":"_xlfn.CONCAT(\"Trimestre 1\",CHAR(10),IFERROR(#REF!,\"\"))","v":"Trimestre 1\n"},{"$f":"_xlfn.CONCAT(\"Trimestre 1\",CHAR(10),IFERROR(#REF!,\"\"))","v":"Trimestre 1\n"}]
[]
[]
[]
[]
[]
[null,null,null,null,null,null,null,null,null,null,null,null,null,null,null,null,null,null,null,null,null,null,null,null,null,{"$f":"IFERROR(#REF!,\" \")","v":" "},{"$f":"IFERROR(#REF!,\"\")","v":""},{"$f":"IFERROR(#REF!,\"\")","v":""},"","",{"$f":"IFERROR(#REF!,\"\")","v":""},"",{"$f":"IFERROR(#REF!,\"\")","v":""},{"$f":"IFERROR(#REF!,\"\")","v":""},{"$f":"_xlfn.CONCAT(\"Trimestre 1\",CHAR(10),IFERROR(#REF!,\"\"))","v":"Trimestre 1\n"},{"$f":"_xlfn.CONCAT(\"Trimestre 1\",CHAR(10),IFERROR(#REF!,\"\"))","v":"Trimestre 1\n"},{"$f":"_xlfn.CONCAT(\"Trimestre 1\",CHAR(10),IFERROR(#REF!,\"\"))","v":"Trimestre 1\n"},{"$f":"_xlfn.CONCAT(\"Trimestre 1\",CHAR(10),IFERROR(#REF!,\"\"))","v":"Trimestre 1\n"},{"$f":"_xlfn.CONCAT(\"Trimestre 1\",CHAR(10),IFERROR(#REF!,\"\"))","v":"Trimestre 1\n"}]
[null,null,null,null,null,null,null,null,null,null,null,null,null,null,null,null,null,null,null,null,null,null,null,null,null,{"$f":"IFERROR(#REF!,\" \")","v":" "},{"$f":"IFERROR(#REF!,\"\")","v":""},{"$f":"IFERROR(#REF!,\"\")","v":""},"","",{"$f":"IFERROR(#REF!,\"\")","v":""},"",{"$f":"IFERROR(#REF!,\"\")","v":""},{"$f":"IFERROR(#REF!,\"\")","v":""},{"$f":"_xlfn.CONCAT(\"Trimestre 1\",CHAR(10),IFERROR(#REF!,\"\"))","v":"Trimestre 1\n"},{"$f":"_xlfn.CONCAT(\"Trimestre 1\",CHAR(10),IFERROR(#REF!,\"\"))","v":"Trimestre 1\n"},{"$f":"_xlfn.CONCAT(\"Trimestre 1\",CHAR(10),IFERROR(#REF!,\"\"))","v":"Trimestre 1\n"},{"$f":"_xlfn.CONCAT(\"Trimestre 1\",CHAR(10),IFERROR(#REF!,\"\"))","v":"Trimestre 1\n"},{"$f":"_xlfn.CONCAT(\"Trimestre 1\",CHAR(10),IFERROR(#REF!,\"\"))","v":"Trimestre 1\n"}]
[null,null,null,null,null,null,null,null,null,null,null,null,null,null,null,null,null,null,null,null,null,null,null,null,null,{"$f":"IFERROR(#REF!,\" \")","v":" "},{"$f":"IFERROR(#REF!,\"\")","v":""},{"$f":"IFERROR(#REF!,\"\")","v":""},"","",{"$f":"IFERROR(#REF!,\"\")","v":""},"",{"$f":"IFERROR(#REF!,\"\")","v":""},{"$f":"IFERROR(#REF!,\"\")","v":""},{"$f":"_xlfn.CONCAT(\"Trimestre 1\",CHAR(10),IFERROR(#REF!,\"\"))","v":"Trimestre 1\n"},{"$f":"_xlfn.CONCAT(\"Trimestre 1\",CHAR(10),IFERROR(#REF!,\"\"))","v":"Trimestre 1\n"},{"$f":"_xlfn.CONCAT(\"Trimestre 1\",CHAR(10),IFERROR(#REF!,\"\"))","v":"Trimestre 1\n"},{"$f":"_xlfn.CONCAT(\"Trimestre 1\",CHAR(10),IFERROR(#REF!,\"\"))","v":"Trimestre 1\n"},{"$f":"_xlfn.CONCAT(\"Trimestre 1\",CHAR(10),IFERROR(#REF!,\"\"))","v":"Trimestre 1\n"}]
[null,null,"5. Impulsar el uso de mecanismos alternativos para la solución de conflictos y la ampliación de la justicia restaurativa y terapéutica y el robustecimiento de las alternativas al encarcelamiento","Seguimiento al cumplimiento de las disposiciones del CSJ que impulsan el uso de mecanismos alternativos de solución de conflictos, la ampliación de la justicia restaurativa y terapéutica y las alternativas al encarcelamiento.","% avance de implementa ción de las estrategias definidas para el seguimiento de las disposicion es adoptadas por el Consejo en materia de justicia restaurativa y terapéutica y las alternativas de encarcelami ento","2. Asegurar  el cumplimiento de los objetivos institucionales, la normatividad aplicable,  la mejora del SIGCMA y la satisfacción de los usuarios, revisando de  forma continua y sistemática la planificación de la gestión y fortaleciendo la administración de riesgos y sus controles",null,null,null,null,null,null,null,null,null,null,null,null,null,null,null,null,null,null,null,{"$f":"IFERROR(#REF!,\" \")","v":" "},{"$f":"IFERROR(#REF!,\"\")","v":""},{"$f":"IFERROR(#REF!,\"\")","v":""},"","",{"$f":"IFERROR(#REF!,\"\")","v":""},"",{"$f":"IFERROR(#REF!,\"\")","v":""},{"$f":"IFERROR(#REF!,\"\")","v":""},{"$f":"_xlfn.CONCAT(\"Trimestre 1\",CHAR(10),IFERROR(#REF!,\"\"))","v":"Trimestre 1\n"},{"$f":"_xlfn.CONCAT(\"Trimestre 1\",CHAR(10),IFERROR(#REF!,\"\"))","v":"Trimestre 1\n"},{"$f":"_xlfn.CONCAT(\"Trimestre 1\",CHAR(10),IFERROR(#REF!,\"\"))","v":"Trimestre 1\n"},{"$f":"_xlfn.CONCAT(\"Trimestre 1\",CHAR(10),IFERROR(#REF!,\"\"))","v":"Trimestre 1\n"},{"$f":"_xlfn.CONCAT(\"Trimestre 1\",CHAR(10),IFERROR(#REF!,\"\"))","v":"Trimestre 1\n"}]
[null,null,null,null,null,null,null,null,null,null,null,null,null,null,null,null,null,null,null,null,null,null,null,null,null,{"$f":"IFERROR(#REF!,\" \")","v":" "},{"$f":"IFERROR(#REF!,\"\")","v":""},{"$f":"IFERROR(#REF!,\"\")","v":""},"","",{"$f":"IFERROR(#REF!,\"\")","v":""},"",{"$f":"IFERROR(#REF!,\"\")","v":""},{"$f":"IFERROR(#REF!,\"\")","v":""},{"$f":"_xlfn.CONCAT(\"Trimestre 1\",CHAR(10),IFERROR(#REF!,\"\"))","v":"Trimestre 1\n"},{"$f":"_xlfn.CONCAT(\"Trimestre 1\",CHAR(10),IFERROR(#REF!,\"\"))","v":"Trimestre 1\n"},{"$f":"_xlfn.CONCAT(\"Trimestre 1\",CHAR(10),IFERROR(#REF!,\"\"))","v":"Trimestre 1\n"},{"$f":"_xlfn.CONCAT(\"Trimestre 1\",CHAR(10),IFERROR(#REF!,\"\"))","v":"Trimestre 1\n"},{"$f":"_xlfn.CONCAT(\"Trimestre 1\",CHAR(10),IFERROR(#REF!,\"\"))","v":"Trimestre 1\n"}]
[]
[]
[]
[]
[]
[null,null,null,null,null,null,null,null,null,null,null,null,null,null,null,null,null,null,null,null,null,null,null,null,null,{"$f":"IFERROR(#REF!,\" \")","v":" "},{"$f":"IFERROR(#REF!,\"\")","v":""},{"$f":"IFERROR(#REF!,\"\")","v":""},"","",{"$f":"IFERROR(#REF!,\"\")","v":""},"",{"$f":"IFERROR(#REF!,\"\")","v":""},{"$f":"IFERROR(#REF!,\"\")","v":""},{"$f":"_xlfn.CONCAT(\"Trimestre 1\",CHAR(10),IFERROR(#REF!,\"\"))","v":"Trimestre 1\n"},{"$f":"_xlfn.CONCAT(\"Trimestre 1\",CHAR(10),IFERROR(#REF!,\"\"))","v":"Trimestre 1\n"},{"$f":"_xlfn.CONCAT(\"Trimestre 1\",CHAR(10),IFERROR(#REF!,\"\"))","v":"Trimestre 1\n"},{"$f":"_xlfn.CONCAT(\"Trimestre 1\",CHAR(10),IFERROR(#REF!,\"\"))","v":"Trimestre 1\n"},{"$f":"_xlfn.CONCAT(\"Trimestre 1\",CHAR(10),IFERROR(#REF!,\"\"))","v":"Trimestre 1\n"}]
[null,null,null,null,null,null,null,null,null,null,null,null,null,null,null,null,null,null,null,null,null,null,null,null,null,{"$f":"IFERROR(#REF!,\" \")","v":" "},{"$f":"IFERROR(#REF!,\"\")","v":""},{"$f":"IFERROR(#REF!,\"\")","v":""},"","",{"$f":"IFERROR(#REF!,\"\")","v":""},"",{"$f":"IFERROR(#REF!,\"\")","v":""},{"$f":"IFERROR(#REF!,\"\")","v":""},{"$f":"_xlfn.CONCAT(\"Trimestre 1\",CHAR(10),IFERROR(#REF!,\"\"))","v":"Trimestre 1\n"},{"$f":"_xlfn.CONCAT(\"Trimestre 1\",CHAR(10),IFERROR(#REF!,\"\"))","v":"Trimestre 1\n"},{"$f":"_xlfn.CONCAT(\"Trimestre 1\",CHAR(10),IFERROR(#REF!,\"\"))","v":"Trimestre 1\n"},{"$f":"_xlfn.CONCAT(\"Trimestre 1\",CHAR(10),IFERROR(#REF!,\"\"))","v":"Trimestre 1\n"},{"$f":"_xlfn.CONCAT(\"Trimestre 1\",CHAR(10),IFERROR(#REF!,\"\"))","v":"Trimestre 1\n"}]
[null,null,null,null,null,null,null,null,null,null,null,null,null,null,null,null,null,null,null,null,null,null,null,null,null,{"$f":"IFERROR(#REF!,\" \")","v":" "},{"$f":"IFERROR(#REF!,\"\")","v":""},{"$f":"IFERROR(#REF!,\"\")","v":""},"","",{"$f":"IFERROR(#REF!,\"\")","v":""},"",{"$f":"IFERROR(#REF!,\"\")","v":""},{"$f":"IFERROR(#REF!,\"\")","v":""},{"$f":"_xlfn.CONCAT(\"Trimestre 1\",CHAR(10),IFERROR(#REF!,\"\"))","v":"Trimestre 1\n"},{"$f":"_xlfn.CONCAT(\"Trimestre 1\",CHAR(10),IFERROR(#REF!,\"\"))","v":"Trimestre 1\n"},{"$f":"_xlfn.CONCAT(\"Trimestre 1\",CHAR(10),IFERROR(#REF!,\"\"))","v":"Trimestre 1\n"},{"$f":"_xlfn.CONCAT(\"Trimestre 1\",CHAR(10),IFERROR(#REF!,\"\"))","v":"Trimestre 1\n"},{"$f":"_xlfn.CONCAT(\"Trimestre 1\",CHAR(10),IFERROR(#REF!,\"\"))","v":"Trimestre 1\n"}]
["2. Servicios digitales y de tecnología, innovación y análisis de la información.","Servicios digitales y de tecnología, innovación y análisis de la información: Consolidar una justicia integrada y soportada en servicios digitales y de tecnología, innovación y análisis de la información, con una cultura digital apropiada, segura y sensible a las realidades del territorio nacional. ","1. Ampliar el acceso a la justicia a través de la consolidación del uso de los servicios digitales que conforman el sistema único integrado de gestión judicial en todos los despachos judiciales y dependencias de apoyo y, específicamente, incluyendo el despliegue e implementación del Expediente Judicial Electrónico en todas las jurisdicciones y especialidades.","Procesos\njudiciales gestionados a través del expediente electrónico por especialidad","# de procesos judiciales en gestión con expediente electrónico en cada especialida d y por categoría de despacho a nivel de circuito / # de procesos judiciales totales en gestión por cada especialida d y circuito (cabecera de circuito)","6. Proteger, preservar y administrar los activos de información  implementando acciones  para gestionar de forma adecuada los incidentes, proteger los datos personales y adoptar mecanismos  de ciberseguridad y aseguramiento de la  continuidad del negocio.",null,null,null,null,null,null,null,null,null,null,null,null,null,null,null,null,null,null,null,{"$f":"IFERROR(#REF!,\" \")","v":" "},{"$f":"IFERROR(#REF!,\"\")","v":""},{"$f":"IFERROR(#REF!,\"\")","v":""},"","",{"$f":"IFERROR(#REF!,\"\")","v":""},"",{"$f":"IFERROR(#REF!,\"\")","v":""},{"$f":"IFERROR(#REF!,\"\")","v":""},{"$f":"_xlfn.CONCAT(\"Trimestre 1\",CHAR(10),IFERROR(#REF!,\"\"))","v":"Trimestre 1\n"},{"$f":"_xlfn.CONCAT(\"Trimestre 1\",CHAR(10),IFERROR(#REF!,\"\"))","v":"Trimestre 1\n"},{"$f":"_xlfn.CONCAT(\"Trimestre 1\",CHAR(10),IFERROR(#REF!,\"\"))","v":"Trimestre 1\n"},{"$f":"_xlfn.CONCAT(\"Trimestre 1\",CHAR(10),IFERROR(#REF!,\"\"))","v":"Trimestre 1\n"},{"$f":"_xlfn.CONCAT(\"Trimestre 1\",CHAR(10),IFERROR(#REF!,\"\"))","v":"Trimestre 1\n"}]
[null,null,null,null,null,null,null,null,null,null,null,null,null,null,null,null,null,null,null,null,null,null,null,null,null,{"$f":"IFERROR(#REF!,\" \")","v":" "},{"$f":"IFERROR(#REF!,\"\")","v":""},{"$f":"IFERROR(#REF!,\"\")","v":""},"","",{"$f":"IFERROR(#REF!,\"\")","v":""},"",{"$f":"IFERROR(#REF!,\"\")","v":""},{"$f":"IFERROR(#REF!,\"\")","v":""},{"$f":"_xlfn.CONCAT(\"Trimestre 1\",CHAR(10),IFERROR(#REF!,\"\"))","v":"Trimestre 1\n"},{"$f":"_xlfn.CONCAT(\"Trimestre 1\",CHAR(10),IFERROR(#REF!,\"\"))","v":"Trimestre 1\n"},{"$f":"_xlfn.CONCAT(\"Trimestre 1\",CHAR(10),IFERROR(#REF!,\"\"))","v":"Trimestre 1\n"},{"$f":"_xlfn.CONCAT(\"Trimestre 1\",CHAR(10),IFERROR(#REF!,\"\"))","v":"Trimestre 1\n"},{"$f":"_xlfn.CONCAT(\"Trimestre 1\",CHAR(10),IFERROR(#REF!,\"\"))","v":"Trimestre 1\n"}]
[]
[]
[]
[]
[]
[null,null,null,null,null,null,null,null,null,null,null,null,null,null,null,null,null,null,null,null,null,null,null,null,null,{"$f":"IFERROR(#REF!,\" \")","v":" "},{"$f":"IFERROR(#REF!,\"\")","v":""},{"$f":"IFERROR(#REF!,\"\")","v":""},"","",{"$f":"IFERROR(#REF!,\"\")","v":""},"",{"$f":"IFERROR(#REF!,\"\")","v":""},{"$f":"IFERROR(#REF!,\"\")","v":""},{"$f":"_xlfn.CONCAT(\"Trimestre 1\",CHAR(10),IFERROR(#REF!,\"\"))","v":"Trimestre 1\n"},{"$f":"_xlfn.CONCAT(\"Trimestre 1\",CHAR(10),IFERROR(#REF!,\"\"))","v":"Trimestre 1\n"},{"$f":"_xlfn.CONCAT(\"Trimestre 1\",CHAR(10),IFERROR(#REF!,\"\"))","v":"Trimestre 1\n"},{"$f":"_xlfn.CONCAT(\"Trimestre 1\",CHAR(10),IFERROR(#REF!,\"\"))","v":"Trimestre 1\n"},{"$f":"_xlfn.CONCAT(\"Trimestre 1\",CHAR(10),IFERROR(#REF!,\"\"))","v":"Trimestre 1\n"}]
[null,null,null,null,null,null,null,null,null,null,null,null,null,null,null,null,null,null,null,null,null,null,null,null,null,{"$f":"IFERROR(#REF!,\" \")","v":" "},{"$f":"IFERROR(#REF!,\"\")","v":""},{"$f":"IFERROR(#REF!,\"\")","v":""},"","",{"$f":"IFERROR(#REF!,\"\")","v":""},"",{"$f":"IFERROR(#REF!,\"\")","v":""},{"$f":"IFERROR(#REF!,\"\")","v":""},{"$f":"_xlfn.CONCAT(\"Trimestre 1\",CHAR(10),IFERROR(#REF!,\"\"))","v":"Trimestre 1\n"},{"$f":"_xlfn.CONCAT(\"Trimestre 1\",CHAR(10),IFERROR(#REF!,\"\"))","v":"Trimestre 1\n"},{"$f":"_xlfn.CONCAT(\"Trimestre 1\",CHAR(10),IFERROR(#REF!,\"\"))","v":"Trimestre 1\n"},{"$f":"_xlfn.CONCAT(\"Trimestre 1\",CHAR(10),IFERROR(#REF!,\"\"))","v":"Trimestre 1\n"},{"$f":"_xlfn.CONCAT(\"Trimestre 1\",CHAR(10),IFERROR(#REF!,\"\"))","v":"Trimestre 1\n"}]
[null,null,null,null,null,null,null,null,null,null,null,null,null,null,null,null,null,null,null,null,null,null,null,null,null,{"$f":"IFERROR(#REF!,\" \")","v":" "},{"$f":"IFERROR(#REF!,\"\")","v":""},{"$f":"IFERROR(#REF!,\"\")","v":""},"","",{"$f":"IFERROR(#REF!,\"\")","v":""},"",{"$f":"IFERROR(#REF!,\"\")","v":""},{"$f":"IFERROR(#REF!,\"\")","v":""},{"$f":"_xlfn.CONCAT(\"Trimestre 1\",CHAR(10),IFERROR(#REF!,\"\"))","v":"Trimestre 1\n"},{"$f":"_xlfn.CONCAT(\"Trimestre 1\",CHAR(10),IFERROR(#REF!,\"\"))","v":"Trimestre 1\n"},{"$f":"_xlfn.CONCAT(\"Trimestre 1\",CHAR(10),IFERROR(#REF!,\"\"))","v":"Trimestre 1\n"},{"$f":"_xlfn.CONCAT(\"Trimestre 1\",CHAR(10),IFERROR(#REF!,\"\"))","v":"Trimestre 1\n"},{"$f":"_xlfn.CONCAT(\"Trimestre 1\",CHAR(10),IFERROR(#REF!,\"\"))","v":"Trimestre 1\n"}]
[null,null,"2. Integrar y hacer compatibles todos los aplicativos de transición con SIUGJ, para que la migración de los expedientes judiciales a dicha plataforma sea real y no suponga afectaciones en la prestación del servicio de justicia.",null,null,null,null,null,null,null,null,null,null,null,null,null,null,null,null,null,null,null,null,null,null,{"$f":"IFERROR(#REF!,\" \")","v":" "},{"$f":"IFERROR(#REF!,\"\")","v":""},{"$f":"IFERROR(#REF!,\"\")","v":""},"","",{"$f":"IFERROR(#REF!,\"\")","v":""},"",{"$f":"IFERROR(#REF!,\"\")","v":""},{"$f":"IFERROR(#REF!,\"\")","v":""},{"$f":"_xlfn.CONCAT(\"Trimestre 1\",CHAR(10),IFERROR(#REF!,\"\"))","v":"Trimestre 1\n"},{"$f":"_xlfn.CONCAT(\"Trimestre 1\",CHAR(10),IFERROR(#REF!,\"\"))","v":"Trimestre 1\n"},{"$f":"_xlfn.CONCAT(\"Trimestre 1\",CHAR(10),IFERROR(#REF!,\"\"))","v":"Trimestre 1\n"},{"$f":"_xlfn.CONCAT(\"Trimestre 1\",CHAR(10),IFERROR(#REF!,\"\"))","v":"Trimestre 1\n"},{"$f":"_xlfn.CONCAT(\"Trimestre 1\",CHAR(10),IFERROR(#REF!,\"\"))","v":"Trimestre 1\n"}]
[null,null,null,null,null,null,null,null,null,null,null,null,null,null,null,null,null,null,null,null,null,null,null,null,null,{"$f":"IFERROR(#REF!,\" \")","v":" "},{"$f":"IFERROR(#REF!,\"\")","v":""},{"$f":"IFERROR(#REF!,\"\")","v":""},"","",{"$f":"IFERROR(#REF!,\"\")","v":""},"",{"$f":"IFERROR(#REF!,\"\")","v":""},{"$f":"IFERROR(#REF!,\"\")","v":""},{"$f":"_xlfn.CONCAT(\"Trimestre 1\",CHAR(10),IFERROR(#REF!,\"\"))","v":"Trimestre 1\n"},{"$f":"_xlfn.CONCAT(\"Trimestre 1\",CHAR(10),IFERROR(#REF!,\"\"))","v":"Trimestre 1\n"},{"$f":"_xlfn.CONCAT(\"Trimestre 1\",CHAR(10),IFERROR(#REF!,\"\"))","v":"Trimestre 1\n"},{"$f":"_xlfn.CONCAT(\"Trimestre 1\",CHAR(10),IFERROR(#REF!,\"\"))","v":"Trimestre 1\n"},{"$f":"_xlfn.CONCAT(\"Trimestre 1\",CHAR(10),IFERROR(#REF!,\"\"))","v":"Trimestre 1\n"}]
[null,null,null,null,null,null,null,null,null,null,null,null,null,null,null,null,null,null,null,null,null,null,null,null,null,{"$f":"IFERROR(#REF!,\" \")","v":" "},{"$f":"IFERROR(#REF!,\"\")","v":""},{"$f":"IFERROR(#REF!,\"\")","v":""},"","",{"$f":"IFERROR(#REF!,\"\")","v":""},"",{"$f":"IFERROR(#REF!,\"\")","v":""},{"$f":"IFERROR(#REF!,\"\")","v":""},{"$f":"_xlfn.CONCAT(\"Trimestre 1\",CHAR(10),IFERROR(#REF!,\"\"))","v":"Trimestre 1\n"},{"$f":"_xlfn.CONCAT(\"Trimestre 1\",CHAR(10),IFERROR(#REF!,\"\"))","v":"Trimestre 1\n"},{"$f":"_xlfn.CONCAT(\"Trimestre 1\",CHAR(10),IFERROR(#REF!,\"\"))","v":"Trimestre 1\n"},{"$f":"_xlfn.CONCAT(\"Trimestre 1\",CHAR(10),IFERROR(#REF!,\"\"))","v":"Trimestre 1\n"},{"$f":"_xlfn.CONCAT(\"Trimestre 1\",CHAR(10),IFERROR(#REF!,\"\"))","v":"Trimestre 1\n"}]
[]
[]
[]
[]
[]
[null,null,null,null,null,null,null,null,null,null,null,null,null,null,null,null,null,null,null,null,null,null,null,null,null,{"$f":"IFERROR(#REF!,\" \")","v":" "},{"$f":"IFERROR(#REF!,\"\")","v":""},{"$f":"IFERROR(#REF!,\"\")","v":""},"","",{"$f":"IFERROR(#REF!,\"\")","v":""},"",{"$f":"IFERROR(#REF!,\"\")","v":""},{"$f":"IFERROR(#REF!,\"\")","v":""},{"$f":"_xlfn.CONCAT(\"Trimestre 1\",CHAR(10),IFERROR(#REF!,\"\"))","v":"Trimestre 1\n"},{"$f":"_xlfn.CONCAT(\"Trimestre 1\",CHAR(10),IFERROR(#REF!,\"\"))","v":"Trimestre 1\n"},{"$f":"_xlfn.CONCAT(\"Trimestre 1\",CHAR(10),IFERROR(#REF!,\"\"))","v":"Trimestre 1\n"},{"$f":"_xlfn.CONCAT(\"Trimestre 1\",CHAR(10),IFERROR(#REF!,\"\"))","v":"Trimestre 1\n"},{"$f":"_xlfn.CONCAT(\"Trimestre 1\",CHAR(10),IFERROR(#REF!,\"\"))","v":"Trimestre 1\n"}]
[null,null,null,null,null,null,null,null,null,null,null,null,null,null,null,null,null,null,null,null,null,null,null,null,null,{"$f":"IFERROR(#REF!,\" \")","v":" "},{"$f":"IFERROR(#REF!,\"\")","v":""},{"$f":"IFERROR(#REF!,\"\")","v":""},"","",{"$f":"IFERROR(#REF!,\"\")","v":""},"",{"$f":"IFERROR(#REF!,\"\")","v":""},{"$f":"IFERROR(#REF!,\"\")","v":""},{"$f":"_xlfn.CONCAT(\"Trimestre 1\",CHAR(10),IFERROR(#REF!,\"\"))","v":"Trimestre 1\n"},{"$f":"_xlfn.CONCAT(\"Trimestre 1\",CHAR(10),IFERROR(#REF!,\"\"))","v":"Trimestre 1\n"},{"$f":"_xlfn.CONCAT(\"Trimestre 1\",CHAR(10),IFERROR(#REF!,\"\"))","v":"Trimestre 1\n"},{"$f":"_xlfn.CONCAT(\"Trimestre 1\",CHAR(10),IFERROR(#REF!,\"\"))","v":"Trimestre 1\n"},{"$f":"_xlfn.CONCAT(\"Trimestre 1\",CHAR(10),IFERROR(#REF!,\"\"))","v":"Trimestre 1\n"}]
[null,null,"3. Fortalecer las capacidades institucionales, adecuar el modelo operativo y de servicio, bajo un enfoque de Arquitectura Empresarial y de fortalecimiento del acceso a la justicia.","Implementación del programa de gestión del cambio y las comunicaciones del PETD","# de actividades del objetivo \"aumentar el conocimient o digital y el uso de apropiación de los sistemas\" del programa de gestión del cambio y las comunicaci ones del PETD cumplidas /# de actividades del objetivo \"aumentar el conocimient o digital y el uso de apropiación de los sistemas\" del programa de gestión del cambio y las comunicaci ones del PETD programada s",null,null,null,null,null,null,null,null,null,null,null,null,null,null,null,null,null,null,null,null,{"$f":"IFERROR(#REF!,\" \")","v":" "},{"$f":"IFERROR(#REF!,\"\")","v":""},{"$f":"IFERROR(#REF!,\"\")","v":""},"","",{"$f":"IFERROR(#REF!,\"\")","v":""},"",{"$f":"IFERROR(#REF!,\"\")","v":""},{"$f":"IFERROR(#REF!,\"\")","v":""},{"$f":"_xlfn.CONCAT(\"Trimestre 1\",CHAR(10),IFERROR(#REF!,\"\"))","v":"Trimestre 1\n"},{"$f":"_xlfn.CONCAT(\"Trimestre 1\",CHAR(10),IFERROR(#REF!,\"\"))","v":"Trimestre 1\n"},{"$f":"_xlfn.CONCAT(\"Trimestre 1\",CHAR(10),IFERROR(#REF!,\"\"))","v":"Trimestre 1\n"},{"$f":"_xlfn.CONCAT(\"Trimestre 1\",CHAR(10),IFERROR(#REF!,\"\"))","v":"Trimestre 1\n"},{"$f":"_xlfn.CONCAT(\"Trimestre 1\",CHAR(10),IFERROR(#REF!,\"\"))","v":"Trimestre 1\n"}]
[null,null,null,null,null,null,null,null,null,null,null,null,null,null,null,null,null,null,null,null,null,null,null,null,null,{"$f":"IFERROR(#REF!,\" \")","v":" "},{"$f":"IFERROR(#REF!,\"\")","v":""},{"$f":"IFERROR(#REF!,\"\")","v":""},"","",{"$f":"IFERROR(#REF!,\"\")","v":""},"",{"$f":"IFERROR(#REF!,\"\")","v":""},{"$f":"IFERROR(#REF!,\"\")","v":""},{"$f":"_xlfn.CONCAT(\"Trimestre 1\",CHAR(10),IFERROR(#REF!,\"\"))","v":"Trimestre 1\n"},{"$f":"_xlfn.CONCAT(\"Trimestre 1\",CHAR(10),IFERROR(#REF!,\"\"))","v":"Trimestre 1\n"},{"$f":"_xlfn.CONCAT(\"Trimestre 1\",CHAR(10),IFERROR(#REF!,\"\"))","v":"Trimestre 1\n"},{"$f":"_xlfn.CONCAT(\"Trimestre 1\",CHAR(10),IFERROR(#REF!,\"\"))","v":"Trimestre 1\n"},{"$f":"_xlfn.CONCAT(\"Trimestre 1\",CHAR(10),IFERROR(#REF!,\"\"))","v":"Trimestre 1\n"}]
[]
[]
[]
[]
[]
[null,null,null,null,null,null,null,null,null,null,null,null,null,null,null,null,null,null,null,null,null,null,null,null,null,{"$f":"IFERROR(#REF!,\" \")","v":" "},{"$f":"IFERROR(#REF!,\"\")","v":""},{"$f":"IFERROR(#REF!,\"\")","v":""},"","",{"$f":"IFERROR(#REF!,\"\")","v":""},"",{"$f":"IFERROR(#REF!,\"\")","v":""},{"$f":"IFERROR(#REF!,\"\")","v":""},{"$f":"_xlfn.CONCAT(\"Trimestre 1\",CHAR(10),IFERROR(#REF!,\"\"))","v":"Trimestre 1\n"},{"$f":"_xlfn.CONCAT(\"Trimestre 1\",CHAR(10),IFERROR(#REF!,\"\"))","v":"Trimestre 1\n"},{"$f":"_xlfn.CONCAT(\"Trimestre 1\",CHAR(10),IFERROR(#REF!,\"\"))","v":"Trimestre 1\n"},{"$f":"_xlfn.CONCAT(\"Trimestre 1\",CHAR(10),IFERROR(#REF!,\"\"))","v":"Trimestre 1\n"},{"$f":"_xlfn.CONCAT(\"Trimestre 1\",CHAR(10),IFERROR(#REF!,\"\"))","v":"Trimestre 1\n"}]
[null,null,null,null,null,null,null,null,null,null,null,null,null,null,null,null,null,null,null,null,null,null,null,null,null,{"$f":"IFERROR(#REF!,\" \")","v":" "},{"$f":"IFERROR(#REF!,\"\")","v":""},{"$f":"IFERROR(#REF!,\"\")","v":""},"","",{"$f":"IFERROR(#REF!,\"\")","v":""},"",{"$f":"IFERROR(#REF!,\"\")","v":""},{"$f":"IFERROR(#REF!,\"\")","v":""},{"$f":"_xlfn.CONCAT(\"Trimestre 1\",CHAR(10),IFERROR(#REF!,\"\"))","v":"Trimestre 1\n"},{"$f":"_xlfn.CONCAT(\"Trimestre 1\",CHAR(10),IFERROR(#REF!,\"\"))","v":"Trimestre 1\n"},{"$f":"_xlfn.CONCAT(\"Trimestre 1\",CHAR(10),IFERROR(#REF!,\"\"))","v":"Trimestre 1\n"},{"$f":"_xlfn.CONCAT(\"Trimestre 1\",CHAR(10),IFERROR(#REF!,\"\"))","v":"Trimestre 1\n"},{"$f":"_xlfn.CONCAT(\"Trimestre 1\",CHAR(10),IFERROR(#REF!,\"\"))","v":"Trimestre 1\n"}]
[null,null,null,null,null,null,null,null,null,null,null,null,null,null,null,null,null,null,null,null,null,null,null,null,null,{"$f":"IFERROR(#REF!,\" \")","v":" "},{"$f":"IFERROR(#REF!,\"\")","v":""},{"$f":"IFERROR(#REF!,\"\")","v":""},"","",{"$f":"IFERROR(#REF!,\"\")","v":""},"",{"$f":"IFERROR(#REF!,\"\")","v":""},{"$f":"IFERROR(#REF!,\"\")","v":""},{"$f":"_xlfn.CONCAT(\"Trimestre 1\",CHAR(10),IFERROR(#REF!,\"\"))","v":"Trimestre 1\n"},{"$f":"_xlfn.CONCAT(\"Trimestre 1\",CHAR(10),IFERROR(#REF!,\"\"))","v":"Trimestre 1\n"},{"$f":"_xlfn.CONCAT(\"Trimestre 1\",CHAR(10),IFERROR(#REF!,\"\"))","v":"Trimestre 1\n"},{"$f":"_xlfn.CONCAT(\"Trimestre 1\",CHAR(10),IFERROR(#REF!,\"\"))","v":"Trimestre 1\n"},{"$f":"_xlfn.CONCAT(\"Trimestre 1\",CHAR(10),IFERROR(#REF!,\"\"))","v":"Trimestre 1\n"}]
[null,null,"4.Consolidar la cultura y apropiación de la transformación digital en los servidores y usuarios de los servicios de la Rama Judicial y reducir brechas de acceso y conocimiento, incluyendo la oferta efectiva de información sobre el uso de las nuevas herramientas virtuales implementadas en las diferentes jurisdicciones, con especial énfasis en las zonas del país donde es evidente la brecha digital.","Cobertura de infraestructura y conectividad consolidada","# de sedes con infraestruct ura y conectivida d consolidada s/Número total de sedes",null,null,null,null,null,null,null,null,null,null,null,null,null,null,null,null,null,null,null,null,{"$f":"IFERROR(#REF!,\" \")","v":" "},{"$f":"IFERROR(#REF!,\"\")","v":""},{"$f":"IFERROR(#REF!,\"\")","v":""},"","",{"$f":"IFERROR(#REF!,\"\")","v":""},"",{"$f":"IFERROR(#REF!,\"\")","v":""},{"$f":"IFERROR(#REF!,\"\")","v":""},{"$f":"_xlfn.CONCAT(\"Trimestre 1\",CHAR(10),IFERROR(#REF!,\"\"))","v":"Trimestre 1\n"},{"$f":"_xlfn.CONCAT(\"Trimestre 1\",CHAR(10),IFERROR(#REF!,\"\"))","v":"Trimestre 1\n"},{"$f":"_xlfn.CONCAT(\"Trimestre 1\",CHAR(10),IFERROR(#REF!,\"\"))","v":"Trimestre 1\n"},{"$f":"_xlfn.CONCAT(\"Trimestre 1\",CHAR(10),IFERROR(#REF!,\"\"))","v":"Trimestre 1\n"},{"$f":"_xlfn.CONCAT(\"Trimestre 1\",CHAR(10),IFERROR(#REF!,\"\"))","v":"Trimestre 1\n"}]
[null,null,null,null,null,null,null,null,null,null,null,null,null,null,null,null,null,null,null,null,null,null,null,null,null,{"$f":"IFERROR(#REF!,\" \")","v":" "},{"$f":"IFERROR(#REF!,\"\")","v":""},{"$f":"IFERROR(#REF!,\"\")","v":""},"","",{"$f":"IFERROR(#REF!,\"\")","v":""},"",{"$f":"IFERROR(#REF!,\"\")","v":""},{"$f":"IFERROR(#REF!,\"\")","v":""},{"$f":"_xlfn.CONCAT(\"Trimestre 1\",CHAR(10),IFERROR(#REF!,\"\"))","v":"Trimestre 1\n"},{"$f":"_xlfn.CONCAT(\"Trimestre 1\",CHAR(10),IFERROR(#REF!,\"\"))","v":"Trimestre 1\n"},{"$f":"_xlfn.CONCAT(\"Trimestre 1\",CHAR(10),IFERROR(#REF!,\"\"))","v":"Trimestre 1\n"},{"$f":"_xlfn.CONCAT(\"Trimestre 1\",CHAR(10),IFERROR(#REF!,\"\"))","v":"Trimestre 1\n"},{"$f":"_xlfn.CONCAT(\"Trimestre 1\",CHAR(10),IFERROR(#REF!,\"\"))","v":"Trimestre 1\n"}]
[]
[]
[]
[]
[]
[null,null,null,null,null,null,null,null,null,null,null,null,null,null,null,null,null,null,null,null,null,null,null,null,null,{"$f":"IFERROR(#REF!,\" \")","v":" "},{"$f":"IFERROR(#REF!,\"\")","v":""},{"$f":"IFERROR(#REF!,\"\")","v":""},"","",{"$f":"IFERROR(#REF!,\"\")","v":""},"",{"$f":"IFERROR(#REF!,\"\")","v":""},{"$f":"IFERROR(#REF!,\"\")","v":""},{"$f":"_xlfn.CONCAT(\"Trimestre 1\",CHAR(10),IFERROR(#REF!,\"\"))","v":"Trimestre 1\n"},{"$f":"_xlfn.CONCAT(\"Trimestre 1\",CHAR(10),IFERROR(#REF!,\"\"))","v":"Trimestre 1\n"},{"$f":"_xlfn.CONCAT(\"Trimestre 1\",CHAR(10),IFERROR(#REF!,\"\"))","v":"Trimestre 1\n"},{"$f":"_xlfn.CONCAT(\"Trimestre 1\",CHAR(10),IFERROR(#REF!,\"\"))","v":"Trimestre 1\n"},{"$f":"_xlfn.CONCAT(\"Trimestre 1\",CHAR(10),IFERROR(#REF!,\"\"))","v":"Trimestre 1\n"}]
[null,null,null,null,null,null,null,null,null,null,null,null,null,null,null,null,null,null,null,null,null,null,null,null,null,{"$f":"IFERROR(#REF!,\" \")","v":" "},{"$f":"IFERROR(#REF!,\"\")","v":""},{"$f":"IFERROR(#REF!,\"\")","v":""},"","",{"$f":"IFERROR(#REF!,\"\")","v":""},"",{"$f":"IFERROR(#REF!,\"\")","v":""},{"$f":"IFERROR(#REF!,\"\")","v":""},{"$f":"_xlfn.CONCAT(\"Trimestre 1\",CHAR(10),IFERROR(#REF!,\"\"))","v":"Trimestre 1\n"},{"$f":"_xlfn.CONCAT(\"Trimestre 1\",CHAR(10),IFERROR(#REF!,\"\"))","v":"Trimestre 1\n"},{"$f":"_xlfn.CONCAT(\"Trimestre 1\",CHAR(10),IFERROR(#REF!,\"\"))","v":"Trimestre 1\n"},{"$f":"_xlfn.CONCAT(\"Trimestre 1\",CHAR(10),IFERROR(#REF!,\"\"))","v":"Trimestre 1\n"},{"$f":"_xlfn.CONCAT(\"Trimestre 1\",CHAR(10),IFERROR(#REF!,\"\"))","v":"Trimestre 1\n"}]
[null,null,null,null,null,null,null,null,null,null,null,null,null,null,null,null,null,null,null,null,null,null,null,null,null,{"$f":"IFERROR(#REF!,\" \")","v":" "},{"$f":"IFERROR(#REF!,\"\")","v":""},{"$f":"IFERROR(#REF!,\"\")","v":""},"","",{"$f":"IFERROR(#REF!,\"\")","v":""},"",{"$f":"IFERROR(#REF!,\"\")","v":""},{"$f":"IFERROR(#REF!,\"\")","v":""},{"$f":"_xlfn.CONCAT(\"Trimestre 1\",CHAR(10),IFERROR(#REF!,\"\"))","v":"Trimestre 1\n"},{"$f":"_xlfn.CONCAT(\"Trimestre 1\",CHAR(10),IFERROR(#REF!,\"\"))","v":"Trimestre 1\n"},{"$f":"_xlfn.CONCAT(\"Trimestre 1\",CHAR(10),IFERROR(#REF!,\"\"))","v":"Trimestre 1\n"},{"$f":"_xlfn.CONCAT(\"Trimestre 1\",CHAR(10),IFERROR(#REF!,\"\"))","v":"Trimestre 1\n"},{"$f":"_xlfn.CONCAT(\"Trimestre 1\",CHAR(10),IFERROR(#REF!,\"\"))","v":"Trimestre 1\n"}]
[null,null,"5.Consolidar la infraestructura y los recursos necesarios para la implementación exitosa de la transformación digital, incluyendo la disposición de internet de calidad en el 100% de las sedes en la Rama Judicial y modernizar los servicios tecnológicos de soporte. ","Implementación del programa de gestión del cambio y las comunicaciones del PETD","# de actividades del objetivo \"aumentar el conocimient o digital y el uso de apropiación de los sistemas\" del programa de gestión del cambio y las comunicaci ones del PETD cumplidas /# de actividades del objetivo \"aumentar el conocimient o digital y el uso de apropiación de los sistemas\" del programa de gestión del cambio y las comunicaci ones del PETD programada s",null,null,null,null,null,null,null,null,null,null,null,null,null,null,null,null,null,null,null,null,{"$f":"IFERROR(#REF!,\" \")","v":" "},{"$f":"IFERROR(#REF!,\"\")","v":""},{"$f":"IFERROR(#REF!,\"\")","v":""},"","",{"$f":"IFERROR(#REF!,\"\")","v":""},"",{"$f":"IFERROR(#REF!,\"\")","v":""},{"$f":"IFERROR(#REF!,\"\")","v":""},{"$f":"_xlfn.CONCAT(\"Trimestre 1\",CHAR(10),IFERROR(#REF!,\"\"))","v":"Trimestre 1\n"},{"$f":"_xlfn.CONCAT(\"Trimestre 1\",CHAR(10),IFERROR(#REF!,\"\"))","v":"Trimestre 1\n"},{"$f":"_xlfn.CONCAT(\"Trimestre 1\",CHAR(10),IFERROR(#REF!,\"\"))","v":"Trimestre 1\n"},{"$f":"_xlfn.CONCAT(\"Trimestre 1\",CHAR(10),IFERROR(#REF!,\"\"))","v":"Trimestre 1\n"},{"$f":"_xlfn.CONCAT(\"Trimestre 1\",CHAR(10),IFERROR(#REF!,\"\"))","v":"Trimestre 1\n"}]
[null,null,null,null,null,null,null,null,null,null,null,null,null,null,null,null,null,null,null,null,null,null,null,null,null,{"$f":"IFERROR(#REF!,\" \")","v":" "},{"$f":"IFERROR(#REF!,\"\")","v":""},{"$f":"IFERROR(#REF!,\"\")","v":""},"","",{"$f":"IFERROR(#REF!,\"\")","v":""},"",{"$f":"IFERROR(#REF!,\"\")","v":""},{"$f":"IFERROR(#REF!,\"\")","v":""},{"$f":"_xlfn.CONCAT(\"Trimestre 1\",CHAR(10),IFERROR(#REF!,\"\"))","v":"Trimestre 1\n"},{"$f":"_xlfn.CONCAT(\"Trimestre 1\",CHAR(10),IFERROR(#REF!,\"\"))","v":"Trimestre 1\n"},{"$f":"_xlfn.CONCAT(\"Trimestre 1\",CHAR(10),IFERROR(#REF!,\"\"))","v":"Trimestre 1\n"},{"$f":"_xlfn.CONCAT(\"Trimestre 1\",CHAR(10),IFERROR(#REF!,\"\"))","v":"Trimestre 1\n"},{"$f":"_xlfn.CONCAT(\"Trimestre 1\",CHAR(10),IFERROR(#REF!,\"\"))","v":"Trimestre 1\n"}]
[]
[]
[]
[]
[]
[null,null,null,null,null,null,null,null,null,null,null,null,null,null,null,null,null,null,null,null,null,null,null,null,null,{"$f":"IFERROR(#REF!,\" \")","v":" "},{"$f":"IFERROR(#REF!,\"\")","v":""},{"$f":"IFERROR(#REF!,\"\")","v":""},"","",{"$f":"IFERROR(#REF!,\"\")","v":""},"",{"$f":"IFERROR(#REF!,\"\")","v":""},{"$f":"IFERROR(#REF!,\"\")","v":""},{"$f":"_xlfn.CONCAT(\"Trimestre 1\",CHAR(10),IFERROR(#REF!,\"\"))","v":"Trimestre 1\n"},{"$f":"_xlfn.CONCAT(\"Trimestre 1\",CHAR(10),IFERROR(#REF!,\"\"))","v":"Trimestre 1\n"},{"$f":"_xlfn.CONCAT(\"Trimestre 1\",CHAR(10),IFERROR(#REF!,\"\"))","v":"Trimestre 1\n"},{"$f":"_xlfn.CONCAT(\"Trimestre 1\",CHAR(10),IFERROR(#REF!,\"\"))","v":"Trimestre 1\n"},{"$f":"_xlfn.CONCAT(\"Trimestre 1\",CHAR(10),IFERROR(#REF!,\"\"))","v":"Trimestre 1\n"}]
[null,null,null,null,null,null,null,null,null,null,null,null,null,null,null,null,null,null,null,null,null,null,null,null,null,{"$f":"IFERROR(#REF!,\" \")","v":" "},{"$f":"IFERROR(#REF!,\"\")","v":""},{"$f":"IFERROR(#REF!,\"\")","v":""},"","",{"$f":"IFERROR(#REF!,\"\")","v":""},"",{"$f":"IFERROR(#REF!,\"\")","v":""},{"$f":"IFERROR(#REF!,\"\")","v":""},{"$f":"_xlfn.CONCAT(\"Trimestre 1\",CHAR(10),IFERROR(#REF!,\"\"))","v":"Trimestre 1\n"},{"$f":"_xlfn.CONCAT(\"Trimestre 1\",CHAR(10),IFERROR(#REF!,\"\"))","v":"Trimestre 1\n"},{"$f":"_xlfn.CONCAT(\"Trimestre 1\",CHAR(10),IFERROR(#REF!,\"\"))","v":"Trimestre 1\n"},{"$f":"_xlfn.CONCAT(\"Trimestre 1\",CHAR(10),IFERROR(#REF!,\"\"))","v":"Trimestre 1\n"},{"$f":"_xlfn.CONCAT(\"Trimestre 1\",CHAR(10),IFERROR(#REF!,\"\"))","v":"Trimestre 1\n"}]
[null,null,null,null,null,null,null,null,null,null,null,null,null,null,null,null,null,null,null,null,null,null,null,null,null,{"$f":"IFERROR(#REF!,\" \")","v":" "},{"$f":"IFERROR(#REF!,\"\")","v":""},{"$f":"IFERROR(#REF!,\"\")","v":""},"","",{"$f":"IFERROR(#REF!,\"\")","v":""},"",{"$f":"IFERROR(#REF!,\"\")","v":""},{"$f":"IFERROR(#REF!,\"\")","v":""},{"$f":"_xlfn.CONCAT(\"Trimestre 1\",CHAR(10),IFERROR(#REF!,\"\"))","v":"Trimestre 1\n"},{"$f":"_xlfn.CONCAT(\"Trimestre 1\",CHAR(10),IFERROR(#REF!,\"\"))","v":"Trimestre 1\n"},{"$f":"_xlfn.CONCAT(\"Trimestre 1\",CHAR(10),IFERROR(#REF!,\"\"))","v":"Trimestre 1\n"},{"$f":"_xlfn.CONCAT(\"Trimestre 1\",CHAR(10),IFERROR(#REF!,\"\"))","v":"Trimestre 1\n"},{"$f":"_xlfn.CONCAT(\"Trimestre 1\",CHAR(10),IFERROR(#REF!,\"\"))","v":"Trimestre 1\n"}]
[null,null,"6.Integrar y optimizar los servicios administrativos de la Rama Judicial bajo un enfoque de transformación digital e innovación incluyendo los componentes financiero, administrativo, talento humano, entre otros.",null,null,null,null,null,null,null,null,null,null,null,null,null,null,null,null,null,null,null,null,null,null,{"$f":"IFERROR(#REF!,\" \")","v":" "},{"$f":"IFERROR(#REF!,\"\")","v":""},{"$f":"IFERROR(#REF!,\"\")","v":""},"","",{"$f":"IFERROR(#REF!,\"\")","v":""},"",{"$f":"IFERROR(#REF!,\"\")","v":""},{"$f":"IFERROR(#REF!,\"\")","v":""},{"$f":"_xlfn.CONCAT(\"Trimestre 1\",CHAR(10),IFERROR(#REF!,\"\"))","v":"Trimestre 1\n"},{"$f":"_xlfn.CONCAT(\"Trimestre 1\",CHAR(10),IFERROR(#REF!,\"\"))","v":"Trimestre 1\n"},{"$f":"_xlfn.CONCAT(\"Trimestre 1\",CHAR(10),IFERROR(#REF!,\"\"))","v":"Trimestre 1\n"},{"$f":"_xlfn.CONCAT(\"Trimestre 1\",CHAR(10),IFERROR(#REF!,\"\"))","v":"Trimestre 1\n"},{"$f":"_xlfn.CONCAT(\"Trimestre 1\",CHAR(10),IFERROR(#REF!,\"\"))","v":"Trimestre 1\n"}]
[null,null,null,null,null,null,null,null,null,null,null,null,null,null,null,null,null,null,null,null,null,null,null,null,null,{"$f":"IFERROR(#REF!,\" \")","v":" "},{"$f":"IFERROR(#REF!,\"\")","v":""},{"$f":"IFERROR(#REF!,\"\")","v":""},"","",{"$f":"IFERROR(#REF!,\"\")","v":""},"",{"$f":"IFERROR(#REF!,\"\")","v":""},{"$f":"IFERROR(#REF!,\"\")","v":""},{"$f":"_xlfn.CONCAT(\"Trimestre 1\",CHAR(10),IFERROR(#REF!,\"\"))","v":"Trimestre 1\n"},{"$f":"_xlfn.CONCAT(\"Trimestre 1\",CHAR(10),IFERROR(#REF!,\"\"))","v":"Trimestre 1\n"},{"$f":"_xlfn.CONCAT(\"Trimestre 1\",CHAR(10),IFERROR(#REF!,\"\"))","v":"Trimestre 1\n"},{"$f":"_xlfn.CONCAT(\"Trimestre 1\",CHAR(10),IFERROR(#REF!,\"\"))","v":"Trimestre 1\n"},{"$f":"_xlfn.CONCAT(\"Trimestre 1\",CHAR(10),IFERROR(#REF!,\"\"))","v":"Trimestre 1\n"}]
[]
[]
[]
[]
[]
[null,null,null,null,null,null,null,null,null,null,null,null,null,null,null,null,null,null,null,null,null,null,null,null,null,{"$f":"IFERROR(#REF!,\" \")","v":" "},{"$f":"IFERROR(#REF!,\"\")","v":""},{"$f":"IFERROR(#REF!,\"\")","v":""},"","",{"$f":"IFERROR(#REF!,\"\")","v":""},"",{"$f":"IFERROR(#REF!,\"\")","v":""},{"$f":"IFERROR(#REF!,\"\")","v":""},{"$f":"_xlfn.CONCAT(\"Trimestre 1\",CHAR(10),IFERROR(#REF!,\"\"))","v":"Trimestre 1\n"},{"$f":"_xlfn.CONCAT(\"Trimestre 1\",CHAR(10),IFERROR(#REF!,\"\"))","v":"Trimestre 1\n"},{"$f":"_xlfn.CONCAT(\"Trimestre 1\",CHAR(10),IFERROR(#REF!,\"\"))","v":"Trimestre 1\n"},{"$f":"_xlfn.CONCAT(\"Trimestre 1\",CHAR(10),IFERROR(#REF!,\"\"))","v":"Trimestre 1\n"},{"$f":"_xlfn.CONCAT(\"Trimestre 1\",CHAR(10),IFERROR(#REF!,\"\"))","v":"Trimestre 1\n"}]
[null,null,null,null,null,null,null,null,null,null,null,null,null,null,null,null,null,null,null,null,null,null,null,null,null,{"$f":"IFERROR(#REF!,\" \")","v":" "},{"$f":"IFERROR(#REF!,\"\")","v":""},{"$f":"IFERROR(#REF!,\"\")","v":""},"","",{"$f":"IFERROR(#REF!,\"\")","v":""},"",{"$f":"IFERROR(#REF!,\"\")","v":""},{"$f":"IFERROR(#REF!,\"\")","v":""},{"$f":"_xlfn.CONCAT(\"Trimestre 1\",CHAR(10),IFERROR(#REF!,\"\"))","v":"Trimestre 1\n"},{"$f":"_xlfn.CONCAT(\"Trimestre 1\",CHAR(10),IFERROR(#REF!,\"\"))","v":"Trimestre 1\n"},{"$f":"_xlfn.CONCAT(\"Trimestre 1\",CHAR(10),IFERROR(#REF!,\"\"))","v":"Trimestre 1\n"},{"$f":"_xlfn.CONCAT(\"Trimestre 1\",CHAR(10),IFERROR(#REF!,\"\"))","v":"Trimestre 1\n"},{"$f":"_xlfn.CONCAT(\"Trimestre 1\",CHAR(10),IFERROR(#REF!,\"\"))","v":"Trimestre 1\n"}]
[null,null,null,null,null,null,null,null,null,null,null,null,null,null,null,null,null,null,null,null,null,null,null,null,null,{"$f":"IFERROR(#REF!,\" \")","v":" "},{"$f":"IFERROR(#REF!,\"\")","v":""},{"$f":"IFERROR(#REF!,\"\")","v":""},"","",{"$f":"IFERROR(#REF!,\"\")","v":""},"",{"$f":"IFERROR(#REF!,\"\")","v":""},{"$f":"IFERROR(#REF!,\"\")","v":""},{"$f":"_xlfn.CONCAT(\"Trimestre 1\",CHAR(10),IFERROR(#REF!,\"\"))","v":"Trimestre 1\n"},{"$f":"_xlfn.CONCAT(\"Trimestre 1\",CHAR(10),IFERROR(#REF!,\"\"))","v":"Trimestre 1\n"},{"$f":"_xlfn.CONCAT(\"Trimestre 1\",CHAR(10),IFERROR(#REF!,\"\"))","v":"Trimestre 1\n"},{"$f":"_xlfn.CONCAT(\"Trimestre 1\",CHAR(10),IFERROR(#REF!,\"\"))","v":"Trimestre 1\n"},{"$f":"_xlfn.CONCAT(\"Trimestre 1\",CHAR(10),IFERROR(#REF!,\"\"))","v":"Trimestre 1\n"}]
["3. Confianza pública, transparencia y rendición de cuentas","Confianza pública, transparencia y rendición de cuentas: Aumentar la confianza pública en la justicia a través de la transparencia, la rendición de cuentas y la participación, incluyendo la información de justicia y la producción, gestión y acceso a las fuentes de derecho, el fortalecimiento del sistema de gestión de calidad y medio ambiente (SIGCMA) y el mejoramiento de la calidad y publicidad de la información. ","1. Incrementar la cantidad, la calidad y pertinencia de los datos sobre el funcionamiento del servicio de justicia bajo un modelo de gobierno de datos y un liderazgo unificado. ","Modelo de\ngobierno y calidad de datos implementado","% de implementa ción del modelo de gobierno y calidad de datos","4. Hacer un uso racional de los recursos naturales aplicando los principios y fases de la Economía Circular, para prevenir, mitigar y controlar los impactos ambientales.",null,null,null,null,null,null,null,null,null,null,null,null,null,null,null,null,null,null,null,{"$f":"IFERROR(#REF!,\" \")","v":" "},{"$f":"IFERROR(#REF!,\"\")","v":""},{"$f":"IFERROR(#REF!,\"\")","v":""},"","",{"$f":"IFERROR(#REF!,\"\")","v":""},"",{"$f":"IFERROR(#REF!,\"\")","v":""},{"$f":"IFERROR(#REF!,\"\")","v":""},{"$f":"_xlfn.CONCAT(\"Trimestre 1\",CHAR(10),IFERROR(#REF!,\"\"))","v":"Trimestre 1\n"},{"$f":"_xlfn.CONCAT(\"Trimestre 1\",CHAR(10),IFERROR(#REF!,\"\"))","v":"Trimestre 1\n"},{"$f":"_xlfn.CONCAT(\"Trimestre 1\",CHAR(10),IFERROR(#REF!,\"\"))","v":"Trimestre 1\n"},{"$f":"_xlfn.CONCAT(\"Trimestre 1\",CHAR(10),IFERROR(#REF!,\"\"))","v":"Trimestre 1\n"},{"$f":"_xlfn.CONCAT(\"Trimestre 1\",CHAR(10),IFERROR(#REF!,\"\"))","v":"Trimestre 1\n"}]
[null,null,null,null,null,null,null,null,null,null,null,null,null,null,null,null,null,null,null,null,null,null,null,null,null,{"$f":"IFERROR(#REF!,\" \")","v":" "},{"$f":"IFERROR(#REF!,\"\")","v":""},{"$f":"IFERROR(#REF!,\"\")","v":""},"","",{"$f":"IFERROR(#REF!,\"\")","v":""},"",{"$f":"IFERROR(#REF!,\"\")","v":""},{"$f":"IFERROR(#REF!,\"\")","v":""},{"$f":"_xlfn.CONCAT(\"Trimestre 1\",CHAR(10),IFERROR(#REF!,\"\"))","v":"Trimestre 1\n"},{"$f":"_xlfn.CONCAT(\"Trimestre 1\",CHAR(10),IFERROR(#REF!,\"\"))","v":"Trimestre 1\n"},{"$f":"_xlfn.CONCAT(\"Trimestre 1\",CHAR(10),IFERROR(#REF!,\"\"))","v":"Trimestre 1\n"},{"$f":"_xlfn.CONCAT(\"Trimestre 1\",CHAR(10),IFERROR(#REF!,\"\"))","v":"Trimestre 1\n"},{"$f":"_xlfn.CONCAT(\"Trimestre 1\",CHAR(10),IFERROR(#REF!,\"\"))","v":"Trimestre 1\n"}]
[]
[]
[]
[]
[]
[null,null,null,null,null,null,null,null,null,null,null,null,null,null,null,null,null,null,null,null,null,null,null,null,null,{"$f":"IFERROR(#REF!,\" \")","v":" "},{"$f":"IFERROR(#REF!,\"\")","v":""},{"$f":"IFERROR(#REF!,\"\")","v":""},"","",{"$f":"IFERROR(#REF!,\"\")","v":""},"",{"$f":"IFERROR(#REF!,\"\")","v":""},{"$f":"IFERROR(#REF!,\"\")","v":""},{"$f":"_xlfn.CONCAT(\"Trimestre 1\",CHAR(10),IFERROR(#REF!,\"\"))","v":"Trimestre 1\n"},{"$f":"_xlfn.CONCAT(\"Trimestre 1\",CHAR(10),IFERROR(#REF!,\"\"))","v":"Trimestre 1\n"},{"$f":"_xlfn.CONCAT(\"Trimestre 1\",CHAR(10),IFERROR(#REF!,\"\"))","v":"Trimestre 1\n"},{"$f":"_xlfn.CONCAT(\"Trimestre 1\",CHAR(10),IFERROR(#REF!,\"\"))","v":"Trimestre 1\n"},{"$f":"_xlfn.CONCAT(\"Trimestre 1\",CHAR(10),IFERROR(#REF!,\"\"))","v":"Trimestre 1\n"}]
[null,null,null,null,null,null,null,null,null,null,null,null,null,null,null,null,null,null,null,null,null,null,null,null,null,{"$f":"IFERROR(#REF!,\" \")","v":" "},{"$f":"IFERROR(#REF!,\"\")","v":""},{"$f":"IFERROR(#REF!,\"\")","v":""},"","",{"$f":"IFERROR(#REF!,\"\")","v":""},"",{"$f":"IFERROR(#REF!,\"\")","v":""},{"$f":"IFERROR(#REF!,\"\")","v":""},{"$f":"_xlfn.CONCAT(\"Trimestre 1\",CHAR(10),IFERROR(#REF!,\"\"))","v":"Trimestre 1\n"},{"$f":"_xlfn.CONCAT(\"Trimestre 1\",CHAR(10),IFERROR(#REF!,\"\"))","v":"Trimestre 1\n"},{"$f":"_xlfn.CONCAT(\"Trimestre 1\",CHAR(10),IFERROR(#REF!,\"\"))","v":"Trimestre 1\n"},{"$f":"_xlfn.CONCAT(\"Trimestre 1\",CHAR(10),IFERROR(#REF!,\"\"))","v":"Trimestre 1\n"},{"$f":"_xlfn.CONCAT(\"Trimestre 1\",CHAR(10),IFERROR(#REF!,\"\"))","v":"Trimestre 1\n"}]
[null,null,null,null,null,null,null,null,null,null,null,null,null,null,null,null,null,null,null,null,null,null,null,null,null,{"$f":"IFERROR(#REF!,\" \")","v":" "},{"$f":"IFERROR(#REF!,\"\")","v":""},{"$f":"IFERROR(#REF!,\"\")","v":""},"","",{"$f":"IFERROR(#REF!,\"\")","v":""},"",{"$f":"IFERROR(#REF!,\"\")","v":""},{"$f":"IFERROR(#REF!,\"\")","v":""},{"$f":"_xlfn.CONCAT(\"Trimestre 1\",CHAR(10),IFERROR(#REF!,\"\"))","v":"Trimestre 1\n"},{"$f":"_xlfn.CONCAT(\"Trimestre 1\",CHAR(10),IFERROR(#REF!,\"\"))","v":"Trimestre 1\n"},{"$f":"_xlfn.CONCAT(\"Trimestre 1\",CHAR(10),IFERROR(#REF!,\"\"))","v":"Trimestre 1\n"},{"$f":"_xlfn.CONCAT(\"Trimestre 1\",CHAR(10),IFERROR(#REF!,\"\"))","v":"Trimestre 1\n"},{"$f":"_xlfn.CONCAT(\"Trimestre 1\",CHAR(10),IFERROR(#REF!,\"\"))","v":"Trimestre 1\n"}]
[null,null,"2. Consolidar la administración de la información entendida como todas las acciones rientadas a garantizar el acceso, consulta, uso y conservación de la información de justicia de manera ágil, flexible e inteligente, bajo un enfoque de innovación.","Modelo de producción, acceso, consulta y conservación del conocimiento jurídico","% de implementa ción del modelo de producción, acceso, consulta y conservació n del conocimient o jurídico",null,null,null,null,null,null,null,null,null,null,null,null,null,null,null,null,null,null,null,null,{"$f":"IFERROR(#REF!,\" \")","v":" "},{"$f":"IFERROR(#REF!,\"\")","v":""},{"$f":"IFERROR(#REF!,\"\")","v":""},"","",{"$f":"IFERROR(#REF!,\"\")","v":""},"",{"$f":"IFERROR(#REF!,\"\")","v":""},{"$f":"IFERROR(#REF!,\"\")","v":""},{"$f":"_xlfn.CONCAT(\"Trimestre 1\",CHAR(10),IFERROR(#REF!,\"\"))","v":"Trimestre 1\n"},{"$f":"_xlfn.CONCAT(\"Trimestre 1\",CHAR(10),IFERROR(#REF!,\"\"))","v":"Trimestre 1\n"},{"$f":"_xlfn.CONCAT(\"Trimestre 1\",CHAR(10),IFERROR(#REF!,\"\"))","v":"Trimestre 1\n"},{"$f":"_xlfn.CONCAT(\"Trimestre 1\",CHAR(10),IFERROR(#REF!,\"\"))","v":"Trimestre 1\n"},{"$f":"_xlfn.CONCAT(\"Trimestre 1\",CHAR(10),IFERROR(#REF!,\"\"))","v":"Trimestre 1\n"}]
[null,null,null,null,null,null,null,null,null,null,null,null,null,null,null,null,null,null,null,null,null,null,null,null,null,{"$f":"IFERROR(#REF!,\" \")","v":" "},{"$f":"IFERROR(#REF!,\"\")","v":""},{"$f":"IFERROR(#REF!,\"\")","v":""},"","",{"$f":"IFERROR(#REF!,\"\")","v":""},"",{"$f":"IFERROR(#REF!,\"\")","v":""},{"$f":"IFERROR(#REF!,\"\")","v":""},{"$f":"_xlfn.CONCAT(\"Trimestre 1\",CHAR(10),IFERROR(#REF!,\"\"))","v":"Trimestre 1\n"},{"$f":"_xlfn.CONCAT(\"Trimestre 1\",CHAR(10),IFERROR(#REF!,\"\"))","v":"Trimestre 1\n"},{"$f":"_xlfn.CONCAT(\"Trimestre 1\",CHAR(10),IFERROR(#REF!,\"\"))","v":"Trimestre 1\n"},{"$f":"_xlfn.CONCAT(\"Trimestre 1\",CHAR(10),IFERROR(#REF!,\"\"))","v":"Trimestre 1\n"},{"$f":"_xlfn.CONCAT(\"Trimestre 1\",CHAR(10),IFERROR(#REF!,\"\"))","v":"Trimestre 1\n"}]
[]
[]
[]
[]
[]
[null,null,null,null,null,null,null,null,null,null,null,null,null,null,null,null,null,null,null,null,null,null,null,null,null,{"$f":"IFERROR(#REF!,\" \")","v":" "},{"$f":"IFERROR(#REF!,\"\")","v":""},{"$f":"IFERROR(#REF!,\"\")","v":""},"","",{"$f":"IFERROR(#REF!,\"\")","v":""},"",{"$f":"IFERROR(#REF!,\"\")","v":""},{"$f":"IFERROR(#REF!,\"\")","v":""},{"$f":"_xlfn.CONCAT(\"Trimestre 1\",CHAR(10),IFERROR(#REF!,\"\"))","v":"Trimestre 1\n"},{"$f":"_xlfn.CONCAT(\"Trimestre 1\",CHAR(10),IFERROR(#REF!,\"\"))","v":"Trimestre 1\n"},{"$f":"_xlfn.CONCAT(\"Trimestre 1\",CHAR(10),IFERROR(#REF!,\"\"))","v":"Trimestre 1\n"},{"$f":"_xlfn.CONCAT(\"Trimestre 1\",CHAR(10),IFERROR(#REF!,\"\"))","v":"Trimestre 1\n"},{"$f":"_xlfn.CONCAT(\"Trimestre 1\",CHAR(10),IFERROR(#REF!,\"\"))","v":"Trimestre 1\n"}]
[null,null,null,null,null,null,null,null,null,null,null,null,null,null,null,null,null,null,null,null,null,null,null,null,null,{"$f":"IFERROR(#REF!,\" \")","v":" "},{"$f":"IFERROR(#REF!,\"\")","v":""},{"$f":"IFERROR(#REF!,\"\")","v":""},"","",{"$f":"IFERROR(#REF!,\"\")","v":""},"",{"$f":"IFERROR(#REF!,\"\")","v":""},{"$f":"IFERROR(#REF!,\"\")","v":""},{"$f":"_xlfn.CONCAT(\"Trimestre 1\",CHAR(10),IFERROR(#REF!,\"\"))","v":"Trimestre 1\n"},{"$f":"_xlfn.CONCAT(\"Trimestre 1\",CHAR(10),IFERROR(#REF!,\"\"))","v":"Trimestre 1\n"},{"$f":"_xlfn.CONCAT(\"Trimestre 1\",CHAR(10),IFERROR(#REF!,\"\"))","v":"Trimestre 1\n"},{"$f":"_xlfn.CONCAT(\"Trimestre 1\",CHAR(10),IFERROR(#REF!,\"\"))","v":"Trimestre 1\n"},{"$f":"_xlfn.CONCAT(\"Trimestre 1\",CHAR(10),IFERROR(#REF!,\"\"))","v":"Trimestre 1\n"}]
[null,null,null,null,null,null,null,null,null,null,null,null,null,null,null,null,null,null,null,null,null,null,null,null,null,{"$f":"IFERROR(#REF!,\" \")","v":" "},{"$f":"IFERROR(#REF!,\"\")","v":""},{"$f":"IFERROR(#REF!,\"\")","v":""},"","",{"$f":"IFERROR(#REF!,\"\")","v":""},"",{"$f":"IFERROR(#REF!,\"\")","v":""},{"$f":"IFERROR(#REF!,\"\")","v":""},{"$f":"_xlfn.CONCAT(\"Trimestre 1\",CHAR(10),IFERROR(#REF!,\"\"))","v":"Trimestre 1\n"},{"$f":"_xlfn.CONCAT(\"Trimestre 1\",CHAR(10),IFERROR(#REF!,\"\"))","v":"Trimestre 1\n"},{"$f":"_xlfn.CONCAT(\"Trimestre 1\",CHAR(10),IFERROR(#REF!,\"\"))","v":"Trimestre 1\n"},{"$f":"_xlfn.CONCAT(\"Trimestre 1\",CHAR(10),IFERROR(#REF!,\"\"))","v":"Trimestre 1\n"},{"$f":"_xlfn.CONCAT(\"Trimestre 1\",CHAR(10),IFERROR(#REF!,\"\"))","v":"Trimestre 1\n"}]
[null,null,"3. Fortalecer el Sistema integrado de Gestión de la Rama, orientado a la implementación y certificación de las normas antisoborno.","Certificación del Sistema Integrado de Gestión de la Rama en norma antisoborno","# de dependenci as judiciales y administrati vas certificadas en norma antisoborno /# total de despachos certificados en calidad","1. Gestionar el desarrollo de las competencias, la toma de conciencia , la cultura  organizacional  y el compromiso de los  servidores judiciales, contratistas, practicantes y  judicantes de contribuir a generar valor público en la administración de justicia, en el marco de  cumplimiento de los requisitos  aplicables y el comportamiento ético.\n3. Fomentar la transparencia y la participación generando lineamientos y promoviendo la rendición de cuentas ,la consulta, reporte y planteamiento de inquietudes en relación con las decisiones y aspectos del SIGCMA.",null,null,null,null,null,null,null,null,null,null,null,null,null,null,null,null,null,null,null,{"$f":"IFERROR(#REF!,\" \")","v":" "},{"$f":"IFERROR(#REF!,\"\")","v":""},{"$f":"IFERROR(#REF!,\"\")","v":""},"","",{"$f":"IFERROR(#REF!,\"\")","v":""},{"$f":"IFERROR(P136-AB136,\"\")","v":""},{"$f":"IFERROR(#REF!,\"\")","v":""},{"$f":"IFERROR(#REF!,\"\")","v":""},{"$f":"_xlfn.CONCAT(\"Trimestre 1\",CHAR(10),IFERROR(#REF!,\"\"))","v":"Trimestre 1\n"},{"$f":"_xlfn.CONCAT(\"Trimestre 1\",CHAR(10),IFERROR(#REF!,\"\"))","v":"Trimestre 1\n"},{"$f":"_xlfn.CONCAT(\"Trimestre 1\",CHAR(10),IFERROR(#REF!,\"\"))","v":"Trimestre 1\n"},{"$f":"_xlfn.CONCAT(\"Trimestre 1\",CHAR(10),IFERROR(#REF!,\"\"))","v":"Trimestre 1\n"},{"$f":"_xlfn.CONCAT(\"Trimestre 1\",CHAR(10),IFERROR(#REF!,\"\"))","v":"Trimestre 1\n"}]
[null,null,null,null,null,null,null,null,null,null,null,null,null,null,null,null,null,null,null,null,null,null,null,null,null,{"$f":"IFERROR(#REF!,\" \")","v":" "},{"$f":"IFERROR(#REF!,\"\")","v":""},{"$f":"IFERROR(#REF!,\"\")","v":""},{"$f":"IFERROR(AB137/P137,\"\")","v":""},{"$f":"IFERROR(AA137/Y137,\"\")","v":""},{"$f":"IFERROR(#REF!,\"\")","v":""},"",{"$f":"IFERROR(#REF!,\"\")","v":""},{"$f":"IFERROR(#REF!,\"\")","v":""},{"$f":"_xlfn.CONCAT(\"Trimestre 1\",CHAR(10),IFERROR(#REF!,\"\"))","v":"Trimestre 1\n"},{"$f":"_xlfn.CONCAT(\"Trimestre 1\",CHAR(10),IFERROR(#REF!,\"\"))","v":"Trimestre 1\n"},{"$f":"_xlfn.CONCAT(\"Trimestre 1\",CHAR(10),IFERROR(#REF!,\"\"))","v":"Trimestre 1\n"},{"$f":"_xlfn.CONCAT(\"Trimestre 1\",CHAR(10),IFERROR(#REF!,\"\"))","v":"Trimestre 1\n"},{"$f":"_xlfn.CONCAT(\"Trimestre 1\",CHAR(10),IFERROR(#REF!,\"\"))","v":"Trimestre 1\n"}]
[]
[]
[]
[]
[]
[null,null,null,null,null,null,null,null,null,null,null,null,null,null,null,null,null,null,null,null,null,null,null,null,null,{"$f":"IFERROR(#REF!,\" \")","v":" "},{"$f":"IFERROR(#REF!,\"\")","v":""},{"$f":"IFERROR(#REF!,\"\")","v":""},"","",{"$f":"IFERROR(#REF!,\"\")","v":""},"",{"$f":"IFERROR(#REF!,\"\")","v":""},{"$f":"IFERROR(#REF!,\"\")","v":""},{"$f":"_xlfn.CONCAT(\"Trimestre 1\",CHAR(10),IFERROR(#REF!,\"\"))","v":"Trimestre 1\n"},{"$f":"_xlfn.CONCAT(\"Trimestre 1\",CHAR(10),IFERROR(#REF!,\"\"))","v":"Trimestre 1\n"},{"$f":"_xlfn.CONCAT(\"Trimestre 1\",CHAR(10),IFERROR(#REF!,\"\"))","v":"Trimestre 1\n"},{"$f":"_xlfn.CONCAT(\"Trimestre 1\",CHAR(10),IFERROR(#REF!,\"\"))","v":"Trimestre 1\n"},{"$f":"_xlfn.CONCAT(\"Trimestre 1\",CHAR(10),IFERROR(#REF!,\"\"))","v":"Trimestre 1\n"}]
[null,null,null,null,null,null,null,null,null,null,null,null,null,null,null,null,null,null,null,null,null,null,null,null,null,{"$f":"IFERROR(#REF!,\" \")","v":" "},{"$f":"IFERROR(#REF!,\"\")","v":""},{"$f":"IFERROR(#REF!,\"\")","v":""},"","",{"$f":"IFERROR(#REF!,\"\")","v":""},"",{"$f":"IFERROR(#REF!,\"\")","v":""},{"$f":"IFERROR(#REF!,\"\")","v":""},{"$f":"_xlfn.CONCAT(\"Trimestre 1\",CHAR(10),IFERROR(#REF!,\"\"))","v":"Trimestre 1\n"},{"$f":"_xlfn.CONCAT(\"Trimestre 1\",CHAR(10),IFERROR(#REF!,\"\"))","v":"Trimestre 1\n"},{"$f":"_xlfn.CONCAT(\"Trimestre 1\",CHAR(10),IFERROR(#REF!,\"\"))","v":"Trimestre 1\n"},{"$f":"_xlfn.CONCAT(\"Trimestre 1\",CHAR(10),IFERROR(#REF!,\"\"))","v":"Trimestre 1\n"},{"$f":"_xlfn.CONCAT(\"Trimestre 1\",CHAR(10),IFERROR(#REF!,\"\"))","v":"Trimestre 1\n"}]
[null,null,null,null,null,null,null,null,null,null,null,null,null,null,null,null,null,null,null,null,null,null,null,null,null,{"$f":"IFERROR(#REF!,\" \")","v":" "},{"$f":"IFERROR(#REF!,\"\")","v":""},{"$f":"IFERROR(#REF!,\"\")","v":""},"","",{"$f":"IFERROR(#REF!,\"\")","v":""},"",{"$f":"IFERROR(#REF!,\"\")","v":""},{"$f":"IFERROR(#REF!,\"\")","v":""},{"$f":"_xlfn.CONCAT(\"Trimestre 1\",CHAR(10),IFERROR(#REF!,\"\"))","v":"Trimestre 1\n"},{"$f":"_xlfn.CONCAT(\"Trimestre 1\",CHAR(10),IFERROR(#REF!,\"\"))","v":"Trimestre 1\n"},{"$f":"_xlfn.CONCAT(\"Trimestre 1\",CHAR(10),IFERROR(#REF!,\"\"))","v":"Trimestre 1\n"},{"$f":"_xlfn.CONCAT(\"Trimestre 1\",CHAR(10),IFERROR(#REF!,\"\"))","v":"Trimestre 1\n"},{"$f":"_xlfn.CONCAT(\"Trimestre 1\",CHAR(10),IFERROR(#REF!,\"\"))","v":"Trimestre 1\n"}]
[null,null,"4. Aumentar la confianza, la cercanía y acceso a los servicios de la Rama Judicial a través, entre otros, de una comunicación clara y asertiva con la ciudadanía.","Satisfacción de la ciudadanía con la administración de justicia","% de satisfacción de la ciudadanía alto o muy alto con la administraci ón de justicia","3. Fomentar la transparencia y la participación generando lineamientos y promoviendo la rendición de cuentas ,la consulta, reporte y planteamiento de inquietudes en relación con las decisiones y aspectos del SIGCMA.",null,null,null,null,null,null,null,null,null,null,null,null,null,null,null,null,null,null,null,{"$f":"IFERROR(#REF!,\" \")","v":" "},{"$f":"IFERROR(#REF!,\"\")","v":""},{"$f":"IFERROR(#REF!,\"\")","v":""},"","",{"$f":"IFERROR(#REF!,\"\")","v":""},"",{"$f":"IFERROR(#REF!,\"\")","v":""},{"$f":"IFERROR(#REF!,\"\")","v":""},{"$f":"_xlfn.CONCAT(\"Trimestre 1\",CHAR(10),IFERROR(#REF!,\"\"))","v":"Trimestre 1\n"},{"$f":"_xlfn.CONCAT(\"Trimestre 1\",CHAR(10),IFERROR(#REF!,\"\"))","v":"Trimestre 1\n"},{"$f":"_xlfn.CONCAT(\"Trimestre 1\",CHAR(10),IFERROR(#REF!,\"\"))","v":"Trimestre 1\n"},{"$f":"_xlfn.CONCAT(\"Trimestre 1\",CHAR(10),IFERROR(#REF!,\"\"))","v":"Trimestre 1\n"},{"$f":"_xlfn.CONCAT(\"Trimestre 1\",CHAR(10),IFERROR(#REF!,\"\"))","v":"Trimestre 1\n"}]
[null,null,null,null,null,null,null,null,null,null,null,null,null,null,null,null,null,null,null,null,null,null,null,null,null,{"$f":"IFERROR(#REF!,\" \")","v":" "},{"$f":"IFERROR(#REF!,\"\")","v":""},{"$f":"IFERROR(#REF!,\"\")","v":""},"","",{"$f":"IFERROR(#REF!,\"\")","v":""},"",{"$f":"IFERROR(#REF!,\"\")","v":""},{"$f":"IFERROR(#REF!,\"\")","v":""},{"$f":"_xlfn.CONCAT(\"Trimestre 1\",CHAR(10),IFERROR(#REF!,\"\"))","v":"Trimestre 1\n"},{"$f":"_xlfn.CONCAT(\"Trimestre 1\",CHAR(10),IFERROR(#REF!,\"\"))","v":"Trimestre 1\n"},{"$f":"_xlfn.CONCAT(\"Trimestre 1\",CHAR(10),IFERROR(#REF!,\"\"))","v":"Trimestre 1\n"},{"$f":"_xlfn.CONCAT(\"Trimestre 1\",CHAR(10),IFERROR(#REF!,\"\"))","v":"Trimestre 1\n"},{"$f":"_xlfn.CONCAT(\"Trimestre 1\",CHAR(10),IFERROR(#REF!,\"\"))","v":"Trimestre 1\n"}]
[]
[]
[]
[]
[]
[null,null,null,null,null,null,null,null,null,null,null,null,null,null,null,null,null,null,null,null,null,null,null,null,null,{"$f":"IFERROR(#REF!,\" \")","v":" "},{"$f":"IFERROR(#REF!,\"\")","v":""},{"$f":"IFERROR(#REF!,\"\")","v":""},"","",{"$f":"IFERROR(#REF!,\"\")","v":""},"",{"$f":"IFERROR(#REF!,\"\")","v":""},{"$f":"IFERROR(#REF!,\"\")","v":""},{"$f":"_xlfn.CONCAT(\"Trimestre 1\",CHAR(10),IFERROR(#REF!,\"\"))","v":"Trimestre 1\n"},{"$f":"_xlfn.CONCAT(\"Trimestre 1\",CHAR(10),IFERROR(#REF!,\"\"))","v":"Trimestre 1\n"},{"$f":"_xlfn.CONCAT(\"Trimestre 1\",CHAR(10),IFERROR(#REF!,\"\"))","v":"Trimestre 1\n"},{"$f":"_xlfn.CONCAT(\"Trimestre 1\",CHAR(10),IFERROR(#REF!,\"\"))","v":"Trimestre 1\n"},{"$f":"_xlfn.CONCAT(\"Trimestre 1\",CHAR(10),IFERROR(#REF!,\"\"))","v":"Trimestre 1\n"}]
[null,null,null,null,null,null,null,null,null,null,null,null,null,null,null,null,null,null,null,null,null,null,null,null,null,{"$f":"IFERROR(#REF!,\" \")","v":" "},{"$f":"IFERROR(#REF!,\"\")","v":""},{"$f":"IFERROR(#REF!,\"\")","v":""},"","",{"$f":"IFERROR(#REF!,\"\")","v":""},"",{"$f":"IFERROR(#REF!,\"\")","v":""},{"$f":"IFERROR(#REF!,\"\")","v":""},{"$f":"_xlfn.CONCAT(\"Trimestre 1\",CHAR(10),IFERROR(#REF!,\"\"))","v":"Trimestre 1\n"},{"$f":"_xlfn.CONCAT(\"Trimestre 1\",CHAR(10),IFERROR(#REF!,\"\"))","v":"Trimestre 1\n"},{"$f":"_xlfn.CONCAT(\"Trimestre 1\",CHAR(10),IFERROR(#REF!,\"\"))","v":"Trimestre 1\n"},{"$f":"_xlfn.CONCAT(\"Trimestre 1\",CHAR(10),IFERROR(#REF!,\"\"))","v":"Trimestre 1\n"},{"$f":"_xlfn.CONCAT(\"Trimestre 1\",CHAR(10),IFERROR(#REF!,\"\"))","v":"Trimestre 1\n"}]
[null,null,null,null,null,null,null,null,null,null,null,null,null,null,null,null,null,null,null,null,null,null,null,null,null,{"$f":"IFERROR(#REF!,\" \")","v":" "},{"$f":"IFERROR(#REF!,\"\")","v":""},{"$f":"IFERROR(#REF!,\"\")","v":""},"","",{"$f":"IFERROR(#REF!,\"\")","v":""},"",{"$f":"IFERROR(#REF!,\"\")","v":""},{"$f":"IFERROR(#REF!,\"\")","v":""},{"$f":"_xlfn.CONCAT(\"Trimestre 1\",CHAR(10),IFERROR(#REF!,\"\"))","v":"Trimestre 1\n"},{"$f":"_xlfn.CONCAT(\"Trimestre 1\",CHAR(10),IFERROR(#REF!,\"\"))","v":"Trimestre 1\n"},{"$f":"_xlfn.CONCAT(\"Trimestre 1\",CHAR(10),IFERROR(#REF!,\"\"))","v":"Trimestre 1\n"},{"$f":"_xlfn.CONCAT(\"Trimestre 1\",CHAR(10),IFERROR(#REF!,\"\"))","v":"Trimestre 1\n"},{"$f":"_xlfn.CONCAT(\"Trimestre 1\",CHAR(10),IFERROR(#REF!,\"\"))","v":"Trimestre 1\n"}]
[null,null,"5. Prevenir fenómenos asociados con actos de corrupción en la Rama Judicial y reducir las experiencias de corrupción de usuarios y servidores judiciales.","Cumplimiento del Plan Anticorrupción y de Atención al Ciudadano de la Rama Judicial","# Actividades cumplidas del PAAC/# Actividades programada s del PAAC*100",null,null,null,null,null,null,null,null,null,null,null,null,null,null,null,null,null,null,null,null,{"$f":"IFERROR(#REF!,\" \")","v":" "},{"$f":"IFERROR(#REF!,\"\")","v":""},{"$f":"IFERROR(#REF!,\"\")","v":""},"","",{"$f":"IFERROR(#REF!,\"\")","v":""},"",{"$f":"IFERROR(#REF!,\"\")","v":""},{"$f":"IFERROR(#REF!,\"\")","v":""},{"$f":"_xlfn.CONCAT(\"Trimestre 1\",CHAR(10),IFERROR(#REF!,\"\"))","v":"Trimestre 1\n"},{"$f":"_xlfn.CONCAT(\"Trimestre 1\",CHAR(10),IFERROR(#REF!,\"\"))","v":"Trimestre 1\n"},{"$f":"_xlfn.CONCAT(\"Trimestre 1\",CHAR(10),IFERROR(#REF!,\"\"))","v":"Trimestre 1\n"},{"$f":"_xlfn.CONCAT(\"Trimestre 1\",CHAR(10),IFERROR(#REF!,\"\"))","v":"Trimestre 1\n"},{"$f":"_xlfn.CONCAT(\"Trimestre 1\",CHAR(10),IFERROR(#REF!,\"\"))","v":"Trimestre 1\n"}]
[]
[]
[]
[]
[]
[null,null,null,null,null,null,null,null,null,null,null,null,null,null,null,null,null,null,null,null,null,null,null,null,null,{"$f":"IFERROR(#REF!,\" \")","v":" "},{"$f":"IFERROR(#REF!,\"\")","v":""},{"$f":"IFERROR(#REF!,\"\")","v":""},"","",{"$f":"IFERROR(#REF!,\"\")","v":""},"",{"$f":"IFERROR(#REF!,\"\")","v":""},{"$f":"IFERROR(#REF!,\"\")","v":""},{"$f":"_xlfn.CONCAT(\"Trimestre 1\",CHAR(10),IFERROR(#REF!,\"\"))","v":"Trimestre 1\n"},{"$f":"_xlfn.CONCAT(\"Trimestre 1\",CHAR(10),IFERROR(#REF!,\"\"))","v":"Trimestre 1\n"},{"$f":"_xlfn.CONCAT(\"Trimestre 1\",CHAR(10),IFERROR(#REF!,\"\"))","v":"Trimestre 1\n"},{"$f":"_xlfn.CONCAT(\"Trimestre 1\",CHAR(10),IFERROR(#REF!,\"\"))","v":"Trimestre 1\n"},{"$f":"_xlfn.CONCAT(\"Trimestre 1\",CHAR(10),IFERROR(#REF!,\"\"))","v":"Trimestre 1\n"}]
[null,null,null,null,null,null,null,null,null,null,null,null,null,null,null,null,null,null,null,null,null,null,null,null,null,{"$f":"IFERROR(#REF!,\" \")","v":" "},{"$f":"IFERROR(#REF!,\"\")","v":""},{"$f":"IFERROR(#REF!,\"\")","v":""},"","",{"$f":"IFERROR(#REF!,\"\")","v":""},"",{"$f":"IFERROR(#REF!,\"\")","v":""},{"$f":"IFERROR(#REF!,\"\")","v":""},{"$f":"_xlfn.CONCAT(\"Trimestre 1\",CHAR(10),IFERROR(#REF!,\"\"))","v":"Trimestre 1\n"},{"$f":"_xlfn.CONCAT(\"Trimestre 1\",CHAR(10),IFERROR(#REF!,\"\"))","v":"Trimestre 1\n"},{"$f":"_xlfn.CONCAT(\"Trimestre 1\",CHAR(10),IFERROR(#REF!,\"\"))","v":"Trimestre 1\n"},{"$f":"_xlfn.CONCAT(\"Trimestre 1\",CHAR(10),IFERROR(#REF!,\"\"))","v":"Trimestre 1\n"},{"$f":"_xlfn.CONCAT(\"Trimestre 1\",CHAR(10),IFERROR(#REF!,\"\"))","v":"Trimestre 1\n"}]
[null,null,null,null,null,null,null,null,null,null,null,null,null,null,null,null,null,null,null,null,null,null,null,null,null,{"$f":"IFERROR(#REF!,\" \")","v":" "},{"$f":"IFERROR(#REF!,\"\")","v":""},{"$f":"IFERROR(#REF!,\"\")","v":""},"","",{"$f":"IFERROR(#REF!,\"\")","v":""},"",{"$f":"IFERROR(#REF!,\"\")","v":""},{"$f":"IFERROR(#REF!,\"\")","v":""},{"$f":"_xlfn.CONCAT(\"Trimestre 1\",CHAR(10),IFERROR(#REF!,\"\"))","v":"Trimestre 1\n"},{"$f":"_xlfn.CONCAT(\"Trimestre 1\",CHAR(10),IFERROR(#REF!,\"\"))","v":"Trimestre 1\n"},{"$f":"_xlfn.CONCAT(\"Trimestre 1\",CHAR(10),IFERROR(#REF!,\"\"))","v":"Trimestre 1\n"},{"$f":"_xlfn.CONCAT(\"Trimestre 1\",CHAR(10),IFERROR(#REF!,\"\"))","v":"Trimestre 1\n"},{"$f":"_xlfn.CONCAT(\"Trimestre 1\",CHAR(10),IFERROR(#REF!,\"\"))","v":"Trimestre 1\n"}]
[null,null,null,null,null,null,null,null,null,null,null,null,null,null,null,null,null,null,null,null,null,null,null,null,null,{"$f":"IFERROR(#REF!,\" \")","v":" "},{"$f":"IFERROR(#REF!,\"\")","v":""},{"$f":"IFERROR(#REF!,\"\")","v":""},"","",{"$f":"IFERROR(#REF!,\"\")","v":""},"",{"$f":"IFERROR(#REF!,\"\")","v":""},{"$f":"IFERROR(#REF!,\"\")","v":""},{"$f":"_xlfn.CONCAT(\"Trimestre 1\",CHAR(10),IFERROR(#REF!,\"\"))","v":"Trimestre 1\n"},{"$f":"_xlfn.CONCAT(\"Trimestre 1\",CHAR(10),IFERROR(#REF!,\"\"))","v":"Trimestre 1\n"},{"$f":"_xlfn.CONCAT(\"Trimestre 1\",CHAR(10),IFERROR(#REF!,\"\"))","v":"Trimestre 1\n"},{"$f":"_xlfn.CONCAT(\"Trimestre 1\",CHAR(10),IFERROR(#REF!,\"\"))","v":"Trimestre 1\n"},{"$f":"_xlfn.CONCAT(\"Trimestre 1\",CHAR(10),IFERROR(#REF!,\"\"))","v":"Trimestre 1\n"}]
[null,null,"6. Promover la rendición de cuentas y la colaboración real con la ciudadanía como fundamento para diseñar acciones de mejoramiento del acceso a la justicia.","Estrategias para implementar la colaboración real con la ciudadanía en el marco de la \"justicia abierta\" implementadas","% de implementa ción de las estrategias de colaboració n real con la ciudadanía en el marco de la \"justicia abierta\" definidas para cada anualidad",null,null,null,null,null,null,null,null,null,null,null,null,null,null,null,null,null,null,null,null,{"$f":"IFERROR(#REF!,\" \")","v":" "},{"$f":"IFERROR(#REF!,\"\")","v":""},{"$f":"IFERROR(#REF!,\"\")","v":""},"","",{"$f":"IFERROR(#REF!,\"\")","v":""},"",{"$f":"IFERROR(#REF!,\"\")","v":""},{"$f":"IFERROR(#REF!,\"\")","v":""},{"$f":"_xlfn.CONCAT(\"Trimestre 1\",CHAR(10),IFERROR(#REF!,\"\"))","v":"Trimestre 1\n"},{"$f":"_xlfn.CONCAT(\"Trimestre 1\",CHAR(10),IFERROR(#REF!,\"\"))","v":"Trimestre 1\n"},{"$f":"_xlfn.CONCAT(\"Trimestre 1\",CHAR(10),IFERROR(#REF!,\"\"))","v":"Trimestre 1\n"},{"$f":"_xlfn.CONCAT(\"Trimestre 1\",CHAR(10),IFERROR(#REF!,\"\"))","v":"Trimestre 1\n"},{"$f":"_xlfn.CONCAT(\"Trimestre 1\",CHAR(10),IFERROR(#REF!,\"\"))","v":"Trimestre 1\n"}]
[null,null,null,null,null,null,null,null,null,null,null,null,null,null,null,null,null,null,null,null,null,null,null,null,null,{"$f":"IFERROR(#REF!,\" \")","v":" "},{"$f":"IFERROR(#REF!,\"\")","v":""},{"$f":"IFERROR(#REF!,\"\")","v":""},"","",{"$f":"IFERROR(#REF!,\"\")","v":""},"",{"$f":"IFERROR(#REF!,\"\")","v":""},{"$f":"IFERROR(#REF!,\"\")","v":""},{"$f":"_xlfn.CONCAT(\"Trimestre 1\",CHAR(10),IFERROR(#REF!,\"\"))","v":"Trimestre 1\n"},{"$f":"_xlfn.CONCAT(\"Trimestre 1\",CHAR(10),IFERROR(#REF!,\"\"))","v":"Trimestre 1\n"},{"$f":"_xlfn.CONCAT(\"Trimestre 1\",CHAR(10),IFERROR(#REF!,\"\"))","v":"Trimestre 1\n"},{"$f":"_xlfn.CONCAT(\"Trimestre 1\",CHAR(10),IFERROR(#REF!,\"\"))","v":"Trimestre 1\n"},{"$f":"_xlfn.CONCAT(\"Trimestre 1\",CHAR(10),IFERROR(#REF!,\"\"))","v":"Trimestre 1\n"}]
[]
[]
[]
[]
[]
[null,null,null,null,null,null,null,null,null,null,null,null,null,null,null,null,null,null,null,null,null,null,null,null,null,{"$f":"IFERROR(#REF!,\" \")","v":" "},{"$f":"IFERROR(#REF!,\"\")","v":""},{"$f":"IFERROR(#REF!,\"\")","v":""},"","",{"$f":"IFERROR(#REF!,\"\")","v":""},"",{"$f":"IFERROR(#REF!,\"\")","v":""},{"$f":"IFERROR(#REF!,\"\")","v":""},{"$f":"_xlfn.CONCAT(\"Trimestre 1\",CHAR(10),IFERROR(#REF!,\"\"))","v":"Trimestre 1\n"},{"$f":"_xlfn.CONCAT(\"Trimestre 1\",CHAR(10),IFERROR(#REF!,\"\"))","v":"Trimestre 1\n"},{"$f":"_xlfn.CONCAT(\"Trimestre 1\",CHAR(10),IFERROR(#REF!,\"\"))","v":"Trimestre 1\n"},{"$f":"_xlfn.CONCAT(\"Trimestre 1\",CHAR(10),IFERROR(#REF!,\"\"))","v":"Trimestre 1\n"},{"$f":"_xlfn.CONCAT(\"Trimestre 1\",CHAR(10),IFERROR(#REF!,\"\"))","v":"Trimestre 1\n"}]
[null,null,null,null,null,null,null,null,null,null,null,null,null,null,null,null,null,null,null,null,null,null,null,null,null,{"$f":"IFERROR(#REF!,\" \")","v":" "},{"$f":"IFERROR(#REF!,\"\")","v":""},{"$f":"IFERROR(#REF!,\"\")","v":""},"","",{"$f":"IFERROR(#REF!,\"\")","v":""},"",{"$f":"IFERROR(#REF!,\"\")","v":""},{"$f":"IFERROR(#REF!,\"\")","v":""},{"$f":"_xlfn.CONCAT(\"Trimestre 1\",CHAR(10),IFERROR(#REF!,\"\"))","v":"Trimestre 1\n"},{"$f":"_xlfn.CONCAT(\"Trimestre 1\",CHAR(10),IFERROR(#REF!,\"\"))","v":"Trimestre 1\n"},{"$f":"_xlfn.CONCAT(\"Trimestre 1\",CHAR(10),IFERROR(#REF!,\"\"))","v":"Trimestre 1\n"},{"$f":"_xlfn.CONCAT(\"Trimestre 1\",CHAR(10),IFERROR(#REF!,\"\"))","v":"Trimestre 1\n"},{"$f":"_xlfn.CONCAT(\"Trimestre 1\",CHAR(10),IFERROR(#REF!,\"\"))","v":"Trimestre 1\n"}]
[null,null,null,null,null,null,null,null,null,null,null,null,null,null,null,null,null,null,null,null,null,null,null,null,null,{"$f":"IFERROR(#REF!,\" \")","v":" "},{"$f":"IFERROR(#REF!,\"\")","v":""},{"$f":"IFERROR(#REF!,\"\")","v":""},"","",{"$f":"IFERROR(#REF!,\"\")","v":""},"",{"$f":"IFERROR(#REF!,\"\")","v":""},{"$f":"IFERROR(#REF!,\"\")","v":""},{"$f":"_xlfn.CONCAT(\"Trimestre 1\",CHAR(10),IFERROR(#REF!,\"\"))","v":"Trimestre 1\n"},{"$f":"_xlfn.CONCAT(\"Trimestre 1\",CHAR(10),IFERROR(#REF!,\"\"))","v":"Trimestre 1\n"},{"$f":"_xlfn.CONCAT(\"Trimestre 1\",CHAR(10),IFERROR(#REF!,\"\"))","v":"Trimestre 1\n"},{"$f":"_xlfn.CONCAT(\"Trimestre 1\",CHAR(10),IFERROR(#REF!,\"\"))","v":"Trimestre 1\n"},{"$f":"_xlfn.CONCAT(\"Trimestre 1\",CHAR(10),IFERROR(#REF!,\"\"))","v":"Trimestre 1\n"}]
[null,null,"7. Continuar la consolidación del SIGCMA, a través de los procesos de formación en modelos de gestión, logrando la implementación y ampliación de este en los esquemas certificados de manera gradual, teniendo en cuenta las capacidades de los diferentes despachos judiciales y dependencias de la Rama Judicial y articulando el enfoque de Arquitectura Empresarial para el desarrollo del PETD a través de la gestión del conocimiento para la gestión del cambio propendiendo por una cultura de la calidad, la transparencia, la rendición de cuentas, la anticorrupción y el antisoborno","Procesos de formación en modelos de gestión aplicados","# de servidores judiciales formados en modelos de gestión de las dependenci as judiciales y administrati vas certificadas en SIGCMA que implementa n el PETD / # total de servidores judiciales de las dependenci as judiciales y administrati vas certificadas en SIGCMA que implementa n el PETD","1. Gestionar el desarrollo de las competencias, la toma de conciencia , la cultura  organizacional  y el compromiso de los  servidores judiciales, contratistas, practicantes y  judicantes de contribuir a generar valor público en la administración de justicia, en el marco de  cumplimiento de los requisitos  aplicables y el comportamiento ético.\n4. Hacer un uso racional de los recursos naturales aplicando los principios y fases de la Economía Circular, para prevenir, mitigar y controlar los impactos ambientales.",null,null,null,null,null,null,null,null,null,null,null,null,null,null,null,null,null,null,null,{"$f":"IFERROR(#REF!,\" \")","v":" "},{"$f":"IFERROR(#REF!,\"\")","v":""},{"$f":"IFERROR(#REF!,\"\")","v":""},"","",{"$f":"IFERROR(#REF!,\"\")","v":""},"",{"$f":"IFERROR(#REF!,\"\")","v":""},{"$f":"IFERROR(#REF!,\"\")","v":""},{"$f":"_xlfn.CONCAT(\"Trimestre 1\",CHAR(10),IFERROR(#REF!,\"\"))","v":"Trimestre 1\n"},{"$f":"_xlfn.CONCAT(\"Trimestre 1\",CHAR(10),IFERROR(#REF!,\"\"))","v":"Trimestre 1\n"},{"$f":"_xlfn.CONCAT(\"Trimestre 1\",CHAR(10),IFERROR(#REF!,\"\"))","v":"Trimestre 1\n"},{"$f":"_xlfn.CONCAT(\"Trimestre 1\",CHAR(10),IFERROR(#REF!,\"\"))","v":"Trimestre 1\n"},{"$f":"_xlfn.CONCAT(\"Trimestre 1\",CHAR(10),IFERROR(#REF!,\"\"))","v":"Trimestre 1\n"}]
[null,null,null,null,null,null,null,null,null,null,null,null,null,null,null,null,null,null,null,null,null,null,null,null,null,{"$f":"IFERROR(#REF!,\" \")","v":" "},{"$f":"IFERROR(#REF!,\"\")","v":""},{"$f":"IFERROR(#REF!,\"\")","v":""},"","",{"$f":"IFERROR(#REF!,\"\")","v":""},"",{"$f":"IFERROR(#REF!,\"\")","v":""},{"$f":"IFERROR(#REF!,\"\")","v":""},{"$f":"_xlfn.CONCAT(\"Trimestre 1\",CHAR(10),IFERROR(#REF!,\"\"))","v":"Trimestre 1\n"},{"$f":"_xlfn.CONCAT(\"Trimestre 1\",CHAR(10),IFERROR(#REF!,\"\"))","v":"Trimestre 1\n"},{"$f":"_xlfn.CONCAT(\"Trimestre 1\",CHAR(10),IFERROR(#REF!,\"\"))","v":"Trimestre 1\n"},{"$f":"_xlfn.CONCAT(\"Trimestre 1\",CHAR(10),IFERROR(#REF!,\"\"))","v":"Trimestre 1\n"},{"$f":"_xlfn.CONCAT(\"Trimestre 1\",CHAR(10),IFERROR(#REF!,\"\"))","v":"Trimestre 1\n"}]
[]
[]
[]
[]
[]
[null,null,null,null,null,null,null,null,null,null,null,null,null,null,null,null,null,null,null,null,null,null,null,null,null,{"$f":"IFERROR(#REF!,\" \")","v":" "},{"$f":"IFERROR(#REF!,\"\")","v":""},{"$f":"IFERROR(#REF!,\"\")","v":""},"","",{"$f":"IFERROR(#REF!,\"\")","v":""},"",{"$f":"IFERROR(#REF!,\"\")","v":""},{"$f":"IFERROR(#REF!,\"\")","v":""},{"$f":"_xlfn.CONCAT(\"Trimestre 1\",CHAR(10),IFERROR(#REF!,\"\"))","v":"Trimestre 1\n"},{"$f":"_xlfn.CONCAT(\"Trimestre 1\",CHAR(10),IFERROR(#REF!,\"\"))","v":"Trimestre 1\n"},{"$f":"_xlfn.CONCAT(\"Trimestre 1\",CHAR(10),IFERROR(#REF!,\"\"))","v":"Trimestre 1\n"},{"$f":"_xlfn.CONCAT(\"Trimestre 1\",CHAR(10),IFERROR(#REF!,\"\"))","v":"Trimestre 1\n"},{"$f":"_xlfn.CONCAT(\"Trimestre 1\",CHAR(10),IFERROR(#REF!,\"\"))","v":"Trimestre 1\n"}]
[null,null,null,null,null,null,null,null,null,null,null,null,null,null,null,null,null,null,null,null,null,null,null,null,null,{"$f":"IFERROR(#REF!,\" \")","v":" "},{"$f":"IFERROR(#REF!,\"\")","v":""},{"$f":"IFERROR(#REF!,\"\")","v":""},"","",{"$f":"IFERROR(#REF!,\"\")","v":""},"",{"$f":"IFERROR(#REF!,\"\")","v":""},{"$f":"IFERROR(#REF!,\"\")","v":""},{"$f":"_xlfn.CONCAT(\"Trimestre 1\",CHAR(10),IFERROR(#REF!,\"\"))","v":"Trimestre 1\n"},{"$f":"_xlfn.CONCAT(\"Trimestre 1\",CHAR(10),IFERROR(#REF!,\"\"))","v":"Trimestre 1\n"},{"$f":"_xlfn.CONCAT(\"Trimestre 1\",CHAR(10),IFERROR(#REF!,\"\"))","v":"Trimestre 1\n"},{"$f":"_xlfn.CONCAT(\"Trimestre 1\",CHAR(10),IFERROR(#REF!,\"\"))","v":"Trimestre 1\n"},{"$f":"_xlfn.CONCAT(\"Trimestre 1\",CHAR(10),IFERROR(#REF!,\"\"))","v":"Trimestre 1\n"}]
[null,null,null,null,null,null,null,null,null,null,null,null,null,null,null,null,null,null,null,null,null,null,null,null,null,{"$f":"IFERROR(#REF!,\" \")","v":" "},{"$f":"IFERROR(#REF!,\"\")","v":""},{"$f":"IFERROR(#REF!,\"\")","v":""},"","",{"$f":"IFERROR(#REF!,\"\")","v":""},"",{"$f":"IFERROR(#REF!,\"\")","v":""},{"$f":"IFERROR(#REF!,\"\")","v":""},{"$f":"_xlfn.CONCAT(\"Trimestre 1\",CHAR(10),IFERROR(#REF!,\"\"))","v":"Trimestre 1\n"},{"$f":"_xlfn.CONCAT(\"Trimestre 1\",CHAR(10),IFERROR(#REF!,\"\"))","v":"Trimestre 1\n"},{"$f":"_xlfn.CONCAT(\"Trimestre 1\",CHAR(10),IFERROR(#REF!,\"\"))","v":"Trimestre 1\n"},{"$f":"_xlfn.CONCAT(\"Trimestre 1\",CHAR(10),IFERROR(#REF!,\"\"))","v":"Trimestre 1\n"},{"$f":"_xlfn.CONCAT(\"Trimestre 1\",CHAR(10),IFERROR(#REF!,\"\"))","v":"Trimestre 1\n"}]
["4. Talento Humano","Talento Humano: Fortalecer el talento humano en la Rama Judicial para que sea eficiente, capacitado y realice su labor en ambientes saludables y seguros. Ampliar la cobertura de la carrera judicial y mejorar la oferta de formación, que esté disponible para todos los servidores judiciales e impacte positivamente el servicio de justicia y responda a las necesidades reales del ejercicio de la función judicial.","1. Ampliar la cobertura de la carrera judicial optimizando los procesos de los concursos de méritos y propender por mitigar su litigiosidad.","Cobertura de la carrera judicial diferenciada entre magistrados, jueces y empleados","# de cargos provistos por carrera judicial/# de cargos de carrera judicial","1. Gestionar el desarrollo de las competencias, la toma de conciencia , la cultura  organizacional  y el compromiso de los  servidores judiciales, contratistas, practicantes y  judicantes de contribuir a generar valor público en la administración de justicia, en el marco de  cumplimiento de los requisitos  aplicables y el comportamiento ético.",null,null,null,null,null,null,null,null,null,null,null,null,null,null,null,null,null,null,null,{"$f":"IFERROR(#REF!,\" \")","v":" "},{"$f":"IFERROR(#REF!,\"\")","v":""},{"$f":"IFERROR(#REF!,\"\")","v":""},"","",{"$f":"IFERROR(#REF!,\"\")","v":""},"",{"$f":"IFERROR(#REF!,\"\")","v":""},{"$f":"IFERROR(#REF!,\"\")","v":""},{"$f":"_xlfn.CONCAT(\"Trimestre 1\",CHAR(10),IFERROR(#REF!,\"\"))","v":"Trimestre 1\n"},{"$f":"_xlfn.CONCAT(\"Trimestre 1\",CHAR(10),IFERROR(#REF!,\"\"))","v":"Trimestre 1\n"},{"$f":"_xlfn.CONCAT(\"Trimestre 1\",CHAR(10),IFERROR(#REF!,\"\"))","v":"Trimestre 1\n"},{"$f":"_xlfn.CONCAT(\"Trimestre 1\",CHAR(10),IFERROR(#REF!,\"\"))","v":"Trimestre 1\n"},{"$f":"_xlfn.CONCAT(\"Trimestre 1\",CHAR(10),IFERROR(#REF!,\"\"))","v":"Trimestre 1\n"}]
[null,null,null,null,null,null,null,null,null,null,null,null,null,null,null,null,null,null,null,null,null,null,null,null,null,{"$f":"IFERROR(#REF!,\" \")","v":" "},{"$f":"IFERROR(#REF!,\"\")","v":""},{"$f":"IFERROR(#REF!,\"\")","v":""},"","",{"$f":"IFERROR(#REF!,\"\")","v":""},"",{"$f":"IFERROR(#REF!,\"\")","v":""},{"$f":"IFERROR(#REF!,\"\")","v":""},{"$f":"_xlfn.CONCAT(\"Trimestre 1\",CHAR(10),IFERROR(#REF!,\"\"))","v":"Trimestre 1\n"},{"$f":"_xlfn.CONCAT(\"Trimestre 1\",CHAR(10),IFERROR(#REF!,\"\"))","v":"Trimestre 1\n"},{"$f":"_xlfn.CONCAT(\"Trimestre 1\",CHAR(10),IFERROR(#REF!,\"\"))","v":"Trimestre 1\n"},{"$f":"_xlfn.CONCAT(\"Trimestre 1\",CHAR(10),IFERROR(#REF!,\"\"))","v":"Trimestre 1\n"},{"$f":"_xlfn.CONCAT(\"Trimestre 1\",CHAR(10),IFERROR(#REF!,\"\"))","v":"Trimestre 1\n"}]
[]
[]
[]
[]
[]
[null,null,null,null,null,null,null,null,null,null,null,null,null,null,null,null,null,null,null,null,null,null,null,null,null,{"$f":"IFERROR(#REF!,\" \")","v":" "},{"$f":"IFERROR(#REF!,\"\")","v":""},{"$f":"IFERROR(#REF!,\"\")","v":""},"","",{"$f":"IFERROR(#REF!,\"\")","v":""},"",{"$f":"IFERROR(#REF!,\"\")","v":""},{"$f":"IFERROR(#REF!,\"\")","v":""},{"$f":"_xlfn.CONCAT(\"Trimestre 1\",CHAR(10),IFERROR(#REF!,\"\"))","v":"Trimestre 1\n"},{"$f":"_xlfn.CONCAT(\"Trimestre 1\",CHAR(10),IFERROR(#REF!,\"\"))","v":"Trimestre 1\n"},{"$f":"_xlfn.CONCAT(\"Trimestre 1\",CHAR(10),IFERROR(#REF!,\"\"))","v":"Trimestre 1\n"},{"$f":"_xlfn.CONCAT(\"Trimestre 1\",CHAR(10),IFERROR(#REF!,\"\"))","v":"Trimestre 1\n"},{"$f":"_xlfn.CONCAT(\"Trimestre 1\",CHAR(10),IFERROR(#REF!,\"\"))","v":"Trimestre 1\n"}]
[null,null,null,null,null,null,null,null,null,null,null,null,null,null,null,null,null,null,null,null,null,null,null,null,null,{"$f":"IFERROR(#REF!,\" \")","v":" "},{"$f":"IFERROR(#REF!,\"\")","v":""},{"$f":"IFERROR(#REF!,\"\")","v":""},"","",{"$f":"IFERROR(#REF!,\"\")","v":""},"",{"$f":"IFERROR(#REF!,\"\")","v":""},{"$f":"IFERROR(#REF!,\"\")","v":""},{"$f":"_xlfn.CONCAT(\"Trimestre 1\",CHAR(10),IFERROR(#REF!,\"\"))","v":"Trimestre 1\n"},{"$f":"_xlfn.CONCAT(\"Trimestre 1\",CHAR(10),IFERROR(#REF!,\"\"))","v":"Trimestre 1\n"},{"$f":"_xlfn.CONCAT(\"Trimestre 1\",CHAR(10),IFERROR(#REF!,\"\"))","v":"Trimestre 1\n"},{"$f":"_xlfn.CONCAT(\"Trimestre 1\",CHAR(10),IFERROR(#REF!,\"\"))","v":"Trimestre 1\n"},{"$f":"_xlfn.CONCAT(\"Trimestre 1\",CHAR(10),IFERROR(#REF!,\"\"))","v":"Trimestre 1\n"}]
[null,null,null,null,null,null,null,null,null,null,null,null,null,null,null,null,null,null,null,null,null,null,null,null,null,{"$f":"IFERROR(#REF!,\" \")","v":" "},{"$f":"IFERROR(#REF!,\"\")","v":""},{"$f":"IFERROR(#REF!,\"\")","v":""},"","",{"$f":"IFERROR(#REF!,\"\")","v":""},"",{"$f":"IFERROR(#REF!,\"\")","v":""},{"$f":"IFERROR(#REF!,\"\")","v":""},{"$f":"_xlfn.CONCAT(\"Trimestre 1\",CHAR(10),IFERROR(#REF!,\"\"))","v":"Trimestre 1\n"},{"$f":"_xlfn.CONCAT(\"Trimestre 1\",CHAR(10),IFERROR(#REF!,\"\"))","v":"Trimestre 1\n"},{"$f":"_xlfn.CONCAT(\"Trimestre 1\",CHAR(10),IFERROR(#REF!,\"\"))","v":"Trimestre 1\n"},{"$f":"_xlfn.CONCAT(\"Trimestre 1\",CHAR(10),IFERROR(#REF!,\"\"))","v":"Trimestre 1\n"},{"$f":"_xlfn.CONCAT(\"Trimestre 1\",CHAR(10),IFERROR(#REF!,\"\"))","v":"Trimestre 1\n"}]
[null,null,"2. Impactar la función y servicios que presta la Rama Judicial, a través de una formación integral desde una visión de gestión del conocimiento, relacionada con los problemas de la justicia y los problemas de gestión de quienes administran los recursos de la justicia, y potenciando el uso de medios virtuales.","Cobertura de la formación impartida por la Escuela Judicial en el fortalecimiento de las competencias de los servidores judiciales","# servidores que no han recibido ningún curso de formación en los dos años anteriores al proceso de formación, discriminad o por funcionarios y empleados, municipio y especialida d /# servidores totales, discriminad o por funcionarios y empleados, municipio y especialida d",null,null,null,null,null,null,null,null,null,null,null,null,null,null,null,null,null,null,null,null,{"$f":"IFERROR(#REF!,\" \")","v":" "},{"$f":"IFERROR(#REF!,\"\")","v":""},{"$f":"IFERROR(#REF!,\"\")","v":""},"","",{"$f":"IFERROR(#REF!,\"\")","v":""},"",{"$f":"IFERROR(#REF!,\"\")","v":""},{"$f":"IFERROR(#REF!,\"\")","v":""},{"$f":"_xlfn.CONCAT(\"Trimestre 1\",CHAR(10),IFERROR(#REF!,\"\"))","v":"Trimestre 1\n"},{"$f":"_xlfn.CONCAT(\"Trimestre 1\",CHAR(10),IFERROR(#REF!,\"\"))","v":"Trimestre 1\n"},{"$f":"_xlfn.CONCAT(\"Trimestre 1\",CHAR(10),IFERROR(#REF!,\"\"))","v":"Trimestre 1\n"},{"$f":"_xlfn.CONCAT(\"Trimestre 1\",CHAR(10),IFERROR(#REF!,\"\"))","v":"Trimestre 1\n"},{"$f":"_xlfn.CONCAT(\"Trimestre 1\",CHAR(10),IFERROR(#REF!,\"\"))","v":"Trimestre 1\n"}]
[null,null,null,null,null,null,null,null,null,null,null,null,null,null,null,null,null,null,null,null,null,null,null,null,null,{"$f":"IFERROR(#REF!,\" \")","v":" "},{"$f":"IFERROR(#REF!,\"\")","v":""},{"$f":"IFERROR(#REF!,\"\")","v":""},"","",{"$f":"IFERROR(#REF!,\"\")","v":""},"",{"$f":"IFERROR(#REF!,\"\")","v":""},{"$f":"IFERROR(#REF!,\"\")","v":""},{"$f":"_xlfn.CONCAT(\"Trimestre 1\",CHAR(10),IFERROR(#REF!,\"\"))","v":"Trimestre 1\n"},{"$f":"_xlfn.CONCAT(\"Trimestre 1\",CHAR(10),IFERROR(#REF!,\"\"))","v":"Trimestre 1\n"},{"$f":"_xlfn.CONCAT(\"Trimestre 1\",CHAR(10),IFERROR(#REF!,\"\"))","v":"Trimestre 1\n"},{"$f":"_xlfn.CONCAT(\"Trimestre 1\",CHAR(10),IFERROR(#REF!,\"\"))","v":"Trimestre 1\n"},{"$f":"_xlfn.CONCAT(\"Trimestre 1\",CHAR(10),IFERROR(#REF!,\"\"))","v":"Trimestre 1\n"}]
[]
[]
[]
[]
[]
[null,null,null,null,null,null,null,null,null,null,null,null,null,null,null,null,null,null,null,null,null,null,null,null,null,{"$f":"IFERROR(#REF!,\" \")","v":" "},{"$f":"IFERROR(#REF!,\"\")","v":""},{"$f":"IFERROR(#REF!,\"\")","v":""},"","",{"$f":"IFERROR(#REF!,\"\")","v":""},"",{"$f":"IFERROR(#REF!,\"\")","v":""},{"$f":"IFERROR(#REF!,\"\")","v":""},{"$f":"_xlfn.CONCAT(\"Trimestre 1\",CHAR(10),IFERROR(#REF!,\"\"))","v":"Trimestre 1\n"},{"$f":"_xlfn.CONCAT(\"Trimestre 1\",CHAR(10),IFERROR(#REF!,\"\"))","v":"Trimestre 1\n"},{"$f":"_xlfn.CONCAT(\"Trimestre 1\",CHAR(10),IFERROR(#REF!,\"\"))","v":"Trimestre 1\n"},{"$f":"_xlfn.CONCAT(\"Trimestre 1\",CHAR(10),IFERROR(#REF!,\"\"))","v":"Trimestre 1\n"},{"$f":"_xlfn.CONCAT(\"Trimestre 1\",CHAR(10),IFERROR(#REF!,\"\"))","v":"Trimestre 1\n"}]
[null,null,null,null,null,null,null,null,null,null,null,null,null,null,null,null,null,null,null,null,null,null,null,null,null,{"$f":"IFERROR(#REF!,\" \")","v":" "},{"$f":"IFERROR(#REF!,\"\")","v":""},{"$f":"IFERROR(#REF!,\"\")","v":""},"","",{"$f":"IFERROR(#REF!,\"\")","v":""},"",{"$f":"IFERROR(#REF!,\"\")","v":""},{"$f":"IFERROR(#REF!,\"\")","v":""},{"$f":"_xlfn.CONCAT(\"Trimestre 1\",CHAR(10),IFERROR(#REF!,\"\"))","v":"Trimestre 1\n"},{"$f":"_xlfn.CONCAT(\"Trimestre 1\",CHAR(10),IFERROR(#REF!,\"\"))","v":"Trimestre 1\n"},{"$f":"_xlfn.CONCAT(\"Trimestre 1\",CHAR(10),IFERROR(#REF!,\"\"))","v":"Trimestre 1\n"},{"$f":"_xlfn.CONCAT(\"Trimestre 1\",CHAR(10),IFERROR(#REF!,\"\"))","v":"Trimestre 1\n"},{"$f":"_xlfn.CONCAT(\"Trimestre 1\",CHAR(10),IFERROR(#REF!,\"\"))","v":"Trimestre 1\n"}]
[null,null,null,null,null,null,null,null,null,null,null,null,null,null,null,null,null,null,null,null,null,null,null,null,null,{"$f":"IFERROR(#REF!,\" \")","v":" "},{"$f":"IFERROR(#REF!,\"\")","v":""},{"$f":"IFERROR(#REF!,\"\")","v":""},"","",{"$f":"IFERROR(#REF!,\"\")","v":""},"",{"$f":"IFERROR(#REF!,\"\")","v":""},{"$f":"IFERROR(#REF!,\"\")","v":""},{"$f":"_xlfn.CONCAT(\"Trimestre 1\",CHAR(10),IFERROR(#REF!,\"\"))","v":"Trimestre 1\n"},{"$f":"_xlfn.CONCAT(\"Trimestre 1\",CHAR(10),IFERROR(#REF!,\"\"))","v":"Trimestre 1\n"},{"$f":"_xlfn.CONCAT(\"Trimestre 1\",CHAR(10),IFERROR(#REF!,\"\"))","v":"Trimestre 1\n"},{"$f":"_xlfn.CONCAT(\"Trimestre 1\",CHAR(10),IFERROR(#REF!,\"\"))","v":"Trimestre 1\n"},{"$f":"_xlfn.CONCAT(\"Trimestre 1\",CHAR(10),IFERROR(#REF!,\"\"))","v":"Trimestre 1\n"}]
[null,null,"3. Promover la incorporación de la perspectiva de género y el enfoque diferencial en los fallos judiciales y en la atención a los ciudadanos, la administración de la Rama Judicial, la administración de la carrera judicial y la elaboración de listas para altas Cortes. ","Enfoque diferencial y perspectiva de género en las decisiones judiciales de la Rama Judicial","# de decisiones judiciales postuladas al Concurso de “Reconocim iento a la incorporaci ón del derecho a la igualdad y la no discriminaci ón en las sentencias judiciales” en el año corriente/# de decisiones judiciales postuladas al Concurso de “Reconocim iento a la incorporaci ón del derecho a la igualdad y la no discriminaci ón en las sentencias judiciales” en el año inmediatam ente anterior",null,null,null,null,null,null,null,null,null,null,null,null,null,null,null,null,null,null,null,null,{"$f":"IFERROR(#REF!,\" \")","v":" "},{"$f":"IFERROR(#REF!,\"\")","v":""},{"$f":"IFERROR(#REF!,\"\")","v":""},"","",{"$f":"IFERROR(#REF!,\"\")","v":""},"",{"$f":"IFERROR(#REF!,\"\")","v":""},{"$f":"IFERROR(#REF!,\"\")","v":""},{"$f":"_xlfn.CONCAT(\"Trimestre 1\",CHAR(10),IFERROR(#REF!,\"\"))","v":"Trimestre 1\n"},{"$f":"_xlfn.CONCAT(\"Trimestre 1\",CHAR(10),IFERROR(#REF!,\"\"))","v":"Trimestre 1\n"},{"$f":"_xlfn.CONCAT(\"Trimestre 1\",CHAR(10),IFERROR(#REF!,\"\"))","v":"Trimestre 1\n"},{"$f":"_xlfn.CONCAT(\"Trimestre 1\",CHAR(10),IFERROR(#REF!,\"\"))","v":"Trimestre 1\n"},{"$f":"_xlfn.CONCAT(\"Trimestre 1\",CHAR(10),IFERROR(#REF!,\"\"))","v":"Trimestre 1\n"}]
[null,null,null,null,null,null,null,null,null,null,null,null,null,null,null,null,null,null,null,null,null,null,null,null,null,{"$f":"IFERROR(#REF!,\" \")","v":" "},{"$f":"IFERROR(#REF!,\"\")","v":""},{"$f":"IFERROR(#REF!,\"\")","v":""},"","",{"$f":"IFERROR(#REF!,\"\")","v":""},"",{"$f":"IFERROR(#REF!,\"\")","v":""},{"$f":"IFERROR(#REF!,\"\")","v":""},{"$f":"_xlfn.CONCAT(\"Trimestre 1\",CHAR(10),IFERROR(#REF!,\"\"))","v":"Trimestre 1\n"},{"$f":"_xlfn.CONCAT(\"Trimestre 1\",CHAR(10),IFERROR(#REF!,\"\"))","v":"Trimestre 1\n"},{"$f":"_xlfn.CONCAT(\"Trimestre 1\",CHAR(10),IFERROR(#REF!,\"\"))","v":"Trimestre 1\n"},{"$f":"_xlfn.CONCAT(\"Trimestre 1\",CHAR(10),IFERROR(#REF!,\"\"))","v":"Trimestre 1\n"},{"$f":"_xlfn.CONCAT(\"Trimestre 1\",CHAR(10),IFERROR(#REF!,\"\"))","v":"Trimestre 1\n"}]
[]
[]
[]
[]
[]
[null,null,null,null,null,null,null,null,null,null,null,null,null,null,null,null,null,null,null,null,null,null,null,null,null,{"$f":"IFERROR(#REF!,\" \")","v":" "},{"$f":"IFERROR(#REF!,\"\")","v":""},{"$f":"IFERROR(#REF!,\"\")","v":""},"","",{"$f":"IFERROR(#REF!,\"\")","v":""},"",{"$f":"IFERROR(#REF!,\"\")","v":""},{"$f":"IFERROR(#REF!,\"\")","v":""},{"$f":"_xlfn.CONCAT(\"Trimestre 1\",CHAR(10),IFERROR(#REF!,\"\"))","v":"Trimestre 1\n"},{"$f":"_xlfn.CONCAT(\"Trimestre 1\",CHAR(10),IFERROR(#REF!,\"\"))","v":"Trimestre 1\n"},{"$f":"_xlfn.CONCAT(\"Trimestre 1\",CHAR(10),IFERROR(#REF!,\"\"))","v":"Trimestre 1\n"},{"$f":"_xlfn.CONCAT(\"Trimestre 1\",CHAR(10),IFERROR(#REF!,\"\"))","v":"Trimestre 1\n"},{"$f":"_xlfn.CONCAT(\"Trimestre 1\",CHAR(10),IFERROR(#REF!,\"\"))","v":"Trimestre 1\n"}]
[null,null,null,null,null,null,null,null,null,null,null,null,null,null,null,null,null,null,null,null,null,null,null,null,null,{"$f":"IFERROR(#REF!,\" \")","v":" "},{"$f":"IFERROR(#REF!,\"\")","v":""},{"$f":"IFERROR(#REF!,\"\")","v":""},"","",{"$f":"IFERROR(#REF!,\"\")","v":""},"",{"$f":"IFERROR(#REF!,\"\")","v":""},{"$f":"IFERROR(#REF!,\"\")","v":""},{"$f":"_xlfn.CONCAT(\"Trimestre 1\",CHAR(10),IFERROR(#REF!,\"\"))","v":"Trimestre 1\n"},{"$f":"_xlfn.CONCAT(\"Trimestre 1\",CHAR(10),IFERROR(#REF!,\"\"))","v":"Trimestre 1\n"},{"$f":"_xlfn.CONCAT(\"Trimestre 1\",CHAR(10),IFERROR(#REF!,\"\"))","v":"Trimestre 1\n"},{"$f":"_xlfn.CONCAT(\"Trimestre 1\",CHAR(10),IFERROR(#REF!,\"\"))","v":"Trimestre 1\n"},{"$f":"_xlfn.CONCAT(\"Trimestre 1\",CHAR(10),IFERROR(#REF!,\"\"))","v":"Trimestre 1\n"}]
[null,null,null,null,null,null,null,null,null,null,null,null,null,null,null,null,null,null,null,null,null,null,null,null,null,{"$f":"IFERROR(#REF!,\" \")","v":" "},{"$f":"IFERROR(#REF!,\"\")","v":""},{"$f":"IFERROR(#REF!,\"\")","v":""},"","",{"$f":"IFERROR(#REF!,\"\")","v":""},"",{"$f":"IFERROR(#REF!,\"\")","v":""},{"$f":"IFERROR(#REF!,\"\")","v":""},{"$f":"_xlfn.CONCAT(\"Trimestre 1\",CHAR(10),IFERROR(#REF!,\"\"))","v":"Trimestre 1\n"},{"$f":"_xlfn.CONCAT(\"Trimestre 1\",CHAR(10),IFERROR(#REF!,\"\"))","v":"Trimestre 1\n"},{"$f":"_xlfn.CONCAT(\"Trimestre 1\",CHAR(10),IFERROR(#REF!,\"\"))","v":"Trimestre 1\n"},{"$f":"_xlfn.CONCAT(\"Trimestre 1\",CHAR(10),IFERROR(#REF!,\"\"))","v":"Trimestre 1\n"},{"$f":"_xlfn.CONCAT(\"Trimestre 1\",CHAR(10),IFERROR(#REF!,\"\"))","v":"Trimestre 1\n"}]
[null,null,"4. Desarrollar en los servidores judiciales y demás grupos de valor relevantes las competencias necesarias para la efectividad de la transformación digital de modo que puedan, entre otros, utilizar con solvencia las herramientas digitales dispuestas para sus respectivas funciones. Además, fortalecer y actualizar los conocimientos del personal a cargo de la gestión de proyectos de tecnología.","Cobertura de la formación impartida por la Escuela Judicial en Tecnologías de la Información y las Comunicaciones TIC para la práctica judicial.","# servidores que no han recibido ningún curso de formación en Tecnología s de la Información y las Comunicaci ones TIC en la vigencia del plan sectorial, discriminad o por funcionarios y empleados, municipio y especialida d /# servidores totales, discriminad o por funcionarios y empleados, municipio y especialida d",null,null,null,null,null,null,null,null,null,null,null,null,null,null,null,null,null,null,null,null,{"$f":"IFERROR(#REF!,\" \")","v":" "},{"$f":"IFERROR(#REF!,\"\")","v":""},{"$f":"IFERROR(#REF!,\"\")","v":""},"","",{"$f":"IFERROR(#REF!,\"\")","v":""},"",{"$f":"IFERROR(#REF!,\"\")","v":""},{"$f":"IFERROR(#REF!,\"\")","v":""},{"$f":"_xlfn.CONCAT(\"Trimestre 1\",CHAR(10),IFERROR(#REF!,\"\"))","v":"Trimestre 1\n"},{"$f":"_xlfn.CONCAT(\"Trimestre 1\",CHAR(10),IFERROR(#REF!,\"\"))","v":"Trimestre 1\n"},{"$f":"_xlfn.CONCAT(\"Trimestre 1\",CHAR(10),IFERROR(#REF!,\"\"))","v":"Trimestre 1\n"},{"$f":"_xlfn.CONCAT(\"Trimestre 1\",CHAR(10),IFERROR(#REF!,\"\"))","v":"Trimestre 1\n"},{"$f":"_xlfn.CONCAT(\"Trimestre 1\",CHAR(10),IFERROR(#REF!,\"\"))","v":"Trimestre 1\n"}]
[null,null,null,null,null,null,null,null,null,null,null,null,null,null,null,null,null,null,null,null,null,null,null,null,null,{"$f":"IFERROR(#REF!,\" \")","v":" "},{"$f":"IFERROR(#REF!,\"\")","v":""},{"$f":"IFERROR(#REF!,\"\")","v":""},"","",{"$f":"IFERROR(#REF!,\"\")","v":""},"",{"$f":"IFERROR(#REF!,\"\")","v":""},{"$f":"IFERROR(#REF!,\"\")","v":""},{"$f":"_xlfn.CONCAT(\"Trimestre 1\",CHAR(10),IFERROR(#REF!,\"\"))","v":"Trimestre 1\n"},{"$f":"_xlfn.CONCAT(\"Trimestre 1\",CHAR(10),IFERROR(#REF!,\"\"))","v":"Trimestre 1\n"},{"$f":"_xlfn.CONCAT(\"Trimestre 1\",CHAR(10),IFERROR(#REF!,\"\"))","v":"Trimestre 1\n"},{"$f":"_xlfn.CONCAT(\"Trimestre 1\",CHAR(10),IFERROR(#REF!,\"\"))","v":"Trimestre 1\n"},{"$f":"_xlfn.CONCAT(\"Trimestre 1\",CHAR(10),IFERROR(#REF!,\"\"))","v":"Trimestre 1\n"}]
[]
[]
[]
[]
[]
[null,null,null,null,null,null,null,null,null,null,null,null,null,null,null,null,null,null,null,null,null,null,null,null,null,{"$f":"IFERROR(#REF!,\" \")","v":" "},{"$f":"IFERROR(#REF!,\"\")","v":""},{"$f":"IFERROR(#REF!,\"\")","v":""},"","",{"$f":"IFERROR(#REF!,\"\")","v":""},"",{"$f":"IFERROR(#REF!,\"\")","v":""},{"$f":"IFERROR(#REF!,\"\")","v":""},{"$f":"_xlfn.CONCAT(\"Trimestre 1\",CHAR(10),IFERROR(#REF!,\"\"))","v":"Trimestre 1\n"},{"$f":"_xlfn.CONCAT(\"Trimestre 1\",CHAR(10),IFERROR(#REF!,\"\"))","v":"Trimestre 1\n"},{"$f":"_xlfn.CONCAT(\"Trimestre 1\",CHAR(10),IFERROR(#REF!,\"\"))","v":"Trimestre 1\n"},{"$f":"_xlfn.CONCAT(\"Trimestre 1\",CHAR(10),IFERROR(#REF!,\"\"))","v":"Trimestre 1\n"},{"$f":"_xlfn.CONCAT(\"Trimestre 1\",CHAR(10),IFERROR(#REF!,\"\"))","v":"Trimestre 1\n"}]
[null,null,null,null,null,null,null,null,null,null,null,null,null,null,null,null,null,null,null,null,null,null,null,null,null,{"$f":"IFERROR(#REF!,\" \")","v":" "},{"$f":"IFERROR(#REF!,\"\")","v":""},{"$f":"IFERROR(#REF!,\"\")","v":""},"","",{"$f":"IFERROR(#REF!,\"\")","v":""},"",{"$f":"IFERROR(#REF!,\"\")","v":""},{"$f":"IFERROR(#REF!,\"\")","v":""},{"$f":"_xlfn.CONCAT(\"Trimestre 1\",CHAR(10),IFERROR(#REF!,\"\"))","v":"Trimestre 1\n"},{"$f":"_xlfn.CONCAT(\"Trimestre 1\",CHAR(10),IFERROR(#REF!,\"\"))","v":"Trimestre 1\n"},{"$f":"_xlfn.CONCAT(\"Trimestre 1\",CHAR(10),IFERROR(#REF!,\"\"))","v":"Trimestre 1\n"},{"$f":"_xlfn.CONCAT(\"Trimestre 1\",CHAR(10),IFERROR(#REF!,\"\"))","v":"Trimestre 1\n"},{"$f":"_xlfn.CONCAT(\"Trimestre 1\",CHAR(10),IFERROR(#REF!,\"\"))","v":"Trimestre 1\n"}]
[null,null,null,null,null,null,null,null,null,null,null,null,null,null,null,null,null,null,null,null,null,null,null,null,null,{"$f":"IFERROR(#REF!,\" \")","v":" "},{"$f":"IFERROR(#REF!,\"\")","v":""},{"$f":"IFERROR(#REF!,\"\")","v":""},"","",{"$f":"IFERROR(#REF!,\"\")","v":""},"",{"$f":"IFERROR(#REF!,\"\")","v":""},{"$f":"IFERROR(#REF!,\"\")","v":""},{"$f":"_xlfn.CONCAT(\"Trimestre 1\",CHAR(10),IFERROR(#REF!,\"\"))","v":"Trimestre 1\n"},{"$f":"_xlfn.CONCAT(\"Trimestre 1\",CHAR(10),IFERROR(#REF!,\"\"))","v":"Trimestre 1\n"},{"$f":"_xlfn.CONCAT(\"Trimestre 1\",CHAR(10),IFERROR(#REF!,\"\"))","v":"Trimestre 1\n"},{"$f":"_xlfn.CONCAT(\"Trimestre 1\",CHAR(10),IFERROR(#REF!,\"\"))","v":"Trimestre 1\n"},{"$f":"_xlfn.CONCAT(\"Trimestre 1\",CHAR(10),IFERROR(#REF!,\"\"))","v":"Trimestre 1\n"}]
[null,null,"5. Promover el bienestar de todos los servidores judiciales a través de la implementación de un sistema que contemple los diferentes niveles de estrategias y acciones necesarios para mejorar el clima laboral, la salud física y mental y la calidad del tiempo de descanso.","Satisfacción de los servidores judiciales con el clima laboral","(# respuestas con concepto de bueno o excelente / # total de respuestas) *100","5. Generar espacios de trabajo seguros y saludables que contribuyan a minimizar los  incidentes, accidentes y enfermedades laborales derivados de las condiciones y actos  inseguros y fomentar  el autocuidado, los  estilos de vida y el trabajo saludable en los servidores judiciales, contratistas, judicantes y practicantes.",null,null,null,null,null,null,null,null,null,null,null,null,null,null,null,null,null,null,null,{"$f":"IFERROR(#REF!,\" \")","v":" "},{"$f":"IFERROR(#REF!,\"\")","v":""},{"$f":"IFERROR(#REF!,\"\")","v":""},"","",{"$f":"IFERROR(#REF!,\"\")","v":""},"",{"$f":"IFERROR(#REF!,\"\")","v":""},{"$f":"IFERROR(#REF!,\"\")","v":""},{"$f":"_xlfn.CONCAT(\"Trimestre 1\",CHAR(10),IFERROR(#REF!,\"\"))","v":"Trimestre 1\n"},{"$f":"_xlfn.CONCAT(\"Trimestre 1\",CHAR(10),IFERROR(#REF!,\"\"))","v":"Trimestre 1\n"},{"$f":"_xlfn.CONCAT(\"Trimestre 1\",CHAR(10),IFERROR(#REF!,\"\"))","v":"Trimestre 1\n"},{"$f":"_xlfn.CONCAT(\"Trimestre 1\",CHAR(10),IFERROR(#REF!,\"\"))","v":"Trimestre 1\n"},{"$f":"_xlfn.CONCAT(\"Trimestre 1\",CHAR(10),IFERROR(#REF!,\"\"))","v":"Trimestre 1\n"}]
[null,null,null,null,null,null,null,null,null,null,null,null,null,null,null,null,null,null,null,null,null,null,null,null,null,{"$f":"IFERROR(#REF!,\" \")","v":" "},{"$f":"IFERROR(#REF!,\"\")","v":""},{"$f":"IFERROR(#REF!,\"\")","v":""},"","",{"$f":"IFERROR(#REF!,\"\")","v":""},"",{"$f":"IFERROR(#REF!,\"\")","v":""},{"$f":"IFERROR(#REF!,\"\")","v":""},{"$f":"_xlfn.CONCAT(\"Trimestre 1\",CHAR(10),IFERROR(#REF!,\"\"))","v":"Trimestre 1\n"},{"$f":"_xlfn.CONCAT(\"Trimestre 1\",CHAR(10),IFERROR(#REF!,\"\"))","v":"Trimestre 1\n"},{"$f":"_xlfn.CONCAT(\"Trimestre 1\",CHAR(10),IFERROR(#REF!,\"\"))","v":"Trimestre 1\n"},{"$f":"_xlfn.CONCAT(\"Trimestre 1\",CHAR(10),IFERROR(#REF!,\"\"))","v":"Trimestre 1\n"},{"$f":"_xlfn.CONCAT(\"Trimestre 1\",CHAR(10),IFERROR(#REF!,\"\"))","v":"Trimestre 1\n"}]
[]
[]
[]
[]
[]
[null,null,null,null,null,null,null,null,null,null,null,null,null,null,null,null,null,null,null,null,null,null,null,null,null,{"$f":"IFERROR(#REF!,\" \")","v":" "},{"$f":"IFERROR(#REF!,\"\")","v":""},{"$f":"IFERROR(#REF!,\"\")","v":""},"","",{"$f":"IFERROR(#REF!,\"\")","v":""},"",{"$f":"IFERROR(#REF!,\"\")","v":""},{"$f":"IFERROR(#REF!,\"\")","v":""},{"$f":"_xlfn.CONCAT(\"Trimestre 1\",CHAR(10),IFERROR(#REF!,\"\"))","v":"Trimestre 1\n"},{"$f":"_xlfn.CONCAT(\"Trimestre 1\",CHAR(10),IFERROR(#REF!,\"\"))","v":"Trimestre 1\n"},{"$f":"_xlfn.CONCAT(\"Trimestre 1\",CHAR(10),IFERROR(#REF!,\"\"))","v":"Trimestre 1\n"},{"$f":"_xlfn.CONCAT(\"Trimestre 1\",CHAR(10),IFERROR(#REF!,\"\"))","v":"Trimestre 1\n"},{"$f":"_xlfn.CONCAT(\"Trimestre 1\",CHAR(10),IFERROR(#REF!,\"\"))","v":"Trimestre 1\n"}]
[null,null,null,null,null,null,null,null,null,null,null,null,null,null,null,null,null,null,null,null,null,null,null,null,null,{"$f":"IFERROR(#REF!,\" \")","v":" "},{"$f":"IFERROR(#REF!,\"\")","v":""},{"$f":"IFERROR(#REF!,\"\")","v":""},"","",{"$f":"IFERROR(#REF!,\"\")","v":""},"",{"$f":"IFERROR(#REF!,\"\")","v":""},{"$f":"IFERROR(#REF!,\"\")","v":""},{"$f":"_xlfn.CONCAT(\"Trimestre 1\",CHAR(10),IFERROR(#REF!,\"\"))","v":"Trimestre 1\n"},{"$f":"_xlfn.CONCAT(\"Trimestre 1\",CHAR(10),IFERROR(#REF!,\"\"))","v":"Trimestre 1\n"},{"$f":"_xlfn.CONCAT(\"Trimestre 1\",CHAR(10),IFERROR(#REF!,\"\"))","v":"Trimestre 1\n"},{"$f":"_xlfn.CONCAT(\"Trimestre 1\",CHAR(10),IFERROR(#REF!,\"\"))","v":"Trimestre 1\n"},{"$f":"_xlfn.CONCAT(\"Trimestre 1\",CHAR(10),IFERROR(#REF!,\"\"))","v":"Trimestre 1\n"}]
[null,null,null,null,null,null,null,null,null,null,null,null,null,null,null,null,null,null,null,null,null,null,null,null,null,{"$f":"IFERROR(#REF!,\" \")","v":" "},{"$f":"IFERROR(#REF!,\"\")","v":""},{"$f":"IFERROR(#REF!,\"\")","v":""},"","",{"$f":"IFERROR(#REF!,\"\")","v":""},"",{"$f":"IFERROR(#REF!,\"\")","v":""},{"$f":"IFERROR(#REF!,\"\")","v":""},{"$f":"_xlfn.CONCAT(\"Trimestre 1\",CHAR(10),IFERROR(#REF!,\"\"))","v":"Trimestre 1\n"},{"$f":"_xlfn.CONCAT(\"Trimestre 1\",CHAR(10),IFERROR(#REF!,\"\"))","v":"Trimestre 1\n"},{"$f":"_xlfn.CONCAT(\"Trimestre 1\",CHAR(10),IFERROR(#REF!,\"\"))","v":"Trimestre 1\n"},{"$f":"_xlfn.CONCAT(\"Trimestre 1\",CHAR(10),IFERROR(#REF!,\"\"))","v":"Trimestre 1\n"},{"$f":"_xlfn.CONCAT(\"Trimestre 1\",CHAR(10),IFERROR(#REF!,\"\"))","v":"Trimestre 1\n"}]
["5. Gobernanza, planeación estratégica y capacidad de toma de decisiones","Gobernanza, planeación estratégica y capacidad de toma de decisiones: Fortalecer la gobernanza, la planeación estratégica y la capacidad de toma de decisiones de la Rama Judicial con base en la evidencia empírica y la articulación efectiva con las demás entidades, para que la perspectiva de género y el enfoque diferencial sean transversales en el presente plan. ","1. Implementar un nuevo modelo integrado para la planeación estratégica, el seguimiento y la medición del desempeño institucional.","Modelo integrado para la planeación estratégica, seguimiento y medición del desempeño institucional implementado","% de implementa ción del modelo integrado","2. Asegurar  el cumplimiento de los objetivos institucionales, la normatividad aplicable,  la mejora del SIGCMA y la satisfacción de los usuarios, revisando de  forma continua y sistemática la planificación de la gestión y fortaleciendo la administración de riesgos y sus controles.",null,null,null,null,null,null,null,null,null,null,null,null,null,null,null,null,null,null,null,{"$f":"IFERROR(#REF!,\" \")","v":" "},{"$f":"IFERROR(#REF!,\"\")","v":""},{"$f":"IFERROR(#REF!,\"\")","v":""},"","",{"$f":"IFERROR(#REF!,\"\")","v":""},"",{"$f":"IFERROR(#REF!,\"\")","v":""},{"$f":"IFERROR(#REF!,\"\")","v":""},{"$f":"_xlfn.CONCAT(\"Trimestre 1\",CHAR(10),IFERROR(#REF!,\"\"))","v":"Trimestre 1\n"},{"$f":"_xlfn.CONCAT(\"Trimestre 1\",CHAR(10),IFERROR(#REF!,\"\"))","v":"Trimestre 1\n"},{"$f":"_xlfn.CONCAT(\"Trimestre 1\",CHAR(10),IFERROR(#REF!,\"\"))","v":"Trimestre 1\n"},{"$f":"_xlfn.CONCAT(\"Trimestre 1\",CHAR(10),IFERROR(#REF!,\"\"))","v":"Trimestre 1\n"},{"$f":"_xlfn.CONCAT(\"Trimestre 1\",CHAR(10),IFERROR(#REF!,\"\"))","v":"Trimestre 1\n"}]
[null,null,null,null,null,null,null,null,null,null,null,null,null,null,null,null,null,null,null,null,null,null,null,null,null,{"$f":"IFERROR(#REF!,\" \")","v":" "},{"$f":"IFERROR(#REF!,\"\")","v":""},{"$f":"IFERROR(#REF!,\"\")","v":""},"","",{"$f":"IFERROR(#REF!,\"\")","v":""},"",{"$f":"IFERROR(#REF!,\"\")","v":""},{"$f":"IFERROR(#REF!,\"\")","v":""},{"$f":"_xlfn.CONCAT(\"Trimestre 1\",CHAR(10),IFERROR(#REF!,\"\"))","v":"Trimestre 1\n"},{"$f":"_xlfn.CONCAT(\"Trimestre 1\",CHAR(10),IFERROR(#REF!,\"\"))","v":"Trimestre 1\n"},{"$f":"_xlfn.CONCAT(\"Trimestre 1\",CHAR(10),IFERROR(#REF!,\"\"))","v":"Trimestre 1\n"},{"$f":"_xlfn.CONCAT(\"Trimestre 1\",CHAR(10),IFERROR(#REF!,\"\"))","v":"Trimestre 1\n"},{"$f":"_xlfn.CONCAT(\"Trimestre 1\",CHAR(10),IFERROR(#REF!,\"\"))","v":"Trimestre 1\n"}]
[]
[]
[]
[]
[]
[null,null,null,null,null,null,null,null,null,null,null,null,null,null,null,null,null,null,null,null,null,null,null,null,null,{"$f":"IFERROR(#REF!,\" \")","v":" "},{"$f":"IFERROR(#REF!,\"\")","v":""},{"$f":"IFERROR(#REF!,\"\")","v":""},"","",{"$f":"IFERROR(#REF!,\"\")","v":""},"",{"$f":"IFERROR(#REF!,\"\")","v":""},{"$f":"IFERROR(#REF!,\"\")","v":""},{"$f":"_xlfn.CONCAT(\"Trimestre 1\",CHAR(10),IFERROR(#REF!,\"\"))","v":"Trimestre 1\n"},{"$f":"_xlfn.CONCAT(\"Trimestre 1\",CHAR(10),IFERROR(#REF!,\"\"))","v":"Trimestre 1\n"},{"$f":"_xlfn.CONCAT(\"Trimestre 1\",CHAR(10),IFERROR(#REF!,\"\"))","v":"Trimestre 1\n"},{"$f":"_xlfn.CONCAT(\"Trimestre 1\",CHAR(10),IFERROR(#REF!,\"\"))","v":"Trimestre 1\n"},{"$f":"_xlfn.CONCAT(\"Trimestre 1\",CHAR(10),IFERROR(#REF!,\"\"))","v":"Trimestre 1\n"}]
[null,null,null,null,null,null,null,null,null,null,null,null,null,null,null,null,null,null,null,null,null,null,null,null,null,{"$f":"IFERROR(#REF!,\" \")","v":" "},{"$f":"IFERROR(#REF!,\"\")","v":""},{"$f":"IFERROR(#REF!,\"\")","v":""},"","",{"$f":"IFERROR(#REF!,\"\")","v":""},"",{"$f":"IFERROR(#REF!,\"\")","v":""},{"$f":"IFERROR(#REF!,\"\")","v":""},{"$f":"_xlfn.CONCAT(\"Trimestre 1\",CHAR(10),IFERROR(#REF!,\"\"))","v":"Trimestre 1\n"},{"$f":"_xlfn.CONCAT(\"Trimestre 1\",CHAR(10),IFERROR(#REF!,\"\"))","v":"Trimestre 1\n"},{"$f":"_xlfn.CONCAT(\"Trimestre 1\",CHAR(10),IFERROR(#REF!,\"\"))","v":"Trimestre 1\n"},{"$f":"_xlfn.CONCAT(\"Trimestre 1\",CHAR(10),IFERROR(#REF!,\"\"))","v":"Trimestre 1\n"},{"$f":"_xlfn.CONCAT(\"Trimestre 1\",CHAR(10),IFERROR(#REF!,\"\"))","v":"Trimestre 1\n"}]
[null,null,null,null,null,null,null,null,null,null,null,null,null,null,null,null,null,null,null,null,null,null,null,null,null,{"$f":"IFERROR(#REF!,\" \")","v":" "},{"$f":"IFERROR(#REF!,\"\")","v":""},{"$f":"IFERROR(#REF!,\"\")","v":""},"","",{"$f":"IFERROR(#REF!,\"\")","v":""},"",{"$f":"IFERROR(#REF!,\"\")","v":""},{"$f":"IFERROR(#REF!,\"\")","v":""},{"$f":"_xlfn.CONCAT(\"Trimestre 1\",CHAR(10),IFERROR(#REF!,\"\"))","v":"Trimestre 1\n"},{"$f":"_xlfn.CONCAT(\"Trimestre 1\",CHAR(10),IFERROR(#REF!,\"\"))","v":"Trimestre 1\n"},{"$f":"_xlfn.CONCAT(\"Trimestre 1\",CHAR(10),IFERROR(#REF!,\"\"))","v":"Trimestre 1\n"},{"$f":"_xlfn.CONCAT(\"Trimestre 1\",CHAR(10),IFERROR(#REF!,\"\"))","v":"Trimestre 1\n"},{"$f":"_xlfn.CONCAT(\"Trimestre 1\",CHAR(10),IFERROR(#REF!,\"\"))","v":"Trimestre 1\n"}]
[null,null,"2. Definir e implementar el modelo optimizado de formulación, seguimiento y evaluación de la política pública judicial.",null,null,null,null,null,null,null,null,null,null,null,null,null,null,null,null,null,null,null,null,null,null,{"$f":"IFERROR(#REF!,\" \")","v":" "},{"$f":"IFERROR(#REF!,\"\")","v":""},{"$f":"IFERROR(#REF!,\"\")","v":""},"","",{"$f":"IFERROR(#REF!,\"\")","v":""},"",{"$f":"IFERROR(#REF!,\"\")","v":""},{"$f":"IFERROR(#REF!,\"\")","v":""},{"$f":"_xlfn.CONCAT(\"Trimestre 1\",CHAR(10),IFERROR(#REF!,\"\"))","v":"Trimestre 1\n"},{"$f":"_xlfn.CONCAT(\"Trimestre 1\",CHAR(10),IFERROR(#REF!,\"\"))","v":"Trimestre 1\n"},{"$f":"_xlfn.CONCAT(\"Trimestre 1\",CHAR(10),IFERROR(#REF!,\"\"))","v":"Trimestre 1\n"},{"$f":"_xlfn.CONCAT(\"Trimestre 1\",CHAR(10),IFERROR(#REF!,\"\"))","v":"Trimestre 1\n"},{"$f":"_xlfn.CONCAT(\"Trimestre 1\",CHAR(10),IFERROR(#REF!,\"\"))","v":"Trimestre 1\n"}]
[null,null,null,null,null,null,null,null,null,null,null,null,null,null,null,null,null,null,null,null,null,null,null,null,null,{"$f":"IFERROR(#REF!,\" \")","v":" "},{"$f":"IFERROR(#REF!,\"\")","v":""},{"$f":"IFERROR(#REF!,\"\")","v":""},"","",{"$f":"IFERROR(#REF!,\"\")","v":""},"",{"$f":"IFERROR(#REF!,\"\")","v":""},{"$f":"IFERROR(#REF!,\"\")","v":""},{"$f":"_xlfn.CONCAT(\"Trimestre 1\",CHAR(10),IFERROR(#REF!,\"\"))","v":"Trimestre 1\n"},{"$f":"_xlfn.CONCAT(\"Trimestre 1\",CHAR(10),IFERROR(#REF!,\"\"))","v":"Trimestre 1\n"},{"$f":"_xlfn.CONCAT(\"Trimestre 1\",CHAR(10),IFERROR(#REF!,\"\"))","v":"Trimestre 1\n"},{"$f":"_xlfn.CONCAT(\"Trimestre 1\",CHAR(10),IFERROR(#REF!,\"\"))","v":"Trimestre 1\n"},{"$f":"_xlfn.CONCAT(\"Trimestre 1\",CHAR(10),IFERROR(#REF!,\"\"))","v":"Trimestre 1\n"}]
[]
[]
[]
[]
[]
[null,null,null,null,null,null,null,null,null,null,null,null,null,null,null,null,null,null,null,null,null,null,null,null,null,{"$f":"IFERROR(#REF!,\" \")","v":" "},{"$f":"IFERROR(#REF!,\"\")","v":""},{"$f":"IFERROR(#REF!,\"\")","v":""},"","",{"$f":"IFERROR(#REF!,\"\")","v":""},"",{"$f":"IFERROR(#REF!,\"\")","v":""},{"$f":"IFERROR(#REF!,\"\")","v":""},{"$f":"_xlfn.CONCAT(\"Trimestre 1\",CHAR(10),IFERROR(#REF!,\"\"))","v":"Trimestre 1\n"},{"$f":"_xlfn.CONCAT(\"Trimestre 1\",CHAR(10),IFERROR(#REF!,\"\"))","v":"Trimestre 1\n"},{"$f":"_xlfn.CONCAT(\"Trimestre 1\",CHAR(10),IFERROR(#REF!,\"\"))","v":"Trimestre 1\n"},{"$f":"_xlfn.CONCAT(\"Trimestre 1\",CHAR(10),IFERROR(#REF!,\"\"))","v":"Trimestre 1\n"},{"$f":"_xlfn.CONCAT(\"Trimestre 1\",CHAR(10),IFERROR(#REF!,\"\"))","v":"Trimestre 1\n"}]
[null,null,null,null,null,null,null,null,null,null,null,null,null,null,null,null,null,null,null,null,null,null,null,null,null,{"$f":"IFERROR(#REF!,\" \")","v":" "},{"$f":"IFERROR(#REF!,\"\")","v":""},{"$f":"IFERROR(#REF!,\"\")","v":""},"","",{"$f":"IFERROR(#REF!,\"\")","v":""},"",{"$f":"IFERROR(#REF!,\"\")","v":""},{"$f":"IFERROR(#REF!,\"\")","v":""},{"$f":"_xlfn.CONCAT(\"Trimestre 1\",CHAR(10),IFERROR(#REF!,\"\"))","v":"Trimestre 1\n"},{"$f":"_xlfn.CONCAT(\"Trimestre 1\",CHAR(10),IFERROR(#REF!,\"\"))","v":"Trimestre 1\n"},{"$f":"_xlfn.CONCAT(\"Trimestre 1\",CHAR(10),IFERROR(#REF!,\"\"))","v":"Trimestre 1\n"},{"$f":"_xlfn.CONCAT(\"Trimestre 1\",CHAR(10),IFERROR(#REF!,\"\"))","v":"Trimestre 1\n"},{"$f":"_xlfn.CONCAT(\"Trimestre 1\",CHAR(10),IFERROR(#REF!,\"\"))","v":"Trimestre 1\n"}]
[null,null,null,null,null,null,null,null,null,null,null,null,null,null,null,null,null,null,null,null,null,null,null,null,null,{"$f":"IFERROR(#REF!,\" \")","v":" "},{"$f":"IFERROR(#REF!,\"\")","v":""},{"$f":"IFERROR(#REF!,\"\")","v":""},"","",{"$f":"IFERROR(#REF!,\"\")","v":""},"",{"$f":"IFERROR(#REF!,\"\")","v":""},{"$f":"IFERROR(#REF!,\"\")","v":""},{"$f":"_xlfn.CONCAT(\"Trimestre 1\",CHAR(10),IFERROR(#REF!,\"\"))","v":"Trimestre 1\n"},{"$f":"_xlfn.CONCAT(\"Trimestre 1\",CHAR(10),IFERROR(#REF!,\"\"))","v":"Trimestre 1\n"},{"$f":"_xlfn.CONCAT(\"Trimestre 1\",CHAR(10),IFERROR(#REF!,\"\"))","v":"Trimestre 1\n"},{"$f":"_xlfn.CONCAT(\"Trimestre 1\",CHAR(10),IFERROR(#REF!,\"\"))","v":"Trimestre 1\n"},{"$f":"_xlfn.CONCAT(\"Trimestre 1\",CHAR(10),IFERROR(#REF!,\"\"))","v":"Trimestre 1\n"}]

{"sheet":"JURISDICCIONAL","index":7,"n_rows":29,"n_cols":16,"rows_kept":29,"cut":false,"hidden":true,"merged":[[1,2,1,13],[2,0,3,0],[2,1,3,1],[2,2,3,2],[2,3,3,3],[2,4,3,4],[2,5,2,7],[2,8,2,10],[2,11,3,11],[2,12,2,13],[2,14,2,15],[4,0,8,0],[4,1,8,1],[4,3,8,3],[9,0,14,0],[9,1,14,1],[9,3,14,3],[27,0,28,0],[27,1,28,1],[27,3,28,3],[15,0,21,0],[15,1,21,1],[15,3,21,3],[22,0,26,0],[22,1,26,1],[22,3,26,3]]}
[]
[null,null,"CONSEJO SUPERIOR DE LA JUDICATURA \nUNIDADES MISIONALES DEL CONSEJO SUPERIOR DE LA JUDICATURA - \nDIRECCIÓN EJECUTIVA DE ADMINISTRACIÓN JUDICIAL -UNIDADES MISIONALES DE LA DEAJ\nDIRECCIONES SECCIONALES DE ADMINISTRACIÓN JUDICIAL "]
["No. ","OBJETIVOS ESTRATEGICOS PLAN SECTORIAL DE DESARROLLO 2023-2026","OBJETIVOS ESPECIFICOS PLAN SECTORIAL DE DESARROLLO 2023-2026","OBJETIVOS DEL SIGCMA","DESCRIPCIÓN DE LA ACTIVIDAD (INVERSIÓN O DE GESTIÓN) ","MAPA DE PROCESO DEL SIGCMA (RELACIONE  EL PROCESO ESTRATÉGICO, MISIONAL, APOYO y EVALUACIÓN - MEJORA)",null,null,"MEDICIÓN DE LA GESTIÓN ",null,null,"RESPONSABLE POR PROYECTO O ACTIVIDAD","FECHA DEL PROYECTO/ACTIVIDAD",null,"ANÁLISIS DE RESULTADOS"]
[null,null,null,null,null,"NOMBRE DEL PROCESO","CENTRAL","SECCIONAL","ENTREGABLE","INDICADOR","DESCRIBIR EL INDICADOR",null,"INICIO \nDÍA/MES/AÑO","FIN\nDÍA/MES/AÑO","CUMPLIMIENTO DEL OBJETIVO (ACUMULADO DE LOS 4 TRIMESTRES)"," ANÁLISIS RESULTADO\nFINAL - ACUMULADO"]
[1,"Acceso a Infraestructura Física"," 1. Ampliar el acceso a justicia para atender las necesidades jurídicas de los \nciudadanos con un enfoque diferencial, de una manera pronta, reduciendo las \ninequidades y las brechas territoriales de acceso.","\n2. Asegurar  el cumplimiento de los objetivos institucionales, la normatividad aplicable,  la mejora del SIGCMA y la satisfacción de los usuarios, revisando de  forma continua y sistemática la planificación de la gestión y fortaleciendo la administración de riesgos y sus controles. (1,2,3 y 5)\n\n4. Hacer un uso racional de los recursos naturales aplicando los principios y fases de la Economía Circular, para prevenir, mitigar y controlar los impactos ambientales. (4)\n\n"]
[null,null,"2. Mejorar los tiempos de respuesta de la Rama Judicial y reducir el inventario de \nprocesos, identificando los retos internos y promoviendo tanto acciones articuladas\nespecíficas para abordarlos como estrategias coordinadas para enfrentar las \nbarreras que dependen de otras entidades."]
[null,null,"3. Coadyuvar en la garantía de la idoneidad en el ejercicio de la profesión jurídica de acuerdo con lo establecido en la Ley 1905 de 2018"]
[null,null,"4. Avanzar en la disposición de una infraestructura óptima para el acceso a la justicia en la Rama Judicial de modo que se fortalezca la presencia territorial, teniendo en cuenta las posibilidades que ofrece la transformación digital y las necesidades que se derivan de ella, y considerando tanto las necesidades de los usuarios como las de los servidores judiciales."]
[null,null,"5. Impulsar el uso de mecanismos alternativos para la solución de conflictos y la \nampliación de la justicia restaurativa y terapéutica y el robustecimiento de las alternativas al encarcelamiento"]
[2,"Servicios digitales y de tecnología, innovación y análisis de la información","1. Ampliar el acceso a la justicia a través de la consolidación del uso de los servicios \ndigitales que conforman el sistema único integrado de gestión judicial en todos los \ndespachos judiciales y dependencias de apoyo y, específicamente, incluyendo el \ndespliegue e implementación del Expediente Judicial Electrónico en todas las \njurisdicciones y especialidades.","6. Proteger, preservar y administrar los activos de información  implementando acciones  para gestionar de forma adecuada los incidentes  , proteger los datos personales y adoptar mecanismos  de ciberseguridad y aseguramiento de la  continuidad del negocio (1, 2, 3, 4, 5 y 6)"]
[null,null,"2. Integrar y hacer compatibles todos los aplicativos de transición con SIUGJ, para que la migración de los expedientes judiciales a dicha plataforma sea real y no suponga afectaciones en la prestación del servicio de justicia."]
[null,null,"\n3. Fortalecer las capacidades institucionales, adecuar el modelo operativo y de \nservicio, bajo un enfoque de Arquitectura Empresarial y de fortalecimiento del \nacceso a la justicia."]
[null,null,"\n4.Consolidar la cultura y apropiación de la transformación digital en los servidores y \nusuarios de los servicios de la Rama Judicial y reducir brechas de acceso y conocimiento, incluyendo la oferta efectiva de información sobre el uso de las nuevas herramientas virtuales implementadas en las diferentes jurisdicciones, con especial énfasis en las zonas del país donde es evidente la brecha digital."]
[null,null,"\n5.Consolidar la infraestructura y los recursos necesarios para la implementación exitosa de la transformación digital, incluyendo la disposición de internet de calidad en el 100% de las sedes en la Rama Judicial y modernizar los servicios tecnológicos de soporte. "]
[null,null,"\n6.Integrar y optimizar los servicios administrativos de la Rama Judicial bajo un enfoque de transformación digital e innovación incluyendo los componentes financiero, administrativo, talento humano, entre otros"]
[3,"Confianza pública, transparencia y rendición de cuentas","1. Incrementar la cantidad, la calidad y pertinencia de los datos sobre el funcionamiento del servicio de justicia bajo un modelo de gobierno de datos y un liderazgo unificado. \n","1. Gestionar el desarrollo de las competencias, la toma de conciencia , la cultura  organizacional  y el compromiso de los  servidores judiciales, contratistas, practicantes y  judicantes de contribuir a generar valor público en la administración de justicia, en el marco de  cumplimiento de los requisitos  aplicables y el comportamiento ético. (3 y 7)\n\n3. Fomentar la transparencia y la participación generando lineamientos y promoviendo la rendición de cuentas ,la consulta, reporte y planteamiento de inquietudes en relación con las decisiones y aspectos del SIGCMA. (3, 4, 5 y 6)\n\n4. Hacer un uso racional de los recursos naturales aplicando los principios y fases de la Economía Circular, para prevenir, mitigar y controlar los impactos ambientales. (1 y 7)\n"]
[null,null,"2. Consolidar la administración de la información entendida como todas las acciones \norientadas a garantizar el acceso, consulta, uso y conservación de la información \nde justicia de manera ágil, flexible e inteligente, bajo un enfoque de innovación."]
[null,null,"3. Fortalecer el Sistema integrado de Gestión de la Rama, orientado a la implementación y certificación de las normas antisoborno."]
[null,null,"4. Aumentar la confianza, la cercanía y acceso a los servicios de la Rama Judicial a \ntravés, entre otros, de una comunicación clara y asertiva con la ciudadanía."]
[null,null,"5. Prevenir fenómenos asociados con actos de corrupción en la Rama Judicial y \nreducir las experiencias de corrupción de usuarios y servidores judiciales."]
[null,null,"6. Promover la rendición de cuentas y la colaboración real con la ciudadanía como \nfundamento para diseñar acciones de mejoramiento del acceso a la justicia."]
[null,null,"7. Continuar la consolidación del SIGCMA, a través de los procesos de formación en \nmodelos de gestión, logrando la implementación y ampliación de este en los esquemas certificados de manera gradual, teniendo en cuenta las capacidades de los diferentes despachos judiciales y dependencias de la Rama Judicial y articulando el enfoque de Arquitectura Empresarial para el desarrollo del PETD a través de la gestión del conocimiento para la gestión del cambio propendiendo por una cultura de la calidad, la transparencia, la rendición de cuentas, la anticorrupción y el antisoborno"]
[4,"Talento Humano","1. Ampliar la cobertura de la carrera judicial optimizando los procesos de los concursos de méritos y propender por mitigar su litigiosidad.","1. Gestionar el desarrollo de las competencias, la toma de conciencia , la cultura  organizacional  y el compromiso de los  servidores judiciales, contratistas, practicantes y  judicantes de contribuir a generar valor público en la administración de justicia, en el marco de  cumplimiento de los requisitos  aplicables y el comportamiento ético. (1, 2, 3 y 4)\n\n5. Generar espacios de trabajo seguros y saludables que contribuyan a minimizar los  incidentes, accidentes y enfermedades laborales derivados de las condiciones y actos  inseguros y fomentar  el autocuidado, los  estilos de vida y el trabajo saludable en los servidores judiciales, contratistas, judicantes y practicantes. (5)\n"]
[null,null,"2. Impactar la función y servicios que presta la Rama Judicial, a través de una\nformación integral desde una visión de gestión del conocimiento, relacionada con \nlos problemas de la justicia y los problemas de gestión de quienes administran los \nrecursos de la justicia, y potenciando el uso de medios virtuales."]
[null,null,"3. Promover la incorporación de la perspectiva de género y el enfoque diferencial en \nlos fallos judiciales y en la atención a los ciudadanos, la administración de la Rama \nJudicial, la administración de la carrera judicial y la elaboración de listas para altas \nCortes. "]
[null,null,"4. Desarrollar en los servidores judiciales y demás grupos de valor relevantes las \ncompetencias necesarias para la efectividad de la transformación digital de modo \nque puedan, entre otros, utilizar con solvencia las herramientas digitales dispuestas \npara sus respectivas funciones. Además, fortalecer y actualizar los conocimientos \ndel personal a cargo de la gestión de proyectos de tecnología."]
[null,null,"5. Promover el bienestar de todos los servidores judiciales a través de la implementación de un sistema que contemple los diferentes niveles de estrategias y acciones necesarios para mejorar el clima laboral, la salud física y mental y la calidad del tiempo de descanso."]
[5,"Gobernanza, planeación estratégica y capacidad de toma de decisiones","1. Implementar un nuevo modelo integrado para la planeación estratégica, el \nseguimiento y la medición del desempeño institucional.","\n2. Asegurar  el cumplimiento de los objetivos institucionales, la normatividad aplicable,  la mejora del SIGCMA y la satisfacción de los usuarios, revisando de  forma continua y sistemática la planificación de la gestión y fortaleciendo la administración de riesgos y sus controles. (1 y 2)"]
[null,null,"2. Definir e implementar el modelo optimizado de formulación, seguimiento y \nevaluación de la política pública judicial."]